Workbook

Sheet Table des matières
K5: Rapport au titre du troisième pilier
O6: (non audité)
G8: Pour la période terminée le 30 septembre 2025
A10: TABLE DES MATIÈRES
B12: Remarques à l'intention du lecteur | F12: Liens entre les états financiers et les | J12: Risque de contrepartie | N12: Ratio de levier
C13: Utilisation de ce document | F13: expositions réglementaires | K13: Analyse de l'exposition au risque de contrepartie | O13: Comparaison résumée des actifs comptables et
C14: Champ d'application de ce document | G14: Différences entre les périmètres de consolidation | K14: (CCR) par approche [CCR1] | O14: de la mesure de l’exposition aux fins du ratio
C15: Mise en garde sur les énoncés prospectifs | G15: comptable et réglementaire et correspondance | K15: Approche standard - Expositions au risque | O15: de levier [LR1]
C16: Politique de communication | G16: entre les états financiers et les catégories de | K16: de contrepartie (CCR) par portefeuille | O16: Déclaration commune du ratio de levier [LR2]
G17: risques réglementaires [LI1] | K17: réglementaire et par pondération des risques
B18: Aperçu de la gestion des risques, des | G18: Principales sources d’écarts entre les valeurs | K18: [CCR3] | N18: Instruments financiers dérivés
B19: indicateurs prudentiels clés et des actifs | G19: comptables et réglementaires des expositions | K19: IRB - Expositions au risque de contrepartie | O19: Instruments financiers dérivés - Notionnel et
B20: pondérés en fonction des risques | G20: dans les états financiers [LI2] | K20: (CCR) par portefeuille et par fourchette de | O20: risque de crédit associé
C21: Indicateurs clés (au niveau du groupe consolidé) | K21: probabilité de défaut (PD) [CCR4]
C22: [KM1] | F22: Risque de crédit | K22: Nature des sûretés pour l'exposition au risque | N22: Autres informations
C23: Indicateurs clés – Exigences de TLAC | G23: Qualité de crédit des actifs [CR1] | K23: de contrepartie [CCR5] | O23: Exigences de communication au titre du
C24: (au niveau du groupe de résolution) [KM2] | G24: Variations des stocks de prêts et de titres de | K24: Expositions sur dérivés de crédit [CCR6] | O24: troisième pilier
C25: Aperçu des actifs pondérés en fonction | G25: créance en défaut [CR2] | K25: Expositions sur les contreparties centrales (CC) | O25: Abréviations
C26: des risques (APR) [OV1] | G26: Aperçu des techniques d'atténuation du risque | K26: [CCR8] | O26: Glossaire
C27: Actifs pondérés en fonction des risques (APR) | G27: de crédit (ARC) [CR3]
C28: Actifs pondérés en fonction des risques par | G28: Approche standard – Exposition au risque de | J28: Titrisation
C29: secteurs d'activité | G29: crédit et effets de l'atténuation du risque de | K29: Expositions de titrisation dans le portefeuille
C30: Évolution des actifs pondérés en fonction des | G30: crédit (CRM) [CR4] | K30: bancaire [SEC1]
C31: risques | G31: Approche standard – Exposition par classe | K31: Expositions de titrisation dans le portefeuille
C32: Comparaison des APR modélisés et standard | G32: d'actifs et par coefficient de pondération des | K32: bancaire et exigences de fonds propres
C33: au niveau du risque [CMS1] | G33: risques [CR5] | K33: réglementaires associées (entité financière
C34: Comparaison des APR modélisés et standard | G34: IRB - Expositions au risque de crédit par | K34: agissant comme investisseur) [SEC4]
C35: pour le risque de crédit au niveau de la classe | G35: portefeuille et par fourchette de probabilité de
C36: d'actifs [CMS2] | G36: défaut (PD) [CR6] | J36: Risque de marché
G37: États des flux d'actifs pondérés en fonction des | K37: Risque de marché selon l'approche standard
B38: Composition des fonds propres et TLAC | G38: risques (APR) pour les expositions au risque de | K38: [MR1]
C39: Composition des fonds propres réglementaires | G39: crédit selon l'approche IRB [CR8]
C40: [CC1] | G40: Expositions en cas de défaut par classes d'actif, | J40: Ajustement à l'évaluation de crédit
C41: Variations trimestrielles des fonds propres | G41: par régions et par échéances résiduelles | K41: Formule complète de l'approche de base
C42: réglementaires | G42: Expositions en cas de défaut aux entreprises, | K42: à l'égard du risque lié à l'AEC (AB-AEC) [CVA2]
C43: Rapprochement des fonds propres | G43: emprunteurs souverains et institutions
C44: réglementaires et du bilan [CC2] | G44: financières par secteurs d'activité | J44: Mesures de contrôle macroprudentiel
C45: Principales caractéristiques des instruments de | G45: Expositions au risque de crédit selon l'approche | K45: Répartition géographique des expositions
C46: fonds propres réglementaires et des autres | G46: des notations internes - Contrôles | K46: utilisées dans le coussin contracyclique
C47: instruments de TLAC éligibles [CCA] | G47: ex post : paramètres réels et estimatifs | K47: [CCyB1]
C48: Composition de la TLAC (au niveau du groupe
C49: de résolution) [TLAC1]
C50: Entité de résolution – Rang de créancier au
C51: niveau de l’entité juridique [TLAC3]

Sheet Utilisation de ce document
A1: REMARQUES À L'INTENTION DU LECTEUR
A3: UTILISATION DE CE DOCUMENT
A5: Le Rapport au titre du troisième pilier (ce document) vise à soutenir la transparence et la communication des informations complémentaires inhérentes à la gestion du capital et des risques du Mouvement Desjardins (Mouvement) et à permettre aux différents intervenants du marché financier d’en apprécier le profil de risque et la performance financière. L’information présentée dans ce document n’a pas été auditée. Ce document doit être utilisé en tant que complément aux rapports financiers intermédiaires et au rapport annuel. Ces rapports, qui comprennent les états financiers combinés et les rapports de gestion du Mouvement Desjardins, sont disponibles sur son site Web, à l’adresse Desjardins.com, et sur le site Web de SEDAR+, à l’adresse www.sedarplus.com (sous le profil de la Fédération des caisses Desjardins du Québec). Ce document doit également être utilisé en complément du document Informations financières complémentaires du Mouvement, également disponible sur son site Web. Certaines informations pertinentes au troisième pilier sont divulguées dans le cadre de ces documents. Annuellement, un tableau de référence intitulé « Informations divulguées dans le cadre de rapports distincts » est présenté sous chacune des exigences réglementaires lorsqu’applicable. Ce dernier fait état des exigences du troisième pilier qui ne sont pas directement traitées dans le cadre de ce document et redirige vers les sections appropriées des documents distincts. Les informations divulguées au niveau de ce rapport sont préparées conformément aux lignes directrices publiées par l’Autorité des marchés financiers (AMF ou Autorité) : •La Ligne directrice sur les exigences de communication financière au titre du troisième pilier; •La Ligne directrice sur la capacité totale d’absorption des pertes; •La Ligne directrice sur les normes relatives à la suffisance du capital émise par l’AMF et applicable notamment aux coopératives de services financiers. En février 2025, l'AMF a publié une révision de cette ligne directrice proposant, entre autres, des modifications au niveau des principes visant les instruments relatifs aux fonds propres d'urgence en cas de non-viabilité ainsi que des modifications de concordance et de clarification. Ces changements sont entrés en vigueur le 1er janvier 2025. Ces lignes directrices sont disponibles sur le site Web de l’Autorité, à l’adresse https://lautorite.qc.ca. Les exigences du Comité de Bâle, desquelles les lignes directrices de l’AMF découlent, se retrouvent à l’adresse https://www.bis.org. À moins d’indication contraire, tous les montants sont présentés en dollars canadiens. Les symboles M$ et G$ sont utilisés pour désigner respectivement les millions et les milliards de dollars.

Sheet Champ dapplication
A1: CHAMP D'APPLICATION DE CE DOCUMENT
A3: Ce document présente des informations financières du Mouvement Desjardins, qui regroupe les caisses Desjardins du Québec et la Caisse Desjardins Ontario Credit Union Inc. (caisses), la Fédération des caisses Desjardins du Québec (Fédération) et ses filiales ainsi que le Fonds de sécurité Desjardins. La composition du périmètre de consolidation comptable du Mouvement est présentée dans la section « Périmètre du Groupe » de la note complémentaire 2 « Méthodes comptables » de ses états financiers combinés annuels. Quant aux informations sur le capital et les risques présentées dans ce document, elles sont principalement établies selon son périmètre réglementaire en vertu de l’Accord de Bâle III. Ce dernier diffère du périmètre comptable du fait que les participations dans les filiales d’assurance sont exclues de celui-ci par voie de déduction du capital. L’information provient d’une combinaison de données d’origine comptable et réglementaire. De plus, les données relatives au capital et aux risques sont présentées afin de répondre à des exigences de divulgation stipulées dans les recommandations du document Enhancing the Risk Disclosures of Banks.

Sheet Mise en garde
A1: MISE EN GARDE SUR LES ÉNONCÉS PROSPECTIFS
A3: Les communications publiques du Mouvement Desjardins comprennent de temps à autre des énoncés prospectifs, écrits ou verbaux, au sens des lois sur les valeurs mobilières applicables, notamment au Québec, au Canada et aux États-Unis. Des énoncés prospectifs se retrouvent dans le présent rapport de gestion et peuvent aussi être intégrés à d'autres documents déposés auprès d'organismes de réglementation du Canada ou à toute autre communication. De plus, des représentants du Mouvement peuvent formuler verbalement des énoncés prospectifs aux investisseurs, aux médias et à d'autres personnes. Les énoncés prospectifs comprennent, sans s'y limiter, des observations concernant les objectifs du Mouvement Desjardins en matière de rendement financier, ses priorités, sa vision, ses activités, ses cibles et engagements, ses stratégies pour les atteindre, ses résultats et sa situation financière, la conjoncture économique et celle des marchés financiers, les perspectives concernant les économies québécoise, canadienne, américaine et mondiale, ainsi que le contexte réglementaire dans lequel nous exerçons nos activités. Ces énoncés prospectifs se reconnaissent habituellement par l'emploi de termes comme « cible », « objectif », « échéancier », « perspective », « croire », « prévoir », « compter », « s’attendre à », « avoir l'intention de », « avoir comme but », « estimer », « planifier », « projeter », « anticiper », « viser », « se proposer », « devoir » et « pouvoir », de verbes conjugués au futur et au conditionnel, ainsi que de mots et d'expressions comparables, dans toutes variantes grammaticales. Par leur nature même, les énoncés prospectifs exigent que nous formulions des hypothèses et ils sont assujettis à des incertitudes et à des risques inhérents de nature générale ou spécifique. Nous avertissons nos lecteurs de ne pas se fier indûment aux énoncés prospectifs pour prendre des décisions puisque divers facteurs, dont plusieurs sont indépendants de la volonté du Mouvement Desjardins et dont ce dernier peut difficilement prédire les répercussions, peuvent influer, isolément ou collectivement, sur la justesse des hypothèses formulées, des prédictions, des projections ou d'autres énoncés prospectifs, y compris ceux mentionnés dans le rapport de gestion. Bien que le Mouvement Desjardins soit d'avis que les attentes exprimées dans ces énoncés prospectifs sont raisonnables et basées sur un fondement valable, il ne peut garantir qu'elles se concrétiseront ou se révéleront exactes. Il est également possible que ces hypothèses, prédictions, projections ou autres énoncés, ainsi que les objectifs et les priorités du Mouvement Desjardins,ne se matérialisent pas ou se révèlent inexacts, et que les résultats, conditions, actions ou événements réels futurs diffèrent sensiblement des cibles, des attentes, des estimations ou des intentions qui y sont avancées explicitement ou implicitement. Les lecteurs qui se fient à ces énoncés prospectifs doivent soigneusement tenir compte de ces facteurs de risque de même que des autres incertitudes et événements potentiels, y compris l'incertitude inhérente aux énoncés prospectifs. Les énoncés prospectifs contenus dans ce rapport représentent le point de vue de la direction uniquement à la date des présentes et sont communiqués afin d'aider les lecteurs à comprendre et à interpréter la situation financière du Mouvement Desjardins aux dates indiquées, ou ses résultats pour les périodes terminées à ces dates, ainsi que ses priorités et ses objectifs stratégiques tels qu'envisagés en date des présentes. Ces énoncés prospectifs peuvent ne pas convenir à d'autres fins. Le Mouvement Desjardins ne s'engage pas à mettre à jour les énoncés prospectifs, verbaux ou écrits, qui peuvent être faits à l'occasion par lui ou en son nom, à l'exception de ce qui est exigé en vertu des lois sur les valeurs mobilières applicables.

Sheet Politique de comm.
A1: POLITIQUE DE COMMUNICATION
A3: Le Mouvement Desjardins détient une politique de divulgation de l’information financière importante (politique), approuvée par le conseil d’administration et définissant les processus de contrôle et procédures internes à cet effet. Les principaux éléments de la politique s’appliquent aux documents financiers importants du Mouvement et de ses émetteurs assujettis de même qu’aux documents qui sont déposés auprès des autorités réglementaires. Entre autres, la politique énonce les principes directeurs de communication applicables à ces documents, y compris l’information au titre du troisième pilier, l’existence et le maintien d’un processus de contrôle et de validation de l’information financière importante et la responsabilité du conseil d’administration et de la haute direction envers la mise en place et la garantie de la structure de contrôle interne efficace pour la communication d’information importante.

Sheet KM1
A1: Tableau KM1 – Indicateurs clés (au niveau du groupe consolidé)
A3: =SUM(D7:H37) -> 7,193,503.22 | D3: a | E3: b | F3: c | G3: d | H3: e
B5: (en millions de dollars) | D5: Au 30 septembre 2025 | E5: Au 30 juin 2025 | F5: Au 31 mars 2025 | G5: Au 31 décembre 2024 | H5: Au 30 septembre 2024
B6: Fonds propres disponibles
A7: 1 | C7: Fonds propres de la catégorie 1A | D7: 35,484 | E7: 34,543 | F7: 34,061 | G7: 33,157 | H7: 32,630
A8: 2 | C8: Fonds propres de la catégorie 1 | D8: 35,484 | E8: 34,543 | F8: 34,061 | G8: 33,157 | H8: 32,630
A9: 3 | C9: Total des fonds propres | D9: 39,409 | E9: 38,447 | F9: 38,357 | G9: 36,269 | H9: 35,712
B10: Actifs pondérés en fonction des risques
A11: 4 | C11: Total des actifs pondérés en fonction des risques (APR) | D11: 153,868 | E11: 150,888 | F11: 151,882 | G11: 149,621 | H11: 148,937
A12: 4a | C12: Total des actifs pondérés en fonction des risques (pré-plancher) | D12: 153,868 | E12: 150,888 | F12: 151,882 | G12: 149,621 | H12: 148,937
B13: Ratios des fonds propres fondés sur le risque en pourcentage des APR
A14: 5 | C14: Ratio de fonds propres de la catégorie 1A | D14: 23.1% | E14: 22.9% | F14: 22.4% | G14: 22.2% | H14: 21.9%
A15: 5b | C15: Ratio de fonds propres de la catégorie 1A (pré-plancher) | D15: 23.1% | E15: 22.9% | F15: 22.4% | G15: 22.2% | H15: 21.9%
A16: 6 | C16: Ratio de fonds propres de la catégorie 1 | D16: 23.1% | E16: 22.9% | F16: 22.4% | G16: 22.2% | H16: 21.9%
A17: 6b | C17: Ratio de fonds propres de la catégorie 1 (pré-plancher) | D17: 23.1% | E17: 22.9% | F17: 22.4% | G17: 22.2% | H17: 21.9%
A18: 7 | C18: Ratio des fonds propres totaux | D18: 25.6% | E18: 25.5% | F18: 25.3% | G18: 24.2% | H18: 24.0%
A19: 7b | C19: Ratio des fonds propres totaux (pré-plancher) | D19: 25.6% | E19: 25.5% | F19: 25.3% | G19: 24.2% | H19: 24.0%
B20: Exigences supplémentaires de la catégorie 1A en pourcentage des APR
A21: 8 | C21: Exigence de conservation des fonds propres | D21: 2.5% | E21: 2.5% | F21: 2.5% | G21: 2.5% | H21: 2.5%
A22: 9 | C22: Exigence contracyclique | D22: 0 | E22: 0 | F22: 0 | G22: 0 | H22: 0
A23: 10 | C23: Exigences supplémentaires IFIS-i | D23: 1.0% | E23: 1.0% | F23: 1.0% | G23: 1.0% | H23: 1.0%
A24: 11 | C24: Total des exigences de réserve spécifique de la catégorie 1A (lignes 8+9+10) | D24: 3.5% | E24: 3.5% | F24: 3.5% | G24: 3.5% | H24: 3.5%
A25: 12 | C25: Fonds propres de la catégorie 1A disponibles après satisfaction des exigences minimales | D25: 17.6% | E25: 17.5% | F25: 17.3% | G25: 16.2% | H25: 16.0%
B26: Ratio de levier Bâle III
A27: 13 | C27: Mesure totale de l’exposition aux fins du ratio de levier de Bâle III | D27: 470,392 | E27: 463,163 | F27: 451,038 | G27: 434,089 | H27: 427,197
A28: 14 | C28: Ratio de levier de Bâle III (ligne 2 / ligne 13) | D28: 7.5% | E28: 7.5% | F28: 7.6% | G28: 7.6% | H28: 7.6%
A29: 14b | C29: Ratio de levier de Bâle III (à l’exclusion de l’impact de toute exemption temporaire applicable des réserves de la banque centrale) | D29: s. o. | E29: s. o. | F29: s. o. | G29: s. o. | H29: s. o.
B30: Ratio de liquidité à court terme (LCR)
A31: 15 | C31: Total des actifs liquides de haute qualité | D31: 65,818 | E31: 65,383 | F31: 63,085 | G31: 58,052 | H31: 57,802
A32: 16 | C32: Total des sorties nettes de trésorerie | D32: 39,381 | E32: 40,645 | F32: 36,699 | G32: 35,162 | H32: 34,760
A33: 17 | C33: Ratio LCR | D33: 167% | E33: 161% | F33: 172% | G33: 165% | H33: 166%
B34: Ratio structurel de liquidité à long terme (NSFR)
A35: 18 | C35: Financement stable disponible total | D35: 284,020 | E35: 278,165 | F35: 273,587 | G35: 266,482 | H35: 263,085
A36: 19 | C36: Financement stable exigé total | D36: 214,679 | E36: 212,213 | F36: 208,655 | G36: 206,469 | H36: 205,123
A37: 20 | C37: Ratio NSFR | D37: 132% | E37: 131% | F37: 131% | G37: 129% | H37: 128%

Sheet KM2
A1: Tableau KM2 – Indicateurs clés – Exigences de TLAC (au niveau du groupe de résolution(1))
A3: =SUM(D6:H13) -> 3186551.218 | D3: a | E3: b | F3: c | G3: d | H3: e
B5: (en millions de dollars) | D5: Au 30 septembre 2025 | E5: Au 30 juin 2025 | F5: Au 31 mars 2025 | G5: Au 31 décembre 2024 | H5: Au 30 septembre 2024
A6: 1 | B6: Capacité totale d’absorption des pertes (TLAC) disponible(2) | D6: 51,888 | E6: 48,541 | F6: 48,615 | G6: 47,797 | H6: 47,188
A7: 2 | B7: APR totaux au niveau du groupe de résolution | D7: 148,854 | E7: 146,087 | F7: 147,079 | G7: 145,372 | H7: 145,004
A8: 3 | B8: Ratio TLAC : TLAC en pourcentage des APR (ligne 1 / ligne 2) (%) | D8: 34.9% | E8: 33.2% | F8: 33.1% | G8: 32.9% | H8: 32.5%
A9: 4 | B9: Mesure de l’exposition aux fins du ratio de levier au niveau du groupe de résolution | D9: 462,609 | E9: 455,892 | F9: 443,245 | G9: 427,337 | H9: 421,041
A10: 5 | B10: Ratio de levier TLAC : TLAC en pourcentage de la mesure d’exposition aux fins du ratio de levier (ligne 1 / ligne 4) | D10: 11.2% | E10: 10.6% | F10: 11.0% | G10: 11.2% | H10: 11.2%
A11: 6a | B11: L’exemption de subordination indiquée à l’antépénultième paragraphe du point 11 du tableau du FSB sur la TLAC s’applique-t-elle ? | D11: oui | E11: oui | F11: oui | G11: oui | H11: oui
A12: 6b | B12: L’exemption de subordination indiquée au pénultième paragraphe du point 11 du tableau des modalités du FSB sur la TLAC s'applique-t-elle ? | D12: non | E12: non | F12: non | G12: non | H12: non
A13: 6c | B13: Si l’exemption limitée de subordination s’applique, le montant de financement émis qui est assimilé à des passifs exclus et qui est reconnu comme TLAC externe, divisé par le financement émis qui est assimilé à des passifs exclus et qui serait reconnu comme TLAC externe si aucune limite n'était appliquée. | D13: s. o. | E13: s. o. | F13: s. o. | G13: s. o. | H13: s. o.
B15: (1) | C15: Les données figurant dans ce tableau diffèrent de celles présentées dans le Tableau CC1, car elles font référence au groupe de résolution qui exclut la Caisse Desjardins Ontario Credit Union Inc.
B16: (2) | C16: Émission de 4,8 G$ de créances admissibles à la ligne directrice sur la TLAC au cours des neuf premiers mois de l’année 2025.

Sheet OV1
A1: Tableau OV1 – Aperçu des actifs pondérés en fonction des risques (APR)
A3: =SUM(D7:I35) -> 2,107,992.63 | D3: a | E3: b | I3: c
D5: APR | I5: Exigences minimales de fonds propres(1)
B6: (en millions de dollars) | D6: Au 30 septembre 2025 | E6: Au 30 juin 2025 | F6: Au 31 mars 2025 | G6: Au 31 décembre 2024 | H6: Au 30 septembre 2024 | I6: Au 30 septembre 2025
A7: 1 | B7: Risque de crédit (hors risque de contrepartie – CCR) | D7: 103,850 | E7: 102,543 | F7: 102,670 | G7: 103,042 | H7: 103,224 | I7: 8,308
A8: 2 | C8: dont : approche standard (AS) | D8: 25,836 | E8: 24,785 | F8: 26,320 | G8: 29,054 | H8: 29,304 | I8: 2,067
A9: 3 | C9: dont : approche fondée sur les notations internes « fondation » (FIRB) | D9: 12,862 | E9: 12,310 | F9: 11,651 | G9: 10,177 | H9: 10,259 | I9: 1,029
A10: 4 | C10: dont : approche par critère de classement prudentiel | D10: 0 | E10: 0 | F10: 0 | G10: 0 | H10: 0 | I10: 0
A11: 5 | C11: dont : approche fondée sur les notations internes « avancées » (AIRB) | D11: 65,152 | E11: 65,448 | F11: 64,699 | G11: 63,811 | H11: 63,661 | I11: 5,212
A12: 6 | B12: Risque de contrepartie | D12: 4,311 | E12: 4,033 | F12: 4,733 | G12: 4,200 | H12: 3,839 | I12: 344
A13: 7 | C13: dont : approche standard pour le risque de contrepartie (AS-CCR) | D13: 3,891 | E13: 3,517 | F13: 3,543 | G13: 3,323 | H13: 2,961 | I13: 310
A14: 8 | C14: dont : MMI | D14: 0 | E14: 0 | F14: 0 | G14: 0 | H14: 0 | I14: 0
A15: 9 | C15: dont : autres CCR | D15: 420 | E15: 516 | F15: 1,190 | G15: 877 | H15: 878 | I15: 34
A16: 10 | B16: Charge d'ajustement de l'évaluation de crédit (AEC) | D16: 3,609 | E16: 3,273 | F16: 3,208 | G16: 2,715 | H16: 2,972 | I16: 289
A17: 11 | B17: Positions en actions selon l'approche de la pondération simple des risques et méthode des modèles internes au cours de la période transitoire linéaire de cinq ans | D17: 0 | E17: 0 | F17: 0 | G17: 0 | H17: 0 | I17: 0
A18: 12 | B18: Placements en actions dans les fonds d’investissement – approche par transparence | D18: 741 | E18: 706 | F18: 585 | G18: 674 | H18: 647 | I18: 59
A19: 13 | B19: Placements en actions dans les fonds d’investissement – approche fondée sur le mandat | D19: 138 | E19: 171 | F19: 256 | G19: 233 | H19: 234 | I19: 11
A20: 14 | B20: Placements en actions dans les fonds d’investissement – approche de repli | D20: 0 | E20: 0 | F20: 0 | G20: 0 | H20: 0 | I20: 0
A21: 15 | B21: Risque de règlement | D21: 0 | E21: 0 | F21: 0 | G21: 0 | H21: 0 | I21: 0
A22: 16 | B22: Expositions de titrisation dans le portefeuille bancaire | D22: 209 | E22: 124 | F22: 283 | G22: 284 | H22: 317 | I22: 17
A23: 17 | C23: dont : approche fondée sur les notations internes pour la titrisation (SEC-IRBA) | D23: 0 | E23: 0 | F23: 0 | G23: 0 | H23: 0 | I23: 0
A24: 18 | C24: dont : approche fondée sur les notations externes pour la titrisation (SEC-ERBA), y compris l’approche fondée sur les évaluations internes (approche EI)(2) | D24: 19 | E24: 20 | F24: 4 | G24: 4 | H24: 0 | I24: 2
A25: 19 | C25: dont : approche standard pour la titrisation (SEC-SA) | D25: 190 | E25: 104 | F25: 279 | G25: 280 | H25: 317 | I25: 15
A26: 20 | B26: Risque de marché | D26: 5,985 | E26: 5,780 | F26: 6,055 | G26: 4,901 | H26: 3,446 | I26: 479
A27: 21 | C27: dont : approche standard (AS) | D27: 5,985 | E27: 5,780 | F27: 6,055 | G27: 4,901 | H27: 3,446 | I27: 479
A28: 22 | C28: dont : approche fondée sur les méthodes internes (MMI) | D28: 0 | E28: 0 | F28: 0 | G28: 0 | H28: 0 | I28: 0
A29: 23 | B29: Exigence de fonds propres entre portefeuille de négociation et portefeuille bancaire | D29: 0 | E29: 0 | F29: 0 | G29: 0 | H29: 0 | I29: 0
A30: 24 | B30: Risque opérationnel | D30: 23,355 | E30: 22,927 | F30: 22,957 | G30: 22,875 | H30: 23,410 | I30: 1,868
A31: 25 | B31: Montants inférieurs aux seuils de déduction (avant pondération des risques de 250 %) | D31: 11,670 | E31: 11,331 | F31: 11,135 | G31: 10,697 | H31: 10,848 | I31: 935
A32: 26 | B32: Plancher d'APR appliqué | D32: 72.5% | E32: 72.5% | F32: 72.5% | G32: 72.5% | H32: 72.5% | I32: 0
A33: 27 | B33: Ajustement au moyen du plancher (avant application du plafond transitoire) | D33: 0 | E33: 0 | F33: 0 | G33: 0 | H33: 0 | I33: 0
A34: 28 | B34: Ajustement au moyen du plancher (après application du plafond transitoire) | D34: 0 | E34: 0 | F34: 0 | G34: 0 | H34: 0 | I34: 0
A35: 29 | B35: Total (1 + 6 + 10 + 11 + 12 + 13 + 14 + 15 + 16 + 20 + 23 + 24 + 25 + 28) | D35: 153,868 | E35: 150,888 | F35: 151,882 | G35: 149,621 | H35: 148,937 | I35: 12,310
B37: (1) | C37: L'exigence minimale de fonds propres représente 8 % des actifs pondérés en fonction des risques.
B38: (2) | C38: Modification apportée à l'évaluation de certaines expositions, qui sont évaluées selon des notations externes à compter du 4e trimestre 2024.

Sheet APR
A1: Actifs pondérés en fonction des risques (APR)
A2: Au 30 septembre 2025
A4: =SUM(D7:K31) -> 4790030.397 | D4: Approche des notations internes | F4: Approche standard | H4: Total
A5: (en millions de dollars) | D5: Expositions(1) | E5: APR | F5: Expositions(1) | G5: APR | H5: Expositions(1) | I5: APR | J5: Exigence de capital(2) | K5: Taux de pondération moyen des risques
A6: Risque de crédit autre que le risque de contrepartie
B7: Emprunteurs souverains | D7: 114,774 | E7: 6,708 | F7: 6,786 | G7: 0 | H7: 121,560 | I7: 6,708 | J7: 537 | K7: 5.5%
B8: Organismes publics hors administration centrale | D8: 0 | E8: 0 | F8: 9,335 | G8: 1,868 | H8: 9,335 | I8: 1,868 | J8: 149 | K8: 20.0%
B9: Institutions financières | D9: 4,951 | E9: 1,139 | F9: 2,979 | G9: 1,150 | H9: 7,930 | I9: 2,289 | J9: 183 | K9: 28.9%
B10: Entreprises | D10: 46,206 | E10: 24,274 | F10: 12,642 | G10: 11,068 | H10: 58,848 | I10: 35,342 | J10: 2,827 | K10: 60.1%
B11: Titrisation | D11: 0 | E11: 0 | F11: 143 | G11: 209 | H11: 143 | I11: 209 | J11: 17 | K11: 145.6%
B12: Actions | D12: 0 | E12: 0 | F12: 779 | G12: 1,736 | H12: 779 | I12: 1,736 | J12: 139 | K12: 222.9%
B13: PME assimilées aux autres expositions sur la clientèle de détail | D13: 10,587 | E13: 6,180 | F13: 331 | G13: 253 | H13: 10,918 | I13: 6,433 | J13: 515 | K13: 58.9%
B14: Immobilier | D14: 188,510 | E14: 29,250 | F14: 5,758 | G14: 4,049 | H14: 194,268 | I14: 33,299 | J14: 2,664 | K14: 17.1%
B15: Autres expositions sur la clientèle de détail (à l'exception des PME) | D15: 22,229 | E15: 6,337 | F15: 868 | G15: 199 | H15: 23,097 | I15: 6,536 | J15: 523 | K15: 28.3%
B16: Expositions renouvelables sur la clientèle de détail éligibles | D16: 14,948 | E16: 4,126 | F16: 1,565 | G16: 1,180 | H16: 16,513 | I16: 5,306 | J16: 425 | K16: 32.1%
A17: Sous-total du risque de crédit autre que le risque de contrepartie | D17: 402,205 | E17: 78,014 | F17: 41,186 | G17: 21,712 | H17: 443,391 | I17: 99,726 | J17: 7,979 | K17: 22.5%
A18: Risque de contrepartie
B19: Emprunteurs souverains | D19: 137 | E19: 0 | F19: 0 | G19: 0 | H19: 137 | I19: 0 | J19: 0 | K19: 0.2%
B20: Organismes publics hors administration centrale | D20: 0 | E20: 0 | F20: 0 | G20: 0 | H20: 0 | I20: 0 | J20: 0 | K20: 0
B21: Institutions financières | D21: 6,825 | E21: 2,410 | F21: 14 | G21: 3 | H21: 6,839 | I21: 2,413 | J21: 193 | K21: 35.3%
B22: Entreprises | D22: 2 | E22: 1 | F22: 162 | G22: 163 | H22: 164 | I22: 164 | J22: 13 | K22: 99.7%
B23: Portefeuille de négociation | D23: 1,827 | E23: 1,051 | F23: 790 | G23: 667 | H23: 2,617 | I23: 1,718 | J23: 137 | K23: 65.6%
B24: Charge d'ajustement de l'évaluation de crédit (AEC) | D24: 0 | E24: 0 | F24: 0 | G24: 3,609 | H24: 0 | I24: 3,609 | J24: 289 | K24: 0
B25: Exigences supplémentaires liées au portefeuille bancaire et de négociation | D25: 0 | E25: 0 | F25: 350 | G25: 16 | H25: 350 | I25: 16 | J25: 1 | K25: 4.5%
A26: Sous-total du risque de contrepartie | D26: 8,791 | E26: 3,462 | F26: 1,316 | G26: 4,458 | H26: 10,107 | I26: 7,920 | J26: 633 | K26: 78.4%
A27: Autres actifs(3) | D27: 0 | E27: 0 | F27: 0 | G27: 0 | H27: 29,889 | I27: 16,882 | J27: 1,351 | K27: 56.5%
A28: Total du risque de crédit | D28: 410,996 | E28: 81,476 | F28: 42,502 | G28: 26,170 | H28: 483,387 | I28: 124,528 | J28: 9,963 | K28: 25.8%
A29: Risque de marché | D29: 0 | E29: 0 | F29: 0 | G29: 5,985 | H29: 0 | I29: 5,985 | J29: 479 | K29: 0
A30: Risque opérationnel | D30: 0 | E30: 0 | F30: 0 | G30: 23,355 | H30: 0 | I30: 23,355 | J30: 1,868 | K30: 0
A31: Total des actifs pondérés en fonction des risques | D31: 410,996 | E31: 81,476 | F31: 42,502 | G31: 55,510 | H31: 483,387 | I31: 153,868 | J31: 12,310 | K31: 31.8%
A33: =SUM(H36:K60) -> 2115632 | H33: Actifs pondérés en fonction des risques
A34: (en millions de dollars) | H34: Au 30 juin 2025 | I34: Au 31 mars 2025 | J34: Au 31 décembre 2024 | K34: Au 30 septembre 2024
A35: Risque de crédit autre que le risque de contrepartie
B36: Emprunteurs souverains | H36: 6,599 | I36: 6,259 | J36: 7,154 | K36: 6,876
B37: Organismes publics hors administration centrale | H37: 1,829 | I37: 1,880 | J37: 1,798 | K37: 1,753
B38: Institutions financières | H38: 2,379 | I38: 2,307 | J38: 2,356 | K38: 2,367
B39: Entreprises | H39: 34,052 | I39: 34,791 | J39: 35,313 | K39: 35,535
B40: Titrisation | H40: 124 | I40: 283 | J40: 284 | K40: 317
B41: Actions | H41: 1,840 | I41: 1,829 | J41: 1,854 | K41: 1,822
B42: PME assimilées aux autres expositions sur la clientèle de détail | H42: 6,394 | I42: 6,390 | J42: 6,201 | K42: 6,216
B43: Immobilier | H43: 33,718 | I43: 33,085 | J43: 32,208 | K43: 32,247
B44: Autres expositions sur la clientèle de détail (à l'exception des PME) | H44: 6,390 | I44: 6,372 | J44: 6,330 | K44: 7,409
B45: Expositions renouvelables sur la clientèle de détail éligibles | H45: 5,177 | I45: 5,487 | J45: 5,389 | K45: 4,412
A46: Sous-total du risque de crédit autre que le risque de contrepartie | H46: 98,502 | I46: 98,683 | J46: 98,887 | K46: 98,954
A47: Risque de contrepartie
B48: Emprunteurs souverains | H48: 0 | I48: 0 | J48: 0 | K48: 0
B49: Organismes publics hors administration centrale | H49: 0 | I49: 0 | J49: 0 | K49: 0
B50: Institutions financières | H50: 2,213 | I50: 1,859 | J50: 1,707 | K50: 1,766
B51: Entreprises | H51: 139 | I51: 373 | J51: 297 | K51: 278
B52: Portefeuille de négociation | H52: 1,661 | I52: 2,475 | J52: 2,177 | K52: 1,778
B53: Charge d'ajustement de l'évaluation de crédit (AEC) | H53: 3,273 | I53: 3,208 | J53: 2,715 | K53: 2,972
B54: Exigences supplémentaires liées au portefeuille bancaire et de négociation | H54: 20 | I54: 26 | J54: 19 | K54: 17
A55: Sous-total du risque de contrepartie | H55: 7,306 | I55: 7,941 | J55: 6,915 | K55: 6,811
A56: Autres actifs(3) | H56: 16,373 | I56: 16,246 | J56: 16,043 | K56: 16,316
A57: Total du risque de crédit | H57: 122,181 | I57: 122,870 | J57: 121,845 | K57: 122,081
A58: Risque de marché | H58: 5,780 | I58: 6,055 | J58: 4,901 | K58: 3,446
A59: Risque opérationnel | H59: 22,927 | I59: 22,957 | J59: 22,875 | K59: 23,410
A60: Total des actifs pondérés en fonction des risques | H60: 150,888 | I60: 151,882 | J60: 149,621 | K60: 148,937
A62: (1) | B62: Expositions nettes après l'atténuation du risque de crédit (déduction faite des provisions pour pertes de crédit attendues sur prêts dépréciés autres que la clientèle de détail [à l’exception des prêts sur cartes de crédit] selon l'approche standard, à l'exclusion de ceux selon l'approche des notations internes, conformément à la ligne directrice de l'AMF).
A63: (2) | B63: L'exigence de capital représente 8 % des actifs pondérés en fonction des risques.
A64: (3) | B64: Cette rubrique comprend, entre autres, la part des investissements en-dessous d'un certain seuil dans les composantes déconsolidées aux fins des fonds propres réglementaires (principalement Desjardins Groupe d'assurances générales inc. et Desjardins Sécurité financière, compagnie d'assurance vie), qui est pondérée à 250 %. Par ailleurs, cette catégorie exclut la charge d'AEC et les exigences supplémentaires liées au portefeuille bancaire et de négociation, qui sont divulguées dans la section portant sur le risque de crédit de contrepartie.

Sheet APR par sect. dactivité
A1: Actifs pondérés en fonction des risques par secteurs d'activité
A2: =SUM(C5:G10) -> 1510392
A3: (en millions de dollars) | C3: Au 30 septembre 2025 | D3: Au 30 juin 2025 | E3: Au 31 mars 2025 | F3: Au 31 décembre 2024 | G3: Au 30 septembre 2024
A4: Attribués aux secteurs d'activité
B5: Particuliers et Entreprises | C5: 123,585 | D5: 121,991 | E5: 122,542 | F5: 121,668 | G5: 119,850
B6: Gestion de patrimoine et Assurance de personnes | C6: 6,858 | D6: 6,704 | E6: 6,918 | F6: 6,100 | G6: 6,098
B7: Assurance de dommages | C7: 4,231 | D7: 4,066 | E7: 3,794 | F7: 4,345 | G7: 4,270
B8: Autres | C8: 19,194 | D8: 18,127 | E8: 18,628 | F8: 17,508 | G8: 18,719
A9: Non attribués | C9: 0 | D9: 0 | E9: 0 | F9: 0 | G9: 0
A10: Total des actifs pondérés en fonction des risques | C10: 153,868 | D10: 150,888 | E10: 151,882 | F10: 149,621 | G10: 148,937

Sheet Évol. des APR
A1: Évolution des actifs pondérés en fonction des risques
A2: =SUM(C6:Q15) -> 2461090 | C2: Pour les périodes de trois mois terminées le
A3: (en millions de dollars) | C3: 30 septembre 2025 | F3: 30 juin 2025 | I3: 31 mars 2025 | L3: 31 décembre 2024 | O3: 30 septembre 2024
C4: Risque de crédit autre que le risque de contrepartie | D4: Risque de contre- partie | E4: Total | F4: Risque de crédit autre que le risque de contrepartie | G4: Risque de contre- partie | H4: Total | I4: Risque de crédit autre que le risque de contrepartie | J4: Risque de contre- partie | K4: Total | L4: Risque de crédit autre que le risque de contrepartie | M4: Risque de contre- partie | N4: Total | O4: Risque de crédit autre que le risque de contrepartie | P4: Risque de contre- partie | Q4: Total
A5: Risque de crédit
A6: Actifs pondérés en fonction des risques au début de la période | C6: 114,875 | D6: 7,306 | E6: 122,181 | F6: 114,929 | G6: 7,941 | H6: 122,870 | I6: 114,930 | J6: 6,915 | K6: 121,845 | L6: 115,270 | M6: 6,811 | N6: 122,081 | O6: 114,799 | P6: 6,194 | Q6: 120,993
B7: Taille du portefeuille(1) | C7: 2,095 | D7: 631 | E7: 2,726 | F7: 1,899 | G7: (182) | H7: 1,717 | I7: 3,683 | J7: 1,098 | K7: 4,781 | L7: 1,365 | M7: (105) | N7: 1,260 | O7: 3,055 | P7: (350) | Q7: 2,705
B8: Qualité du portefeuille(2) | C8: (318) | D8: (43) | E8: (361) | F8: (2,137) | G8: (447) | H8: (2,584) | I8: (239) | J8: 15 | K8: (224) | L8: (1,871) | M8: 119 | N8: (1,752) | O8: (240) | P8: 1,168 | Q8: 928
B9: Mise à jour des modèles(3) | C9: (70) | D9: 1 | E9: (69) | F9: (668) | G9: (15) | H9: (683) | I9: (3,327) | J9: (73) | K9: (3,400) | L9: 0 | M9: 0 | N9: 0 | O9: 0 | P9: 0 | Q9: 0
B10: Méthodes et politiques(4) | C10: (289) | D10: 0 | E10: (289) | F10: 83 | G10: 0 | H10: 83 | I10: (105) | J10: 0 | K10: (105) | L10: (824) | M10: 0 | N10: (824) | O10: (2,164) | P10: (198) | Q10: (2,362)
B11: Acquisitions et cessions | C11: 0 | D11: 0 | E11: 0 | F11: 0 | G11: 0 | H11: 0 | I11: 0 | J11: 0 | K11: 0 | L11: 0 | M11: 0 | N11: 0 | O11: 0 | P11: 0 | Q11: 0
B12: Variation des taux de change | C12: 315 | D12: 25 | E12: 340 | F12: 769 | G12: 9 | H12: 778 | I12: (13) | J12: (14) | K12: (27) | L12: 990 | M12: 90 | N12: 1,080 | O12: (180) | P12: (3) | Q12: (183)
B13: Autres | C13: 0 | D13: 0 | E13: 0 | F13: 0 | G13: 0 | H13: 0 | I13: 0 | J13: 0 | K13: 0 | L13: 0 | M13: 0 | N13: 0 | O13: 0 | P13: 0 | Q13: 0
B14: Total des variations des actifs pondérés en fonction des risques | C14: 1,733 | D14: 614 | E14: 2,347 | F14: (54) | G14: (635) | H14: (689) | I14: (1) | J14: 1,026 | K14: 1,025 | L14: (340) | M14: 104 | N14: (236) | O14: 471 | P14: 617 | Q14: 1,088
A15: Actifs pondérés en fonction des risques à la fin de la période | C15: 116,608 | D15: 7,920 | E15: 124,528 | F15: 114,875 | G15: 7,306 | H15: 122,181 | I15: 114,929 | J15: 7,941 | K15: 122,870 | L15: 114,930 | M15: 6,915 | N15: 121,845 | O15: 115,270 | P15: 6,811 | Q15: 122,081
A17: =SUM(C19:Q48) -> 286641 | C17: Pour les périodes de trois mois terminées le
A18: (en millions de dollars) | C18: 30 septembre 2025 | F18: 30 juin 2025 | I18: 31 mars 2025 | L18: 31 décembre 2024 | O18: 30 septembre 2024
A19: Risque de marché
A20: Actifs pondérés en fonction des risques au début de la période | C20: 5,780 | F20: 6,055 | I20: 4,901 | L20: 3,446 | O20: 3,322
B21: Variation des niveaux de risque(5) | C21: 205 | F21: (275) | I21: 1,154 | L21: 1,455 | O21: 124
B22: Mise à jour des modèles(3) | C22: 0 | F22: 0 | I22: 0 | L22: 0 | O22: 0
B23: Méthodes et politiques(4) | C23: 0 | F23: 0 | I23: 0 | L23: 0 | O23: 0
B24: Acquisitions et cessions | C24: 0 | F24: 0 | I24: 0 | L24: 0 | O24: 0
B25: Variation des taux de change | C25: 0 | F25: 0 | I25: 0 | L25: 0 | O25: 0
B26: Autres | C26: 0 | F26: 0 | I26: 0 | L26: 0 | O26: 0
B27: Total des variations des actifs pondérés en fonction des risques | C27: 205 | F27: (275) | I27: 1,154 | L27: 1,455 | O27: 124
A28: Actifs pondérés en fonction des risques à la fin de la période | C28: 5,985 | F28: 5,780 | I28: 6,055 | L28: 4,901 | O28: 3,446
A30: Risque opérationnel
A31: Actifs pondérés en fonction des risques au début de la période | C31: 22,927 | F31: 22,957 | I31: 22,875 | L31: 23,410 | O31: 22,759
B32: Revenus générés | C32: 428 | F32: (30) | I32: 266 | L32: 439 | O32: 651
B33: Méthodes et politiques(4) | C33: 0 | F33: 0 | I33: (184) | L33: (974) | O33: 0
B34: Acquisitions et cessions | C34: 0 | F34: 0 | I34: 0 | L34: 0 | O34: 0
B35: Total des variations des actifs pondérés en fonction des risques | C35: 428 | F35: (30) | I35: 82 | L35: (535) | O35: 651
A36: Actifs pondérés en fonction des risques à la fin de la période | C36: 23,355 | F36: 22,927 | I36: 22,957 | L36: 22,875 | O36: 23,410
A38: Ajustement en fonction du plancher d'APR
A39: Actifs pondérés en fonction des risques au début de la période | C39: 0 | F39: 0 | I39: 0 | L39: 0 | O39: 0
B40: Taille du portefeuille(1) | C40: 0 | F40: 0 | I40: 0 | L40: 0 | O40: 0
B41: Qualité du portefeuille(2) | C41: 0 | F41: 0 | I41: 0 | L41: 0 | O41: 0
B42: Mise à jour des modèles(3) | C42: 0 | F42: 0 | I42: 0 | L42: 0 | O42: 0
B43: Méthodes et politiques(4) | C43: 0 | F43: 0 | I43: 0 | L43: 0 | O43: 0
B44: Acquisitions et cessions | C44: 0 | F44: 0 | I44: 0 | L44: 0 | O44: 0
B45: Variation des taux de change | C45: 0 | F45: 0 | I45: 0 | L45: 0 | O45: 0
B46: Autres | C46: 0 | F46: 0 | I46: 0 | L46: 0 | O46: 0
B47: Total des variations des actifs pondérés en fonction des risques | C47: 0 | F47: 0 | I47: 0 | L47: 0 | O47: 0
A48: Actifs pondérés en fonction des risques à la fin de la période | C48: 0 | F48: 0 | I48: 0 | L48: 0 | O48: 0
A50: (1) | B50: Concerne la hausse ou la baisse des expositions sous-jacentes.
A51: (2) | B51: Concerne la variation des facteurs d'atténuation du risque et de la qualité des portefeuilles.
A52: (3) | B52: Concerne l'évolution des modèles et des paramètres de risque.
A53: (4) | B53: Concerne les changements réglementaires et l'évolution des méthodes de calcul du capital réglementaire.
A54: (5) | B54: Concerne la variation due aux changements dans les positions et à la volatilité du marché.

Sheet CMS1
A1: Tableau CMS1 – Comparaison des APR modélisés et standard au niveau du risque
A4: =SUM(D8:K16) -> 2082843.882126 | D4: a | E4: b | F4: c | G4: d | H4: a | I4: b | J4: c | K4: d
D6: Au 30 septembre 2025 | H6: Au 30 juin 2025
A7: (en millions de dollars) | D7: APR pour les approches modélisées dont l'institution financière a l’autorisation réglementaire d’utiliser | E7: APR pour les portefeuilles utilisant des approches standards | F7: Total des APR réels (a + b) (c.-à-d. APR que l'institution financière déclarent comme exigences actuelles) | G7: APR calculés selon l’approche standard intégrale (c.-à-d. utilisés comme fondement du plancher d'APR) | H7: APR pour les approches modélisées dont l'institution financière a l’autorisation réglementaire d’utiliser | I7: APR pour les portefeuilles utilisant des approches standards | J7: Total des APR réels (a + b) (c.-à-d. APR que l'institution financière déclarent comme exigences actuelles) | K7: APR calculés selon l’approche standard intégrale (c.-à-d. utilisés comme fondement du plancher d'APR)
C8: Type de risque
A9: 1 | C9: Risque de crédit (hors risque de contrepartie - CCR) | D9: 78,014 | E9: 25,836 | F9: 103,850 | G9: 169,096 | H9: 77,758 | I9: 24,785 | J9: 102,543 | K9: 165,686
A10: 2 | C10: Risque de contrepartie | D10: 3,462 | E10: 849 | F10: 4,311 | G10: 3,597 | H10: 3,158 | I10: 875 | J10: 4,033 | K10: 3,363
A11: 3 | C11: Charge d'ajustement de l’évaluation de crédit (AEC) | E11: 3,609 | F11: 3,609 | G11: 3,609 | I11: 3,273 | J11: 3,273 | K11: 3,273
A12: 4 | C12: Expositions de titrisation dans le portefeuille bancaire | D12: 0 | E12: 209 | F12: 209 | G12: 209 | H12: 0 | I12: 124 | J12: 124 | K12: 124
A13: 5 | C13: Risque de marché | D13: 0 | E13: 5,985 | F13: 5,985 | G13: 5,985 | H13: 0 | I13: 5,780 | J13: 5,780 | K13: 5,780
A14: 6 | C14: Risque opérationnel | E14: 23,355 | F14: 23,355 | G14: 23,355 | I14: 22,927 | J14: 22,927 | K14: 22,927
A15: 7 | C15: APR résiduels | E15: 12,549 | F15: 12,549 | G15: 12,623 | I15: 12,208 | J15: 12,208 | K15: 12,283
A16: 8 | C16: Total | D16: 81,476 | E16: 72,392 | F16: 153,868 | G16: 218,474 | H16: 80,916 | I16: 69,972 | J16: 150,888 | K16: 213,436
A18: =SUM(D22:K30) -> 2044616 | D18: a | E18: b | F18: c | G18: d | H18: a | I18: b | J18: c | K18: d
D20: Au 31 mars 2025 | H20: Au 31 décembre 2024
A21: (en millions de dollars) | D21: APR pour les approches modélisées dont l'institution financière a l’autorisation réglementaire d’utiliser | E21: APR pour les portefeuilles utilisant des approches standards | F21: Total des APR réels (a + b) (c.-à-d. APR que l'institution financière déclarent comme exigences actuelles) | G21: APR calculés selon l’approche standard intégrale (c.-à-d. utilisés comme fondement du plancher d'APR) | H21: APR pour les approches modélisées dont l'institution financière a l’autorisation réglementaire d’utiliser | I21: APR pour les portefeuilles utilisant des approches standards | J21: Total des APR réels (a + b) (c.-à-d. APR que l'institution financière déclarent comme exigences actuelles) | K21: APR calculés selon l’approche standard intégrale (c.-à-d. utilisés comme fondement du plancher d'APR)
C22: Type de risque
A23: 1 | C23: Risque de crédit (hors risque de contrepartie - CCR) | D23: 76,350 | E23: 26,320 | F23: 102,670 | G23: 163,340 | H23: 73,988 | I23: 29,054 | J23: 103,042 | K23: 161,059
A24: 2 | C24: Risque de contrepartie | D24: 3,063 | E24: 1,670 | F24: 4,733 | G24: 4,331 | H24: 2,805 | I24: 1,395 | J24: 4,200 | K24: 3,550
A25: 3 | C25: Charge d'ajustement de l’évaluation de crédit (AEC) | E25: 3,208 | F25: 3,208 | G25: 3,208 | I25: 2,715 | J25: 2,715 | K25: 2,715
A26: 4 | C26: Expositions de titrisation dans le portefeuille bancaire | D26: 0 | E26: 283 | F26: 283 | G26: 283 | H26: 0 | I26: 284 | J26: 284 | K26: 284
A27: 5 | C27: Risque de marché | D27: 0 | E27: 6,055 | F27: 6,055 | G27: 6,055 | H27: 0 | I27: 4,901 | J27: 4,901 | K27: 4,901
A28: 6 | C28: Risque opérationnel | E28: 22,957 | F28: 22,957 | G28: 22,957 | I28: 22,875 | J28: 22,875 | K28: 22,875
A29: 7 | C29: APR résiduels | E29: 11,976 | F29: 11,976 | G29: 12,055 | I29: 11,604 | J29: 11,604 | K29: 11,689
A30: 8 | C30: Total | D30: 79,413 | E30: 72,469 | F30: 151,882 | G30: 212,229 | H30: 76,793 | I30: 72,828 | J30: 149,621 | K30: 207,073
A32: =SUM(D36:K44) -> 1005920 | D32: a | E32: b | F32: c | G32: d
D34: Au 30 septembre 2024
A35: (en millions de dollars) | D35: APR pour les approches modélisées dont l'institution financière a l’autorisation réglementaire d’utiliser | E35: APR pour les portefeuilles utilisant des approches standards | F35: Total des APR réels (a + b) (c.-à-d. APR que l'institution financière déclarent comme exigences actuelles) | G35: APR calculés selon l’approche standard intégrale (c.-à-d. utilisés comme fondement du plancher d'APR)
C36: Type de risque
A37: 1 | C37: Risque de crédit (hors risque de contrepartie - CCR) | D37: 73,920 | E37: 29,304 | F37: 103,224 | G37: 159,671
A38: 2 | C38: Risque de contrepartie | D38: 2,461 | E38: 1,378 | F38: 3,839 | G38: 3,448
A39: 3 | C39: Charge d'ajustement de l’évaluation de crédit (AEC) | E39: 2,972 | F39: 2,972 | G39: 2,972
A40: 4 | C40: Expositions de titrisation dans le portefeuille bancaire | D40: 0 | E40: 317 | F40: 317 | G40: 317
A41: 5 | C41: Risque de marché | D41: 0 | E41: 3,446 | F41: 3,446 | G41: 3,446
A42: 6 | C42: Risque opérationnel | E42: 23,410 | F42: 23,410 | G42: 23,410
A43: 7 | C43: APR résiduels | E43: 11,729 | F43: 11,729 | G43: 11,822
A44: 8 | C44: Total | D44: 76,381 | E44: 72,556 | F44: 148,937 | G44: 205,086

Sheet CMS2
A1: Tableau CMS2 – Comparaison des APR modélisés et standard pour le risque de crédit au niveau de la classe d’actifs
A3: =SUM(D7:K24) -> 2056504 | D3: a | E3: b | F3: c | G3: d | H3: a | I3: b | J3: c | K3: d
D5: Au 30 septembre 2025 | H5: Au 30 juin 2025
B6: (en millions de dollars) | D6: APR pour les approches modélisées dont l'institution financière a l’autorisation réglementaire d’utiliser | E6: APR pour les portefeuilles utilisant des approches standards | F6: Total des APR réels (a + b) (c.-à-d. APR que l'institution financière déclarent comme exigences actuelles) | G6: APR calculés selon l’approche standard intégrale (c.-à-d. utilisés comme fondement du plancher d'APR) | H6: APR pour les approches modélisées dont l'institution financière a l’autorisation réglementaire d’utiliser | I6: APR pour les portefeuilles utilisant des approches standards | J6: Total des APR réels (a + b) (c.-à-d. APR que l'institution financière déclarent comme exigences actuelles) | K6: APR calculés selon l’approche standard intégrale (c.-à-d. utilisés comme fondement du plancher d'APR)
B7: Classes d'actifs
A8: 1 | B8: Emprunteurs souverains | D8: 6,708 | E8: 1,896 | F8: 8,604 | G8: 1,912 | H8: 6,599 | I8: 1,858 | J8: 8,457 | K8: 1,868
C9: Dont: catégorisés comme BMD/OP selon l'AS | D9: 2 | E9: 1,896 | F9: 1,898 | G9: 1,896 | H9: 2 | I9: 1,858 | J9: 1,860 | K9: 1,858
A10: 2 | B10: Institutions de dépôts et banques | D10: 1,139 | E10: 1,150 | F10: 2,289 | G10: 6,646 | H10: 1,224 | I10: 1,156 | J10: 2,380 | K10: 6,259
B11: Obligations sécurisées | D11: 0 | E11: 0 | F11: 0 | G11: 0 | H11: 0 | I11: 0 | J11: 0 | K11: 0
A12: 3 | B12: Actions | D12: 0 | E12: 857 | F12: 857 | G12: 857 | H12: 0 | I12: 962 | J12: 962 | K12: 962
A13: 4 | B13: Créances achetées | D13: 0 | E13: 40 | F13: 40 | G13: 40 | H13: 0 | I13: 18 | J13: 18 | K13: 18
A14: 5 | B14: Entreprises | D14: 36,309 | E14: 14,272 | F14: 50,581 | G14: 81,820 | H14: 36,568 | I14: 13,140 | J14: 49,708 | K14: 79,856
C15: Dont : approche fondée sur les notations internes « fondation » (FIRB) | D15: 9,606 | E15: 0 | F15: 9,606 | G15: 12,735 | H15: 9,292 | I15: 0 | J15: 9,292 | K15: 12,203
C16: Dont : approche fondée sur les notations internes « avancée » (AIRB) | D16: 26,703 | E16: 0 | F16: 26,703 | G16: 54,812 | H16: 27,276 | I16: 0 | J16: 27,276 | K16: 54,513
A17: 6 | B17: Portefeuilles de détail réglementaires | D17: 31,741 | E17: 2,407 | F17: 34,148 | G17: 67,181 | H17: 31,572 | I17: 2,365 | J17: 33,937 | K17: 66,730
C18: Dont : expositions renouvelables admissibles sur la clientèle de détail | D18: 5,065 | E18: 1,298 | F18: 6,363 | G18: 8,992 | H18: 4,938 | I18: 1,287 | J18: 6,225 | K18: 9,023
C19: Dont : autres expositions sur la clientèle de détail | D19: 12,710 | E19: 471 | F19: 13,181 | G19: 16,072 | H19: 12,565 | I19: 448 | J19: 13,013 | K19: 15,881
C20: Dont : hypothèques résidentielles de la clientèle de détail | D20: 13,966 | E20: 638 | F20: 14,604 | G20: 42,117 | H20: 14,069 | I20: 630 | J20: 14,699 | K20: 41,826
A21: 7 | B21: Financement spécialisé | D21: 2,117 | E21: 2 | F21: 2,119 | G21: 5,428 | H21: 1,795 | I21: 243 | J21: 2,038 | K21: 4,950
C22: Dont : immobilier de rapport et immobilier commercial à forte volatilité | D22: 0 | E22: 0 | F22: 0 | G22: 0 | H22: 0 | I22: 0 | J22: 0 | K22: 0
A23: 8 | B23: Autres | D23: 0 | E23: 5,212 | F23: 5,212 | G23: 5,212 | H23: 0 | I23: 5,043 | J23: 5,043 | K23: 5,043
A24: 9 | B24: Total | D24: 78,014 | E24: 25,836 | F24: 103,850 | G24: 169,096 | H24: 77,758 | I24: 24,785 | J24: 102,543 | K24: 165,686
A27: =SUM(D31:K48) -> 2017216 | D27: a | E27: b | F27: c | G27: d | H27: a | I27: b | J27: c | K27: d
D29: Au 31 mars 2025 | H29: Au 31 décembre 2024
B30: (en millions de dollars) | D30: APR pour les approches modélisées dont l'institution financière a l’autorisation réglementaire d’utiliser | E30: APR pour les portefeuilles utilisant des approches standards | F30: Total des APR réels (a + b) (c.-à-d. APR que l'institution financière déclarent comme exigences actuelles) | G30: APR calculés selon l’approche standard intégrale (c.-à-d. utilisés comme fondement du plancher d'APR) | H30: APR pour les approches modélisées dont l'institution financière a l’autorisation réglementaire d’utiliser | I30: APR pour les portefeuilles utilisant des approches standards | J30: Total des APR réels (a + b) (c.-à-d. APR que l'institution financière déclarent comme exigences actuelles) | K30: APR calculés selon l’approche standard intégrale (c.-à-d. utilisés comme fondement du plancher d'APR)
B31: Classes d'actifs
A32: 1 | B32: Emprunteurs souverains | D32: 6,259 | E32: 1,906 | F32: 8,165 | G32: 1,922 | H32: 7,155 | I32: 1,829 | J32: 8,984 | K32: 1,840
C33: Dont: catégorisés comme BMD/OP selon l'AS | D33: 2 | E33: 1,906 | F33: 1,908 | G33: 1,906 | H33: 9 | I33: 1,829 | J33: 1,838 | K33: 1,829
A34: 2 | B34: Institutions de dépôts et banques | D34: 1,237 | E34: 1,071 | F34: 2,308 | G34: 5,945 | H34: 1,340 | I34: 1,016 | J34: 2,356 | K34: 6,669
B35: Obligations sécurisées | D35: 0 | E35: 0 | F35: 0 | G35: 0 | H35: 0 | I35: 0 | J35: 0 | K35: 0
A36: 3 | B36: Actions | D36: 0 | E36: 987 | F36: 987 | G36: 987 | H36: 0 | I36: 947 | J36: 947 | K36: 947
A37: 4 | B37: Créances achetées | D37: 0 | E37: 22 | F37: 22 | G37: 22 | H37: 0 | I37: 21 | J37: 21 | K37: 21
A38: 5 | B38: Entreprises | D38: 35,899 | E38: 13,526 | F38: 49,425 | G38: 78,675 | H38: 34,526 | I38: 12,817 | J38: 47,343 | K38: 76,637
C39: Dont : approche fondée sur les notations internes « fondation » (FIRB) | D39: 8,988 | E39: 0 | F39: 8,988 | G39: 11,740 | H39: 8,837 | I39: 0 | J39: 8,837 | K39: 11,628
C40: Dont : approche fondée sur les notations internes « avancée » (AIRB) | D40: 26,911 | E40: 0 | F40: 26,911 | G40: 53,405 | H40: 25,689 | I40: 0 | J40: 25,689 | K40: 52,195
A41: 6 | B41: Portefeuilles de détail réglementaires | D41: 31,529 | E41: 2,366 | F41: 33,895 | G41: 65,323 | H41: 30,967 | I41: 2,319 | J41: 33,286 | K41: 64,840
C42: Dont : expositions renouvelables admissibles sur la clientèle de détail | D42: 5,315 | E42: 1,260 | F42: 6,575 | G42: 9,069 | H42: 5,221 | I42: 1,243 | J42: 6,464 | K42: 9,187
C43: Dont : autres expositions sur la clientèle de détail | D43: 12,454 | E43: 475 | F43: 12,929 | G43: 15,626 | H43: 12,237 | I43: 461 | J43: 12,698 | K43: 15,521
C44: Dont : hypothèques résidentielles de la clientèle de détail | D44: 13,760 | E44: 631 | F44: 14,391 | G44: 40,628 | H44: 13,509 | I44: 615 | J44: 14,124 | K44: 40,132
A45: 7 | B45: Financement spécialisé | D45: 1,426 | E45: 1,330 | F45: 2,756 | G45: 5,354 | H45: 0 | I45: 4,759 | J45: 4,759 | K45: 4,759
C46: Dont : immobilier de rapport et immobilier commercial à forte volatilité | D46: 0 | E46: 0 | F46: 0 | G46: 0 | H46: 0 | I46: 0 | J46: 0 | K46: 0
A47: 8 | B47: Autres | D47: 0 | E47: 5,112 | F47: 5,112 | G47: 5,112 | H47: 0 | I47: 5,346 | J47: 5,346 | K47: 5,346
A48: 9 | B48: Total | D48: 76,350 | E48: 26,320 | F48: 102,670 | G48: 163,340 | H48: 73,988 | I48: 29,054 | J48: 103,042 | K48: 161,059
A50: =SUM(D54:K71) -> 1000862 | D50: a | E50: b | F50: c | G50: d
D52: Au 30 septembre 2024
B53: (en millions de dollars) | D53: APR pour les approches modélisées dont l'institution financière a l’autorisation réglementaire d’utiliser | E53: APR pour les portefeuilles utilisant des approches standards | F53: Total des APR réels (a + b) (c.-à-d. APR que l'institution financière déclarent comme exigences actuelles) | G53: APR calculés selon l’approche standard intégrale (c.-à-d. utilisés comme fondement du plancher d'APR)
B54: Classes d'actifs
A55: 1 | B55: Emprunteurs souverains | D55: 6,855 | E55: 1,804 | F55: 8,659 | G55: 1,812
C56: Dont: catégorisés comme BMD/OP selon l'AS | D56: 22 | E56: 1,784 | F56: 1,806 | G56: 1,784
A57: 2 | B57: Institutions de dépôts et banques | D57: 1,357 | E57: 1,010 | F57: 2,367 | G57: 6,767
B58: Obligations sécurisées | D58: 0 | E58: 0 | F58: 0 | G58: 0
A59: 3 | B59: Actions | D59: 0 | E59: 941 | F59: 941 | G59: 941
A60: 4 | B60: Créances achetées | D60: 0 | E60: 23 | F60: 23 | G60: 23
A61: 5 | B61: Entreprises | D61: 34,616 | E61: 12,877 | F61: 47,493 | G61: 75,351
C62: Dont : approche fondée sur les notations internes « fondation » (FIRB) | D62: 8,902 | E62: 0 | F62: 8,902 | G62: 11,807
C63: Dont : approche fondée sur les notations internes « avancée » (AIRB) | D63: 25,714 | E63: 0 | F63: 25,714 | G63: 50,671
A64: 6 | B64: Portefeuilles de détail réglementaires | D64: 31,092 | E64: 2,402 | F64: 33,494 | G64: 64,530
C65: Dont : expositions renouvelables admissibles sur la clientèle de détail | D65: 5,266 | E65: 81 | F65: 5,347 | G65: 8,065
C66: Dont : autres expositions sur la clientèle de détail | D66: 12,212 | E66: 1,725 | F66: 13,937 | G66: 16,824
C67: Dont : hypothèques résidentielles de la clientèle de détail | D67: 13,614 | E67: 596 | F67: 14,210 | G67: 39,641
A68: 7 | B68: Financement spécialisé | D68: 0 | E68: 4,779 | F68: 4,779 | G68: 4,779
C69: Dont : immobilier de rapport et immobilier commercial à forte volatilité | D69: 0 | E69: 0 | F69: 0 | G69: 0
A70: 8 | B70: Autres | D70: 0 | E70: 5,468 | F70: 5,468 | G70: 5,468
A71: 9 | B71: Total | D71: 73,920 | E71: 29,304 | F71: 103,224 | G71: 159,671

Sheet CC1
A1: Tableau CC1 – Composition des fonds propres réglementaires
E2: a | F2: b
A3: =SUM(E4:J37) -> 609953 | B3: (en millions de dollars) | E3: Au 30 septembre 2025 | F3: Références au tableau CC2 | G3: Au 30 juin 2025 | H3: Au 31 mars 2025 | I3: Au 31 décembre 2024 | J3: Au 30 septembre 2024
B4: Fonds propres de la catégorie 1A et assimilés : instruments et réserves
A5: 1 | C5: Instruments de fonds propres de la catégorie 1A éligibles directement émis (et leur équivalent) | E5: 4,589 | F5: A + B | G5: 4,689 | H5: 4,689 | I5: 4,789 | J5: 4,789
A6: 2 | C6: Réserves admissibles et excédents non répartis | E6: 35,766 | F6: C + D | G6: 34,373 | H6: 33,344 | I6: 32,783 | J6: 32,296
A7: 3 | C7: Cumul des autres éléments du résultat global (et autres réserves) | E7: 842 | F7: E | G7: 638 | H7: 715 | I7: 256 | J7: 399
A8: 5 | C8: Instruments de fonds propres de la catégorie 1A émis par des filiales et détenus par des tiers (montant autorisé dans les fonds propres de la catégorie 1A) | E8: 0 | G8: 0 | H8: 0 | I8: 0 | J8: 0
A9: 6 | B9: Instruments de fonds propres de la catégorie 1A avant ajustements réglementaires | E9: 41,197 | G9: 39,700 | H9: 38,748 | I9: 37,828 | J9: 37,484
B10: Fonds propres de catégorie 1A et assimilés : Ajustements réglementaires
A11: 7 | C11: Ajustements de valorisation prudentiels(1) | E11: 22 | F11: Note | G11: 21 | H11: 21 | I11: 18 | J11: 18
A12: 7a | C12: Prêts hypothécaires inversés | E12: 0 | G12: 0 | H12: 0 | I12: 0 | J12: 0
A13: 7b | C13: Expositions sur contreparties centrales non admissibles | E13: 0 | G13: 0 | H13: 0 | I13: 0 | J13: 0
A14: 7c | C14: Seuils d’importance relative sur protection de crédit | E14: 0 | G14: 0 | H14: 0 | I14: 0 | J14: 0
A15: 7d | C15: Absence de paiement contre livraison pour les transactions ne faisant pas appel a un système de livraison contre paiement | E15: 0 | G15: 0 | H15: 0 | I15: 0 | J15: 0
A16: 8 | C16: Goodwill (nets du passif d'impôt différé correspondant) | E16: 592 | F16: F + G | G16: 592 | H16: 592 | I16: 592 | J16: 592
A17: 9 | C17: Actifs incorporels autres que les charges administratives transférables liées aux créances hypothécaires et les logiciels (déduction faite des passifs d'impôt différé admissibles) | E17: 1,039 | F17: H + I | G17: 1,059 | H17: 1,052 | I17: 1,049 | J17: 1,011
A18: 10 | C18: Actifs d’impôt différé, sauf s’ils résultent de différences temporaires (déduction faite des passifs d'impôts différés admissibles) | E18: 67 | F18: J + K | G18: 70 | H18: 57 | I18: 72 | J18: 91
A19: 11 | C19: Réserve de couverture des flux de trésorerie | E19: 464 | F19: L | G19: 382 | H19: 438 | I19: 134 | J19: 259
A20: 12 | C20: Déficit de provisions pour pertes attendues(1) | E20: 296 | F20: Note | G20: 300 | H20: 323 | I20: 339 | J20: 369
A21: 13 | C21: Gain sur vente de produits de la titrisation | E21: 0 | G21: 0 | H21: 0 | I21: 0 | J21: 0
A22: 14 | C22: Gains et pertes attribuables à des variations de la juste valeur des passifs financiers dues à l’évolution du risque de crédit de l’entité | E22: 21 | F22: M | G22: 21 | H22: 17 | I22: 19 | J22: 13
A23: 15 | C23: Actifs des régimes de retraite à prestations déterminées (déduction faite des passifs d'impôt différé admissibles) | E23: 805 | F23: N + O | G23: 561 | H23: 380 | I23: 425 | J23: 406
A24: 16 | C24: Participation détenue dans ses propres instruments de fonds propres de la catégorie 1A (si aucune consolidation n'est effectuée) | E24: 0 | G24: 0 | H24: 0 | I24: 0 | J24: 0
A25: 17 | C25: Participations croisées sous forme d’instruments de fonds propres de la catégorie 1A | E25: 34 | F25: B | G25: 81 | H25: 32 | I25: 85 | J25: 85
A26: 18 | C26: Participations de l'« entité » dans les fonds propres de banques, entreprises d’assurances et autres entités financières situées au-delà du périmètre de la consolidation réglementaire, à hauteur de 10 % au plus de leurs fonds propres, déduction faite des positions courtes éligibles (montant excédant 10 % des fonds propres de l’entité) | E26: 0 | G26: 0 | H26: 0 | I26: 0 | J26: 0
A27: 19 | C27: Participations significatives de l'« entité » aux fonds propres de banques, entreprises d’assurances et autres entités financières situées au-delà du périmètre de la consolidation réglementaire, déduction faite des positions courtes éligibles (montant excédant 10 % des fonds propres de l’entité)(2) | E27: 3,869 | F27: P + Q | G27: 3,571 | H27: 3,304 | I27: 3,958 | J27: 4,020
A28: 20 | C28: Charges administratives transférables liées aux créances hypothécaires (montant supérieur au seuil de 10 %) | E28: 0 | G28: 0 | H28: 0 | I28: 0 | J28: 0
A29: 21 | C29: Actif d’impôt différé résultant de différences temporaires (montant excédant le seuil de 10 %, net du passif d’impôt différé correspondant) | E29: 0 | G29: 0 | H29: 0 | I29: 0 | J29: 0
A30: 22 | C30: Montant excédant le seuil de 15 %
A31: 23 | D31: dont : participations significatives dans les instruments de fonds propres de la catégorie 1A d’entités financières | E31: 0 | G31: 0 | H31: 0 | I31: 0 | J31: 0
A32: 24 | D32: dont : charges administratives transférables liées aux créances hypothécaires | E32: 0 | G32: 0 | H32: 0 | I32: 0 | J32: 0
A33: 25 | D33: dont : actifs d’impôt différé résultant de différences temporaires | E33: 0 | G33: 0 | H33: 0 | I33: 0 | J33: 0
A34: 26 | C34: Autres déductions ou ajustements réglementaires des fonds propres de la catégorie 1A(2)(3) | E34: (2,146) | F34: Note | G34: (2,151) | H34: (2,179) | I34: (2,166) | J34: (2,156)
A35: 27 | C35: Ajustements réglementaires appliqués aux instruments de fonds propres de la catégorie 1A et assimilés en raison de l'insuffisance des fonds propres de la catégorie 1B et des fonds propres de la catégorie 2 pour couvrir les déductions | E35: 650 | F35: R | G35: 650 | H35: 650 | I35: 146 | J35: 146
A36: 28 | B36: Total des ajustements réglementaires aux fonds propres de la catégorie 1A et assimilés | E36: 5,713 | G36: 5,157 | H36: 4,687 | I36: 4,671 | J36: 4,854
A37: 29 | B37: Total des fonds propres de la catégorie 1A et assimilés | E37: 35,484 | G37: 34,543 | H37: 34,061 | I37: 33,157 | J37: 32,630
E40: a | F40: b
A41: =SUM(E42:J72) -> 1189230 | B41: (en millions de dollars) | E41: Au 30 septembre 2025 | F41: Références au tableau CC2 | G41: Au 30 juin 2025 | H41: Au 31 mars 2025 | I41: Au 31 décembre 2024 | J41: Au 30 septembre 2024
B42: Fonds propres de la catégorie 1B : instruments
A43: 30 | C43: Instruments de fonds propres de la catégorie 1B admissibles directement émis | E43: 0 | G43: 0 | H43: 0 | I43: 0 | J43: 0
A44: 31 | D44: dont : instruments désignés comme fonds propres selon les normes comptables applicables | E44: 0 | G44: 0 | H44: 0 | I44: 0 | J44: 0
A45: 32 | D45: dont : instruments désignés comme passifs selon les normes comptables applicables | E45: 0 | G45: 0 | H45: 0 | I45: 0 | J45: 0
A46: 34 | C46: Fonds propres de la catégorie 1B (et instruments de la catégorie 1A non compris à la ligne 5) émis par des filiales et détenus par des tiers (montant autorisé dans les fonds propres de la catégorie 1B) | E46: 0 | G46: 0 | H46: 0 | I46: 0 | J46: 0
A47: 36 | B47: Fonds propres de la catégorie 1B avant ajustements réglementaires | E47: 0 | G47: 0 | H47: 0 | I47: 0 | J47: 0
B48: Fonds propres de la catégorie 1B : ajustements réglementaires
A49: 37 | C49: Participation dans ses propres instruments de fonds propres de la catégorie 1B | E49: 0 | G49: 0 | H49: 0 | I49: 0 | J49: 0
A50: 38 | C50: Participations croisées dans ses propres instruments de fonds propres de la catégorie 1B | E50: 0 | G50: 0 | H50: 0 | I50: 0 | J50: 0
A51: 39 | C51: Participations de l'« entité » dans les fonds propres de banques, entreprises d’assurances et autres entités financières situées au-delà du périmètre de consolidation réglementaire, à hauteur de 10 % au plus de leurs instruments de fonds propres de la catégorie 1A émis par l'entité (montant excédant le seuil de 10 %) | E51: 0 | G51: 0 | H51: 0 | I51: 0 | J51: 0
A52: 40 | C52: Participations significatives aux fonds propres de banques, entités d’assurances et autres entités financières situées au-delà du périmètre de consolidation réglementaire | E52: 650 | F52: R | G52: 650 | H52: 650 | I52: 146 | J52: 146
A53: 41 | C53: Autres déductions ou ajustements réglementaires des fonds propres de la catégorie 1 | E53: (650) | F53: R | G53: (650) | H53: (650) | I53: (146) | J53: (146)
A54: 42 | C54: Ajustements réglementaires appliqués aux fonds propres de la catégorie 1B en raison de l'insuffisance de fonds propres de la catégorie 2 pour couvrir les déductions | E54: 0 | G54: 0 | H54: 0 | I54: 0 | J54: 0
A55: 43 | B55: Total des ajustements réglementaires appliqués aux fonds propres de la catégorie 1B | E55: 0 | G55: 0 | H55: 0 | I55: 0 | J55: 0
A56: 44 | B56: Total fonds propres de la catégorie 1B | E56: 0 | G56: 0 | H56: 0 | I56: 0 | J56: 0
A57: 45 | B57: Total fonds propres de la catégorie 1 (1A + 1B) | E57: 35,484 | G57: 34,543 | H57: 34,061 | I57: 33,157 | J57: 32,630
B58: Fonds propres de la catégorie 2 : instruments et provisions
A59: 46 | C59: Instruments de fonds propres de la catégorie 2 admissibles directement émis | E59: 4,889 | F59: S + T | G59: 4,869 | H59: 5,266 | I59: 3,989 | J59: 3,965
A60: 48 | C60: Instruments de fonds propres de la catégorie 2 (et instruments de catégories 1A et 1B non compris aux lignes 5 ou 34) émis par des filiales et détenus par des tiers (montant autorisé dans les fonds propres de la catégorie 2) | E60: 0 | G60: 0 | H60: 0 | I60: 0 | J60: 0
A61: 50 | C61: Provisions | E61: 136 | F61: U | G61: 135 | H61: 130 | I61: 99 | J61: 93
A62: 51 | B62: Fonds propres de la catégorie 2 avant ajustements réglementaires | E62: 5,025 | G62: 5,004 | H62: 5,396 | I62: 4,088 | J62: 4,058
B63: Fonds propres de la catégorie 2 : ajustements réglementaires
A64: 52 | C64: Participations dans ses propres instruments de fonds propres de la catégorie 2 | E64: 0 | G64: 0 | H64: 0 | I64: 0 | J64: 0
A65: 53 | C65: Participations croisées dans des fonds propres de la catégorie 2 et autres passifs TLAC | E65: 0 | G65: 0 | H65: 0 | I65: 0 | J65: 0
A66: 54 | C66: Participations de l'« entité » dans les fonds propres de banques et autres passifs TLAC de banques, entreprises d’assurances et autres entités financières situées au-delà du périmètre de consolidation réglementaire, à hauteur de 10 % au plus de leurs fonds propres de la catégorie 1A émis (montant excédant le seuil de 10 %) | E66: 0 | G66: 0 | H66: 0 | I66: 0 | J66: 0
A67: 55 | C67: Participations significatives aux fonds propres et autres passifs TLAC de banques, entreprises d'assurances et autres entités financières qui sont hors du périmètre de consolidation réglementaire (déduction faite des positions courtes éligibles) | E67: 1,100 | F67: V + W | G67: 1,100 | H67: 1,100 | I67: 976 | J67: 976
A68: 56 | C68: Autres déductions ou ajustements réglementaires des fonds propres de la catégorie 2 | E68: 0 | G68: 0 | H68: 0 | I68: 0 | J68: 0
A69: 57 | B69: Total des ajustements réglementaires appliqués aux fonds propres de la catégorie 2 | E69: 1,100 | G69: 1,100 | H69: 1,100 | I69: 976 | J69: 976
A70: 58 | B70: Total de fonds propres de la catégorie 2 | E70: 3,925 | G70: 3,904 | H70: 4,296 | I70: 3,112 | J70: 3,082
A71: 59 | B71: Total des fonds propres (1A + 1B et 2) | E71: 39,409 | G71: 38,447 | H71: 38,357 | I71: 36,269 | J71: 35,712
A72: 60 | B72: Total des actifs pondérés en fonction des risques | E72: 153,868 | G72: 150,888 | H72: 151,882 | I72: 149,621 | J72: 148,937
E75: a | F75: b
A76: =SUM(E77:J99) -> 39074.142 | B76: (en millions de dollars) | E76: Au 30 septembre 2025 | F76: Références au tableau CC2 | G76: Au 30 juin 2025 | H76: Au 31 mars 2025 | I76: Au 31 décembre 2024 | J76: Au 30 septembre 2024
B77: Ratios et coussins de fonds propres
A78: 61 | C78: Fonds propres de la catégorie 1A et assimilés (en % des actifs pondérés en fonction des risques) | E78: 23.1% | G78: 22.9% | H78: 22.4% | I78: 22.2% | J78: 21.9%
A79: 62 | C79: Fonds propres de la catégorie 1 (en % des actifs pondérés en fonction des risques) | E79: 23.1% | G79: 22.9% | H79: 22.4% | I79: 22.2% | J79: 21.9%
A80: 63 | C80: Total des fonds propres (en % des actifs pondérés en fonction des risques) | E80: 25.6% | G80: 25.5% | H80: 25.3% | I80: 24.2% | J80: 24.0%
A81: 64 | C81: Coussin spécifique à l’entité (coussin de conservation des fonds propres + coussin contracyclique + exigence de capacité accrue d'absorption des pertes, en % des actifs pondérés en fonction des risques) | E81: 3.5% | G81: 3.5% | H81: 3.5% | I81: 3.5% | J81: 3.5%
A82: 65 | D82: dont : coussin de conservation des fonds propres | E82: 2.5% | G82: 2.5% | H82: 2.5% | I82: 2.5% | J82: 2.5%
A83: 66 | D83: dont : coussin contracyclique spécifique à l’entité | E83: s. o. | G83: s. o. | H83: s. o. | I83: s. o. | J83: s. o.
A84: 67 | D84: dont : exigence de capacité accrue d'absorption des pertes | E84: 1.0% | G84: 1.0% | H84: 1.0% | I84: 1.0% | J84: 1.0%
A85: 68 | D85: Fonds propres de la catégorie 1A (en % des actifs pondérés en fonction des risques) disponibles après satisfaction des exigences minimales de fonds propres | E85: 17.6% | G85: 17.5% | H85: 17.3% | I85: 16.2% | J85: 16.0%
B86: Minima nationaux
A87: 69 | C87: Ratio minimal de fonds propres de la catégorie 1A | E87: 8.0% | G87: 8.0% | H87: 8.0% | I87: 8.0% | J87: 8.0%
A88: 70 | C88: Ratio minimal de fonds propres de la catégorie 1 | E88: 9.5% | G88: 9.5% | H88: 9.5% | I88: 9.5% | J88: 9.5%
A89: 71 | C89: Ratio minimal de fonds propres totaux | E89: 11.5% | G89: 11.5% | H89: 11.5% | I89: 11.5% | J89: 11.5%
B90: Montants inférieurs aux seuils de déduction (avant pondération des risques)
A91: 72 | C91: Participations non significatives dans les fonds propres et autres passifs TLAC d'autres entités financières | E91: 3,210 | F91: X | G91: 3,010 | H91: 3,010 | I91: 3,275 | J91: 3,180
A92: 73 | C92: Participations significatives dans les instruments de fonds propres de la catégorie 1A d’entités financières | E92: 4,000 | F92: Y | G92: 3,876 | H92: 3,802 | I92: 3,726 | J92: 3,680
A93: 74 | C93: Charges administratives transférables liées aux créances hypothécaires (nettes du passif d'impôt différé correspondant) | E93: 0 | G93: 0 | H93: 0 | I93: 0 | J93: 0
A94: 75 | C94: Actif d’impôt différé résultant de différences temporaires (net du passif d'impôt différé correspondant) | E94: 640 | F94: Z | G94: 629 | H94: 646 | I94: 547 | J94: 653
B95: Plafonds applicables à l’inclusion de provisions dans les fonds propres de la catégorie 2
A96: 76 | C96: Provisions éligibles à l’inclusion dans les fonds propres de la catégorie 2 au titre des expositions soumises à l’approche standard (avant application du plafond) | E96: 136 | G96: 135 | H96: 130 | I96: 98 | J96: 93
A97: 77 | C97: Plafond applicable à l’inclusion de provisions dans les fonds propres de la catégorie 2 selon l’approche standard | E97: 136 | G97: 135 | H97: 130 | I97: 98 | J97: 93
A98: 78 | C98: Provisions éligibles à l’inclusion dans les fonds propres de la catégorie 2 au titre des expositions soumises à l’approche notations internes (avant application du plafond) | E98: s. o. | G98: s. o. | H98: s. o. | I98: s. o. | J98: s. o.
A99: 79 | C99: Plafond applicable à l’inclusion de provisions dans les fonds propres de la catégorie 2 selon l’approche notations internes | E99: s. o. | G99: s. o. | H99: s. o. | I99: s. o. | J99: s. o.
B100: Instruments de fonds propres destinés à être éliminés d'ici le 1er janvier 2022
A101: 80 | C101: Plafond en vigueur sur les instruments de fonds propres de la catégorie 1A destinés à être éliminés
A102: 81 | C102: Montants exclus des fonds propres de la catégorie 1A en raison d’un plafond (excédent par rapport au plafond après rachats et remboursements à l’échéance)
A103: 82 | C103: Plafond en vigueur sur les instruments de fonds propres de la catégorie 1B destinés à être éliminés
A104: 83 | C104: Montants exclus des fonds propres de la catégorie 1B en raison d’un plafond (excédent par rapport au plafond après rachats et remboursements à l’échéance)
A105: 84 | C105: Plafond en vigueur sur les instruments de fonds propres de la catégorie 2 destinés à être éliminés
A106: 85 | C106: Montants exclus des fonds propres de la catégorie 2 en raison d’un plafond (excédent par rapport au plafond après rachats et remboursements à l’échéance)
B108: (1) | C108: Éléments considérés dans les fonds propres réglementaires seulement.
B109: (2) | C109: Inclut les marges sur services contractuels déclarées comme élément de passif dans les états financiers des filiales d'assurance du Mouvement.
B110: (3) | C110: Inclut les placements en actions dans les fonds d'investissement soumis à l'approche de repli, déduits des fonds propres de la catégorie 1A.

Sheet Var. trim. fonds propres régl.
A1: Variations trimestrielles des fonds propres réglementaires
A2: =SUM(C4:G18) -> 734457
A3: (en millions de dollars) | C3: Au 30 septembre 2025 | D3: Au 30 juin 2025 | E3: Au 31 mars 2025 | F3: Au 31 décembre 2024 | G3: Au 30 septembre 2024
A4: Fonds propres de la catégorie 1A
A5: Solde au début de la période | C5: 34,543 | D5: 34,061 | E5: 33,157 | F5: 32,630 | G5: 31,111
B6: Croissance des réserves et des excédents non répartis | C6: 1,393 | D6: 1,029 | E6: 561 | F6: 487 | G6: 720
B7: Cumul des autres éléments du résultat global admissibles | C7: 204 | D7: (77) | E7: 459 | F7: (143) | G7: 1,207
B8: Parts de capital F(1) | C8: (100) | D8: 0 | E8: (100) | F8: 0 | G8: 0
B9: Déductions | C9: (556) | D9: (470) | E9: (16) | F9: 183 | G9: (408)
A10: Solde à la fin de la période | C10: 35,484 | D10: 34,543 | E10: 34,061 | F10: 33,157 | G10: 32,630
A11: Total des fonds propres de la catégorie 1(2) | C11: 35,484 | D11: 34,543 | E11: 34,061 | F11: 33,157 | G11: 32,630
A12: Fonds propres de la catégorie 2
A13: Solde au début de la période | C13: 3,904 | D13: 4,296 | E13: 3,112 | F13: 3,082 | G13: 3,041
B14: Instruments admissibles(3) | C14: 20 | D14: (397) | E14: 1,277 | F14: 24 | G14: 36
B15: Portion admissible de la provision pour perte de crédit | C15: 1 | D15: 5 | E15: 31 | F15: 6 | G15: 5
B16: Déductions | C16: 0 | D16: 0 | E16: (124) | F16: 0 | G16: 0
A17: Solde à la fin de la période | C17: 3,925 | D17: 3,904 | E17: 4,296 | F17: 3,112 | G17: 3,082
A18: Total des fonds propres | C18: 39,409 | D18: 38,447 | E18: 38,357 | F18: 36,269 | G18: 35,712
A20: (1) | B20: Les 11 et 12 août 2025, la Fédération des caisses Desjardins du Québec a procédé à des rachats pour annulation totalisant 10 000 000 parts de capital F détenues au Fonds fiduciaire. Le 24 mars 2025, la Fédération des caisses Desjardins du Québec a aussi procédé au rachat pour annulation de 10 000 000 parts de capital F détenues au Fonds fiduciaire.
A21: (2) | B21: Aucun instrument de fonds propres de la catégorie 1B n'a été émis à ce jour.
A22: (3) | B22: La Fédération a procédé à l'émission d'instruments admissibles comme fonds propres d'urgence en cas de non-viabilité (FPUNV) pour un montant de 0,6 G$ et au rachat d'instruments FPUNV pour un montant de 1 G$ au cours du 2e trimestre 2025. La Fédération avait également procédé à des émissions d'instruments admissibles comme FPUNV pour un montant de 1,25 G$ au cours du 1er trimestre 2025.

Sheet CC2
A1: Tableau CC2 – Rapprochement des fonds propres réglementaires et du bilan
A2: Au 30 septembre 2025 | F2: =SUM(F6:H45) -> 2300377
F3: a | G3: b | I3: c
A4: (en millions de dollars) | F4: Bilan selon les états financiers combinés | G4: Bilan selon le périmètre de la consolidation réglementaire(1) | H4: Comprenant | I4: Références au tableau CC1
A5: Actif
B6: Trésorerie et dépôts auprès d'institutions financières | F6: 7,090 | G6: 5,772
B7: Valeurs mobilières | F7: 107,938 | G7: 70,970
C8: Participations non significatives dans les fonds propres d’autres institutions financières ne dépassant pas les seuils réglementaires | H8: 3,210 | I8: X
C9: Autres valeurs mobilières | H9: 67,760
B10: Valeurs mobilières empruntées ou acquises en vertu de conventions de revente | F10: 24,506 | G10: 26,621
B11: Prêts | F11: 313,781 | G11: 311,995
C12: Participations significatives dans les fonds propres d’institutions financières de la catégorie 2 | H12: 250 | I12: V
C13: Autres prêts | H13: 311,745
B14: Provision pour pertes de crédit | F14: (1,530) | G14: (1,530)
C15: Portion admissible comprise dans les fonds propres de la catégorie 2 | H15: (136) | I15: U
C16: Provisions non comprises dans les fonds propres réglementaires | H16: (1,394)
B17: Actif net des fonds distincts | F17: 32,663 | G17: 0
B18: Autres actifs
C19: Instruments financiers dérivés | F19: 9,984 | G19: 9,914
C20: Sommes à recevoir des clients, courtiers et institutions financières | F20: 3,606 | G20: 3,373
C21: Actifs des contrats de réassurance | F21: 1,832 | G21: 0
C22: Actifs au titre de droits d’utilisation | F22: 434 | G22: 661
C23: Immeubles de placement | F23: 774 | G23: 1
C24: Immobilisations corporelles | F24: 1,432 | G24: 1,034
C25: Goodwill | F25: 596 | G25: 37 | I25: F
C26: Immobilisations incorporelles | F26: 1,254 | G26: 480 | I26: H
C27: Actifs nets au titre des régimes à prestations définies | F27: 1,388 | G27: 1,091 | I27: N
C28: Actifs d’impôt différé | F28: 962 | G28: 641
D29: Actifs d'impôt différé, sauf ceux attribuables à des différences temporaires | H29: 112 | I29: J
D30: Passifs d'impôt différé, sauf ceux attribuables à des différences temporaires | H30: (45) | I30: K
D31: Actifs d’impôt différé se rapportant à des différences temporaires et n’excédant pas les seuils réglementaires | H31: 640 | I31: Z
D32: Passifs d’impôt différé liés aux logiciels et aux autres immobilisations incorporelles | H32: (215) | I32: I
D33: Passifs d’impôt différé liés au goodwill | H33: (4) | I33: G
D34: Passifs d'impôt différé liés aux actifs nets au titre des régimes à prestations définies | H34: (286) | I34: O
D35: Autres éléments d’actifs d'impôt différé | H35: 439
C36: Autres
D37: Participations dans les entreprises mises en équivalence | F37: 1,326 | G37: 8,577
E38: Participations significatives dans les fonds propres d’autres institutions financières dépassant le seuil réglementaire de 10 % des fonds propres de la catégorie 1A | H38: 207 | I38: P
E39: Participations significatives dans les fonds propres d’autres institutions financières ne dépassant pas les seuils réglementaires | H39: 4,000 | I39: Y
E40: Participation dans des filiales déconsolidées dépassant le seuil réglementaire de 10 % des fonds propres de la catégorie 1A(2) | H40: 3,662 | I40: Q
E41: Participations significatives dans les fonds propres de catégorie 1B d'autres institutions financières | H41: 650 | I41: R
E42: Participations significatives dans les fonds propres d’autres institutions financières de la catégorie 2 | H42: 850 | I42: W
E43: Autres ajustements liés aux participations(2) | H43: (792)
D44: Autres éléments | F44: 3,820 | G44: 3,369
A45: Total de l’actif | F45: 511,856 | G45: 443,006
A47: Au 30 septembre 2025 | F47: =SUM(F51:H83) -> 2879583
F48: a | G48: b | I48: c
A49: (en millions de dollars) | F49: Bilan selon les états financiers combinés | G49: Bilan selon le périmètre de la consolidation réglementaire(1) | H49: Comprenant | I49: Références au tableau CC1
A50: Passif
B51: Dépôts | F51: 324,039 | G51: 325,171
B52: Passifs des contrats d'assurance | F52: 35,123 | G52: 0
B53: Autres passifs
C54: Engagements relatifs aux valeurs mobilières vendues à découvert | F54: 17,462 | G54: 17,123
C55: Engagements relatifs aux valeurs mobilières prêtées ou vendues en vertu de conventions de rachat | F55: 23,678 | G55: 23,229
C56: Instruments financiers dérivés | F56: 7,402 | G56: 7,152
C57: Sommes à payer aux clients, courtiers et institutions financières | F57: 14,157 | G57: 13,799
C58: Obligations locatives | F58: 527 | G58: 781
C59: Passifs des contrats de réassurance | F59: 38 | G59: 0
C60: Passif net des fonds distincts - Contrats d'investissement | F60: 29,001 | G60: 0
C61: Passifs nets au titre des régimes à prestations définies | F61: 674 | G61: 519
C62: Passifs d'impôt différé | F62: 604 | G62: 388
C63: Autres | F63: 12,378 | G63: 8,792
B64: Obligations subordonnées | F64: 4,862 | G64: 4,862
C65: Obligations subordonnées incluses dans le calcul des fonds propres de la catégorie 2 | H65: 4,862 | I65: S
A66: Total du passif | F66: 469,945 | G66: 401,816
A67: Capitaux propres
B68: Capital social | F68: 4,582 | G68: 4,582
C69: Parts de qualification | H69: 27 | I69: T
C70: Parts de capital de la Fédération | H70: 4,555 | I70: A
C71: Participations croisées sous forme d’instruments de fonds propres de la catégorie 1A | H71: 34 | I71: B
C72: Parts exclues du calcul des fonds propres règlementaires | H72: (34)
B73: Excédents non répartis | F73: 4,824 | G73: 4,711 | I73: C
C74: Gains (pertes) attribuables à des variations de juste valeur des passifs financiers à l'égard du risque de crédit de l'entité | H74: 21 | I74: M
C75: Autres excédents non répartis | H75: 4,690
B76: Cumul des autres éléments du résultat global | F76: 842 | G76: 842 | I76: E
C77: Gains (pertes) nets non réalisés sur les titres d'emprunt classés à la juste valeur par le biais des autres éléments du résultat global
C78: Gains (pertes) sur instruments financiers dérivés désignés comme couverture de flux de trésorerie | H78: 464 | I78: L
C79: Autres | H79: 378
B80: Réserves | F80: 31,055 | G80: 31,055 | I80: D
B81: Participations ne donnant pas le contrôle | F81: 608 | G81: 0
A82: Total des capitaux propres | F82: 41,911 | G82: 41,190
A83: Total du passif et des capitaux propres | F83: 511,856 | G83: 443,006
A85: (1) | B85: Le périmètre de consolidation réglementaire exclut les filiales d’assurance, Desjardins Groupe d'assurances générales inc. et Desjardins Sécurité financière, compagnie d'assurance vie. Une description de leurs activités se retrouve dans le rapport annuel 2024 du Mouvement Desjardins à la section 2.2 du rapport de gestion.
A86: (2) | B86: Inclut les marges sur services contractuels déclarées comme élément de passif dans les états financiers des filiales d'assurance du Mouvement.

Sheet CCA
A1: Tableau CCA – Principales caractéristiques des instruments de fonds propres réglementaires et des autres instruments de TLAC éligibles | G1: =SUM(D4:G44) -> 4616215.037
A2: Au 30 septembre 2025
B3: Caractéristiques | D3: Parts de qualification | G3: Parts de capital F
A4: 1 | B4: Émetteur | D4: Caisses Desjardins du Québec | E4: Fédération des caisses Desjardins du Québec | G4: Fédération des caisses Desjardins du Québec
A5: 2 | B5: Identifiant unique (CUSIP, ISIN ou Bloomberg pour un placement privé) | D5: s. o. | E5: s. o. | G5: s. o.
A6: 3 | B6: Droit régissant l'instrument | D6: Québec | E6: Québec | G6: Québec
A7: 3a | B7: Moyens grâce auxquels l’obligation de validité juridique du point 13 du tableau des modalités de la TLAC est remplie (pour d'autres instruments éligibles à la TLAC régis par le droit étranger) | D7: s. o. | E7: s. o. | G7: s. o.
B8: Traitement réglementaire :
A9: 4 | C9: Dispositions transitoires des règles de Bâle III | D9: Instrument catégorie 2 | E9: Instrument catégorie 2 | G9: Instrument catégorie 1A
A10: 5 | C10: Règles de Bâle III après la transition | D10: Instrument catégorie 2 | E10: Instrument catégorie 2 | G10: Instrument catégorie 1A
A11: 6 | C11: Éligible au niveau de l’entité financière / du groupe / du groupe et de l’entité financière | D11: Entité | E11: Entité | G11: Entité
A12: 7 | C12: Type d’instrument | D12: Parts de qualification | E12: Parts de qualification | G12: Parts de capital
A13: 8 | B13: Montant comptabilisé dans les fonds propres réglementaires (en milliers d’unités monétaires, à la date de déclaration la plus récente) | D13: 26,631 $ | E13: 100 $ | G13: 4,589,464 $
A14: 9 | B14: Valeur nominale de l’instrument(1) | D14: 5 $ | E14: 5 $ | G14: 10 $
A15: 10 | B15: Rubrique comptable | D15: Fonds propres | E15: Fonds propres | G15: Fonds propres
A16: 11 | B16: Date initiale d’émission | D16: s. o. | E16: s. o. | G16: s. o.
A17: 12 | B17: Perpétuel ou daté | D17: Perpétuel | E17: Perpétuel | G17: Perpétuel
A18: 13 | C18: Date d’échéance initiale | D18: Aucune date d'échéance | E18: Aucune date d'échéance | G18: Aucune date d'échéance
A19: 14 | B19: Remboursement anticipé au gré de l’émetteur sous réserve de l’accord préalable de l’Autorité | D19: Non | E19: Non | G19: Non
A20: 15 | C20: Date de remboursement anticipé facultatif, dates de remboursement anticipé éventuel et montant du remboursement | D20: s. o. | E20: s. o. | G20: s. o.
A21: 16 | C21: Dates de remboursement anticipé ultérieures, s’il y a lieu | D21: s. o. | E21: s. o. | G21: s. o.
B22: Coupon ou dividende
A23: 17 | C23: Dividende/coupon fixe ou variable | D23: s. o. | E23: s. o. | G23: Variable
A24: 18 | C24: Taux du coupon et indice, le cas échéant | D24: s. o. | E24: s. o. | G24: 4,25 % annuel
A25: 19 | C25: Existence d’un mécanisme de suspension des versements | D25: s. o. | E25: s. o. | G25: Oui
A26: 20 | C26: Entièrement discrétionnaire, partiellement discrétionnaire ou obligatoire | D26: s. o. | E26: s. o. | G26: Entièrement discrétionnaire
A27: 21 | C27: Existence d’un saut de rémunération ou autre incitation au remboursement | D27: s. o. | E27: s. o. | G27: Non
A28: 22 | C28: Non cumulatif ou cumulatif | D28: s. o. | E28: s. o. | G28: Non cumulatif
A29: 23 | B29: Convertible ou non convertible | D29: Non convertible | E29: Non convertible | G29: Non convertible
A30: 24 | C30: Si convertible, seuil de déclenchement de la conversion | D30: s. o. | E30: s. o. | G30: s. o.
A31: 25 | C31: Si convertible, en totalité ou en partie | D31: s. o. | E31: s. o. | G31: s. o.
A32: 26 | C32: Si convertible, taux de conversion | D32: s. o. | E32: s. o. | G32: s. o.
A33: 27 | C33: Si convertible, conversion obligatoire ou facultative | D33: s. o. | E33: s. o. | G33: s. o.
A34: 28 | C34: Si convertible, indiquer le type d’instrument dans lequel la conversion est possible | D34: s. o. | E34: s. o. | G34: s. o.
A35: 29 | C35: Si convertible, indiquer l’émetteur de l'instrument dans lequel la conversion se fait | D35: s. o. | E35: s. o. | G35: s. o.
A36: 30 | B36: Mécanisme de dépréciation | D36: Non | E36: Non | G36: Non
A37: 31 | C37: Seuil de déclenchement d’une dépréciation | D37: s. o. | E37: s. o. | G37: s. o.
A38: 32 | C38: Dépréciation totale ou partielle | D38: s. o. | E38: s. o. | G38: s. o.
A39: 33 | C39: Dépréciation permanente ou temporaire | D39: s. o. | E39: s. o. | G39: s. o.
A40: 34 | C40: En cas de dépréciation temporaire, description du mécanisme d’appréciation | D40: s. o. | E40: s. o. | G40: s. o.
A41: 34a | C41: Type de subordination
A42: 35 | B42: En cas de liquidation, position dans la hiérarchie de subordination (indiquer le type d’instrument de rang immédiatement supérieur à l’instrument) | D42: Billets subordonnés FPUNV de la Fédération des Caisses Desjardins du Québec(2) | E42: Billets subordonnés FPUNV de la Fédération des Caisses Desjardins du Québec(2) | G42: Billets subordonnés FPUNV de la Fédération des Caisses Desjardins du Québec(2)
A43: 36 | B43: Caractéristiques de non-conformité des instruments bénéficiant des dispositions transitoires | D43: Non | E43: Non | G43: Non
A44: 37 | B44: Le cas échéant, indiquer les caractéristiques de non-conformité | D44: s. o. | E44: s. o. | G44: s. o.
A46: Au 30 septembre 2025 | G46: =SUM(D48:G88) -> 3003318205
B47: Caractéristiques | D47: Billets subordonnés FPUNV
A48: 1 | B48: Émetteur | D48: Fédération des caisses Desjardins du Québec | E48: Fédération des caisses Desjardins du Québec | G48: Fédération des caisses Desjardins du Québec
A49: 2 | B49: Identifiant unique (CUSIP, ISIN ou Bloomberg pour un placement privé) | D49: CUSIP : 31430WGC2 ISIN : CA31430WGC25 | E49: CUSIP : 31430WRG1 ISIN : CA31430WRG10 | G49: CUSIP : 31430WU44 ISIN : CA31430WU444
A50: 3 | B50: Droit régissant l'instrument | D50: Québec ainsi que les lois fédérales du Canada applicables | E50: Québec ainsi que les lois fédérales du Canada applicables | G50: Québec ainsi que les lois fédérales du Canada applicables
A51: 3a | B51: Moyens grâce auxquels l’obligation de validité juridique du point 13 du tableau des modalités de la TLAC est remplie (pour d'autres instruments éligibles à la TLAC régis par le droit étranger) | D51: s. o. | E51: s. o. | G51: s. o.
B52: Traitement réglementaire :
A53: 4 | C53: Dispositions transitoires des règles de Bâle III | D53: Instrument catégorie 2 | E53: Instrument catégorie 2 | G53: Instrument catégorie 2
A54: 5 | C54: Règles de Bâle III après la transition | D54: Instrument catégorie 2 | E54: Instrument catégorie 2 | G54: Instrument catégorie 2
A55: 6 | C55: Éligible au niveau de l’entité financière / du groupe / du groupe et de l’entité financière | D55: Entité | E55: Entité | G55: Entité
A56: 7 | C56: Type d’instrument | D56: Billets subordonnés | E56: Billets subordonnés | G56: Billets subordonnés
A57: 8 | B57: Montant comptabilisé dans les fonds propres réglementaires (en milliers d’unités monétaires, à la date de déclaration la plus récente) | D57: 993,109 $ | E57: 1,007,231 $ | G57: 1,037,775 $
A58: 9 | B58: Valeur nominale de l’instrument(1) | D58: 1,000,000,000 $ | E58: 1,000,000,000 $ | G58: 1,000,000,000 $
A59: 10 | B59: Rubrique comptable | D59: Passif – Coût amorti | E59: Passif – Coût amorti | G59: Passif – Coût amorti
A60: 11 | B60: Date initiale d’émission | D60: 2021-05-28 | E60: 2022-08-23 | G60: 2024-05-15
A61: 12 | B61: Perpétuel ou daté | D61: Daté | E61: Daté | G61: Daté
A62: 13 | C62: Date d’échéance initiale | D62: 2031-05-28 | E62: 2032-08-23 | G62: 2034-05-15
A63: 14 | B63: Remboursement anticipé au gré de l’émetteur sous réserve de l’accord préalable de l’Autorité | D63: Oui | E63: Oui | G63: Oui
A64: 15 | C64: Date de remboursement anticipé facultatif, dates de remboursement anticipé éventuel et montant du remboursement | D64: À partir du 28 mai 2026, à la valeur nominale majorée de l'intérêt couru et impayé | E64: À partir du 23 août 2027, à la valeur nominale majorée de l'intérêt couru et impayé | G64: À partir du 15 mai 2029, à la valeur nominale majorée de l'intérêt couru et impayé
A65: 16 | C65: Dates de remboursement anticipé ultérieures, s’il y a lieu | D65: À n'importe quelle date après le 28 mai 2026, à la valeur nominale majorée de l'intérêt couru et impayé | E65: À n'importe quelle date après le 23 août 2027, à la valeur nominale majorée de l'intérêt couru et impayé | G65: À n'importe quelle date après le 15 mai 2029, à la valeur nominale majorée de l'intérêt couru et impayé
B66: Coupon ou dividende
A67: 17 | C67: Dividende/coupon fixe ou variable | D67: Fixe, puis variable | E67: Fixe, puis variable | G67: Fixe, puis variable
A68: 18 | C68: Taux du coupon et indice, le cas échéant(3) | D68: 1,992 % par année jusqu'au 28 mai 2026 (exclusivement). Après cette date, au taux annuel égal au taux des acceptations bancaires à 3 mois, majoré de 0,60 %(4) | E68: 5,035 % par année jusqu'au 23 août 2027 (exclusivement). Après cette date, au taux CORRA composé quotidiennement sur la période d'observation, majoré de 2,29 % | G68: 5,279 % par année jusqu'au 15 mai 2029 (exclusivement). Après cette date, au taux annuel égal au taux CORRA composé quotidiennement sur la période d'observation, majoré de 1,56 %
A69: 19 | C69: Existence d’un mécanisme de suspension des versements | D69: Non | E69: Non | G69: Non
A70: 20 | C70: Entièrement discrétionnaire, partiellement discrétionnaire ou obligatoire | D70: Obligatoire | E70: Obligatoire | G70: Obligatoire
A71: 21 | C71: Existence d’un saut de rémunération ou autre incitation au remboursement | D71: Non | E71: Non | G71: Non
A72: 22 | C72: Non cumulatif ou cumulatif | D72: Cumulatif | E72: Cumulatif | G72: Cumulatif
A73: 23 | B73: Convertible ou non convertible | D73: Convertible | E73: Convertible | G73: Convertible
A74: 24 | C74: Si convertible, seuil de déclenchement de la conversion | D74: Voir Note(5) | E74: Voir Note(5) | G74: Voir Note(5)
A75: 25 | C75: Si convertible, en totalité ou en partie | D75: Toujours converti en totalité | E75: Toujours converti en totalité | G75: Toujours converti en totalité
A76: 26 | C76: Si convertible, taux de conversion | D76: Voir Note(6) | E76: Voir Note(6) | G76: Voir Note(6)
A77: 27 | C77: Si convertible, conversion obligatoire ou facultative | D77: Obligatoire | E77: Obligatoire | G77: Obligatoire
A78: 28 | C78: Si convertible, indiquer le type d’instrument dans lequel la conversion est possible | D78: Parts Z-capital contingent (instrument catégorie 1A) | E78: Parts Z-capital contingent (instrument catégorie 1A) | G78: Parts Z-capital contingent (instrument catégorie 1A)
A79: 29 | C79: Si convertible, indiquer l’émetteur de l'instrument dans lequel la conversion se fait | D79: Fédération des caisses Desjardins du Québec | E79: Fédération des caisses Desjardins du Québec | G79: Fédération des caisses Desjardins du Québec
A80: 30 | B80: Mécanisme de dépréciation | D80: Non | E80: Non | G80: Non
A81: 31 | C81: Seuil de déclenchement d’une dépréciation | D81: s. o. | E81: s. o. | G81: s. o.
A82: 32 | C82: Dépréciation totale ou partielle | D82: s. o. | E82: s. o. | G82: s. o.
A83: 33 | C83: Dépréciation permanente ou temporaire | D83: s. o. | E83: s. o. | G83: s. o.
A84: 34 | C84: En cas de dépréciation temporaire, description du mécanisme d’appréciation | D84: s. o. | E84: s. o. | G84: s. o.
A85: 34a | C85: Type de subordination
A86: 35 | B86: En cas de liquidation, position dans la hiérarchie de subordination (indiquer le type d’instrument de rang immédiatement supérieur à l’instrument) | D86: Créanciers séniors incluant les déposants | E86: Créanciers séniors incluant les déposants | G86: Créanciers séniors incluant les déposants
A87: 36 | B87: Caractéristiques de non-conformité des instruments bénéficiant des dispositions transitoires | D87: Non | E87: Non | G87: Non
A88: 37 | B88: Le cas échéant, indiquer les caractéristiques de non-conformité | D88: s. o. | E88: s. o. | G88: s. o.
A90: Au 30 septembre 2025 | G90: =SUM(D92:G132) -> 2.147210967e+10
B91: Caractéristiques | D91: Billets subordonnés FPUNV
A92: 1 | B92: Émetteur | D92: Fédération des caisses Desjardins du Québec | E92: Fédération des caisses Desjardins du Québec | G92: Fédération des caisses Desjardins du Québec
A93: 2 | B93: Identifiant unique (CUSIP, ISIN ou Bloomberg pour un placement privé) | D93: CUSIP : 31430W7J7 ISIN : CA31430W7J76 | E93: Common Code : 310146765 ISIN : CH1454185872 | G93: Common Code : 310518930 ISIN : XS3105189305
A94: 3 | B94: Droit régissant l'instrument | D94: Québec ainsi que les lois fédérales du Canada applicables | E94: Québec ainsi que les lois fédérales du Canada applicables | G94: Québec ainsi que les lois fédérales du Canada applicables
A95: 3a | B95: Moyens grâce auxquels l’obligation de validité juridique du point 13 du tableau des modalités de la TLAC est remplie (pour d'autres instruments éligibles à la TLAC régis par le droit étranger) | D95: s. o. | E95: s. o. | G95: s. o.
B96: Traitement réglementaire :
A97: 4 | C97: Dispositions transitoires des règles de Bâle III | D97: Instrument catégorie 2 | E97: Instrument catégorie 2 | G97: Instrument catégorie 2
A98: 5 | C98: Règles de Bâle III après la transition | D98: Instrument catégorie 2 | E98: Instrument catégorie 2 | G98: Instrument catégorie 2
A99: 6 | C99: Éligible au niveau de l’entité financière / du groupe / du groupe et de l’entité financière | D99: Entité | E99: Entité | G99: Entité
A100: 7 | C100: Type d’instrument | D100: Billets subordonnés | E100: Billets subordonnés | G100: Billets subordonnés
A101: 8 | B101: Montant comptabilisé dans les fonds propres réglementaires (en milliers d’unités monétaires, à la date de déclaration la plus récente) | D101: 1,253,298 $ | E101: 383,137 $ | G101: 187,579 $
A102: 9 | B102: Valeur nominale de l’instrument(1) | D102: 1,250,000,000 $ | E102: 220,000,000 Fr. | G102: 20,000,000,000 ¥
A103: 10 | B103: Rubrique comptable | D103: Passif – Coût amorti | E103: Passif – Coût amorti | G103: Passif – Coût amorti
A104: 11 | B104: Date initiale d’émission | D104: 2025-01-24 | E104: 2025-06-26 | G104: 2025-06-26
A105: 12 | B105: Perpétuel ou daté | D105: Daté | E105: Daté | G105: Daté
A106: 13 | C106: Date d’échéance initiale | D106: 2035-01-24 | E106: 2035-06-26 | G106: 2035-06-26
A107: 14 | B107: Remboursement anticipé au gré de l’émetteur sous réserve de l’accord préalable de l’Autorité | D107: Oui | E107: Oui | G107: Oui
A108: 15 | C108: Date de remboursement anticipé facultatif, dates de remboursement anticipé éventuel et montant du remboursement | D108: À partir du 24 janvier 2030, à la valeur nominale majorée de l'intérêt couru et impayé | E108: Le 26 juin 2030, à la valeur nominale majorée de l'intérêt couru et impayé | G108: Le 26 juin 2030, à la valeur nominale majorée de l'intérêt couru et impayé
A109: 16 | C109: Dates de remboursement anticipé ultérieures, s’il y a lieu | D109: À n'importe quelle date après le 24 janvier 2030 à la valeur nominale majorée de l'intérêt couru et impayé | E109: s. o. | G109: s. o.
B110: Coupon ou dividende
A111: 17 | C111: Dividende/coupon fixe ou variable | D111: Fixe, puis variable | E111: Fixe | G111: Fixe
A112: 18 | C112: Taux du coupon et indice, le cas échéant(3) | D112: 4,264 % par année jusqu'au 24 janvier 2030 (exclusivement). Après cette date, au taux annuel égal au taux CORRA composé quotidiennement sur la période d'observation, majoré de 1,47 % | E112: 1,3925 % par année jusqu'au 26 juin 2030 (exclusivement). Après cette date, au taux swap annualisé SARON médian de terme 5 ans, majoré de 1,40 % | G112: 1,973 % par année jusqu'au 26 juin 2030 (exclusivement). Après cette date, au taux swap semi-annuel TONA médian de terme 5 ans, majoré de 1,11 %
A113: 19 | C113: Existence d’un mécanisme de suspension des versements | D113: Non | E113: Non | G113: Non
A114: 20 | C114: Entièrement discrétionnaire, partiellement discrétionnaire ou obligatoire | D114: Obligatoire | E114: Obligatoire | G114: Obligatoire
A115: 21 | C115: Existence d’un saut de rémunération ou autre incitation au remboursement | D115: Non | E115: Non | G115: Non
A116: 22 | C116: Non cumulatif ou cumulatif | D116: Cumulatif | E116: Cumulatif | G116: Cumulatif
A117: 23 | B117: Convertible ou non convertible | D117: Convertible | E117: Convertible | G117: Convertible
A118: 24 | C118: Si convertible, seuil de déclenchement de la conversion | D118: Voir Note(5) | E118: Voir Note(5) | G118: Voir Note(5)
A119: 25 | C119: Si convertible, en totalité ou en partie | D119: Toujours converti en totalité | E119: Toujours converti en totalité | G119: Toujours converti en totalité
A120: 26 | C120: Si convertible, taux de conversion | D120: Voir Note(6) | E120: Voir Note(6) | G120: Voir Note(6)
A121: 27 | C121: Si convertible, conversion obligatoire ou facultative | D121: Obligatoire | E121: Obligatoire | G121: Obligatoire
A122: 28 | C122: Si convertible, indiquer le type d’instrument dans lequel la conversion est possible | D122: Parts Z-capital contingent (instrument catégorie 1A) | E122: Parts Z-capital contingent (instrument catégorie 1A) | G122: Parts Z-capital contingent (instrument catégorie 1A)
A123: 29 | C123: Si convertible, indiquer l’émetteur de l'instrument dans lequel la conversion se fait | D123: Fédération des caisses Desjardins du Québec | E123: Fédération des caisses Desjardins du Québec | G123: Fédération des caisses Desjardins du Québec
A124: 30 | B124: Mécanisme de dépréciation | D124: Non | E124: Non | G124: Non
A125: 31 | C125: Seuil de déclenchement d’une dépréciation | D125: s. o. | E125: s. o. | G125: s. o.
A126: 32 | C126: Dépréciation totale ou partielle | D126: s. o. | E126: s. o. | G126: s. o.
A127: 33 | C127: Dépréciation permanente ou temporaire | D127: s. o. | E127: s. o. | G127: s. o.
A128: 34 | C128: En cas de dépréciation temporaire, description du mécanisme d’appréciation | D128: s. o. | E128: s. o. | G128: s. o.
A129: 34a | C129: Type de subordination
A130: 35 | B130: En cas de liquidation, position dans la hiérarchie de subordination (indiquer le type d’instrument de rang immédiatement supérieur à l’instrument) | D130: Créanciers séniors incluant les déposants | E130: Créanciers séniors incluant les déposants | G130: Créanciers séniors incluant les déposants
A131: 36 | B131: Caractéristiques de non-conformité des instruments bénéficiant des dispositions transitoires | D131: Non | E131: Non | G131: Non
A132: 37 | B132: Le cas échéant, indiquer les caractéristiques de non-conformité | D132: s. o. | E132: s. o. | G132: s. o.
A134: Au 30 septembre 2025 | G134: =SUM(D136:G176) -> 2250274469
B135: Caractéristiques | D135: Billet de premier rang TLAC
A136: 1 | B136: Émetteur | D136: Fédération des caisses Desjardins du Québec | E136: Fédération des caisses Desjardins du Québec | G136: Fédération des caisses Desjardins du Québec
A137: 2 | B137: Identifiant unique (CUSIP, ISIN ou Bloomberg pour un placement privé) | D137: CUSIP : 31430WPB4 ISIN : CA31430WPB41 | E137: CUSIP : 31429KAH6 / 31429LAH4 ISIN : US31429KAH68 / US31429LAH42 | G137: CUSIP : 31429KAK9 / 31429LAK7 ISIN : US31429KAK97 / US31429LAK70
A138: 3 | B138: Droit régissant l'instrument | D138: Québec ainsi que les lois fédérales du Canada applicables | E138: New York (États-Unis), sauf exceptions spécifiques (Québec ainsi que les lois fédérales du Canada applicables) | G138: New York (États-Unis), sauf exceptions spécifiques (Québec ainsi que les lois fédérales du Canada applicables)
A139: 3a | B139: Moyens grâce auxquels l’obligation de validité juridique du point 13 du tableau des modalités de la TLAC est remplie (pour d'autres instruments éligibles à la TLAC régis par le droit étranger) | D139: s. o. | E139: Contractuel | G139: Contractuel
B140: Traitement réglementaire :
A141: 4 | C141: Dispositions transitoires des règles de Bâle III | D141: s. o. | E141: s. o. | G141: s. o.
A142: 5 | C142: Règles de Bâle III après la transition | D142: s. o. | E142: s. o. | G142: s. o.
A143: 6 | C143: Éligible au niveau de l’entité financière / du groupe / du groupe et de l’entité financière | D143: Entité | E143: Entité | G143: Entité
A144: 7 | C144: Type d’instrument | D144: Autres instruments TLAC | E144: Autres instruments TLAC | G144: Autres instruments TLAC
A145: 8 | B145: Montant comptabilisé dans les fonds propres réglementaires (en milliers d’unités monétaires, à la date de déclaration la plus récente) | D145: Montant admissible aux fins de la TLAC seulement | E145: Montant admissible aux fins de la TLAC seulement | G145: Montant admissible aux fins de la TLAC seulement
A146: 9 | B146: Valeur nominale de l’instrument(1) | D146: 1,000,000,000 $ | E146: 500,000,000 US$ | G146: 750,000,000 US$
A147: 10 | B147: Rubrique comptable | D147: Passif – Coût amorti | E147: Passif – Coût amorti | G147: Passif – Coût amorti
A148: 11 | B148: Date initiale d’émission | D148: 2022-05-19 | E148: 2022-08-23 | G148: 2023-03-14
A149: 12 | B149: Perpétuel ou daté | D149: Daté | E149: Daté | G149: Daté
A150: 13 | C150: Date d’échéance initiale | D150: 2027-05-19 | E150: 2027-08-23 | G150: 2028-03-14
A151: 14 | B151: Remboursement anticipé au gré de l’émetteur sous réserve de l’accord préalable de l’Autorité | D151: Non | E151: Non | G151: Non
A152: 15 | C152: Date de remboursement anticipé facultatif, dates de remboursement anticipé éventuel et montant du remboursement | D152: s. o. | E152: s. o. | G152: s. o.
A153: 16 | C153: Dates de remboursement anticipé ultérieures, s’il y a lieu | D153: s. o. | E153: s. o. | G153: s. o.
B154: Coupon ou dividende
A155: 17 | C155: Dividende/coupon fixe ou variable | D155: Fixe | E155: Fixe | G155: Fixe
A156: 18 | C156: Taux du coupon et indice, le cas échéant | D156: 4,407 % par année | E156: 4,550 % par année | G156: 5,70 % par année
A157: 19 | C157: Existence d’un mécanisme de suspension des versements | D157: Non | E157: Non | G157: Non
A158: 20 | C158: Entièrement discrétionnaire, partiellement discrétionnaire ou obligatoire | D158: Obligatoire | E158: Obligatoire | G158: Obligatoire
A159: 21 | C159: Existence d’un saut de rémunération ou autre incitation au remboursement | D159: Non | E159: Non | G159: Non
A160: 22 | C160: Non cumulatif ou cumulatif | D160: Cumulatif | E160: Cumulatif | G160: Cumulatif
A161: 23 | B161: Convertible ou non convertible | D161: Non convertible | E161: Non convertible | G161: Non convertible
A162: 24 | C162: Si convertible, seuil de déclenchement de la conversion | D162: s. o. | E162: s. o. | G162: s. o.
A163: 25 | C163: Si convertible, en totalité ou en partie | D163: s. o. | E163: s. o. | G163: s. o.
A164: 26 | C164: Si convertible, taux de conversion | D164: s. o. | E164: s. o. | G164: s. o.
A165: 27 | C165: Si convertible, conversion obligatoire ou facultative | D165: s. o. | E165: s. o. | G165: s. o.
A166: 28 | C166: Si convertible, indiquer le type d’instrument dans lequel la conversion est possible | D166: s. o. | E166: s. o. | G166: s. o.
A167: 29 | C167: Si convertible, indiquer l’émetteur de l'instrument dans lequel la conversion se fait | D167: s. o. | E167: s. o. | G167: s. o.
A168: 30 | B168: Mécanisme de dépréciation | D168: Non | E168: Non | G168: Non
A169: 31 | C169: Seuil de déclenchement d’une dépréciation | D169: s. o. | E169: s. o. | G169: s. o.
A170: 32 | C170: Dépréciation totale ou partielle | D170: s. o. | E170: s. o. | G170: s. o.
A171: 33 | C171: Dépréciation permanente ou temporaire | D171: s. o. | E171: s. o. | G171: s. o.
A172: 34 | C172: En cas de dépréciation temporaire, description du mécanisme d’appréciation | D172: s. o. | E172: s. o. | G172: s. o.
A173: 34a | C173: Type de subordination | D173: Exemption | E173: Exemption | G173: Exemption
A174: 35 | B174: En cas de liquidation, position dans la hiérarchie de subordination (indiquer le type d’instrument de rang immédiatement supérieur à l’instrument) | D174: Pari passu aux dépôts | E174: Pari passu aux dépôts | G174: Pari passu aux dépôts
A175: 36 | B175: Caractéristiques de non-conformité des instruments bénéficiant des dispositions transitoires | D175: s. o. | E175: s. o. | G175: s. o.
A176: 37 | B176: Le cas échéant, indiquer les caractéristiques de non-conformité | D176: s. o. | E176: s. o. | G176: s. o.
A178: Au 30 septembre 2025 | G178: =SUM(D180:G220) -> 36050276363
B179: Caractéristiques | D179: Billet de premier rang TLAC
A180: 1 | B180: Émetteur | D180: Fédération des caisses Desjardins du Québec | E180: Fédération des caisses Desjardins du Québec | G180: Fédération des caisses Desjardins du Québec
A181: 2 | B181: Identifiant unique (CUSIP, ISIN ou Bloomberg pour un placement privé) | D181: Common Code : 261363054 ISIN : XS2613630545 | E181: CUSIP : 31430WZM9 ISIN : CA31430WZM95 | G181: CUSIP : 31430WF90 ISIN : CA31430WF908
A182: 3 | B182: Droit régissant l'instrument | D182: Québec ainsi que les lois fédérales du Canada applicables | E182: Québec ainsi que les lois fédérales du Canada applicables | G182: Québec ainsi que les lois fédérales du Canada applicables
A183: 3a | B183: Moyens grâce auxquels l’obligation de validité juridique du point 13 du tableau des modalités de la TLAC est remplie (pour d'autres instruments éligibles à la TLAC régis par le droit étranger) | D183: s. o. | E183: s. o. | G183: s. o.
B184: Traitement réglementaire :
A185: 4 | C185: Dispositions transitoires des règles de Bâle III | D185: s. o. | E185: s. o. | G185: s. o.
A186: 5 | C186: Règles de Bâle III après la transition | D186: s. o. | E186: s. o. | G186: s. o.
A187: 6 | C187: Éligible au niveau de l’entité financière / du groupe / du groupe et de l’entité financière | D187: Entité | E187: Entité | G187: Entité
A188: 7 | C188: Type d’instrument | D188: Autres instruments TLAC | E188: Autres instruments TLAC | G188: Autres instruments TLAC
A189: 8 | B189: Montant comptabilisé dans les fonds propres réglementaires (en milliers d’unités monétaires, à la date de déclaration la plus récente) | D189: Montant admissible aux fins de la TLAC seulement | E189: Montant admissible aux fins de la TLAC seulement | G189: Montant admissible aux fins de la TLAC seulement
A190: 9 | B190: Valeur nominale de l’instrument(1) | D190: 34,300,000,000 ¥ | E190: 500,000,000 $ | G190: 1,250,000,000 $
A191: 10 | B191: Rubrique comptable | D191: Passif – Coût amorti | E191: Passif – Coût amorti | G191: Passif – Coût amorti
A192: 11 | B192: Date initiale d’émission | D192: 2023-04-24 | E192: 2023-08-16 | G192: 2023-11-17
A193: 12 | B193: Perpétuel ou daté | D193: Daté | E193: Daté | G193: Daté
A194: 13 | C194: Date d’échéance initiale | D194: 2028-04-24 | E194: 2028-08-16 | G194: 2028-11-17
A195: 14 | B195: Remboursement anticipé au gré de l’émetteur sous réserve de l’accord préalable de l’Autorité | D195: Non | E195: Non | G195: Oui(7)
A196: 15 | C196: Date de remboursement anticipé facultatif, dates de remboursement anticipé éventuel et montant du remboursement | D196: s. o. | E196: s. o. | G196: s. o.
A197: 16 | C197: Dates de remboursement anticipé ultérieures, s’il y a lieu | D197: s. o. | E197: s. o. | G197: s. o.
B198: Coupon ou dividende
A199: 17 | C199: Dividende/coupon fixe ou variable | D199: Fixe | E199: Fixe | G199: Fixe
A200: 18 | C200: Taux du coupon et indice, le cas échéant | D200: 1,00 % par année | E200: 5,475 % par année | G200: 5,467 % par année
A201: 19 | C201: Existence d’un mécanisme de suspension des versements | D201: Non | E201: Non | G201: Non
A202: 20 | C202: Entièrement discrétionnaire, partiellement discrétionnaire ou obligatoire | D202: Obligatoire | E202: Obligatoire | G202: Obligatoire
A203: 21 | C203: Existence d’un saut de rémunération ou autre incitation au remboursement | D203: Non | E203: Non | G203: Non
A204: 22 | C204: Non cumulatif ou cumulatif | D204: Cumulatif | E204: Cumulatif | G204: Cumulatif
... 152 more rows

Sheet TLAC1
A1: Tableau TLAC1 – Composition de la TLAC (au niveau du groupe de résolution(1))
A3: =SUM(D6:H41) -> 3936892.334 | D3: a
B5: (en millions de dollars) | D5: Au 30 septembre 2025 | E5: Au 30 juin 2025 | F5: Au 31 mars 2025 | G5: Au 31 décembre 2024 | H5: Au 30 septembre 2024
B6: Éléments de TLAC liés aux fonds propres réglementaires
A7: 1 | C7: Instruments de fonds propres de la catégorie 1A et assimilés | D7: 34,525 | E7: 33,599 | F7: 33,118 | G7: 32,227 | H7: 31,720
A8: 2 | C8: Autres éléments de fonds propres de catégorie 1B avant ajustements de TLAC | D8: 0 | E8: 0 | F8: 0 | G8: 0 | H8: 0
A9: 3 | C9: Instruments de catégorie 1B non éligibles en tant que TLAC, car émis par des filiales à des tierces parties | D9: 0 | E9: 0 | F9: 0 | G9: 0 | H9: 0
A10: 4 | C10: Autres ajustements | D10: 0 | E10: 0 | F10: 0 | G10: 0 | H10: 0
A11: 5 | C11: Instruments de fonds propres de catégorie 1B éligibles aux termes du dispositif de TLAC | D11: 0 | E11: 0 | F11: 0 | G11: 0 | H11: 0
A12: 6 | C12: Fonds propres de catégorie 2 avant ajustements de TLAC | D12: 3,908 | E12: 3,889 | F12: 4,282 | G12: 3,101 | H12: 3,073
A13: 7 | C13: Fraction amortie des instruments de catégorie 2 quand la durée de vie résiduelle dépasse 1 an | D13: 0 | E13: 0 | F13: 0 | G13: 0 | H13: 0
A14: 8 | C14: Fonds propres de catégorie 2 non éligibles en tant que TLAC, car émis par des filiales à des tierces parties | D14: 0 | E14: 0 | F14: 0 | G14: 0 | H14: 0
A15: 9 | C15: Autres ajustements | D15: 0 | E15: 0 | F15: 0 | G15: 0 | H15: 0
A16: 10 | C16: Instruments de fonds propres de catégorie 2 éligibles aux termes du dispositif de TLAC | D16: 3,908 | E16: 3,889 | F16: 4,282 | G16: 3,101 | H16: 3,073
A17: 11 | C17: TLAC liée aux fonds propres réglementaires | D17: 38,433 | E17: 37,488 | F17: 37,400 | G17: 35,328 | H17: 34,793
B18: Obligations sécurisées
A19: 12 | B19: Instruments de TLAC externe émis directement par l'institution financière et subordonnés à des passifs exclus(2) | D19: 13,455 | E19: 11,053 | F19: 11,215 | G19: 12,469 | H19: 12,395
A20: 13 | B20: Instruments de TLAC externe émis directement par l'institution financière et non subordonnés à des passifs exclus, mais satisfaisant toutes les autres exigences du tableau des modalités de la TLAC | D20: 0 | E20: 0 | F20: 0 | G20: 0 | H20: 0
A21: 14 | B21: Dont : montant éligible en tant que TLAC après application des plafonnements | D21: 0 | E21: 0 | F21: 0 | G21: 0 | H21: 0
A22: 15 | B22: Instruments de TLAC externe émis par des véhicules de financement avant le 1er janvier 2022 | D22: 0 | E22: 0 | F22: 0 | G22: 0 | H22: 0
A23: 16 | B23: Engagements éligibles ex ante visant à recapitaliser une IFIS-G en résolution | D23: 0 | E23: 0 | F23: 0 | G23: 0 | H23: 0
A24: 17 | B24: TLAC liée à des instruments de fonds propres non réglementaires avant ajustements | D24: 13,455 | E24: 11,053 | F24: 11,215 | G24: 12,469 | H24: 12,395
B25: Éléments de TLAC non liés aux fonds propres réglementaires : ajustements
A26: 18 | C26: TLAC avant déductions | D26: 51,888 | E26: 48,541 | F26: 48,615 | G26: 47,797 | H26: 47,188
A27: 19 | C27: Déductions des expositions entre des groupes de résolution à points d’entrée multiples correspondant à des éléments éligibles à la TLAC (non applicables aux IFIS-i à point d’entrée unique) | D27: 0 | E27: 0 | F27: 0 | G27: 0 | H27: 0
A28: 20 | C28: Déduction d’investissements dans d’autres propres passifs TLAC | D28: 0 | E28: 0 | F28: 0 | G28: 0 | H28: 0
A29: 21 | C29: Autres ajustements de TLAC | D29: 0 | E29: 0 | F29: 0 | G29: 0 | H29: 0
A30: 22 | B30: TLAC après déductions | D30: 51,888 | E30: 48,541 | F30: 48,615 | G30: 47,797 | H30: 47,188
B31: Actifs pondérés et mesure de l’exposition aux fins du ratio de levier dans le cadre de la TLAC
A32: 23 | B32: Total des actifs pondérés en fonction des risques ajusté selon la manière autorisée par le régime TLAC | D32: 148,854 | E32: 146,087 | F32: 147,079 | G32: 145,372 | H32: 145,004
A33: 24 | B33: Mesure de l’exposition aux fins du ratio de levier | D33: 462,609 | E33: 455,892 | F33: 443,245 | G33: 427,337 | H33: 421,041
B34: Ratios TLAC et coussins de fonds propres
A35: 25 | C35: TLAC (en pourcentage des actifs pondérés en fonction des risques) | D35: 34.9% | E35: 33.2% | F35: 33.1% | G35: 32.9% | H35: 32.5%
A36: 26 | C36: TLAC (en pourcentage de l’exposition aux fins du ratio de levier) | D36: 11.2% | E36: 10.6% | F36: 11.0% | G36: 11.2% | H36: 11.2%
A37: 27 | C37: Ratio de catégorie 1A (en pourcentage des actifs pondérés en fonction des risques) disponible après satisfaction des exigences minimales de fonds propres et de TLAC du groupe de résolution | D37: 16.9% | E37: 15.2% | F37: 15.1% | G37: 14.9% | H37: 14.5%
A38: 28 | C38: Coussin spécifique à l’institution (coussin de conservation des fonds propres + coussin contracyclique + exigence de capacité accrue d'absorption des pertes, en % des actifs pondérés des risques) | D38: 3.5% | E38: 3.5% | F38: 3.5% | G38: 3.5% | H38: 3.5%
A39: 29 | C39: Dont : coussin de conservation des fonds propres | D39: 2.5% | E39: 2.5% | F39: 2.5% | G39: 2.5% | H39: 2.5%
A40: 30 | C40: Dont : coussin contracyclique spécifique à l’institution | D40: 0 | E40: 0 | F40: 0 | G40: 0 | H40: 0
A41: 31 | C41: Dont : coussin applicable aux institutions financières d’importance systémique | D41: 1.0% | E41: 1.0% | F41: 1.0% | G41: 1.0% | H41: 1.0%
A43: (1) | C43: Les données figurant dans ce tableau diffèrent de celles présentées dans le Tableau CC1, car elles font référence au groupe de résolution qui exclut la Caisse Desjardins Ontario Credit Union Inc.
A44: (2) | C44: Émission de 4,8 G$ de créances admissibles à la ligne directrice sur la TLAC au cours des neuf premiers mois de l’année 2025.

Sheet TLAC3
A1: Tableau TLAC3 – Entité de résolution – Rang de créancier au niveau de l’entité juridique
A2: =SUM(D8:O16)+SUM(D23:O31) -> $688,191.44
D3: Au 30 septembre 2025 | J3: Au 30 juin 2025
D4: Rang de créancier | J4: Rang de créancier
D5: 1 | E5: 2 | F5: 3 | G5: 4 | H5: 5 | I5: Somme de 1 à 5 | J5: 1 | K5: 2 | L5: 3 | M5: 4 | N5: 5 | O5: Somme de 1 à 5
B6: (en millions de dollars) | D6: (rang le plus bas) | H6: (rang le plus élevé) | J6: (rang le plus bas) | N6: (rang le plus élevé)
A7: 1 | B7: Description du rang du créancier | D7: Parts de capital | E7: Actions privilégiées | F7: Dettes subordonnées | G7: Instrument de recapitalisation interne | H7: Autres passifs excluant les instruments de recapitalisation interne(1) | J7: Parts de capital | K7: Actions privilégiées | L7: Dettes subordonnées | M7: Instrument de recapitalisation interne | N7: Autres passifs excluant les instruments de recapitalisation interne(1)
A8: 2 | B8: Fonds propres totaux et passifs nets de l'atténuation du risque de crédit(2) | D8: 4,616 | E8: 0 | F8: 4,797 | G8: 13,484 | H8: s. o. | I8: 22,897 | J8: 4,716 | K8: 0 | L8: 4,818 | M8: 11,076 | N8: s. o. | O8: 20,610
A9: 3 | B9: Sous-groupe de la ligne 2 couvrant les passifs exclus | D9: 0 | E9: 0 | F9: 0 | G9: 0 | H9: s. o. | I9: 0 | J9: 0 | K9: 0 | L9: 0 | M9: 0 | N9: s. o. | O9: 0
A10: 4 | B10: Fonds propres totaux et passifs, moins les passifs exclus (ligne 2 moins ligne 3) | D10: 4,616 | E10: 0 | F10: 4,797 | G10: 13,484 | H10: s. o. | I10: 22,897 | J10: 4,716 | K10: 0 | L10: 4,818 | M10: 11,076 | N10: s. o. | O10: 20,610
A11: 5 | B11: Sous-groupe de la ligne 4 potentiellement éligible en tant que TLAC | D11: 4,616 | E11: 0 | F11: 4,797 | G11: 13,484 | H11: s. o. | I11: 22,897 | J11: 4,716 | K11: 0 | L11: 4,818 | M11: 11,076 | N11: s. o. | O11: 20,610
A12: 6 | B12: Sous-groupe de la ligne 5 dont l'échéance résiduelle est ≥ 1 an, mais ˂ 2 ans | D12: 0 | E12: 0 | F12: 0 | G12: 3,756 | H12: s. o. | I12: 3,756 | J12: 0 | K12: 0 | L12: 0 | M12: 3,492 | N12: s. o. | O12: 3,492
A13: 7 | B13: Sous-groupe de la ligne 5 dont l'échéance résiduelle est ≥ 2 ans, mais ˂ 5 ans | D13: 0 | E13: 0 | F13: 0 | G13: 8,015 | H13: s. o. | I13: 8,015 | J13: 0 | K13: 0 | L13: 0 | M13: 7,584 | N13: s. o. | O13: 7,584
A14: 8 | B14: Sous-groupe de la ligne 5 dont l'échéance résiduelle est ≥ 5 ans, mais ˂ 10 ans | D14: 0 | E14: 0 | F14: 4,797 | G14: 1,713 | H14: s. o. | I14: 6,510 | J14: 0 | K14: 0 | L14: 4,818 | M14: 0 | N14: s. o. | O14: 4,818
A15: 9 | B15: Sous-groupe de la ligne 5 dont l'échéance résiduelle est ≥ 10 ans, hors titres perpétuels | D15: 0 | E15: 0 | F15: 0 | G15: 0 | H15: s. o. | I15: 0 | J15: 0 | K15: 0 | L15: 0 | M15: 0 | N15: s. o. | O15: 0
A16: 10 | B16: Sous-groupe de la ligne 5 couvrant les titres perpétuels | D16: 4,616 | E16: 0 | F16: 0 | G16: 0 | H16: s. o. | I16: 4,616 | J16: 4,716 | K16: 0 | L16: 0 | M16: 0 | N16: s. o. | O16: 4,716
D18: Au 31 mars 2025 | J18: Au 31 décembre 2024
D19: Rang de créancier | J19: Rang de créancier
D20: 1 | E20: 2 | F20: 3 | G20: 4 | H20: 5 | I20: Somme de 1 à 5 | J20: 1 | K20: 2 | L20: 3 | M20: 4 | N20: 5 | O20: Somme de 1 à 5
B21: (en millions de dollars) | D21: (rang le plus bas) | H21: (rang le plus élevé) | J21: (rang le plus bas) | N21: (rang le plus élevé)
A22: 1 | B22: Description du rang du créancier | D22: Parts de capital | E22: Actions privilégiées | F22: Dettes subordonnées | G22: Instrument de recapitalisation interne | H22: Autres passifs excluant les instruments de recapitalisation interne(1) | J22: Parts de capital | K22: Actions privilégiées | L22: Dettes subordonnées | M22: Instrument de recapitalisation interne | N22: Autres passifs excluant les instruments de recapitalisation interne(1)
A23: 2 | B23: Fonds propres totaux et passifs nets de l'atténuation du risque de crédit(2) | D23: 4,716 | E23: 0 | F23: 5,250 | G23: 11,240 | H23: s. o. | I23: 21,206 | J23: 4,817 | K23: 0 | L23: 4,000 | M23: 12,494 | N23: s. o. | O23: 21,311
A24: 3 | B24: Sous-groupe de la ligne 2 couvrant les passifs exclus | D24: 0 | E24: 0 | F24: 0 | G24: 0 | H24: s. o. | I24: 0 | J24: 0 | K24: 0 | L24: 0 | M24: 0 | N24: s. o. | O24: 0
A25: 4 | B25: Fonds propres totaux et passifs, moins les passifs exclus (ligne 2 moins ligne 3) | D25: 4,716 | E25: 0 | F25: 5,250 | G25: 11,240 | H25: s. o. | I25: 21,206 | J25: 4,817 | K25: 0 | L25: 4,000 | M25: 12,494 | N25: s. o. | O25: 21,311
A26: 5 | B26: Sous-groupe de la ligne 4 potentiellement éligible en tant que TLAC | D26: 4,716 | E26: 0 | F26: 5,250 | G26: 11,240 | H26: s. o. | I26: 21,206 | J26: 4,817 | K26: 0 | L26: 4,000 | M26: 12,494 | N26: s. o. | O26: 21,311
A27: 6 | B27: Sous-groupe de la ligne 5 dont l'échéance résiduelle est ≥ 1 an, mais ˂ 2 ans | D27: 0 | E27: 0 | F27: 0 | G27: 2,524 | H27: s. o. | I27: 2,524 | J27: 0 | K27: 0 | L27: 0 | M27: 3,839 | N27: s. o. | O27: 3,839
A28: 7 | B28: Sous-groupe de la ligne 5 dont l'échéance résiduelle est ≥ 2 ans, mais ˂ 5 ans | D28: 0 | E28: 0 | F28: 0 | G28: 8,716 | H28: s. o. | I28: 8,716 | J28: 0 | K28: 0 | L28: 0 | M28: 8,655 | N28: s. o. | O28: 8,655
A29: 8 | B29: Sous-groupe de la ligne 5 dont l'échéance résiduelle est ≥ 5 ans, mais ˂ 10 ans | D29: 0 | E29: 0 | F29: 5,250 | G29: 0 | H29: s. o. | I29: 5,250 | J29: 0 | K29: 0 | L29: 4,000 | M29: 0 | N29: s. o. | O29: 4,000
A30: 9 | B30: Sous-groupe de la ligne 5 dont l'échéance résiduelle est ≥ 10 ans, hors titres perpétuels | D30: 0 | E30: 0 | F30: 0 | G30: 0 | H30: s. o. | I30: 0 | J30: 0 | K30: 0 | L30: 0 | M30: 0 | N30: s. o. | O30: 0
A31: 10 | B31: Sous-groupe de la ligne 5 couvrant les titres perpétuels | D31: 4,716 | E31: 0 | F31: 0 | G31: 0 | H31: s. o. | I31: 4,716 | J31: 4,817 | K31: 0 | L31: 0 | M31: 0 | N31: s. o. | O31: 4,817
A33: =SUM(D38:I46) -> 169,904.00 | D33: Au 30 septembre 2024
D34: Rang de créancier
D35: 1 | E35: 2 | F35: 3 | G35: 4 | H35: 5 | I35: Somme de 1 à 5
B36: (en millions de dollars) | D36: (rang le plus bas) | H36: (rang le plus élevé)
A37: 1 | B37: Description du rang du créancier | D37: Parts de capital | E37: Actions privilégiées | F37: Dettes subordonnées | G37: Instrument de recapitalisation interne | H37: Autres passifs excluant les instruments de recapitalisation interne(1)
A38: 2 | B38: Fonds propres totaux et passifs nets de l'atténuation du risque de crédit(2) | D38: 4,816 | E38: 0 | F38: 4,000 | G38: 12,422 | H38: s. o. | I38: 21,238
A39: 3 | B39: Sous-groupe de la ligne 2 couvrant les passifs exclus | D39: 0 | E39: 0 | F39: 0 | G39: 0 | H39: s. o. | I39: 0
A40: 4 | B40: Fonds propres totaux et passifs, moins les passifs exclus (ligne 2 moins ligne 3) | D40: 4,816 | E40: 0 | F40: 4,000 | G40: 12,422 | H40: s. o. | I40: 21,238
A41: 5 | B41: Sous-groupe de la ligne 4 potentiellement éligible en tant que TLAC | D41: 4,816 | E41: 0 | F41: 4,000 | G41: 12,422 | H41: s. o. | I41: 21,238
A42: 6 | B42: Sous-groupe de la ligne 5 dont l'échéance résiduelle est ≥ 1 an, mais ˂ 2 ans | D42: 0 | E42: 0 | F42: 0 | G42: 3,946 | H42: s. o. | I42: 3,946
A43: 7 | B43: Sous-groupe de la ligne 5 dont l'échéance résiduelle est ≥ 2 ans, mais ˂ 5 ans | D43: 0 | E43: 0 | F43: 0 | G43: 8,476 | H43: s. o. | I43: 8,476
A44: 8 | B44: Sous-groupe de la ligne 5 dont l'échéance résiduelle est ≥ 5 ans, mais ˂ 10 ans | D44: 0 | E44: 0 | F44: 4,000 | G44: 0 | H44: s. o. | I44: 4,000
A45: 9 | B45: Sous-groupe de la ligne 5 dont l'échéance résiduelle est ≥ 10 ans, hors titres perpétuels | D45: 0 | E45: 0 | F45: 0 | G45: 0 | H45: s. o. | I45: 0
A46: 10 | B46: Sous-groupe de la ligne 5 couvrant les titres perpétuels | D46: 4,816 | E46: 0 | F46: 0 | G46: 0 | H46: s. o. | I46: 4,816
A48: (1) | C48: Le Mouvement Desjardins ne complète pas cette colonne à ce moment-ci, à l'instar des banques canadiennes.
A49: (2) | C49: Les parts de capital sont présentées à leur valeur comptable, les dettes subordonnées et les instruments de recapitalisation interne sont présentés à leur valeur nominale.

Sheet LI1
A1: Tableau LI1 – Différences entre les périmètres de consolidation comptable et réglementaire et correspondance entre les états financiers et les catégories de risques réglementaires
A2: Au 30 septembre 2025
A4: =SUM(C9:I28) -> 2843970 | C4: a | D4: b | E4: c | F4: d | G4: e | H4: f | I4: g
A6: =SUM(C30:I52) -> 4360637 | C6: Valeurs comptables d'après les états financiers publiés | D6: Valeurs comptables sur le périmètre de consolidation réglementaire | E6: Valeurs comptables des éléments(1)
A7: (en millions de dollars) | E7: Soumis au cadre du risque de crédit | F7: Soumis au cadre du risque de contrepartie | G7: Soumis au cadre de titrisation | H7: Soumis au cadre du risque de marché | I7: Non soumis aux exigences de fonds propres ou soumis à déduction des fonds propres
A8: Actif
A9: Trésorerie et dépôts auprès d'institutions financières | C9: 7,090 | D9: 5,772 | E9: 5,772 | F9: 0 | G9: 0 | H9: 0 | I9: 0
A10: Titres à la juste valeur par le biais du résultat net | C10: 47,019 | D10: 18,244 | E10: 51 | F10: 0 | G10: 128 | H10: 18,065 | I10: 0
A11: Titres à la juste valeur par le biais des autres éléments du résultat global | C11: 60,877 | D11: 52,697 | E11: 52,663 | F11: 0 | G11: 0 | H11: 0 | I11: 34
A12: Titres au coût amorti | C12: 42 | D12: 29 | E12: 14 | F12: 0 | G12: 15 | H12: 0 | I12: 0
A13: Valeurs mobilières empruntées ou acquises en vertu de conventions de revente | C13: 24,506 | D13: 26,621 | E13: 0 | F13: 26,621 | G13: 0 | H13: 22,045 | I13: 0
A14: Prêts, déduction faite de la provision pour pertes de crédit | C14: 312,251 | D14: 310,465 | E14: 310,215 | F14: 0 | G14: 0 | H14: 0 | I14: 250
A15: Actifs nets des fonds distincts | C15: 32,663 | D15: 0 | E15: 0 | F15: 0 | G15: 0 | H15: 0 | I15: 0
A16: Instruments financiers dérivés | C16: 9,984 | D16: 9,914 | E16: 0 | F16: 9,914 | G16: 0 | H16: 739 | I16: 0
A17: Sommes à recevoir des clients, courtiers et institutions financières | C17: 3,606 | D17: 3,373 | E17: 3,373 | F17: 0 | G17: 0 | H17: 0 | I17: 0
A18: Actifs des contrats de réassurance | C18: 1,832 | D18: 0 | E18: 0 | F18: 0 | G18: 0 | H18: 0 | I18: 0
A19: Actifs au titre de droits d'utilisation | C19: 434 | D19: 661 | E19: 661 | F19: 0 | G19: 0 | H19: 0 | I19: 0
A20: Immeubles de placement | C20: 774 | D20: 1 | E20: 1 | F20: 0 | G20: 0 | H20: 0 | I20: 0
A21: Immobilisations corporelles | C21: 1,432 | D21: 1,034 | E21: 1,034 | F21: 0 | G21: 0 | H21: 0 | I21: 0
A22: Goodwill | C22: 596 | D22: 37 | E22: 0 | F22: 0 | G22: 0 | H22: 0 | I22: 596
A23: Immobilisations incorporelles | C23: 1,254 | D23: 480 | E23: 0 | F23: 0 | G23: 0 | H23: 0 | I23: 1,254
A24: Participations dans les entreprises mises en équivalence | C24: 1,326 | D24: 8,577 | E24: 4,000 | F24: 0 | G24: 0 | H24: 0 | I24: 4,577
A25: Actifs nets au titre des régimes à prestations définies | C25: 1,388 | D25: 1,091 | E25: 0 | F25: 0 | G25: 0 | H25: 0 | I25: 1,091
A26: Actifs d’impôt différé | C26: 962 | D26: 641 | E26: 641 | F26: 0 | G26: 0 | H26: 0 | I26: 0
A27: Autres | C27: 3,820 | D27: 3,369 | E27: 3,369 | F27: 0 | G27: 0 | H27: 0 | I27: 0
A28: Total de l'actif | C28: 511,856 | D28: 443,006 | E28: 381,794 | F28: 36,535 | G28: 143 | H28: 40,849 | I28: 7,802
A29: Passif
A30: Dépôts | C30: 324,039 | D30: 325,171 | E30: 0 | F30: 0 | G30: 0 | H30: 0 | I30: 325,171
A31: Passifs des contrats d'assurance | C31: 35,123 | D31: 0 | E31: 0 | F31: 0 | G31: 0 | H31: 0 | I31: 0
A32: Engagements relatifs aux valeurs mobilières vendues à découvert | C32: 17,462 | D32: 17,123 | E32: 0 | F32: 17,123 | G32: 0 | H32: 16,618 | I32: 0
A33: Engagements relatifs aux valeurs mobilières prêtées ou vendues en vertu de conventions de rachat | C33: 23,678 | D33: 23,229 | E33: 0 | F33: 0 | G33: 0 | H33: 20,567 | I33: 0
A34: Instruments financiers dérivés | C34: 7,402 | D34: 7,152 | E34: 0 | F34: 7,152 | G34: 0 | H34: 494 | I34: 0
A35: Sommes à payer aux clients, courtiers et institutions financières | C35: 14,157 | D35: 13,799 | E35: 0 | F35: 0 | G35: 0 | H35: 0 | I35: 13,799
A36: Obligations locatives | C36: 527 | D36: 781 | E36: 0 | F36: 0 | G36: 0 | H36: 0 | I36: 781
A37: Passifs des contrats de réassurance | C37: 38 | D37: 0 | E37: 0 | F37: 0 | G37: 0 | H37: 0 | I37: 0
A38: Passif net des fonds distincts des contrats d'investissement | C38: 29,001 | D38: 0 | E38: 0 | F38: 0 | G38: 0 | H38: 0 | I38: 0
A39: Passifs nets au titre des régimes à prestations définies | C39: 674 | D39: 519 | E39: 0 | F39: 0 | G39: 0 | H39: 0 | I39: 519
A40: Passifs d'impôt différé | C40: 604 | D40: 388 | E40: 0 | F40: 0 | G40: 0 | H40: 0 | I40: 388
A41: Autres | C41: 12,378 | D41: 8,792 | E41: 0 | F41: 0 | G41: 0 | H41: 0 | I41: 8,792
A42: Obligations subordonnées | C42: 4,862 | D42: 4,862 | E42: 0 | F42: 0 | G42: 0 | H42: 0 | I42: 4,862
A43: Total du passif | C43: 469,945 | D43: 401,816 | E43: 0 | F43: 24,275 | G43: 0 | H43: 37,679 | I43: 354,312
A44: Capitaux propres
A45: Capital social | C45: 4,582 | D45: 4,582 | E45: 0 | F45: 0 | G45: 0 | H45: 0 | I45: 4,582
A46: Excédents non répartis | C46: 4,824 | D46: 4,711 | E46: 0 | F46: 0 | G46: 0 | H46: 0 | I46: 4,711
A47: Cumul des autres éléments du résultat global | C47: 842 | D47: 842 | E47: 0 | F47: 0 | G47: 0 | H47: 0 | I47: 842
A48: Réserves | C48: 31,055 | D48: 31,055 | E48: 0 | F48: 0 | G48: 0 | H48: 0 | I48: 31,055
A49: Capitaux propres - Part revenant au Groupe | C49: 41,303 | D49: 41,190 | E49: 0 | F49: 0 | G49: 0 | H49: 0 | I49: 41,190
A50: Participations ne donnant pas le contrôle | C50: 608 | D50: 0 | E50: 0 | F50: 0 | G50: 0 | H50: 0 | I50: 0
A51: Total des capitaux propres | C51: 41,911 | D51: 41,190 | E51: 0 | F51: 0 | G51: 0 | H51: 0 | I51: 41,190
A52: Total du passif et des capitaux propres | C52: 511,856 | D52: 443,006 | E52: 0 | F52: 24,275 | G52: 0 | H52: 37,679 | I52: 395,502
A53: (1) | B53: Les montants des colonnes c à g ne sont pas nécessairement égaux à ceux de la colonne b, certains éléments pouvant être soumis à des exigences de fonds propres réglementaires au titre de plusieurs catégories de risques.

Sheet LI2
A1: Tableau LI2 – Principales sources d’écarts entre les valeurs comptables et réglementaires des expositions dans les états financiers
A2: Au 30 septembre 2025
A4: =SUM(D8:H19) -> 3192721 | D4: a | E4: b | F4: c | G4: d | H4: e
D6: Total | E6: Éléments soumis au(1)
B7: (en millions de dollars) | E7: Cadre du risque de crédit | F7: Cadre de titrisation | G7: Cadre du risque de contrepartie | H7: Cadre du risque de marché
A8: 1 | B8: Valeur comptable de l'actif sur le périmètre de consolidation réglementaire (d'après le tableau LI1) | D8: 435,204 | E8: 381,794 | F8: 143 | G8: 36,535 | H8: 40,849
A9: 2 | B9: Valeur comptable du passif sur le périmètre de consolidation réglementaire (d'après le tableau LI1) | D9: 47,504 | E9: 0 | F9: 0 | G9: 24,275 | H9: 37,679
A10: 3 | B10: Total net sur le périmètre de consolidation réglementaire | D10: 387,700 | E10: 381,794 | F10: 143 | G10: 12,260 | H10: 3,170
A11: 4 | B11: Hors bilan(2) | D11: 153,529 | E11: 73,591 | F11: 0 | G11: 0 | H11: 0
A12: 5 | B12: Écarts de valorisation | D12: 0 | E12: 0 | F12: 0 | G12: 0 | H12: 0
A13: 6 | B13: Écarts découlant des règles de compensation différentes, autres que ceux déjà inscrits à la ligne 2 | D13: (2,807) | E13: (328) | F13: 0 | G13: (2,479) | H13: 0
A14: 7 | B14: Écarts découlant de la prise en compte de provisions | D14: 782 | E14: 782 | F14: 0 | G14: 0 | H14: 0
A15: 8 | B15: Écarts découlant des filtres prudentiels | D15: 0 | E15: 0 | F15: 0 | G15: 0 | H15: 0
A16: 9 | B16: Ajustement au titre des dérivés | D16: 8,870 | E16: 0 | F16: 0 | G16: 8,870 | H16: 0
A17: 10 | B17: Expositions liées aux opérations de financement par titres(3) | D17: 34,246 | E17: 0 | F17: 0 | G17: 34,246 | H17: 0
A18: 11 | B18: Autres écarts | D18: 0 | E18: 0 | F18: 0 | G18: 0 | H18: 0
A19: 12 | B19: Valeur réglementaire des expositions(4) | D19: 582,320 | E19: 455,839 | F19: 143 | G19: 52,897 | H19: 3,170
B21: (1) | C21: Les montants des colonnes b à e ne sont pas nécessairement égaux à ceux de la colonne a, certains éléments pouvant être soumis à des exigences de fonds propres réglementaires au titre de plusieurs catégories de risques.
B22: (2) | C22: L'exposition initiale est présentée à la colonne a, les colonnes b à e présentent les montants après application des facteurs de conversion en équivalent-crédit lorsqu'applicable.
B23: (3) | C23: Étant donné que les expositions liées aux opérations de financement par titres sont déduites à la ligne 2, un ajustement est requis afin d'arriver à l'exposition en cas de défaut.
B24: (4) | C24: Montant agrégé servant au calcul des APR pour chacune des catégories de risques.

Sheet CR1
A1: Tableau CR1 – Qualité de crédit des actifs
D2: a | E2: b | F2: c | G2: d | H2: e | I2: f | J2: g | K2: a | L2: b | M2: c | N2: d | O2: e | P2: f | Q2: g
A3: =SUM(D6:Q10) -> 4098954 | D3: Au 30 septembre 2025 | K3: Au 30 juin 2025
D4: Valeurs comptables brutes des | F4: Provisions / dépréciations | G4: Provisions spécifiques | H4: Provisions générales | I4: Provisions pour pertes attendues des expositions en approches NI | J4: Valeurs nettes (a + b - c) | K4: Valeurs comptables brutes des | M4: Provisions / dépréciations | N4: Provisions spécifiques | O4: Provisions générales | P4: Provisions pour pertes attendues des expositions en approches NI | Q4: Valeurs nettes (a + b - c)
B5: Type d'exposition (en millions de dollars) | D5: Expositions en défaut | E5: Expositions non défaillantes | K5: Expositions en défaut | L5: Expositions non défaillantes
A6: 1 | B6: Prêts | D6: 3,356 | E6: 308,389 | F6: 1,530 | G6: 800 | H6: 730 | I6: 1,495 | J6: 310,215 | K6: 3,138 | L6: 302,570 | M6: 1,510 | N6: 764 | O6: 746 | P6: 1,486 | Q6: 304,198
A7: 2 | B7: Titres de créance | D7: 0 | E7: 58,500 | F7: 0 | G7: 0 | H7: 0 | I7: 0 | J7: 58,500 | K7: 0 | L7: 58,523 | M7: 0 | N7: 0 | O7: 0 | P7: 0 | Q7: 58,523
B8: Autres investissements | D8: 0 | E8: 343 | F8: 0 | G8: 0 | H8: 0 | I8: 0 | J8: 343 | K8: 0 | L8: 385 | M8: 0 | N8: 0 | O8: 0 | P8: 0 | Q8: 385
A9: 3 | B9: Expositions hors bilan | D9: 431 | E9: 145,111 | F9: 115 | G9: 0 | H9: 115 | I9: 110 | J9: 145,427 | K9: 415 | L9: 140,337 | M9: 122 | N9: 1 | O9: 121 | P9: 113 | Q9: 140,630
A10: 4 | B10: Total | D10: 3,787 | E10: 512,343 | F10: 1,645 | G10: 800 | H10: 845 | I10: 1,605 | J10: 514,485 | K10: 3,553 | L10: 501,815 | M10: 1,632 | N10: 765 | O10: 867 | P10: 1,599 | Q10: 503,736
D12: a | E12: b | F12: c | G12: d | H12: e | I12: f | J12: g | K12: a | L12: b | M12: c | N12: d | O12: e | P12: f | Q12: g
A13: =SUM(D16:Q20) -> 3947800 | D13: Au 31 mars 2025 | K13: Au 31 décembre 2024
D14: Valeurs comptables brutes des | F14: Provisions / dépréciations | G14: Provisions spécifiques | H14: Provisions générales | I14: Provisions pour pertes attendues des expositions en approches NI | J14: Valeurs nettes (a + b - c) | K14: Valeurs comptables brutes des | M14: Provisions / dépréciations | N14: Provisions spécifiques | O14: Provisions générales | P14: Provisions pour pertes attendues des expositions en approches NI | Q14: Valeurs nettes (a + b - c)
B15: Type d'exposition (en millions de dollars) | D15: Expositions en défaut | E15: Expositions non défaillantes | K15: Expositions en défaut | L15: Expositions non défaillantes
A16: 1 | B16: Prêts | D16: 3,135 | E16: 292,521 | F16: 1,403 | G16: 665 | H16: 738 | I16: 1,432 | J16: 294,253 | K16: 2,906 | L16: 285,903 | M16: 1,320 | N16: 615 | O16: 705 | P16: 1,328 | Q16: 287,489
A17: 2 | B17: Titres de créance | D17: 0 | E17: 58,333 | F17: 0 | G17: 0 | H17: 0 | I17: 0 | J17: 58,333 | K17: 0 | L17: 53,521 | M17: 0 | N17: 0 | O17: 0 | P17: 0 | Q17: 53,521
B18: Autres investissements | D18: 0 | E18: 395 | F18: 0 | G18: 0 | H18: 0 | I18: 0 | J18: 395 | K18: 0 | L18: 379 | M18: 0 | N18: 0 | O18: 0 | P18: 0 | Q18: 379
A19: 3 | B19: Expositions hors bilan | D19: 340 | E19: 143,488 | F19: 118 | G19: 0 | H19: 118 | I19: 111 | J19: 143,710 | K19: 406 | L19: 142,665 | M19: 99 | N19: 0 | O19: 99 | P19: 105 | Q19: 142,972
A20: 4 | B20: Total | D20: 3,475 | E20: 494,737 | F20: 1,521 | G20: 665 | H20: 856 | I20: 1,543 | J20: 496,691 | K20: 3,312 | L20: 482,468 | M20: 1,419 | N20: 615 | O20: 804 | P20: 1,433 | Q20: 484,361
D22: a | E22: b | F22: c | G22: d | H22: e | I22: f | J22: g
A23: =SUM(D26:Q30) -> 1896276 | D23: Au 30 septembre 2024
D24: Valeurs comptables brutes des | F24: Provisions / dépréciations | G24: Provisions spécifiques | H24: Provisions générales | I24: Provisions pour pertes attendues des expositions en approches NI | J24: Valeurs nettes (a + b - c)
B25: Type d'exposition (en millions de dollars) | D25: Expositions en défaut | E25: Expositions non défaillantes
A26: 1 | B26: Prêts | D26: 2,930 | E26: 278,748 | F26: 1,162 | G26: 527 | H26: 635 | I26: 1,279 | J26: 280,516
A27: 2 | B27: Titres de créance | D27: 0 | E27: 50,967 | F27: 0 | G27: 0 | H27: 0 | I27: 0 | J27: 50,967
B28: Autres investissements | D28: 0 | E28: 377 | F28: 0 | G28: 0 | H28: 0 | I28: 0 | J28: 377
A29: 3 | B29: Expositions hors bilan | D29: 398 | E29: 139,327 | F29: 92 | G29: 0 | H29: 92 | I29: 111 | J29: 139,633
A30: 4 | B30: Total | D30: 3,328 | E30: 469,419 | F30: 1,254 | G30: 527 | H30: 727 | I30: 1,390 | J30: 471,493

Sheet CR2
A1: Tableau CR2 – Variations des stocks de prêts et de titres de créance en défaut
A3: =SUM(C6:Q11) -> 61,860.00 | B3: 34216 | C3: Pour la période de trois mois terminée le
B4: 61860 | C4: 30 septembre 2025 | F4: 30 juin 2025 | I4: 31 mars 2025 | L4: 31 décembre 2024 | O4: 30 septembre 2024
B5: (en millions de dollars) | C5: Prêts | D5: Titres de créances | E5: Total | F5: Prêts | G5: Titres de créances | H5: Total | I5: Prêts | J5: Titres de créances | K5: Total | L5: Prêts | M5: Titres de créances | N5: Total | O5: Prêts | P5: Titres de créances | Q5: Total
A6: 1 | B6: Prêts et titres de créance en défaut à la fin de la période précédente | C6: 3,138 | D6: 0 | E6: 3,138 | F6: 3,135 | G6: 0 | H6: 3,135 | I6: 2,906 | J6: 0 | K6: 2,906 | L6: 2,930 | M6: 0 | N6: 2,930 | O6: 2,728 | P6: 0 | Q6: 2,728
A7: 2 | B7: Défauts sur prêts et titres de créance survenus depuis la dernière période | C7: 888 | D7: 0 | E7: 888 | F7: 923 | G7: 0 | H7: 923 | I7: 1,081 | J7: 0 | K7: 1,081 | L7: 938 | M7: 0 | N7: 938 | O7: 1,035 | P7: 0 | Q7: 1,035
A8: 3 | B8: Retours à un état non défaillant | C8: (572) | D8: 0 | E8: (572) | F8: (819) | G8: 0 | H8: (819) | I8: (751) | J8: 0 | K8: (751) | L8: (856) | M8: 0 | N8: (856) | O8: (738) | P8: 0 | Q8: (738)
A9: 4 | B9: Montants annulés | C9: (97) | D9: 0 | E9: (97) | F9: (102) | G9: 0 | H9: (102) | I9: (101) | J9: 0 | K9: (101) | L9: (109) | M9: 0 | N9: (109) | O9: (95) | P9: 0 | Q9: (95)
A10: 5 | B10: Autres variations | C10: (1) | D10: 0 | E10: (1) | F10: 1 | G10: 0 | H10: 1 | I10: 0 | J10: 0 | K10: 0 | L10: 3 | M10: 0 | N10: 3 | O10: 0 | P10: 0 | Q10: 0
A11: 6 | B11: Prêts et titres de créance en défaut à la fin de la période considérée (1 + 2 - 3 - 4 ± 5) | C11: 3,356 | D11: 0 | E11: 3,356 | F11: 3,138 | G11: 0 | H11: 3,138 | I11: 3,135 | J11: 0 | K11: 3,135 | L11: 2,906 | M11: 0 | N11: 2,906 | O11: 2,930 | P11: 0 | Q11: 2,930

Sheet CR3
A1: Tableau CR3 – Aperçu des techniques d'atténuation du risque de crédit (ARC)
D3: a | E3: b | F3: c | G3: d | H3: e | I3: f | J3: g
A5: =SUM(D7:J11) -> 884217 | D5: Au 30 septembre 2025
B6: (en millions de dollars) | D6: Expositions non garanties (valeurs comptables brutes) | E6: Expositions garanties par des sûretés | F6: Expositions garanties par des sûretés – Montant couvert | G6: Expositions garanties par des garanties financières | H6: Expositions garanties par des garanties financières – Montant couvert | I6: Expositions garanties par des dérivés de crédit | J6: Expositions garanties par des dérivés de crédit – Montant couvert
A7: 1 | B7: Prêts | D7: 241,434 | E7: 69,234 | F7: 68,231 | G7: 1,700 | H7: 550 | I7: 0 | J7: 0
A8: 2 | B8: Titres de créance | D8: 58,500 | E8: 0 | F8: 0 | G8: 0 | H8: 0 | I8: 0 | J8: 0
B9: Autres investissements | D9: 343 | E9: 0 | F9: 0 | G9: 0 | H9: 0 | I9: 0 | J9: 0
A10: 3 | B10: Total | D10: 300,277 | E10: 69,234 | F10: 68,231 | G10: 1,700 | H10: 550 | I10: 0 | J10: 0
A11: 4 | B11: Dont en défaut | D11: 2,560 | E11: 853 | F11: 789 | G11: 24 | H11: 7 | I11: 0 | J11: 0
D13: a | E13: b | F13: c | G13: d | H13: e | I13: f | J13: g
D14: Au 30 juin 2025
A15: =SUM(D16:J20) -> 867491 | B15: (en millions de dollars) | D15: Expositions non garanties (valeurs comptables brutes) | E15: Expositions garanties par des sûretés | F15: Expositions garanties par des sûretés – Montant couvert | G15: Expositions garanties par des garanties financières | H15: Expositions garanties par des garanties financières – Montant couvert | I15: Expositions garanties par des dérivés de crédit | J15: Expositions garanties par des dérivés de crédit – Montant couvert
A16: 1 | B16: Prêts | D16: 237,674 | E16: 66,969 | F16: 65,964 | G16: 1,666 | H16: 560 | I16: 0 | J16: 0
A17: 2 | B17: Titres de créance | D17: 58,523 | E17: 0 | F17: 0 | G17: 0 | H17: 0 | I17: 0 | J17: 0
B18: Autres investissements | D18: 385 | E18: 0 | F18: 0 | G18: 0 | H18: 0 | I18: 0 | J18: 0
A19: 3 | B19: Total | D19: 296,582 | E19: 66,969 | F19: 65,964 | G19: 1,666 | H19: 560 | I19: 0 | J19: 0
A20: 4 | B20: Dont en défaut | D20: 2,345 | E20: 845 | F20: 785 | G20: 26 | H20: 8 | I20: 0 | J20: 0
D22: a | E22: b | F22: c | G22: d | H22: e | I22: f | J22: g
D23: Au 31 mars 2025
A24: =SUM(D25:J29) -> 840039 | B24: (en millions de dollars) | D24: Expositions non garanties (valeurs comptables brutes) | E24: Expositions garanties par des sûretés | F24: Expositions garanties par des sûretés – Montant couvert | G24: Expositions garanties par des garanties financières | H24: Expositions garanties par des garanties financières – Montant couvert | I24: Expositions garanties par des dérivés de crédit | J24: Expositions garanties par des dérivés de crédit – Montant couvert
A25: 1 | B25: Prêts | D25: 231,284 | E25: 63,307 | F25: 62,376 | G25: 1,737 | H25: 593 | I25: 0 | J25: 0
A26: 2 | B26: Titres de créance | D26: 58,333 | E26: 0 | F26: 0 | G26: 0 | H26: 0 | I26: 0 | J26: 0
B27: Autres investissements | D27: 395 | E27: 0 | F27: 0 | G27: 0 | H27: 0 | I27: 0 | J27: 0
A28: 3 | B28: Total | D28: 290,012 | E28: 63,307 | F28: 62,376 | G28: 1,737 | H28: 593 | I28: 0 | J28: 0
A29: 4 | B29: Dont en défaut | D29: 2,346 | E29: 830 | F29: 781 | G29: 24 | H29: 8 | I29: 0 | J29: 0
D31: a | E31: b | F31: c | G31: d | H31: e | I31: f | J31: g
D32: Au 31 décembre 2024
A33: =SUM(D34:J38) -> 811115 | B33: (en millions de dollars) | D33: Expositions non garanties (valeurs comptables brutes) | E33: Expositions garanties par des sûretés | F33: Expositions garanties par des sûretés – Montant couvert | G33: Expositions garanties par des garanties financières | H33: Expositions garanties par des garanties financières – Montant couvert | I33: Expositions garanties par des dérivés de crédit | J33: Expositions garanties par des dérivés de crédit – Montant couvert
A34: 1 | B34: Prêts | D34: 227,094 | E34: 60,733 | F34: 59,788 | G34: 1,629 | H34: 607 | I34: 0 | J34: 0
A35: 2 | B35: Titres de créance | D35: 53,521 | E35: 0 | F35: 0 | G35: 0 | H35: 0 | I35: 0 | J35: 0
B36: Autres investissements | D36: 379 | E36: 0 | F36: 0 | G36: 0 | H36: 0 | I36: 0 | J36: 0
A37: 3 | B37: Total | D37: 280,994 | E37: 60,733 | F37: 59,788 | G37: 1,629 | H37: 607 | I37: 0 | J37: 0
A38: 4 | B38: Dont en défaut | D38: 2,255 | E38: 694 | F38: 646 | G38: 13 | H38: 5 | I38: 0 | J38: 0
D40: a | E40: b | F40: c | G40: d | H40: e | I40: f | J40: g
D41: Au 30 septembre 2024
A42: =SUM(D43:J47) -> 786389 | B42: (en millions de dollars) | D42: Expositions non garanties (valeurs comptables brutes) | E42: Expositions garanties par des sûretés | F42: Expositions garanties par des sûretés – Montant couvert | G42: Expositions garanties par des garanties financières | H42: Expositions garanties par des garanties financières – Montant couvert | I42: Expositions garanties par des dérivés de crédit | J42: Expositions garanties par des dérivés de crédit – Montant couvert
A43: 1 | B43: Prêts | D43: 223,125 | E43: 57,674 | F43: 56,742 | G43: 1,802 | H43: 649 | I43: 0 | J43: 0
A44: 2 | B44: Titres de créance | D44: 50,967 | E44: 0 | F44: 0 | G44: 0 | H44: 0 | I44: 0 | J44: 0
B45: Autres investissements | D45: 377 | E45: 0 | F45: 0 | G45: 0 | H45: 0 | I45: 0 | J45: 0
A46: 3 | B46: Total | D46: 274,469 | E46: 57,674 | F46: 56,742 | G46: 1,802 | H46: 649 | I46: 0 | J46: 0
A47: 4 | B47: Dont en défaut | D47: 2,194 | E47: 771 | F47: 732 | G47: 16 | H47: 4 | I47: 0 | J47: 0

Sheet CR4
A1: Tableau CR4 – Approche standard – Exposition au risque de crédit et effets de l'atténuation du risque de crédit (CRM)(1)
D3: a | E3: b | F3: c | G3: d | H3: e | I3: f | J3: a | K3: b | L3: c | M3: d | N3: e | O3: f
D5: Au 30 septembre 2025 | J5: Au 30 juin 2025
A6: =SUM(D8:O31) -> 680,937.51 | D6: Expositions avant prise en compte des facteurs de conversion en équivalent-crédit (FCEC) et des techniques ARC(2) | F6: Expositions après prise en compte des facteurs de conversion en équivalent-crédit (FCEC) et des techniques ARC(2) | H6: APR et proportion des APR | J6: Expositions avant prise en compte des facteurs de conversion en équivalent-crédit (FCEC) et des techniques ARC(2) | L6: Expositions après prise en compte des facteurs de conversion en équivalent-crédit (FCEC) et des techniques ARC(2) | N6: APR et proportion des APR
B7: (en millions de dollars) | D7: Montants au bilan | E7: Montants hors bilan | F7: Montants au bilan | G7: Montants hors bilan | H7: APR | I7: Proportion des APR | J7: Montants au bilan | K7: Montants hors bilan | L7: Montants au bilan | M7: Montants hors bilan | N7: APR | O7: Proportion des APR
B8: Classes d’actifs
A9: 1 | B9: Emprunteurs souverains | D9: 4,549 | E9: 0 | F9: 6,470 | G9: 316 | H9: 0 | I9: 0 | J9: 5,484 | K9: 0 | L9: 7,273 | M9: 291 | N9: 0 | O9: 0
A10: 2 | B10: Organismes publics hors administration centrale | D10: 7,559 | E10: 7,875 | F10: 7,609 | G10: 1,726 | H10: 1,867 | I10: 20.00% | J10: 7,417 | K10: 7,579 | L10: 7,475 | M10: 1,668 | N10: 1,829 | O10: 20.00%
A11: 3 | B11: Banques multilatérales de développement | D11: 0 | E11: 0 | F11: 0 | G11: 0 | H11: 0 | I11: 0 | J11: 0 | K11: 0 | L11: 0 | M11: 0 | N11: 0 | O11: 0
A12: 4 | B12: Institutions de dépôts et banques | D12: 2,114 | E12: 568 | F12: 2,899 | G12: 80 | H12: 1,150 | I12: 38.60% | J12: 1,799 | K12: 573 | L12: 2,553 | M12: 80 | N12: 1,156 | O12: 43.90%
B13: Dont : entreprises d'investissement et autres institutions financières assimilées à des banques | D13: 0 | E13: 0 | F13: 786 | G13: 0 | H13: 518 | I13: 66.00% | J13: 0 | K13: 0 | L13: 754 | M13: 0 | N13: 498 | O13: 66.00%
A14: 5 | B14: Obligations sécurisées | D14: 0 | E14: 0 | F14: 0 | G14: 0 | H14: 0 | I14: 0 | J14: 0 | K14: 0 | L14: 0 | M14: 0 | N14: 0 | O14: 0
A15: 6 | B15: Entreprises | D15: 7,958 | E15: 11,365 | F15: 7,886 | G15: 4,701 | H15: 10,993 | I15: 87.30% | J15: 7,402 | K15: 10,762 | L15: 7,334 | M15: 4,459 | N15: 10,125 | O15: 85.90%
B16: Dont : entreprises d'investissement et autres institutions financières assimilées à des entreprises | D16: 0 | E16: 0 | F16: 0 | G16: 0 | H16: 0 | I16: 0 | J16: 0 | K16: 46 | L16: 0 | M16: 46 | N16: 9 | O16: 20.00%
B17: Dont : financements spécialisés | D17: 0 | E17: 0 | F17: 0 | G17: 0 | H17: 0 | I17: 0 | J17: 215 | K17: 60 | L17: 214 | M17: 28 | N17: 236 | O17: 97.30%
A18: 7 | B18: Dettes subordonnées, actions et autres instruments de fonds propres | D18: 343 | E18: 0 | F18: 343 | G18: 0 | H18: 857 | I18: 250.00% | J18: 385 | K18: 0 | L18: 385 | M18: 0 | N18: 962 | O18: 250.00%
A19: 8 | B19: Portefeuilles de détail réglementaires | D19: 1,739 | E19: 4,415 | F19: 1,633 | G19: 1,113 | H19: 1,608 | I19: 58.60% | J19: 1,724 | K19: 4,338 | L19: 1,603 | M19: 1,094 | N19: 1,574 | O19: 58.40%
A20: 9 | B20: Immobiliers | D20: 7,623 | E20: 1,565 | F20: 5,454 | G20: 207 | H20: 3,905 | I20: 69.00% | J20: 7,492 | K20: 1,460 | L20: 5,443 | M20: 180 | N20: 3,883 | O20: 69.10%
B21: Dont : immobiliers résidentiels général | D21: 629 | E21: 14 | F21: 370 | G21: 0 | H21: 298 | I21: 80.60% | J21: 633 | K21: 13 | L21: 363 | M21: 0 | N21: 292 | O21: 80.80%
B22: Dont : immobiliers résidentiels producteur de revenus | D22: 4,097 | E22: 826 | F22: 2,225 | G22: 17 | H22: 1,051 | I22: 46.90% | J22: 3,950 | K22: 765 | L22: 2,208 | M22: 18 | N22: 1,038 | O22: 46.60%
B23: Dont : autres immobiliers résidentiels | D23: 0 | E23: 0 | F23: 0 | G23: 0 | H23: 0 | I23: 0 | J23: 0 | K23: 0 | L23: 0 | M23: 0 | N23: 0 | O23: 0
B24: Dont : immobiliers commerciaux général | D24: 988 | E24: 427 | F24: 979 | G24: 158 | H24: 828 | I24: 72.80% | J24: 1,005 | K24: 352 | L24: 997 | M24: 126 | N24: 807 | O24: 71.90%
B25: Dont : immobiliers commerciaux producteur de revenus | D25: 1,382 | E25: 24 | F25: 1,353 | G25: 5 | H25: 1,164 | I25: 85.70% | J25: 1,387 | K25: 26 | L25: 1,358 | M25: 6 | N25: 1,191 | O25: 87.40%
B26: Dont : acquisitions de terrains, développements et constructions | D26: 527 | E26: 274 | F26: 527 | G26: 27 | H26: 564 | I26: 101.80% | J26: 517 | K26: 304 | L26: 517 | M26: 30 | N26: 555 | O26: 101.40%
A27: 10 | B27: Prêts hypothécaires inversés | D27: 0 | E27: 0 | F27: 0 | G27: 0 | H27: 0 | I27: 0 | J27: 0 | K27: 0 | L27: 0 | M27: 0 | N27: 0 | O27: 0
A28: 11 | B28: Titres adossés à des créances hypothécaires | D28: 0 | E28: 0 | F28: 0 | G28: 0 | H28: 0 | I28: 0 | J28: 0 | K28: 0 | L28: 0 | M28: 0 | N28: 0 | O28: 0
A29: 12 | B29: Expositions en défaut | D29: 178 | E29: 28 | F29: 166 | G29: 4 | H29: 244 | I29: 143.50% | J29: 156 | K29: 20 | L29: 146 | M29: 3 | N29: 213 | O29: 143.60%
A30: 13 | B30: Autres actifs(3) | D30: 19,563 | E30: 0 | F30: 19,563 | G30: 0 | H30: 5,212 | I30: 26.60% | J30: 17,667 | K30: 0 | L30: 17,667 | M30: 0 | N30: 5,043 | O30: 28.50%
A31: 14 | B31: Total | D31: 51,626 | E31: 25,816 | F31: 52,023 | G31: 8,147 | H31: 25,836 | I31: 42.90% | J31: 49,526 | K31: 24,732 | L31: 49,879 | M31: 7,775 | N31: 24,785 | O31: 43.00%
D33: a | E33: b | F33: c | G33: d | H33: e | I33: f | J33: a | K33: b | L33: c | M33: d | N33: e | O33: f
D34: Au 31 mars 2025 | J34: Au 31 décembre 2024
A35: =SUM(D37:O60) -> 707380.5541 | D35: Expositions avant prise en compte des facteurs de conversion en équivalent-crédit (FCEC) et des techniques ARC(2) | F35: Expositions après prise en compte des facteurs de conversion en équivalent-crédit (FCEC) et des techniques ARC(2) | H35: APR et proportion des APR | J35: Expositions avant prise en compte des facteurs de conversion en équivalent-crédit (FCEC) et des techniques ARC(2) | L35: Expositions après prise en compte des facteurs de conversion en équivalent-crédit (FCEC) et des techniques ARC(2) | N35: APR et proportion des APR
B36: (en millions de dollars) | D36: Montants au bilan | E36: Montants hors bilan | F36: Montants au bilan | G36: Montants hors bilan | H36: APR | I36: Proportion des APR | J36: Montants au bilan | K36: Montants hors bilan | L36: Montants au bilan | M36: Montants hors bilan | N36: APR | O36: Proportion des APR
B37: Classes d’actifs
A38: 1 | B38: Emprunteurs souverains | D38: 4,892 | E38: 0 | F38: 6,404 | G38: 296 | H38: 0 | I38: 0 | J38: 4,458 | K38: 0 | L38: 5,839 | M38: 280 | N38: 0 | O38: 0
A39: 2 | B39: Organismes publics hors administration centrale | D39: 7,729 | E39: 7,270 | F39: 7,784 | G39: 1,611 | H39: 1,880 | I39: 20.00% | J39: 7,224 | K39: 7,813 | L39: 7,278 | M39: 1,711 | N39: 1,798 | O39: 20.00%
A40: 3 | B40: Banques multilatérales de développement | D40: 0 | E40: 0 | F40: 0 | G40: 0 | H40: 0 | I40: 0 | J40: 0 | K40: 0 | L40: 0 | M40: 0 | N40: 0 | O40: 0
A41: 4 | B41: Institutions de dépôts et banques | D41: 1,928 | E41: 534 | F41: 2,631 | G41: 82 | H41: 1,071 | I41: 39.50% | J41: 1,751 | K41: 530 | L41: 2,419 | M41: 72 | N41: 1,016 | O41: 40.80%
B42: Dont : entreprises d'investissement et autres institutions financières assimilées à des banques | D42: 0 | E42: 0 | F42: 703 | G42: 0 | H42: 464 | I42: 66.00% | J42: 0 | K42: 0 | L42: 668 | M42: 0 | N42: 441 | O42: 66.00%
A43: 5 | B43: Obligations sécurisées | D43: 0 | E43: 0 | F43: 0 | G43: 0 | H43: 0 | I43: 0 | J43: 0 | K43: 0 | L43: 0 | M43: 0 | N43: 0 | O43: 0
A44: 6 | B44: Entreprises | D44: 8,103 | E44: 11,897 | F44: 8,021 | G44: 5,081 | H44: 11,581 | I44: 88.40% | J44: 10,350 | K44: 13,548 | L44: 10,273 | M44: 5,634 | N44: 14,410 | O44: 90.60%
B45: Dont : entreprises d'investissement et autres institutions financières assimilées à des entreprises | D45: 0 | E45: 0 | F45: 0 | G45: 0 | H45: 0 | I45: 0 | J45: 0 | K45: 41 | L45: 0 | M45: 41 | N45: 8 | O45: 20.00%
B46: Dont : financements spécialisés | D46: 840 | E46: 916 | F46: 840 | G46: 387 | H46: 1,323 | I46: 107.90% | J46: 3,720 | K46: 2,450 | L46: 3,720 | M46: 1,030 | N46: 4,752 | O46: 100.00%
A47: 7 | B47: Dettes subordonnées, actions et autres instruments de fonds propres | D47: 395 | E47: 0 | F47: 395 | G47: 0 | H47: 987 | I47: 250.00% | J47: 379 | K47: 0 | L47: 379 | M47: 0 | N47: 947 | O47: 250.00%
A48: 8 | B48: Portefeuilles de détail réglementaires | D48: 1,698 | E48: 4,356 | F48: 1,575 | G48: 1,101 | H48: 1,572 | I48: 58.80% | J48: 1,715 | K48: 4,275 | L48: 1,582 | M48: 1,080 | N48: 1,546 | O48: 58.10%
A49: 9 | B49: Immobiliers | D49: 7,241 | E49: 1,532 | F49: 5,470 | G49: 187 | H49: 3,947 | I49: 69.80% | J49: 6,952 | K49: 1,364 | L49: 5,309 | M49: 156 | N49: 3,804 | O49: 69.60%
B50: Dont : immobiliers résidentiels général | D50: 651 | E50: 10 | F50: 382 | G50: 0 | H50: 313 | I50: 82.00% | J50: 643 | K50: 10 | L50: 370 | M50: 0 | N50: 305 | O50: 82.20%
B51: Dont : immobiliers résidentiels producteur de revenus | D51: 3,650 | E51: 767 | F51: 2,187 | G51: 15 | H51: 1,039 | I51: 47.20% | J51: 3,459 | K51: 722 | L51: 2,128 | M51: 14 | N51: 1,010 | O51: 47.20%
B52: Dont : autres immobiliers résidentiels | D52: 0 | E52: 0 | F52: 0 | G52: 0 | H52: 0 | I52: 0 | J52: 0 | K52: 0 | L52: 0 | M52: 0 | N52: 0 | O52: 0
B53: Dont : immobiliers commerciaux général | D53: 1,020 | E53: 385 | F53: 1,011 | G53: 134 | H53: 832 | I53: 72.60% | J53: 1,048 | K53: 302 | L53: 1,039 | M53: 108 | N53: 826 | O53: 72.00%
B54: Dont : immobiliers commerciaux producteur de revenus | D54: 1,330 | E54: 19 | F54: 1,300 | G54: 3 | H54: 1,131 | I54: 86.80% | J54: 1,250 | K54: 21 | L54: 1,220 | M54: 3 | N54: 1,074 | O54: 87.90%
B55: Dont : acquisitions de terrains, développements et constructions | D55: 590 | E55: 351 | F55: 590 | G55: 35 | H55: 632 | I55: 101.10% | J55: 552 | K55: 309 | L55: 552 | M55: 31 | N55: 589 | O55: 101.10%
A56: 10 | B56: Prêts hypothécaires inversés | D56: 0 | E56: 0 | F56: 0 | G56: 0 | H56: 0 | I56: 0 | J56: 0 | K56: 0 | L56: 0 | M56: 0 | N56: 0 | O56: 0
A57: 11 | B57: Titres adossés à des créances hypothécaires | D57: 0 | E57: 0 | F57: 0 | G57: 0 | H57: 0 | I57: 0 | J57: 0 | K57: 0 | L57: 0 | M57: 0 | N57: 0 | O57: 0
A58: 12 | B58: Expositions en défaut | D58: 121 | E58: 20 | F58: 117 | G58: 4 | H58: 170 | I58: 140.40% | J58: 128 | K58: 71 | L58: 124 | M58: 9 | N58: 187 | O58: 112.00%
A59: 13 | B59: Autres actifs(3) | D59: 17,033 | E59: 0 | F59: 17,033 | G59: 0 | H59: 5,112 | I59: 30.00% | J59: 16,953 | K59: 0 | L59: 16,953 | M59: 0 | N59: 5,346 | O59: 31.50%
A60: 14 | B60: Total | D60: 49,140 | E60: 25,609 | F60: 49,430 | G60: 8,362 | H60: 26,320 | I60: 45.50% | J60: 49,910 | K60: 27,601 | L60: 50,156 | M60: 8,942 | N60: 29,054 | O60: 49.10%
D62: a | E62: b | F62: c | G62: d | H62: e | I62: f
D63: Au 30 septembre 2024
A64: =SUM(D67:I89) -> 365082.343 | D64: Expositions avant prise en compte des facteurs de conversion en équivalent-crédit (FCEC) et des techniques ARC(2) | F64: Expositions après prise en compte des facteurs de conversion en équivalent-crédit (FCEC) et des techniques ARC(2) | H64: APR et proportion des APR
B65: (en millions de dollars) | D65: Montants au bilan | E65: Montants hors bilan | F65: Montants au bilan | G65: Montants hors bilan | H65: APR | I65: Proportion des APR
B66: Classes d’actifs
A67: 1 | B67: Emprunteurs souverains | D67: 6,598 | E67: 0 | F67: 7,713 | G67: 165 | H67: 20 | I67: 0.30%
A68: 2 | B68: Organismes publics hors administration centrale | D68: 6,918 | E68: 8,222 | F68: 6,966 | G68: 1,798 | H68: 1,753 | I68: 20.00%
A69: 3 | B69: Banques multilatérales de développement | D69: 0 | E69: 0 | F69: 0 | G69: 0 | H69: 0 | I69: 0
A70: 4 | B70: Institutions de dépôts et banques | D70: 1,778 | E70: 115 | F70: 2,424 | G70: 29 | H70: 1,009 | I70: 41.10%
B71: Dont : entreprises d'investissement et autres institutions financières assimilées à des banques | D71: 0 | E71: 0 | F71: 646 | G71: 0 | H71: 421 | I71: 65.20%
A72: 5 | B72: Obligations sécurisées | D72: 0 | E72: 0 | F72: 0 | G72: 0 | H72: 0 | I72: 0
A73: 6 | B73: Entreprises | D73: 10,293 | E73: 13,994 | F73: 10,206 | G73: 5,981 | H73: 14,802 | I73: 91.40%
B74: Dont : entreprises d'investissement et autres institutions financières assimilées à des entreprises | D74: 0 | E74: 41 | F74: 0 | G74: 41 | H74: 8 | I74: 20.00%
B75: Dont : financements spécialisés | D75: 3,650 | E75: 2,228 | F75: 3,650 | G75: 992 | H75: 4,772 | I75: 102.80%
A76: 7 | B76: Dettes subordonnées, actions et autres instruments de fonds propres | D76: 377 | E76: 0 | F76: 377 | G76: 0 | H76: 941 | I76: 250.00%
A77: 8 | B77: Portefeuilles de détail réglementaires | D77: 1,455 | E77: 3,457 | F77: 1,306 | G77: 873 | H77: 1,655 | I77: 75.90%
A78: 9 | B78: Immobiliers | D78: 6,542 | E78: 799 | F78: 5,163 | G78: 49 | H78: 3,527 | I78: 67.70%
B79: Dont : immobiliers résidentiels général | D79: 614 | E79: 10 | F79: 346 | G79: 0 | H79: 287 | I79: 82.80%
B80: Dont : immobiliers résidentiels producteur de revenus | D80: 3,233 | E80: 424 | F80: 2,164 | G80: 9 | H80: 999 | I80: 46.00%
B81: Dont : autres immobiliers résidentiels | D81: 0 | E81: 0 | F81: 0 | G81: 0 | H81: 0 | I81: 0
B82: Dont : immobiliers commerciaux général | D82: 1,046 | E82: 51 | F82: 1,037 | G82: 8 | H82: 719 | I82: 68.80%
B83: Dont : immobiliers commerciaux producteur de revenus | D83: 1,180 | E83: 15 | F83: 1,148 | G83: 2 | H83: 1,022 | I83: 88.90%
B84: Dont : acquisitions de terrains, développements et constructions | D84: 469 | E84: 299 | F84: 468 | G84: 30 | H84: 500 | I84: 100.50%
A85: 10 | B85: Prêts hypothécaires inversés | D85: 0 | E85: 0 | F85: 0 | G85: 0 | H85: 0 | I85: 0
A86: 11 | B86: Titres adossés à des créances hypothécaires | D86: 0 | E86: 0 | F86: 0 | G86: 0 | H86: 0 | I86: 0
A87: 12 | B87: Expositions en défaut | D87: 96 | E87: 65 | F87: 91 | G87: 8 | H87: 129 | I87: 130.80%
A88: 13 | B88: Autres actifs(3) | D88: 16,554 | E88: 0 | F88: 16,554 | G88: 0 | H88: 5,468 | I88: 33.00%
A89: 14 | B89: Total | D89: 50,611 | E89: 26,652 | F89: 50,800 | G89: 8,903 | H89: 29,304 | I89: 49.10%
A91: (1) | C91: Excluent le risque de contrepartie, la titrisation, les placements en actions dans les fonds d'investissement et le risque de règlement.
A92: (2) | C92: Les expositions sont présentées, déduction faite des provisions pour pertes de crédit attendues sur prêts dépréciés.
A93: (3) | C93: Les autres actifs sont évalués à l'aide d'une méthode autre que les méthodes standards ou des notations internes. Cette rubrique ne comprend pas les éléments au-dessous d'un certain seuil et qui sont pondérés à 250 %.

Sheet CR5
A1: Tableau CR5 – Approche standard – Exposition par classe d'actifs et par coefficient de pondération des risques(1)
A3: =SUM(D5:AE27) -> 253574 | B3: Portefeuille réglementaire / Pondération des risques | D3: Au 30 septembre 2025
B4: (en millions de dollars) | D4: 0% | E4: 10% | F4: 15% | G4: 20% | H4: 25% | I4: 30% | J4: 35% | K4: 40% | L4: 45% | M4: 50% | N4: 55% | O4: 60% | P4: 65% | Q4: 70% | R4: 75% | S4: 80% | T4: 85% | U4: 90% | V4: 100% | W4: 105% | X4: 110% | Y4: 130% | Z4: 150% | AA4: 250% | AB4: 400% | AC4: 1,250% | AD4: Autres | AE4: Total
A5: 1 | B5: Emprunteurs souverains | D5: 6,786 | G5: 0 | M5: 0 | V5: 0 | Z5: 0 | AD5: 0 | AE5: 6,786
A6: 2 | B6: Organismes publics hors administration centrale | D6: 0 | G6: 9,335 | M6: 0 | V6: 0 | Z6: 0 | AD6: 0 | AE6: 9,335
A7: 3 | B7: Banques multilatérales de développement | D7: 0 | G7: 0 | I7: 0 | M7: 0 | V7: 0 | Z7: 0 | AD7: 0 | AE7: 0
A8: 4 | B8: Institutions de dépôts et banques | G8: 1,502 | I8: 588 | K8: 0 | M8: 0 | R8: 0 | V8: 0 | Z8: 103 | AD8: 786 | AE8: 2,979
C9: Dont : entreprises d'investissement et autres institutions financières assimilées à des banques | G9: 0 | I9: 0 | K9: 0 | M9: 0 | R9: 0 | V9: 0 | Z9: 0 | AD9: 786 | AE9: 786
A10: 5 | B10: Obligations sécurisées | G10: 0 | I10: 0 | K10: 0 | M10: 0 | R10: 0 | V10: 0 | Z10: 0 | AD10: 0 | AE10: 0
A11: 6 | B11: Entreprises | G11: 1,210 | M11: 632 | P11: 0 | R11: 734 | S11: 0 | T11: 1,169 | V11: 8,745 | Y11: 0 | Z11: 97 | AD11: 0 | AE11: 12,587
C12: Dont : entreprises d'investissement et autres institutions financières assimilées à des entreprises | G12: 0 | M12: 0 | P12: 0 | R12: 0 | V12: 0 | Z12: 0 | AD12: 0 | AE12: 0
C13: Dont : financements spécialisés | G13: 0 | M13: 0 | R13: 0 | S13: 0 | V13: 0 | Y13: 0 | Z13: 0 | AD13: 0 | AE13: 0
A14: 7 | B14: Dettes subordonnées, actions et autres instruments de fonds propres | D14: 0 | G14: 0 | V14: 0 | Z14: 0 | AA14: 343 | AD14: 0 | AE14: 343
A15: 8 | B15: Portefeuilles de détail réglementaires | F15: 779 | G15: 0 | H15: 0 | I15: 0 | J15: 0 | K15: 0 | L15: 0 | M15: 0 | N15: 0 | O15: 0 | P15: 0 | Q15: 0 | R15: 1,904 | S15: 0 | T15: 0 | U15: 0 | V15: 63 | W15: 0 | X15: 0 | Y15: 0 | Z15: 0 | AD15: 0 | AE15: 2,746
A16: 9 | B16: Immobiliers | D16: 0 | E16: 0 | F16: 0 | G16: 115 | H16: 23 | I16: 287 | J16: 419 | K16: 8 | L16: 816 | M16: 710 | N16: 0 | O16: 367 | P16: 0 | Q16: 439 | R16: 349 | S16: 0 | T16: 211 | U16: 803 | V16: 834 | W16: 2 | X16: 99 | Y16: 0 | Z16: 109 | AA16: 0 | AB16: 0 | AC16: 0 | AD16: 70 | AE16: 5,661
C17: Dont : immobiliers résidentiels général | D17: 0 | E17: 0 | F17: 0 | G17: 27 | H17: 23 | I17: 38 | J17: 45 | K17: 8 | M17: 1 | P17: 0 | Q17: 0 | R17: 227 | S17: 0 | T17: 0 | V17: 0 | Y17: 0 | Z17: 0 | AA17: 0 | AB17: 0 | AC17: 0 | AD17: 1 | AE17: 370
C18: Dont : immobiliers résidentiels producteur de revenus | D18: 0 | E18: 0 | F18: 0 | I18: 249 | J18: 374 | L18: 816 | M18: 709 | O18: 13 | R18: 7 | S18: 0 | W18: 2 | Y18: 0 | Z18: 72 | AA18: 0 | AB18: 0 | AC18: 0 | AD18: 0 | AE18: 2,242
C19: Dont : autres immobiliers résidentiels | D19: 0 | E19: 0 | F19: 0 | I19: 0 | J19: 0 | K19: 0 | L19: 0 | N19: 0 | O19: 0 | R19: 0 | S19: 0 | W19: 0 | Y19: 0 | Z19: 0 | AA19: 0 | AB19: 0 | AC19: 0 | AD19: 0 | AE19: 0
C20: Dont : immobiliers commerciaux général | D20: 0 | E20: 0 | F20: 0 | G20: 88 | I20: 0 | K20: 0 | M20: 0 | N20: 0 | O20: 354 | P20: 0 | R20: 115 | S20: 0 | T20: 211 | V20: 300 | Y20: 0 | Z20: 0 | AA20: 0 | AB20: 0 | AC20: 0 | AD20: 69 | AE20: 1,137
C21: Dont : immobiliers commerciaux producteur de revenus | D21: 0 | E21: 0 | F21: 0 | Q21: 439 | U21: 803 | X21: 99 | Y21: 0 | Z21: 17 | AA21: 0 | AB21: 0 | AC21: 0 | AD21: 0 | AE21: 1,358
C22: Dont : acquisitions de terrains, développements et constructions | D22: 0 | E22: 0 | F22: 0 | V22: 534 | Y22: 0 | Z22: 20 | AA22: 0 | AB22: 0 | AC22: 0 | AD22: 0 | AE22: 554
A23: 10 | B23: Prêts hypothécaires inversés | I23: 0 | J23: 0 | L23: 0 | O23: 0 | V23: 0 | Z23: 0 | AD23: 0 | AE23: 0
A24: 11 | B24: Titres adossés à des créances hypothécaires | G24: 0 | H24: 0 | I24: 0 | J24: 0 | K24: 0 | L24: 0 | M24: 0 | N24: 0 | O24: 0 | P24: 0 | Q24: 0 | R24: 0 | S24: 0 | T24: 0 | U24: 0 | V24: 0 | W24: 0 | X24: 0 | Y24: 0 | Z24: 0 | AD24: 0 | AE24: 0
A25: 12 | B25: Expositions en défaut | M25: 0 | V25: 22 | Z25: 148 | AD25: 0 | AE25: 170
A26: 13 | B26: Autres actifs(2) | D26: 13,910 | G26: 551 | V26: 5,102 | AC26: 0 | AD26: 0 | AE26: 19,563
A27: 14 | B27: Total | D27: 20,696 | E27: 0 | F27: 779 | G27: 12,713 | H27: 23 | I27: 875 | J27: 419 | K27: 8 | L27: 816 | M27: 1,342 | N27: 0 | O27: 367 | P27: 0 | Q27: 439 | R27: 2,987 | S27: 0 | T27: 1,380 | U27: 803 | V27: 14,766 | W27: 2 | X27: 99 | Y27: 0 | Z27: 457 | AA27: 343 | AB27: 0 | AC27: 0 | AD27: 856 | AE27: 60,170
B29: Montants d’exposition et CCF appliqués aux expositions hors bilan, classés en fonction de la catégorie de risques des expositions converties
L30: a | Q30: b | V30: c | AA30: d
A31: =SUM(L33:AE43) -> 275226.0368 | L31: Au 30 septembre 2025
B32: Pondération | L32: Expositions sur éléments de bilan | Q32: Expositions hors bilan (Avant FCEC) | V32: FCEC moyen pondéré(3) | AA32: Exposition (après FCEC et techniques ARC)(4)
A33: 1 | C33: moins de 40 % | L33: 31,001 | Q33: 11,165 | V33: 32% | AA33: 35,574
A34: 2 | C34: 40 % - 70 % | L34: 3,057 | Q34: 599 | V34: 45% | AA34: 3,757
A35: 3 | C35: 75 % - 80 % | L35: 2,079 | Q35: 3,694 | V35: 32% | AA35: 2,987
A36: 4 | C36: 85 % | L36: 1,319 | Q36: 473 | V36: 19% | AA36: 1,380
A37: 5 | C37: 90 % - 100 % | L37: 12,788 | Q37: 8,328 | V37: 34% | AA37: 15,570
A38: 6 | C38: 105 % - 130 % | L38: 102 | Q38: 0 | V38: 0 | AA38: 101
A39: 7 | C39: 150 % | L39: 937 | Q39: 1,557 | V39: 10% | AA39: 458
A40: 8 | C40: 250 % | L40: 343 | Q40: 0 | V40: 0 | AA40: 343
A41: 9 | C41: 400 % | L41: 0 | Q41: 0 | V41: 0 | AA41: 0
A42: 10 | C42: 1 250 % | L42: 0 | Q42: 0 | V42: 0 | AA42: 0
A43: 11 | B43: Expositions totales | L43: 51,626 | Q43: 25,816 | V43: 32% | AA43: 60,170
A46: =SUM(D48:AE70) -> 243946 | B46: Portefeuille réglementaire / Pondération des risques | D46: Au 30 juin 2025
B47: (en millions de dollars) | D47: 0% | E47: 10% | F47: 15% | G47: 20% | H47: 25% | I47: 30% | J47: 35% | K47: 40% | L47: 45% | M47: 50% | N47: 55% | O47: 60% | P47: 65% | Q47: 70% | R47: 75% | S47: 80% | T47: 85% | U47: 90% | V47: 100% | W47: 105% | X47: 110% | Y47: 130% | Z47: 150% | AA47: 250% | AB47: 400% | AC47: 1,250% | AD47: Autres | AE47: Total
A48: 1 | B48: Emprunteurs souverains | D48: 7,564 | G48: 0 | M48: 0 | V48: 0 | Z48: 0 | AD48: 0 | AE48: 7,564
A49: 2 | B49: Organismes publics hors administration centrale | D49: 0 | G49: 9,143 | M49: 0 | V49: 0 | Z49: 0 | AD49: 0 | AE49: 9,143
A50: 3 | B50: Banques multilatérales de développement | D50: 0 | G50: 0 | I50: 0 | M50: 0 | V50: 0 | Z50: 0 | AD50: 0 | AE50: 0
A51: 4 | B51: Institutions de dépôts et banques | G51: 1,052 | I51: 661 | K51: 0 | M51: 0 | R51: 0 | V51: 0 | Z51: 166 | AD51: 754 | AE51: 2,633
C52: Dont : entreprises d'investissement et autres institutions financières assimilées à des banques | G52: 0 | I52: 0 | K52: 0 | M52: 0 | R52: 0 | V52: 0 | Z52: 0 | AD52: 754 | AE52: 754
A53: 5 | B53: Obligations sécurisées | G53: 0 | I53: 0 | K53: 0 | M53: 0 | R53: 0 | V53: 0 | Z53: 0 | AD53: 0 | AE53: 0
A54: 6 | B54: Entreprises | G54: 1,388 | M54: 640 | P54: 0 | R54: 612 | S54: 125 | T54: 978 | V54: 7,852 | Y54: 61 | Z54: 137 | AD54: 0 | AE54: 11,793
C55: Dont : entreprises d'investissement et autres institutions financières assimilées à des entreprises | G55: 46 | M55: 0 | P55: 0 | R55: 0 | V55: 0 | Z55: 0 | AD55: 0 | AE55: 46
C56: Dont : financements spécialisés | G56: 0 | M56: 0 | R56: 0 | S56: 125 | V56: 56 | Y56: 61 | Z56: 0 | AD56: 0 | AE56: 242
A57: 7 | B57: Dettes subordonnées, actions et autres instruments de fonds propres | D57: 0 | G57: 0 | V57: 0 | Z57: 0 | AA57: 385 | AD57: 0 | AE57: 385
A58: 8 | B58: Portefeuilles de détail réglementaires | F58: 769 | G58: 0 | H58: 0 | I58: 0 | J58: 0 | K58: 0 | L58: 0 | M58: 0 | N58: 0 | O58: 0 | P58: 0 | Q58: 0 | R58: 1,879 | S58: 0 | T58: 0 | U58: 0 | V58: 49 | W58: 0 | X58: 0 | Y58: 0 | Z58: 0 | AD58: 0 | AE58: 2,697
A59: 9 | B59: Immobiliers | D59: 0 | E59: 0 | F59: 0 | G59: 116 | H59: 23 | I59: 285 | J59: 402 | K59: 4 | L59: 810 | M59: 730 | N59: 0 | O59: 387 | P59: 0 | Q59: 445 | R59: 339 | S59: 0 | T59: 202 | U59: 761 | V59: 810 | W59: 2 | X59: 103 | Y59: 0 | Z59: 134 | AA59: 0 | AB59: 0 | AC59: 0 | AD59: 70 | AE59: 5,623
C60: Dont : immobiliers résidentiels général | D60: 0 | E60: 0 | F60: 0 | G60: 26 | H60: 23 | I60: 39 | J60: 44 | K60: 4 | M60: 2 | P60: 0 | Q60: 0 | R60: 222 | S60: 0 | T60: 0 | V60: 0 | Y60: 0 | Z60: 0 | AA60: 0 | AB60: 0 | AC60: 0 | AD60: 3 | AE60: 363
C61: Dont : immobiliers résidentiels producteur de revenus | D61: 0 | E61: 0 | F61: 0 | I61: 246 | J61: 358 | L61: 810 | M61: 728 | O61: 14 | R61: 4 | S61: 0 | W61: 2 | Y61: 0 | Z61: 64 | AA61: 0 | AB61: 0 | AC61: 0 | AD61: 0 | AE61: 2,226
C62: Dont : autres immobiliers résidentiels | D62: 0 | E62: 0 | F62: 0 | I62: 0 | J62: 0 | K62: 0 | L62: 0 | N62: 0 | O62: 0 | R62: 0 | S62: 0 | W62: 0 | Y62: 0 | Z62: 0 | AA62: 0 | AB62: 0 | AC62: 0 | AD62: 0 | AE62: 0
C63: Dont : immobiliers commerciaux général | D63: 0 | E63: 0 | F63: 0 | G63: 90 | I63: 0 | K63: 0 | M63: 0 | N63: 0 | O63: 373 | P63: 0 | R63: 113 | S63: 0 | T63: 202 | V63: 278 | Y63: 0 | Z63: 0 | AA63: 0 | AB63: 0 | AC63: 0 | AD63: 67 | AE63: 1,123
C64: Dont : immobiliers commerciaux producteur de revenus | D64: 0 | E64: 0 | F64: 0 | Q64: 445 | U64: 761 | X64: 103 | Y64: 0 | Z64: 55 | AA64: 0 | AB64: 0 | AC64: 0 | AD64: 0 | AE64: 1,364
C65: Dont : acquisitions de terrains, développements et constructions | D65: 0 | E65: 0 | F65: 0 | V65: 532 | Y65: 0 | Z65: 15 | AA65: 0 | AB65: 0 | AC65: 0 | AD65: 0 | AE65: 547
A66: 10 | B66: Prêts hypothécaires inversés | I66: 0 | J66: 0 | L66: 0 | O66: 0 | V66: 0 | Z66: 0 | AD66: 0 | AE66: 0
A67: 11 | B67: Titres adossés à des créances hypothécaires | G67: 0 | H67: 0 | I67: 0 | J67: 0 | K67: 0 | L67: 0 | M67: 0 | N67: 0 | O67: 0 | P67: 0 | Q67: 0 | R67: 0 | S67: 0 | T67: 0 | U67: 0 | V67: 0 | W67: 0 | X67: 0 | Y67: 0 | Z67: 0 | AD67: 0 | AE67: 0
A68: 12 | B68: Expositions en défaut | M68: 0 | V68: 19 | Z68: 130 | AD68: 0 | AE68: 149
A69: 13 | B69: Autres actifs(2) | D69: 12,206 | G69: 523 | V69: 4,938 | AC69: 0 | AD69: 0 | AE69: 17,667
A70: 14 | B70: Total | D70: 19,770 | E70: 0 | F70: 769 | G70: 12,222 | H70: 23 | I70: 946 | J70: 402 | K70: 4 | L70: 810 | M70: 1,370 | N70: 0 | O70: 387 | P70: 0 | Q70: 445 | R70: 2,830 | S70: 125 | T70: 1,180 | U70: 761 | V70: 13,668 | W70: 2 | X70: 103 | Y70: 61 | Z70: 567 | AA70: 385 | AB70: 0 | AC70: 0 | AD70: 824 | AE70: 57,654
B72: Montants d’exposition et CCF appliqués aux expositions hors bilan, classés en fonction de la catégorie de risques des expositions converties
L73: a | Q73: b | V73: c | AA73: d
A74: =SUM(L76:AE86) -> 263826.3968 | L74: Au 30 juin 2025
B75: Pondération | L75: Expositions sur éléments de bilan | Q75: Expositions hors bilan (Avant FCEC) | V75: FCEC moyen pondéré(3) | AA75: Exposition (après FCEC et techniques ARC)(4)
A76: 1 | C76: moins de 40 % | L76: 29,107 | Q76: 10,919 | V76: 33% | AA76: 34,201
A77: 2 | C77: 40 % - 70 % | L77: 3,676 | Q77: 584 | V77: 44% | AA77: 3,770
A78: 3 | C78: 75 % - 80 % | L78: 2,195 | Q78: 3,559 | V78: 31% | AA78: 2,956
A79: 4 | C79: 85 % | L79: 1,125 | Q79: 461 | V79: 18% | AA79: 1,180
A80: 5 | C80: 90 % - 100 % | L80: 11,868 | Q80: 7,799 | V80: 34% | AA80: 14,430
A81: 6 | C81: 105 % - 130 % | L81: 167 | Q81: 0 | V81: 40% | AA81: 166
A82: 7 | C82: 150 % | L82: 1,003 | Q82: 1,410 | V82: 9% | AA82: 566
A83: 8 | C83: 250 % | L83: 385 | Q83: 0 | V83: 0 | AA83: 385
A84: 9 | C84: 400 % | L84: 0 | Q84: 0 | V84: 0 | AA84: 0
A85: 10 | C85: 1 250 % | L85: 0 | Q85: 0 | V85: 0 | AA85: 0
A86: 11 | B86: Expositions totales | L86: 49,526 | Q86: 24,732 | V86: 31% | AA86: 57,654
A89: =SUM(D91:AE113) -> 246342 | B89: Portefeuille réglementaire / Pondération des risques | D89: Au 31 mars 2025
B90: (en millions de dollars) | D90: 0% | E90: 10% | F90: 15% | G90: 20% | H90: 25% | I90: 30% | J90: 35% | K90: 40% | L90: 45% | M90: 50% | N90: 55% | O90: 60% | P90: 65% | Q90: 70% | R90: 75% | S90: 80% | T90: 85% | U90: 90% | V90: 100% | W90: 105% | X90: 110% | Y90: 130% | Z90: 150% | AA90: 250% | AB90: 400% | AC90: 1,250% | AD90: Autres | AE90: Total
A91: 1 | B91: Emprunteurs souverains | D91: 6,700 | G91: 0 | M91: 0 | V91: 0 | Z91: 0 | AD91: 0 | AE91: 6,700
A92: 2 | B92: Organismes publics hors administration centrale | D92: 0 | G92: 9,395 | M92: 0 | V92: 0 | Z92: 0 | AD92: 0 | AE92: 9,395
A93: 3 | B93: Banques multilatérales de développement | D93: 0 | G93: 0 | I93: 0 | M93: 0 | V93: 0 | Z93: 0 | AD93: 0 | AE93: 0
A94: 4 | B94: Institutions de dépôts et banques | G94: 1,240 | I94: 663 | K94: 0 | M94: 0 | R94: 0 | V94: 0 | Z94: 107 | AD94: 703 | AE94: 2,713
C95: Dont : entreprises d'investissement et autres institutions financières assimilées à des banques | G95: 0 | I95: 0 | K95: 0 | M95: 0 | R95: 0 | V95: 0 | Z95: 0 | AD95: 703 | AE95: 703
A96: 5 | B96: Obligations sécurisées | G96: 0 | I96: 0 | K96: 0 | M96: 0 | R96: 0 | V96: 0 | Z96: 0 | AD96: 0 | AE96: 0
A97: 6 | B97: Entreprises | G97: 1,313 | M97: 636 | P97: 0 | R97: 575 | S97: 481 | T97: 945 | V97: 8,435 | Y97: 644 | Z97: 73 | AD97: 0 | AE97: 13,102
C98: Dont : entreprises d'investissement et autres institutions financières assimilées à des entreprises | G98: 0 | M98: 0 | P98: 0 | R98: 0 | V98: 0 | Z98: 0 | AD98: 0 | AE98: 0
C99: Dont : financements spécialisés | G99: 0 | M99: 0 | R99: 0 | S99: 481 | V99: 102 | Y99: 644 | Z99: 0 | AD99: 0 | AE99: 1,227
A100: 7 | B100: Dettes subordonnées, actions et autres instruments de fonds propres | D100: 0 | G100: 0 | V100: 0 | Z100: 0 | AA100: 395 | AD100: 0 | AE100: 395
A101: 8 | B101: Portefeuilles de détail réglementaires | F101: 754 | G101: 0 | H101: 0 | I101: 0 | J101: 0 | K101: 0 | L101: 0 | M101: 0 | N101: 0 | O101: 0 | P101: 0 | Q101: 0 | R101: 1,850 | S101: 0 | T101: 0 | U101: 0 | V101: 72 | W101: 0 | X101: 0 | Y101: 0 | Z101: 0 | AD101: 0 | AE101: 2,676
A102: 9 | B102: Immobiliers | D102: 0 | E102: 0 | F102: 0 | G102: 116 | H102: 24 | I102: 291 | J102: 405 | K102: 4 | L102: 806 | M102: 693 | N102: 0 | O102: 420 | P102: 0 | Q102: 451 | R102: 354 | S102: 0 | T102: 153 | U102: 703 | V102: 935 | W102: 3 | X102: 102 | Y102: 0 | Z102: 139 | AA102: 0 | AB102: 0 | AC102: 0 | AD102: 58 | AE102: 5,657
C103: Dont : immobiliers résidentiels général | D103: 0 | E103: 0 | F103: 0 | G103: 25 | H103: 24 | I103: 42 | J103: 42 | K103: 4 | M103: 2 | P103: 0 | Q103: 0 | R103: 239 | S103: 0 | T103: 0 | V103: 0 | Y103: 0 | Z103: 0 | AA103: 0 | AB103: 0 | AC103: 0 | AD103: 4 | AE103: 382
C104: Dont : immobiliers résidentiels producteur de revenus | D104: 0 | E104: 0 | F104: 0 | I104: 249 | J104: 363 | L104: 806 | M104: 691 | O104: 9 | R104: 3 | S104: 0 | W104: 3 | Y104: 0 | Z104: 78 | AA104: 0 | AB104: 0 | AC104: 0 | AD104: 0 | AE104: 2,202
C105: Dont : autres immobiliers résidentiels | D105: 0 | E105: 0 | F105: 0 | I105: 0 | J105: 0 | K105: 0 | L105: 0 | N105: 0 | O105: 0 | R105: 0 | S105: 0 | W105: 0 | Y105: 0 | Z105: 0 | AA105: 0 | AB105: 0 | AC105: 0 | AD105: 0 | AE105: 0
C106: Dont : immobiliers commerciaux général | D106: 0 | E106: 0 | F106: 0 | G106: 91 | I106: 0 | K106: 0 | M106: 0 | N106: 0 | O106: 411 | P106: 0 | R106: 112 | S106: 0 | T106: 153 | V106: 324 | Y106: 0 | Z106: 0 | AA106: 0 | AB106: 0 | AC106: 0 | AD106: 54 | AE106: 1,145
C107: Dont : immobiliers commerciaux producteur de revenus | D107: 0 | E107: 0 | F107: 0 | Q107: 451 | U107: 703 | X107: 102 | Y107: 0 | Z107: 47 | AA107: 0 | AB107: 0 | AC107: 0 | AD107: 0 | AE107: 1,303
C108: Dont : acquisitions de terrains, développements et constructions | D108: 0 | E108: 0 | F108: 0 | V108: 611 | Y108: 0 | Z108: 14 | AA108: 0 | AB108: 0 | AC108: 0 | AD108: 0 | AE108: 625
A109: 10 | B109: Prêts hypothécaires inversés | I109: 0 | J109: 0 | L109: 0 | O109: 0 | V109: 0 | Z109: 0 | AD109: 0 | AE109: 0
A110: 11 | B110: Titres adossés à des créances hypothécaires | G110: 0 | H110: 0 | I110: 0 | J110: 0 | K110: 0 | L110: 0 | M110: 0 | N110: 0 | O110: 0 | P110: 0 | Q110: 0 | R110: 0 | S110: 0 | T110: 0 | U110: 0 | V110: 0 | W110: 0 | X110: 0 | Y110: 0 | Z110: 0 | AD110: 0 | AE110: 0
A111: 12 | B111: Expositions en défaut | M111: 0 | V111: 23 | Z111: 98 | AD111: 0 | AE111: 121
A112: 13 | B112: Autres actifs(2) | D112: 11,551 | G112: 462 | V112: 5,020 | AC112: 0 | AD112: 0 | AE112: 17,033
A113: 14 | B113: Total | D113: 18,251 | E113: 0 | F113: 754 | G113: 12,526 | H113: 24 | I113: 954 | J113: 405 | K113: 4 | L113: 806 | M113: 1,329 | N113: 0 | O113: 420 | P113: 0 | Q113: 451 | R113: 2,779 | S113: 481 | T113: 1,098 | U113: 703 | V113: 14,485 | W113: 3 | X113: 102 | Y113: 644 | Z113: 417 | AA113: 395 | AB113: 0 | AC113: 0 | AD113: 761 | AE113: 57,792
B115: Montants d’exposition et CCF appliqués aux expositions hors bilan, classés en fonction de la catégorie de risques des expositions converties
A116: =SUM(L119:AE129) -> 265084.3934 | L116: a | Q116: b | V116: c | AA116: d
L117: Au 31 mars 2025
B118: Pondération | L118: Expositions sur éléments de bilan | Q118: Expositions hors bilan (Avant FCEC) | V118: FCEC moyen pondéré(3) | AA118: Exposition (après FCEC et techniques ARC)(4)
A119: 1 | C119: moins de 40 % | L119: 28,060 | Q119: 10,678 | V119: 33% | AA119: 32,972
A120: 2 | C120: 40 % - 70 % | L120: 3,618 | Q120: 734 | V120: 42% | AA120: 3,713
A121: 3 | C121: 75 % - 80 % | L121: 2,474 | Q121: 3,466 | V121: 32% | AA121: 3,260
A122: 4 | C122: 85 % | L122: 1,060 | Q122: 485 | V122: 15% | AA122: 1,098
A123: 5 | C123: 90 % - 100 % | L123: 12,370 | Q123: 8,208 | V123: 35% | AA123: 15,187
A124: 6 | C124: 105 % - 130 % | L124: 464 | Q124: 705 | V124: 41% | AA124: 749
A125: 7 | C125: 150 % | L125: 699 | Q125: 1,333 | V125: 8% | AA125: 418
A126: 8 | C126: 250 % | L126: 395 | Q126: 0 | V126: 0 | AA126: 395
A127: 9 | C127: 400 % | L127: 0 | Q127: 0 | V127: 0 | AA127: 0
A128: 10 | C128: 1 250 % | L128: 0 | Q128: 0 | V128: 0 | AA128: 0
A129: 11 | B129: Expositions totales | L129: 49,140 | Q129: 25,609 | V129: 33% | AA129: 57,792
A132: =SUM(D134:AE156) -> 258240 | B132: Portefeuille réglementaire / Pondération des risques | D132: Au 31 décembre 2024
B133: (en millions de dollars) | D133: 0% | E133: 10% | F133: 15% | G133: 20% | H133: 25% | I133: 30% | J133: 35% | K133: 40% | L133: 45% | M133: 50% | N133: 55% | O133: 60% | P133: 65% | Q133: 70% | R133: 75% | S133: 80% | T133: 85% | U133: 90% | V133: 100% | W133: 105% | X133: 110% | Y133: 130% | Z133: 150% | AA133: 250% | AB133: 400% | AC133: 1,250% | AD133: Autres | AE133: Total
A134: 1 | B134: Emprunteurs souverains | D134: 6,119 | G134: 0 | M134: 0 | V134: 0 | Z134: 0 | AD134: 0 | AE134: 6,119
A135: 2 | B135: Organismes publics hors administration centrale | D135: 0 | G135: 8,989 | M135: 0 | V135: 0 | Z135: 0 | AD135: 0 | AE135: 8,989
A136: 3 | B136: Banques multilatérales de développement | D136: 0 | G136: 0 | I136: 0 | M136: 0 | V136: 0 | Z136: 0 | AD136: 0 | AE136: 0
A137: 4 | B137: Institutions de dépôts et banques | G137: 1,121 | I137: 580 | K137: 0 | M137: 7 | R137: 0 | V137: 0 | Z137: 115 | AD137: 668 | AE137: 2,491
C138: Dont : entreprises d'investissement et autres institutions financières assimilées à des banques | G138: 0 | I138: 0 | K138: 0 | M138: 0 | R138: 0 | V138: 0 | Z138: 0 | AD138: 668 | AE138: 668
A139: 5 | B139: Obligations sécurisées | G139: 0 | I139: 0 | K139: 0 | M139: 0 | R139: 0 | V139: 0 | Z139: 0 | AD139: 0 | AE139: 0
A140: 6 | B140: Entreprises | G140: 1,154 | M140: 682 | P140: 0 | R140: 517 | S140: 2,724 | T140: 855 | V140: 8,103 | Y140: 1,832 | Z140: 40 | AD140: 0 | AE140: 15,907
C141: Dont : entreprises d'investissement et autres institutions financières assimilées à des entreprises | G141: 41 | M141: 0 | P141: 0 | R141: 0 | V141: 0 | Z141: 0 | AD141: 0 | AE141: 41
C142: Dont : financements spécialisés | G142: 0 | M142: 5 | R142: 0 | S142: 2,724 | V142: 189 | Y142: 1,832 | Z142: 0 | AD142: 0 | AE142: 4,750
A143: 7 | B143: Dettes subordonnées, actions et autres instruments de fonds propres | D143: 0 | G143: 0 | V143: 0 | Z143: 0 | AA143: 379 | AD143: 0 | AE143: 379
A144: 8 | B144: Portefeuilles de détail réglementaires | F144: 780 | G144: 0 | H144: 0 | I144: 0 | J144: 0 | K144: 0 | L144: 0 | M144: 0 | N144: 0 | O144: 0 | P144: 0 | Q144: 0 | R144: 1,812 | S144: 0 | T144: 0 | U144: 0 | V144: 70 | W144: 0 | X144: 0 | Y144: 0 | Z144: 0 | AD144: 0 | AE144: 2,662
A145: 9 | B145: Immobiliers | D145: 0 | E145: 0 | F145: 0 | G145: 117 | H145: 25 | I145: 279 | J145: 364 | K145: 4 | L145: 759 | M145: 723 | N145: 0 | O145: 386 | P145: 0 | Q145: 461 | R145: 350 | S145: 0 | T145: 192 | U145: 583 | V145: 862 | W145: 3 | X145: 103 | Y145: 0 | Z145: 159 | AA145: 0 | AB145: 0 | AC145: 0 | AD145: 95 | AE145: 5,465
C146: Dont : immobiliers résidentiels général | D146: 0 | E146: 0 | F146: 0 | G146: 25 | H146: 25 | I146: 36 | J146: 41 | K146: 4 | M146: 2 | P146: 0 | Q146: 1 | R146: 232 | S146: 0 | T146: 0 | V146: 0 | Y146: 0 | Z146: 0 | AA146: 0 | AB146: 0 | AC146: 0 | AD146: 4 | AE146: 370
C147: Dont : immobiliers résidentiels producteur de revenus | D147: 0 | E147: 0 | F147: 0 | I147: 243 | J147: 323 | L147: 759 | M147: 721 | O147: 21 | R147: 3 | S147: 0 | W147: 3 | Y147: 0 | Z147: 69 | AA147: 0 | AB147: 0 | AC147: 0 | AD147: 0 | AE147: 2,142
C148: Dont : autres immobiliers résidentiels | D148: 0 | E148: 0 | F148: 0 | I148: 0 | J148: 0 | K148: 0 | L148: 0 | N148: 0 | O148: 0 | R148: 0 | S148: 0 | W148: 0 | Y148: 0 | Z148: 0 | AA148: 0 | AB148: 0 | AC148: 0 | AD148: 0 | AE148: 0
C149: Dont : immobiliers commerciaux général | D149: 0 | E149: 0 | F149: 0 | G149: 92 | I149: 0 | K149: 0 | M149: 0 | N149: 0 | O149: 365 | P149: 0 | R149: 115 | S149: 0 | T149: 192 | V149: 292 | Y149: 0 | Z149: 0 | AA149: 0 | AB149: 0 | AC149: 0 | AD149: 91 | AE149: 1,147
C150: Dont : immobiliers commerciaux producteur de revenus | D150: 0 | E150: 0 | F150: 0 | Q150: 460 | U150: 583 | X150: 103 | Y150: 0 | Z150: 77 | AA150: 0 | AB150: 0 | AC150: 0 | AD150: 0 | AE150: 1,223
C151: Dont : acquisitions de terrains, développements et constructions | D151: 0 | E151: 0 | F151: 0 | V151: 570 | Y151: 0 | Z151: 13 | AA151: 0 | AB151: 0 | AC151: 0 | AD151: 0 | AE151: 583
A152: 10 | B152: Prêts hypothécaires inversés | I152: 0 | J152: 0 | L152: 0 | O152: 0 | V152: 0 | Z152: 0 | AD152: 0 | AE152: 0
A153: 11 | B153: Titres adossés à des créances hypothécaires | G153: 0 | H153: 0 | I153: 0 | J153: 0 | K153: 0 | L153: 0 | M153: 0 | N153: 0 | O153: 0 | P153: 0 | Q153: 0 | R153: 0 | S153: 0 | T153: 0 | U153: 0 | V153: 0 | W153: 0 | X153: 0 | Y153: 0 | Z153: 0 | AD153: 0 | AE153: 0
A154: 12 | B154: Expositions en défaut | M154: 0 | V154: 25 | Z154: 108 | AD154: 0 | AE154: 133
A155: 13 | B155: Autres actifs(2) | D155: 11,223 | G155: 480 | V155: 5,250 | AC155: 0 | AD155: 0 | AE155: 16,953
A156: 14 | B156: Total | D156: 17,342 | E156: 0 | F156: 780 | G156: 11,861 | H156: 25 | I156: 859 | J156: 364 | K156: 4 | L156: 759 | M156: 1,412 | N156: 0 | O156: 386 | P156: 0 | Q156: 461 | R156: 2,679 | S156: 2,724 | T156: 1,047 | U156: 583 | V156: 14,310 | W156: 3 | X156: 103 | Y156: 1,832 | Z156: 422 | AA156: 379 | AB156: 0 | AC156: 0 | AD156: 763 | AE156: 59,098
B158: Montants d’exposition et CCF appliqués aux expositions hors bilan, classés en fonction de la catégorie de risques des expositions converties
A159: =SUM(L162:AE172) -> 273220.412 | L159: a | Q159: b | V159: c | AA159: d
L160: Au 31 décembre 2024
B161: Pondération | L161: Expositions sur éléments de bilan | Q161: Expositions hors bilan (Avant FCEC) | V161: FCEC moyen pondéré(3) | AA161: Exposition (après FCEC et techniques ARC)(4)
A162: 1 | C162: moins de 40 % | L162: 26,597 | Q162: 11,089 | V162: 32% | AA162: 31,326
A163: 2 | C163: 40 % - 70 % | L163: 3,553 | Q163: 849 | V163: 43% | AA163: 3,690
A164: 3 | C164: 75 % - 80 % | L164: 4,196 | Q164: 4,498 | V164: 34% | AA164: 5,403
A165: 4 | C165: 85 % | L165: 1,007 | Q165: 502 | V165: 15% | AA165: 1,048
A166: 5 | C166: 90 % - 100 % | L166: 12,018 | Q166: 8,314 | V166: 36% | AA166: 14,892
A167: 6 | C167: 105 % - 130 % | L167: 1,528 | Q167: 985 | V167: 42% | AA167: 1,938
A168: 7 | C168: 150 % | L168: 632 | Q168: 1,364 | V168: 9% | AA168: 422
A169: 8 | C169: 250 % | L169: 379 | Q169: 0 | V169: 0 | AA169: 379
A170: 9 | C170: 400 % | L170: 0 | Q170: 0 | V170: 0 | AA170: 0
A171: 10 | C171: 1 250 % | L171: 0 | Q171: 0 | V171: 0 | AA171: 0
A172: 11 | B172: Expositions totales | L172: 49,910 | Q172: 27,601 | V172: 32% | AA172: 59,098
A175: =SUM(D177:AE199) -> 259894 | B175: Portefeuille réglementaire / Pondération des risques | D175: Au 30 septembre 2024
B176: (en millions de dollars) | D176: 0% | E176: 10% | F176: 15% | G176: 20% | H176: 25% | I176: 30% | J176: 35% | K176: 40% | L176: 45% | M176: 50% | N176: 55% | O176: 60% | P176: 65% | Q176: 70% | R176: 75% | S176: 80% | T176: 85% | U176: 90% | V176: 100% | W176: 105% | X176: 110% | Y176: 130% | Z176: 150% | AA176: 250% | AB176: 400% | AC176: 1,250% | AD176: Autres | AE176: Total
A177: 1 | B177: Emprunteurs souverains | D177: 7,777 | G177: 101 | M177: 0 | V177: 0 | Z177: 0 | AD177: 0 | AE177: 7,878
A178: 2 | B178: Organismes publics hors administration centrale | D178: 0 | G178: 8,764 | M178: 0 | V178: 0 | Z178: 0 | AD178: 0 | AE178: 8,764
A179: 3 | B179: Banques multilatérales de développement | D179: 0 | G179: 0 | I179: 0 | M179: 0 | V179: 0 | Z179: 0 | AD179: 0 | AE179: 0
A180: 4 | B180: Institutions de dépôts et banques | G180: 1,057 | I180: 605 | K180: 0 | M180: 39 | R180: 0 | V180: 0 | Z180: 120 | AD180: 632 | AE180: 2,453
C181: Dont : entreprises d'investissement et autres institutions financières assimilées à des banques | G181: 0 | I181: 14 | K181: 0 | M181: 0 | R181: 0 | V181: 0 | Z181: 0 | AD181: 632 | AE181: 646
A182: 5 | B182: Obligations sécurisées | G182: 0 | I182: 0 | K182: 0 | M182: 0 | R182: 0 | V182: 0 | Z182: 0 | AD182: 0 | AE182: 0
A183: 6 | B183: Entreprises | G183: 1,211 | M183: 666 | P183: 0 | R183: 510 | S183: 2,358 | T183: 724 | V183: 8,666 | Y183: 2,012 | Z183: 40 | AD183: 0 | AE183: 16,187
C184: Dont : entreprises d'investissement et autres institutions financières assimilées à des entreprises | G184: 41 | M184: 0 | P184: 0 | R184: 0 | V184: 0 | Z184: 0 | AD184: 0 | AE184: 41
C185: Dont : financements spécialisés | G185: 0 | M185: 5 | R185: 0 | S185: 2,358 | V185: 267 | Y185: 2,012 | Z185: 0 | AD185: 0 | AE185: 4,642
A186: 7 | B186: Dettes subordonnées, actions et autres instruments de fonds propres | D186: 0 | G186: 0 | V186: 0 | Z186: 0 | AA186: 377 | AD186: 0 | AE186: 377
A187: 8 | B187: Portefeuilles de détail réglementaires | G187: 0 | H187: 0 | I187: 0 | J187: 0 | K187: 0 | L187: 0 | M187: 0 | N187: 0 | O187: 0 | P187: 0 | Q187: 0 | R187: 2,097 | S187: 0 | T187: 0 | U187: 0 | V187: 82 | W187: 0 | X187: 0 | Y187: 0 | Z187: 0 | AD187: 0 | AE187: 2,179
A188: 9 | B188: Immobiliers | D188: 0 | E188: 0 | F188: 0 | G188: 123 | H188: 11 | I188: 276 | J188: 422 | K188: 4 | L188: 738 | M188: 752 | N188: 0 | O188: 387 | P188: 0 | Q188: 406 | R188: 337 | S188: 0 | T188: 191 | U188: 558 | V188: 660 | W188: 3 | X188: 112 | Y188: 0 | Z188: 132 | AA188: 0 | AB188: 0 | AC188: 0 | AD188: 100 | AE188: 5,212
C189: Dont : immobiliers résidentiels général | D189: 0 | E189: 0 | F189: 0 | G189: 26 | H189: 11 | I189: 39 | J189: 39 | K189: 4 | M189: 3 | P189: 0 | Q189: 2 | R189: 217 | S189: 0 | T189: 0 | V189: 0 | Y189: 0 | Z189: 0 | AA189: 0 | AB189: 0 | AC189: 0 | AD189: 5 | AE189: 346
C190: Dont : immobiliers résidentiels producteur de revenus | D190: 0 | E190: 0 | F190: 0 | I190: 237 | J190: 383 | L190: 738 | M190: 749 | O190: 9 | R190: 3 | S190: 0 | W190: 3 | Y190: 0 | Z190: 51 | AA190: 0 | AB190: 0 | AC190: 0 | AD190: 0 | AE190: 2,173
C191: Dont : autres immobiliers résidentiels | D191: 0 | E191: 0 | F191: 0 | I191: 0 | J191: 0 | K191: 0 | L191: 0 | N191: 0 | O191: 0 | R191: 0 | S191: 0 | W191: 0 | Y191: 0 | Z191: 0 | AA191: 0 | AB191: 0 | AC191: 0 | AD191: 0 | AE191: 0
C192: Dont : immobiliers commerciaux général | D192: 0 | E192: 0 | F192: 0 | G192: 97 | I192: 0 | K192: 0 | M192: 0 | N192: 0 | O192: 378 | P192: 0 | R192: 117 | S192: 0 | T192: 191 | V192: 167 | Y192: 0 | Z192: 0 | AA192: 0 | AB192: 0 | AC192: 0 | AD192: 95 | AE192: 1,045
C193: Dont : immobiliers commerciaux producteur de revenus | D193: 0 | E193: 0 | F193: 0 | Q193: 404 | U193: 558 | X193: 112 | Y193: 0 | Z193: 76 | AA193: 0 | AB193: 0 | AC193: 0 | AD193: 0 | AE193: 1,150
C194: Dont : acquisitions de terrains, développements et constructions | D194: 0 | E194: 0 | F194: 0 | V194: 493 | Y194: 0 | Z194: 5 | AA194: 0 | AB194: 0 | AC194: 0 | AD194: 0 | AE194: 498
A195: 10 | B195: Prêts hypothécaires inversés | I195: 0 | J195: 0 | L195: 0 | O195: 0 | V195: 0 | Z195: 0 | AD195: 0 | AE195: 0
A196: 11 | B196: Titres adossés à des créances hypothécaires | G196: 0 | H196: 0 | I196: 0 | J196: 0 | K196: 0 | L196: 0 | M196: 0 | N196: 0 | O196: 0 | P196: 0 | Q196: 0 | R196: 0 | S196: 0 | T196: 0 | U196: 0 | V196: 0 | W196: 0 | X196: 0 | Y196: 0 | Z196: 0 | AD196: 0 | AE196: 0
A197: 12 | B197: Expositions en défaut | M197: 0 | V197: 38 | Z197: 61 | AD197: 0 | AE197: 99
A198: 13 | B198: Autres actifs(2) | D198: 10,410 | G198: 846 | V198: 5,298 | AC198: 0 | AD198: 0 | AE198: 16,554
A199: 14 | B199: Total | D199: 18,187 | E199: 0 | F199: 0 | G199: 12,102 | H199: 11 | I199: 881 | J199: 422 | K199: 4 | L199: 738 | M199: 1,457 | N199: 0 | O199: 387 | P199: 0 | Q199: 406 | R199: 2,944 | S199: 2,358 | T199: 915 | U199: 558 | V199: 14,744 | W199: 3 | X199: 112 | Y199: 2,012 | Z199: 353 | AA199: 377 | AB199: 0 | AC199: 0 | AD199: 732 | AE199: 59,703
B201: Montants d’exposition et CCF appliqués aux expositions hors bilan, classés en fonction de la catégorie de risques des expositions converties
A202: =SUM(L205:AE215) -> 273934.4576 | L202: a | Q202: b | V202: c | AA202: d
L203: Au 30 septembre 2024
B204: Pondération | L204: Expositions sur éléments de bilan | Q204: Expositions hors bilan (Avant FCEC) | V204: FCEC moyen pondéré(3) | AA204: Exposition (après FCEC et techniques ARC)(4)
A205: 1 | C205: moins de 40 % | L205: 27,795 | Q205: 9,285 | V205: 32% | AA205: 31,703
A206: 2 | C206: 40 % - 70 % | L206: 3,425 | Q206: 950 | V206: 42% | AA206: 3,622
A207: 3 | C207: 75 % - 80 % | L207: 3,597 | Q207: 5,880 | V207: 33% | AA207: 5,303
A208: 4 | C208: 85 % | L208: 886 | Q208: 411 | V208: 15% | AA208: 916
A209: 5 | C209: 90 % - 100 % | L209: 12,148 | Q209: 8,896 | V209: 37% | AA209: 15,302
A210: 6 | C210: 105 % - 130 % | L210: 1,874 | Q210: 598 | V210: 44% | AA210: 2,127
A211: 7 | C211: 150 % | L211: 509 | Q211: 632 | V211: 11% | AA211: 353
A212: 8 | C212: 250 % | L212: 377 | Q212: 0 | V212: 0 | AA212: 377
A213: 9 | C213: 400 % | L213: 0 | Q213: 0 | V213: 0 | AA213: 0
A214: 10 | C214: 1 250 % | L214: 0 | Q214: 0 | V214: 0 | AA214: 0
... 5 more rows

Sheet CR6 - AIRB - non détail
A1: Tableau CR6 – AIRB – Expositions au risque de crédit par portefeuille et par fourchette de probabilité de défaut (PD)
A2: Au 30 septembre 2025
A4: =SUM(C7:N34) -> 1220211.5745 | C4: a | D4: b | E4: c | F4: d | G4: e | H4: f | I4: g | J4: h | K4: i | L4: j | M4: k | N4: l
A6: (en millions de dollars) | B6: Fourchette de PD (%) | C6: Expositions au bilan brutes initiales | D6: Expositions hors bilan avant prise en compte des FCEC | E6: FCEC moyen | F6: ECD après prise en compte des techniques ARC et des FCEC | G6: PD moyenne | H6: Nombre de débiteurs | I6: PCD moyenne | J6: Échéance moyenne(1) | K6: APR | L6: Proportion des APR | M6: Perte attendue(2) | N6: Provisions(3)
A7: Expositions liées à des emprunteurs souverains | B7: 0,00 à ˂ 0,15 | C7: 44,659 | D7: 4,099 | E7: 46.68% | F7: 114,757 | G7: 0.02% | H7: 30 | I7: 26.18% | J7: 2.7 | K7: 6,696 | L7: 5.83% | M7: 4 | N7: s. o.
B8: 0,15 à ˂ 0,25 | C8: 0 | D8: 0 | E8: 0 | F8: 0 | G8: 0 | H8: 0 | I8: 0 | J8: 0 | K8: 0 | L8: 0 | M8: 0 | N8: s. o.
B9: 0,25 à ˂ 0,50 | C9: 10 | D9: 0 | E9: 0 | F9: 9 | G9: 0.27% | H9: 1 | I9: 9.98% | J9: 1.0 | K9: 1 | L9: 8.02% | M9: 0 | N9: s. o.
B10: 0,50 à ˂ 0,75 | C10: 0 | D10: 0 | E10: 0 | F10: 0 | G10: 0 | H10: 0 | I10: 0 | J10: 0 | K10: 0 | L10: 0 | M10: 0 | N10: s. o.
B11: 0,75 à ˂ 2,50 | C11: 4 | D11: 0 | E11: 0 | F11: 4 | G11: 1.94% | H11: 1 | I11: 75.00% | J11: 1.0 | K11: 6 | L11: 157.94% | M11: 0 | N11: s. o.
B12: 2,50 à ˂ 10,00 | C12: 0 | D12: 0 | E12: 0 | F12: 0 | G12: 0 | H12: 0 | I12: 0 | J12: 0 | K12: 0 | L12: 0 | M12: 0 | N12: s. o.
B13: 10,00 à ˂ 100,00 | C13: 3 | D13: 1 | E13: 30.12% | F13: 4 | G13: 25.01% | H13: 1 | I13: 24.45% | J13: 1.3 | K13: 5 | L13: 130.01% | M13: 0 | N13: s. o.
B14: 100,00 (défaut) | C14: 0 | D14: 0 | E14: 0 | F14: 0 | G14: 0 | H14: 0 | I14: 0 | J14: 0 | K14: 0 | L14: 0 | M14: 0 | N14: s. o.
B15: Sous-total | C15: 44,676 | D15: 4,100 | E15: 46.68% | F15: 114,774 | G15: 0.02% | H15: 33 | I15: 26.19% | J15: 2.7 | K15: 6,708 | L15: 5.84% | M15: 4 | N15: 21
A16: Expositions liées à des institutions financières | B16: 0,00 à ˂ 0,15 | C16: 0 | D16: 0 | E16: 0 | F16: 0 | G16: 0 | H16: 0 | I16: 0 | J16: 0 | K16: 0 | L16: 0 | M16: 0 | N16: s. o.
B17: 0,15 à ˂ 0,25 | C17: 0 | D17: 0 | E17: 0 | F17: 0 | G17: 0 | H17: 0 | I17: 0 | J17: 0 | K17: 0 | L17: 0 | M17: 0 | N17: s. o.
B18: 0,25 à ˂ 0,50 | C18: 0 | D18: 0 | E18: 0 | F18: 0 | G18: 0 | H18: 0 | I18: 0 | J18: 0 | K18: 0 | L18: 0 | M18: 0 | N18: s. o.
B19: 0,50 à ˂ 0,75 | C19: 0 | D19: 0 | E19: 0 | F19: 0 | G19: 0 | H19: 0 | I19: 0 | J19: 0 | K19: 0 | L19: 0 | M19: 0 | N19: s. o.
B20: 0,75 à ˂ 2,50 | C20: 0 | D20: 0 | E20: 0 | F20: 0 | G20: 0 | H20: 0 | I20: 0 | J20: 0 | K20: 0 | L20: 0 | M20: 0 | N20: s. o.
B21: 2,50 à ˂ 10,00 | C21: 0 | D21: 0 | E21: 0 | F21: 0 | G21: 0 | H21: 0 | I21: 0 | J21: 0 | K21: 0 | L21: 0 | M21: 0 | N21: s. o.
B22: 10,00 à ˂ 100,00 | C22: 0 | D22: 0 | E22: 0 | F22: 0 | G22: 0 | H22: 0 | I22: 0 | J22: 0 | K22: 0 | L22: 0 | M22: 0 | N22: s. o.
B23: 100,00 (défaut) | C23: 0 | D23: 0 | E23: 0 | F23: 0 | G23: 0 | H23: 0 | I23: 0 | J23: 0 | K23: 0 | L23: 0 | M23: 0 | N23: s. o.
B24: Sous-total | C24: 0 | D24: 0 | E24: 0 | F24: 0 | G24: 0 | H24: 0 | I24: 0 | J24: 0 | K24: 0 | L24: 0 | M24: 0 | N24: 0
A25: Expositions liées à des entreprises | B25: 0,00 à ˂ 0,15 | C25: 445 | D25: 164 | E25: 48.10% | F25: 508 | G25: 0.07% | H25: 2,217 | I25: 35.30% | J25: 1.2 | K25: 48 | L25: 9.30% | M25: 0 | N25: s. o.
B26: 0,15 à ˂ 0,25 | C26: 2,835 | D26: 1,888 | E26: 33.29% | F26: 2,959 | G26: 0.21% | H26: 32,147 | I26: 27.22% | J26: 1.2 | K26: 484 | L26: 16.37% | M26: 2 | N26: s. o.
B27: 0,25 à ˂ 0,50 | C27: 8,888 | D27: 4,327 | E27: 34.39% | F27: 9,285 | G27: 0.36% | H27: 15,011 | I27: 25.00% | J27: 1.3 | K27: 2,061 | L27: 22.20% | M27: 8 | N27: s. o.
B28: 0,50 à ˂ 0,75 | C28: 8,566 | D28: 2,845 | E28: 33.81% | F28: 8,673 | G28: 0.58% | H28: 4,414 | I28: 24.18% | J28: 1.3 | K28: 2,395 | L28: 27.61% | M28: 12 | N28: s. o.
B29: 0,75 à ˂ 2,50 | C29: 25,230 | D29: 7,575 | E29: 34.23% | F29: 24,715 | G29: 1.45% | H29: 13,354 | I29: 25.48% | J29: 1.3 | K29: 10,283 | L29: 41.61% | M29: 92 | N29: s. o.
B30: 2,50 à ˂ 10,00 | C30: 10,271 | D30: 2,162 | E30: 34.37% | F30: 9,306 | G30: 4.39% | H30: 4,113 | I30: 23.21% | J30: 1.3 | K30: 4,924 | L30: 52.92% | M30: 96 | N30: s. o.
B31: 10,00 à ˂ 100,00 | C31: 2,038 | D31: 403 | E31: 34.12% | F31: 1,945 | G31: 19.58% | H31: 703 | I31: 34.65% | J31: 1.2 | K31: 2,740 | L31: 140.85% | M31: 149 | N31: s. o.
B32: 100,00 (défaut) | C32: 1,616 | D32: 276 | E32: 12.02% | F32: 1,393 | G32: 100.00% | H32: 512 | I32: 24.97% | J32: 1.1 | K32: 1,630 | L32: 117.10% | M32: 346 | N32: s. o.
B33: Sous-total | C33: 59,889 | D33: 19,640 | E33: 33.97% | F33: 58,784 | G33: 4.47% | H33: 72,471 | I33: 25.32% | J33: 1.3 | K33: 24,565 | L33: 41.79% | M33: 705 | N33: 541
A34: Total de la clientèle non détail - AIRB | C34: 104,565 | D34: 23,740 | E34: 37.33% | F34: 173,558 | G34: 1.54% | H34: 72,504 | I34: 25.89% | J34: 2.2 | K34: 31,273 | L34: 18.02% | M34: 709 | N34: 562
A37: Au 30 juin 2025 | B37: =SUM(C42:N69) -> 1205173.6972
C39: a | D39: b | E39: c | F39: d | G39: e | H39: f | I39: g | J39: h | K39: i | L39: j | M39: k | N39: l
A41: (en millions de dollars) | B41: Fourchette de PD (%) | C41: Expositions au bilan brutes initiales | D41: Expositions hors bilan avant prise en compte des FCEC | E41: FCEC moyen | F41: ECD après prise en compte des techniques ARC et des FCEC | G41: PD moyenne | H41: Nombre de débiteurs | I41: PCD moyenne | J41: Échéance moyenne(1) | K41: APR | L41: Proportion des APR | M41: Perte attendue(2) | N41: Provisions(3)
A42: Expositions liées à des emprunteurs souverains | B42: 0,00 à ˂ 0,15 | C42: 44,270 | D42: 3,836 | E42: 46.61% | F42: 111,922 | G42: 0.02% | H42: 17 | I42: 26.31% | J42: 2.7 | K42: 6,592 | L42: 5.89% | M42: 4 | N42: s. o.
B43: 0,15 à ˂ 0,25 | C43: 0 | D43: 0 | E43: 0 | F43: 0 | G43: 0 | H43: 0 | I43: 0 | J43: 0 | K43: 0 | L43: 0 | M43: 0 | N43: s. o.
B44: 0,25 à ˂ 0,50 | C44: 9 | D44: 0 | E44: 0 | F44: 9 | G44: 0.27% | H44: 1 | I44: 9.98% | J44: 1.0 | K44: 1 | L44: 8.02% | M44: 0 | N44: s. o.
B45: 0,50 à ˂ 0,75 | C45: 0 | D45: 0 | E45: 0 | F45: 0 | G45: 0 | H45: 0 | I45: 0 | J45: 0 | K45: 0 | L45: 0 | M45: 0 | N45: s. o.
B46: 0,75 à ˂ 2,50 | C46: 0 | D46: 19 | E46: 100.00% | F46: 19 | G46: 1.94% | H46: 1 | I46: 14.42% | J46: 1.1 | K46: 6 | L46: 30.65% | M46: 0 | N46: s. o.
B47: 2,50 à ˂ 10,00 | C47: 0 | D47: 0 | E47: 0 | F47: 0 | G47: 0 | H47: 0 | I47: 0 | J47: 0 | K47: 0 | L47: 0 | M47: 0 | N47: s. o.
B48: 10,00 à ˂ 100,00 | C48: 0 | D48: 0 | E48: 0 | F48: 0 | G48: 0 | H48: 0 | I48: 0 | J48: 0 | K48: 0 | L48: 0 | M48: 0 | N48: s. o.
B49: 100,00 (défaut) | C49: 0 | D49: 0 | E49: 0 | F49: 0 | G49: 0 | H49: 0 | I49: 0 | J49: 0 | K49: 0 | L49: 0 | M49: 0 | N49: s. o.
B50: Sous-total | C50: 44,279 | D50: 3,855 | E50: 46.78% | F50: 111,950 | G50: 0.02% | H50: 19 | I50: 26.31% | J50: 2.7 | K50: 6,599 | L50: 5.89% | M50: 4 | N50: 18
A51: Expositions liées à des institutions financières | B51: 0,00 à ˂ 0,15 | C51: 0 | D51: 0 | E51: 0 | F51: 0 | G51: 0 | H51: 0 | I51: 0 | J51: 0 | K51: 0 | L51: 0 | M51: 0 | N51: s. o.
B52: 0,15 à ˂ 0,25 | C52: 0 | D52: 0 | E52: 0 | F52: 0 | G52: 0 | H52: 0 | I52: 0 | J52: 0 | K52: 0 | L52: 0 | M52: 0 | N52: s. o.
B53: 0,25 à ˂ 0,50 | C53: 0 | D53: 0 | E53: 0 | F53: 0 | G53: 0 | H53: 0 | I53: 0 | J53: 0 | K53: 0 | L53: 0 | M53: 0 | N53: s. o.
B54: 0,50 à ˂ 0,75 | C54: 0 | D54: 0 | E54: 0 | F54: 0 | G54: 0 | H54: 0 | I54: 0 | J54: 0 | K54: 0 | L54: 0 | M54: 0 | N54: s. o.
B55: 0,75 à ˂ 2,50 | C55: 0 | D55: 0 | E55: 0 | F55: 0 | G55: 0 | H55: 0 | I55: 0 | J55: 0 | K55: 0 | L55: 0 | M55: 0 | N55: s. o.
B56: 2,50 à ˂ 10,00 | C56: 0 | D56: 0 | E56: 0 | F56: 0 | G56: 0 | H56: 0 | I56: 0 | J56: 0 | K56: 0 | L56: 0 | M56: 0 | N56: s. o.
B57: 10,00 à ˂ 100,00 | C57: 0 | D57: 0 | E57: 0 | F57: 0 | G57: 0 | H57: 0 | I57: 0 | J57: 0 | K57: 0 | L57: 0 | M57: 0 | N57: s. o.
B58: 100,00 (défaut) | C58: 0 | D58: 0 | E58: 0 | F58: 0 | G58: 0 | H58: 0 | I58: 0 | J58: 0 | K58: 0 | L58: 0 | M58: 0 | N58: s. o.
B59: Sous-total | C59: 0 | D59: 0 | E59: 0 | F59: 0 | G59: 0 | H59: 0 | I59: 0 | J59: 0 | K59: 0 | L59: 0 | M59: 0 | N59: 0
A60: Expositions liées à des entreprises | B60: 0,00 à ˂ 0,15 | C60: 464 | D60: 168 | E60: 51.43% | F60: 525 | G60: 0.07% | H60: 2,180 | I60: 35.48% | J60: 1.2 | K60: 50 | L60: 9.68% | M60: 0 | N60: s. o.
B61: 0,15 à ˂ 0,25 | C61: 2,845 | D61: 1,822 | E61: 33.15% | F61: 2,957 | G61: 0.21% | H61: 32,080 | I61: 27.25% | J61: 1.2 | K61: 486 | L61: 16.42% | M61: 1 | N61: s. o.
B62: 0,25 à ˂ 0,50 | C62: 8,522 | D62: 4,162 | E62: 36.21% | F62: 9,050 | G62: 0.36% | H62: 14,639 | I62: 26.28% | J62: 1.3 | K62: 2,138 | L62: 23.63% | M62: 8 | N62: s. o.
B63: 0,50 à ˂ 0,75 | C63: 7,945 | D63: 2,965 | E63: 33.52% | F63: 8,104 | G63: 0.58% | H63: 4,316 | I63: 24.87% | J63: 1.3 | K63: 2,310 | L63: 28.50% | M63: 12 | N63: s. o.
B64: 0,75 à ˂ 2,50 | C64: 25,084 | D64: 7,303 | E64: 34.61% | F64: 24,691 | G64: 1.46% | H64: 13,031 | I64: 25.01% | J64: 1.3 | K64: 10,136 | L64: 41.05% | M64: 91 | N64: s. o.
B65: 2,50 à ˂ 10,00 | C65: 10,753 | D65: 2,206 | E65: 33.60% | F65: 9,837 | G65: 4.28% | H65: 4,048 | I65: 23.09% | J65: 1.3 | K65: 5,117 | L65: 52.02% | M65: 98 | N65: s. o.
B66: 10,00 à ˂ 100,00 | C66: 2,293 | D66: 466 | E66: 35.73% | F66: 2,197 | G66: 19.87% | H66: 652 | I66: 38.62% | J66: 1.2 | K66: 3,464 | L66: 157.68% | M66: 188 | N66: s. o.
B67: 100,00 (défaut) | C67: 1,436 | D67: 275 | E67: 12.67% | F67: 1,211 | G67: 100.00% | H67: 532 | I67: 25.74% | J67: 1.0 | K67: 1,481 | L67: 122.35% | M67: 306 | N67: s. o.
B68: Sous-total | C68: 59,342 | D68: 19,367 | E68: 34.46% | F68: 58,572 | G68: 4.29% | H68: 71,478 | I68: 25.59% | J68: 1.3 | K68: 25,182 | L68: 42.99% | M68: 704 | N68: 524
A69: Total de la clientèle non détail - AIRB | C69: 103,621 | D69: 23,222 | E69: 37.66% | F69: 170,522 | G69: 1.50% | H69: 71,497 | I69: 26.06% | J69: 2.2 | K69: 31,781 | L69: 18.64% | M69: 708 | N69: 542
A72: Au 31 mars 2025 | B72: =SUM(C77:N104) -> 1,165,960.43
C74: a | D74: b | E74: c | F74: d | G74: e | H74: f | I74: g | J74: h | K74: i | L74: j | M74: k | N74: l
A76: (en millions de dollars) | B76: Fourchette de PD (%) | C76: Expositions au bilan brutes initiales | D76: Expositions hors bilan avant prise en compte des FCEC | E76: FCEC moyen | F76: ECD après prise en compte des techniques ARC et des FCEC | G76: PD moyenne | H76: Nombre de débiteurs | I76: PCD moyenne | J76: Échéance moyenne(1) | K76: APR | L76: Proportion des APR | M76: Perte attendue(2) | N76: Provisions(3)
A77: Expositions liées à des emprunteurs souverains | B77: 0,00 à ˂ 0,15 | C77: 42,993 | D77: 2,564 | E77: 46.06% | F77: 105,991 | G77: 0.02% | H77: 30 | I77: 26.38% | J77: 2.7 | K77: 6,258 | L77: 5.90% | M77: 4 | N77: s. o.
B78: 0,15 à ˂ 0,25 | C78: 0 | D78: 0 | E78: 0 | F78: 0 | G78: 0 | H78: 0 | I78: 0 | J78: 0 | K78: 0 | L78: 0 | M78: 0 | N78: s. o.
B79: 0,25 à ˂ 0,50 | C79: 9 | D79: 0 | E79: 0 | F79: 9 | G79: 0.27% | H79: 1 | I79: 9.98% | J79: 1.0 | K79: 1 | L79: 8.02% | M79: 0 | N79: s. o.
B80: 0,50 à ˂ 0,75 | C80: 0 | D80: 0 | E80: 0 | F80: 0 | G80: 0 | H80: 0 | I80: 0 | J80: 0 | K80: 0 | L80: 0 | M80: 0 | N80: s. o.
B81: 0,75 à ˂ 2,50 | C81: 0 | D81: 0 | E81: 0 | F81: 0 | G81: 0 | H81: 0 | I81: 0 | J81: 0 | K81: 0 | L81: 0 | M81: 0 | N81: s. o.
B82: 2,50 à ˂ 10,00 | C82: 0 | D82: 0 | E82: 0 | F82: 0 | G82: 0 | H82: 0 | I82: 0 | J82: 0 | K82: 0 | L82: 0 | M82: 0 | N82: s. o.
B83: 10,00 à ˂ 100,00 | C83: 0 | D83: 0 | E83: 0 | F83: 0 | G83: 0 | H83: 0 | I83: 0 | J83: 0 | K83: 0 | L83: 0 | M83: 0 | N83: s. o.
B84: 100,00 (défaut) | C84: 0 | D84: 0 | E84: 0 | F84: 0 | G84: 0 | H84: 0 | I84: 0 | J84: 0 | K84: 0 | L84: 0 | M84: 0 | N84: s. o.
B85: Sous-total | C85: 43,002 | D85: 2,564 | E85: 46.06% | F85: 106,000 | G85: 0.02% | H85: 31 | I85: 26.38% | J85: 2.7 | K85: 6,259 | L85: 5.90% | M85: 4 | N85: 16
A86: Expositions liées à des institutions financières | B86: 0,00 à ˂ 0,15 | C86: 0 | D86: 0 | E86: 0 | F86: 0 | G86: 0 | H86: 0 | I86: 0 | J86: 0 | K86: 0 | L86: 0 | M86: 0 | N86: s. o.
B87: 0,15 à ˂ 0,25 | C87: 0 | D87: 0 | E87: 0 | F87: 0 | G87: 0 | H87: 0 | I87: 0 | J87: 0 | K87: 0 | L87: 0 | M87: 0 | N87: s. o.
B88: 0,25 à ˂ 0,50 | C88: 0 | D88: 0 | E88: 0 | F88: 0 | G88: 0 | H88: 0 | I88: 0 | J88: 0 | K88: 0 | L88: 0 | M88: 0 | N88: s. o.
B89: 0,50 à ˂ 0,75 | C89: 0 | D89: 0 | E89: 0 | F89: 0 | G89: 0 | H89: 0 | I89: 0 | J89: 0 | K89: 0 | L89: 0 | M89: 0 | N89: s. o.
B90: 0,75 à ˂ 2,50 | C90: 0 | D90: 0 | E90: 0 | F90: 0 | G90: 0 | H90: 0 | I90: 0 | J90: 0 | K90: 0 | L90: 0 | M90: 0 | N90: s. o.
B91: 2,50 à ˂ 10,00 | C91: 0 | D91: 0 | E91: 0 | F91: 0 | G91: 0 | H91: 0 | I91: 0 | J91: 0 | K91: 0 | L91: 0 | M91: 0 | N91: s. o.
B92: 10,00 à ˂ 100,00 | C92: 0 | D92: 0 | E92: 0 | F92: 0 | G92: 0 | H92: 0 | I92: 0 | J92: 0 | K92: 0 | L92: 0 | M92: 0 | N92: s. o.
B93: 100,00 (défaut) | C93: 0 | D93: 0 | E93: 0 | F93: 0 | G93: 0 | H93: 0 | I93: 0 | J93: 0 | K93: 0 | L93: 0 | M93: 0 | N93: s. o.
B94: Sous-total | C94: 0 | D94: 0 | E94: 0 | F94: 0 | G94: 0 | H94: 0 | I94: 0 | J94: 0 | K94: 0 | L94: 0 | M94: 0 | N94: 0
A95: Expositions liées à des entreprises | B95: 0,00 à ˂ 0,15 | C95: 408 | D95: 170 | E95: 51.00% | F95: 475 | G95: 0.07% | H95: 2,045 | I95: 35.26% | J95: 1.2 | K95: 47 | L95: 9.81% | M95: 0 | N95: s. o.
B96: 0,15 à ˂ 0,25 | C96: 2,878 | D96: 1,805 | E96: 32.99% | F96: 2,930 | G96: 0.21% | H96: 32,064 | I96: 26.74% | J96: 1.2 | K96: 467 | L96: 15.93% | M96: 2 | N96: s. o.
B97: 0,25 à ˂ 0,50 | C97: 8,340 | D97: 4,212 | E97: 37.00% | F97: 8,983 | G97: 0.35% | H97: 14,342 | I97: 26.21% | J97: 1.4 | K97: 2,132 | L97: 23.74% | M97: 8 | N97: s. o.
B98: 0,50 à ˂ 0,75 | C98: 7,900 | D98: 3,187 | E98: 35.04% | F98: 8,265 | G98: 0.58% | H98: 4,281 | I98: 24.65% | J98: 1.3 | K98: 2,366 | L98: 28.63% | M98: 12 | N98: s. o.
B99: 0,75 à ˂ 2,50 | C99: 23,814 | D99: 7,037 | E99: 33.76% | F99: 23,488 | G99: 1.45% | H99: 13,091 | I99: 25.00% | J99: 1.3 | K99: 9,541 | L99: 40.62% | M99: 86 | N99: s. o.
B100: 2,50 à ˂ 10,00 | C100: 10,422 | D100: 2,465 | E100: 34.43% | F100: 9,674 | G100: 4.29% | H100: 4,094 | I100: 23.67% | J100: 1.3 | K100: 5,195 | L100: 53.70% | M100: 99 | N100: s. o.
B101: 10,00 à ˂ 100,00 | C101: 2,202 | D101: 485 | E101: 33.79% | F101: 2,075 | G101: 20.08% | H101: 686 | I101: 38.32% | J101: 1.2 | K101: 3,370 | L101: 162.43% | M101: 177 | N101: s. o.
B102: 100,00 (défaut) | C102: 1,366 | D102: 248 | E102: 15.34% | F102: 1,179 | G102: 100.00% | H102: 522 | I102: 24.82% | J102: 1.0 | K102: 1,603 | L102: 135.94% | M102: 242 | N102: s. o.
B103: Sous-total | C103: 57,330 | D103: 19,609 | E103: 34.67% | F103: 57,069 | G103: 4.27% | H103: 71,125 | I103: 25.57% | J103: 1.3 | K103: 24,721 | L103: 43.32% | M103: 626 | N103: 437
A104: Total de la clientèle non détail - AIRB | C104: 100,332 | D104: 22,173 | E104: 37.65% | F104: 163,069 | G104: 1.51% | H104: 71,156 | I104: 26.10% | J104: 2.2 | K104: 30,980 | L104: 19.00% | M104: 630 | N104: 453
A107: Au 31 décembre 2024 | B107: =SUM(C112:N139) -> 1,125,639.64
C109: a | D109: b | E109: c | F109: d | G109: e | H109: f | I109: g | J109: h | K109: i | L109: j | M109: k | N109: l
A111: (en millions de dollars) | B111: Fourchette de PD (%) | C111: Expositions au bilan brutes initiales | D111: Expositions hors bilan avant prise en compte des FCEC | E111: FCEC moyen | F111: ECD après prise en compte des techniques ARC et des FCEC | G111: PD moyenne | H111: Nombre de débiteurs | I111: PCD moyenne | J111: Échéance moyenne(1) | K111: APR | L111: Proportion des APR | M111: Perte attendue(2) | N111: Provisions(3)
A112: Expositions liées à des emprunteurs souverains | B112: 0,00 à ˂ 0,15 | C112: 39,503 | D112: 2,835 | E112: 44.90% | F112: 99,900 | G112: 0.02% | H112: 31 | I112: 28.82% | J112: 2.8 | K112: 7,150 | L112: 7.16% | M112: 5 | N112: s. o.
B113: 0,15 à ˂ 0,25 | C113: 0 | D113: 0 | E113: 0 | F113: 0 | G113: 0 | H113: 0 | I113: 0 | J113: 0 | K113: 0 | L113: 0 | M113: 0 | N113: s. o.
B114: 0,25 à ˂ 0,50 | C114: 9 | D114: 0 | E114: 0 | F114: 9 | G114: 0.27% | H114: 1 | I114: 50.00% | J114: 1.1 | K114: 4 | L114: 41.42% | M114: 0 | N114: s. o.
B115: 0,50 à ˂ 0,75 | C115: 0 | D115: 0 | E115: 0 | F115: 0 | G115: 0 | H115: 0 | I115: 0 | J115: 0 | K115: 0 | L115: 0 | M115: 0 | N115: s. o.
B116: 0,75 à ˂ 2,50 | C116: 0 | D116: 0 | E116: 0 | F116: 0 | G116: 0 | H116: 0 | I116: 0 | J116: 0 | K116: 0 | L116: 0 | M116: 0 | N116: s. o.
B117: 2,50 à ˂ 10,00 | C117: 0 | D117: 0 | E117: 0 | F117: 0 | G117: 0 | H117: 0 | I117: 0 | J117: 0 | K117: 0 | L117: 0 | M117: 0 | N117: s. o.
B118: 10,00 à ˂ 100,00 | C118: 0 | D118: 0 | E118: 0 | F118: 0 | G118: 0 | H118: 0 | I118: 0 | J118: 0 | K118: 0 | L118: 0 | M118: 0 | N118: s. o.
B119: 100,00 (défaut) | C119: 0 | D119: 0 | E119: 0 | F119: 0 | G119: 0 | H119: 0 | I119: 0 | J119: 0 | K119: 0 | L119: 0 | M119: 0 | N119: s. o.
B120: Sous-total | C120: 39,512 | D120: 2,835 | E120: 44.90% | F120: 99,909 | G120: 0.02% | H120: 32 | I120: 28.82% | J120: 2.8 | K120: 7,154 | L120: 7.16% | M120: 5 | N120: 11
A121: Expositions liées à des institutions financières | B121: 0,00 à ˂ 0,15 | C121: 0 | D121: 0 | E121: 0 | F121: 0 | G121: 0 | H121: 0 | I121: 0 | J121: 0 | K121: 0 | L121: 0 | M121: 0 | N121: s. o.
B122: 0,15 à ˂ 0,25 | C122: 0 | D122: 0 | E122: 0 | F122: 0 | G122: 0 | H122: 0 | I122: 0 | J122: 0 | K122: 0 | L122: 0 | M122: 0 | N122: s. o.
B123: 0,25 à ˂ 0,50 | C123: 0 | D123: 0 | E123: 0 | F123: 0 | G123: 0 | H123: 0 | I123: 0 | J123: 0 | K123: 0 | L123: 0 | M123: 0 | N123: s. o.
B124: 0,50 à ˂ 0,75 | C124: 0 | D124: 0 | E124: 0 | F124: 0 | G124: 0 | H124: 0 | I124: 0 | J124: 0 | K124: 0 | L124: 0 | M124: 0 | N124: s. o.
B125: 0,75 à ˂ 2,50 | C125: 0 | D125: 0 | E125: 0 | F125: 0 | G125: 0 | H125: 0 | I125: 0 | J125: 0 | K125: 0 | L125: 0 | M125: 0 | N125: s. o.
B126: 2,50 à ˂ 10,00 | C126: 0 | D126: 0 | E126: 0 | F126: 0 | G126: 0 | H126: 0 | I126: 0 | J126: 0 | K126: 0 | L126: 0 | M126: 0 | N126: s. o.
B127: 10,00 à ˂ 100,00 | C127: 0 | D127: 0 | E127: 0 | F127: 0 | G127: 0 | H127: 0 | I127: 0 | J127: 0 | K127: 0 | L127: 0 | M127: 0 | N127: s. o.
B128: 100,00 (défaut) | C128: 0 | D128: 0 | E128: 0 | F128: 0 | G128: 0 | H128: 0 | I128: 0 | J128: 0 | K128: 0 | L128: 0 | M128: 0 | N128: s. o.
B129: Sous-total | C129: 0 | D129: 0 | E129: 0 | F129: 0 | G129: 0 | H129: 0 | I129: 0 | J129: 0 | K129: 0 | L129: 0 | M129: 0 | N129: 0
A130: Expositions liées à des entreprises | B130: 0,00 à ˂ 0,15 | C130: 404 | D130: 158 | E130: 52.03% | F130: 470 | G130: 0.07% | H130: 1,967 | I130: 34.80% | J130: 1.3 | K130: 44 | L130: 9.25% | M130: 0 | N130: s. o.
B131: 0,15 à ˂ 0,25 | C131: 2,927 | D131: 1,726 | E131: 32.45% | F131: 2,912 | G131: 0.21% | H131: 31,990 | I131: 26.63% | J131: 1.2 | K131: 455 | L131: 15.63% | M131: 2 | N131: s. o.
B132: 0,25 à ˂ 0,50 | C132: 7,934 | D132: 4,201 | E132: 35.47% | F132: 8,525 | G132: 0.35% | H132: 14,110 | I132: 25.35% | J132: 1.4 | K132: 1,910 | L132: 22.40% | M132: 8 | N132: s. o.
B133: 0,50 à ˂ 0,75 | C133: 7,701 | D133: 3,201 | E133: 34.69% | F133: 8,127 | G133: 0.57% | H133: 4,228 | I133: 24.14% | J133: 1.4 | K133: 2,285 | L133: 28.12% | M133: 11 | N133: s. o.
B134: 0,75 à ˂ 2,50 | C134: 23,892 | D134: 6,797 | E134: 34.38% | F134: 23,535 | G134: 1.46% | H134: 12,971 | I134: 24.69% | J134: 1.3 | K134: 9,492 | L134: 40.34% | M134: 85 | N134: s. o.
B135: 2,50 à ˂ 10,00 | C135: 9,862 | D135: 2,355 | E135: 34.82% | F135: 9,272 | G135: 4.31% | H135: 3,877 | I135: 23.73% | J135: 1.3 | K135: 5,090 | L135: 54.89% | M135: 95 | N135: s. o.
B136: 10,00 à ˂ 100,00 | C136: 1,997 | D136: 420 | E136: 32.60% | F136: 1,885 | G136: 19.14% | H136: 681 | I136: 35.95% | J136: 1.4 | K136: 2,858 | L136: 151.64% | M136: 144 | N136: s. o.
B137: 100,00 (défaut) | C137: 1,302 | D137: 252 | E137: 15.09% | F137: 1,124 | G137: 100.00% | H137: 535 | I137: 23.63% | J137: 1.0 | K137: 1,461 | L137: 130.00% | M137: 215 | N137: s. o.
B138: Sous-total | C138: 56,019 | D138: 19,110 | E138: 34.46% | F138: 55,850 | G138: 4.13% | H138: 70,359 | I138: 25.10% | J138: 1.3 | K138: 23,595 | L138: 42.25% | M138: 560 | N138: 381
A139: Total de la clientèle non détail - AIRB | C139: 95,531 | D139: 21,945 | E139: 37.13% | F139: 155,759 | G139: 1.49% | H139: 70,391 | I139: 27.49% | J139: 2.2 | K139: 30,749 | L139: 19.74% | M139: 565 | N139: 392
A142: Au 30 septembre 2024 | B142: =SUM(C147:N174) -> 1,075,307.18
C144: a | D144: b | E144: c | F144: d | G144: e | H144: f | I144: g | J144: h | K144: i | L144: j | M144: k | N144: l
A146: (en millions de dollars) | B146: Fourchette de PD (%) | C146: Expositions au bilan brutes initiales | D146: Expositions hors bilan avant prise en compte des FCEC | E146: FCEC moyen | F146: ECD après prise en compte des techniques ARC et des FCEC | G146: PD moyenne | H146: Nombre de débiteurs | I146: PCD moyenne | J146: Échéance moyenne(1) | K146: APR | L146: Proportion des APR | M146: Perte attendue(2) | N146: Provisions(3)
A147: Expositions liées à des emprunteurs souverains | B147: 0,00 à ˂ 0,15 | C147: 35,661 | D147: 2,699 | E147: 44.47% | F147: 93,006 | G147: 0.02% | H147: 32 | I147: 29.28% | J147: 2.8 | K147: 6,842 | L147: 7.36% | M147: 5 | N147: s. o.
B148: 0,15 à ˂ 0,25 | C148: 0 | D148: 0 | E148: 0 | F148: 0 | G148: 0 | H148: 0 | I148: 0 | J148: 0 | K148: 0 | L148: 0 | M148: 0 | N148: s. o.
B149: 0,25 à ˂ 0,50 | C149: 29 | D149: 0 | E149: 0 | F149: 29 | G149: 0.27% | H149: 1 | I149: 50.00% | J149: 1.4 | K149: 13 | L149: 44.24% | M149: 0 | N149: s. o.
B150: 0,50 à ˂ 0,75 | C150: 0 | D150: 0 | E150: 0 | F150: 0 | G150: 0 | H150: 0 | I150: 0 | J150: 0 | K150: 0 | L150: 0 | M150: 0 | N150: s. o.
B151: 0,75 à ˂ 2,50 | C151: 0 | D151: 0 | E151: 0 | F151: 0 | G151: 0 | H151: 0 | I151: 0 | J151: 0 | K151: 0 | L151: 0 | M151: 0 | N151: s. o.
B152: 2,50 à ˂ 10,00 | C152: 0 | D152: 0 | E152: 0 | F152: 0 | G152: 0 | H152: 0 | I152: 0 | J152: 0 | K152: 0 | L152: 0 | M152: 0 | N152: s. o.
B153: 10,00 à ˂ 100,00 | C153: 0 | D153: 0 | E153: 0 | F153: 0 | G153: 0 | H153: 0 | I153: 0 | J153: 0 | K153: 0 | L153: 0 | M153: 0 | N153: s. o.
B154: 100,00 (défaut) | C154: 0 | D154: 0 | E154: 0 | F154: 0 | G154: 0 | H154: 0 | I154: 0 | J154: 0 | K154: 0 | L154: 0 | M154: 0 | N154: s. o.
B155: Sous-total | C155: 35,690 | D155: 2,699 | E155: 44.47% | F155: 93,035 | G155: 0.02% | H155: 33 | I155: 29.29% | J155: 2.8 | K155: 6,855 | L155: 7.37% | M155: 5 | N155: 15
A156: Expositions liées à des institutions financières | B156: 0,00 à ˂ 0,15 | C156: 0 | D156: 0 | E156: 0 | F156: 0 | G156: 0 | H156: 0 | I156: 0 | J156: 0 | K156: 0 | L156: 0 | M156: 0 | N156: s. o.
B157: 0,15 à ˂ 0,25 | C157: 0 | D157: 0 | E157: 0 | F157: 0 | G157: 0 | H157: 0 | I157: 0 | J157: 0 | K157: 0 | L157: 0 | M157: 0 | N157: s. o.
B158: 0,25 à ˂ 0,50 | C158: 0 | D158: 0 | E158: 0 | F158: 0 | G158: 0 | H158: 0 | I158: 0 | J158: 0 | K158: 0 | L158: 0 | M158: 0 | N158: s. o.
B159: 0,50 à ˂ 0,75 | C159: 0 | D159: 0 | E159: 0 | F159: 0 | G159: 0 | H159: 0 | I159: 0 | J159: 0 | K159: 0 | L159: 0 | M159: 0 | N159: s. o.
B160: 0,75 à ˂ 2,50 | C160: 0 | D160: 0 | E160: 0 | F160: 0 | G160: 0 | H160: 0 | I160: 0 | J160: 0 | K160: 0 | L160: 0 | M160: 0 | N160: s. o.
B161: 2,50 à ˂ 10,00 | C161: 0 | D161: 0 | E161: 0 | F161: 0 | G161: 0 | H161: 0 | I161: 0 | J161: 0 | K161: 0 | L161: 0 | M161: 0 | N161: s. o.
B162: 10,00 à ˂ 100,00 | C162: 0 | D162: 0 | E162: 0 | F162: 0 | G162: 0 | H162: 0 | I162: 0 | J162: 0 | K162: 0 | L162: 0 | M162: 0 | N162: s. o.
B163: 100,00 (défaut) | C163: 0 | D163: 0 | E163: 0 | F163: 0 | G163: 0 | H163: 0 | I163: 0 | J163: 0 | K163: 0 | L163: 0 | M163: 0 | N163: s. o.
B164: Sous-total | C164: 0 | D164: 0 | E164: 0 | F164: 0 | G164: 0 | H164: 0 | I164: 0 | J164: 0 | K164: 0 | L164: 0 | M164: 0 | N164: 0
A165: Expositions liées à des entreprises | B165: 0,00 à ˂ 0,15 | C165: 410 | D165: 154 | E165: 59.53% | F165: 488 | G165: 0.07% | H165: 1,848 | I165: 33.74% | J165: 1.3 | K165: 45 | L165: 9.33% | M165: 0 | N165: s. o.
B166: 0,15 à ˂ 0,25 | C166: 2,830 | D166: 1,637 | E166: 32.76% | F166: 2,854 | G166: 0.21% | H166: 31,675 | I166: 25.05% | J166: 1.2 | K166: 423 | L166: 14.83% | M166: 1 | N166: s. o.
B167: 0,25 à ˂ 0,50 | C167: 7,480 | D167: 4,236 | E167: 35.76% | F167: 8,122 | G167: 0.35% | H167: 14,093 | I167: 25.58% | J167: 1.4 | K167: 1,840 | L167: 22.66% | M167: 7 | N167: s. o.
B168: 0,50 à ˂ 0,75 | C168: 6,977 | D168: 2,802 | E168: 35.08% | F168: 7,324 | G168: 0.57% | H168: 4,212 | I168: 24.53% | J168: 1.4 | K168: 2,050 | L168: 27.98% | M168: 10 | N168: s. o.
B169: 0,75 à ˂ 2,50 | C169: 23,857 | D169: 6,580 | E169: 34.04% | F169: 23,411 | G169: 1.44% | H169: 13,283 | I169: 24.78% | J169: 1.4 | K169: 9,489 | L169: 40.53% | M169: 84 | N169: s. o.
B170: 2,50 à ˂ 10,00 | C170: 9,376 | D170: 1,976 | E170: 35.60% | F170: 8,682 | G170: 4.38% | H170: 3,943 | I170: 23.83% | J170: 1.3 | K170: 4,812 | L170: 55.43% | M170: 91 | N170: s. o.
B171: 10,00 à ˂ 100,00 | C171: 1,905 | D171: 435 | E171: 33.47% | F171: 1,852 | G171: 18.72% | H171: 733 | I171: 35.88% | J171: 1.2 | K171: 2,703 | L171: 145.93% | M171: 141 | N171: s. o.
B172: 100,00 (défaut) | C172: 1,323 | D172: 260 | E172: 14.98% | F172: 1,125 | G172: 100.00% | H172: 550 | I172: 23.38% | J172: 1.0 | K172: 1,549 | L172: 137.63% | M172: 196 | N172: s. o.
B173: Sous-total | C173: 54,158 | D173: 18,080 | E173: 34.63% | F173: 53,858 | G173: 4.21% | H173: 70,337 | I173: 25.16% | J173: 1.4 | K173: 22,911 | L173: 42.54% | M173: 530 | N173: 334
A174: Total de la clientèle non détail - AIRB | C174: 89,848 | D174: 20,779 | E174: 37.04% | F174: 146,893 | G174: 1.55% | H174: 70,370 | I174: 27.78% | J174: 2.3 | K174: 29,766 | L174: 20.26% | M174: 535 | N174: 349
A176: (1) Ce paramètre doit être renseigné uniquement lorsqu'il est utilisé pour le calcul des APR.
A177: (2) La perte attendue est évaluée conformément aux exigences de la ligne directrice de l’AMF.
A178: (3) Les provisions sont évaluées conformément aux exigences de la ligne directrice de l’AMF.

Sheet CR6 - AIRB - détail
A1: Tableau CR6 – AIRB – Expositions au risque de crédit par portefeuille et par fourchette de probabilité de défaut (PD)
A2: Au 30 septembre 2025
A4: =SUM(C7:N52) -> 20258345.557 | C4: a | D4: b | E4: c | F4: d | G4: e | H4: f | I4: g | J4: h | K4: i | L4: j | M4: k | N4: l
A6: (en millions de dollars) | B6: Fourchette de PD (%) | C6: Expositions au bilan brutes initiales | D6: Expositions hors bilan avant prise en compte des FCEC | E6: FCEC moyen | F6: ECD après prise en compte des techniques ARC et des FCEC | G6: PD moyenne | H6: Nombre de débiteurs | I6: PCD moyenne | J6: Échéance moyenne(1) | K6: APR | L6: Proportion des APR | M6: Perte attendue(2) | N6: Provisions(3)
A7: Expositions liées à des créances hypothécaires au logement Expositions assurées | B7: 0,00 à ˂ 0,15 | C7: 5,888 | D7: 22 | E7: 40.00% | F7: 972 | G7: 0.08% | H7: 40,419 | I7: 38.30% | J7: s. o. | K7: 77 | L7: 7.88% | M7: 0 | N7: s. o.
B8: 0,15 à ˂ 0,25 | C8: 7,672 | D8: 17 | E8: 40.00% | F8: 346 | G8: 0.18% | H8: 39,192 | I8: 79.90% | J8: s. o. | K8: 106 | L8: 30.61% | M8: 1 | N8: s. o.
B9: 0,25 à ˂ 0,50 | C9: 6,243 | D9: 23 | E9: 40.00% | F9: 0 | G9: 0.48% | H9: 145 | I9: 21.95% | J9: s. o. | K9: 0 | L9: 16.57% | M9: 0 | N9: s. o.
B10: 0,50 à ˂ 0,75 | C10: 12,709 | D10: 133 | E10: 40.00% | F10: 135 | G10: 0.63% | H10: 29,714 | I10: 40.97% | J10: s. o. | K10: 53 | L10: 38.87% | M10: 0 | N10: s. o.
B11: 0,75 à ˂ 2,50 | C11: 19,487 | D11: 1,597 | E11: 40.00% | F11: 220 | G11: 1.56% | H11: 35,740 | I11: 42.45% | J11: s. o. | K11: 161 | L11: 73.20% | M11: 1 | N11: s. o.
B12: 2,50 à ˂ 10,00 | C12: 3,126 | D12: 64 | E12: 40.00% | F12: 64 | G12: 4.20% | H12: 10,012 | I12: 43.93% | J12: s. o. | K12: 85 | L12: 134.92% | M12: 2 | N12: s. o.
B13: 10,00 à ˂ 100,00 | C13: 732 | D13: 3 | E13: 40.00% | F13: 4 | G13: 25.26% | H13: 939 | I13: 41.21% | J13: s. o. | K13: 10 | L13: 240.06% | M13: 0 | N13: s. o.
B14: 100,00 (défaut) | C14: 428 | D14: 2 | E14: 40.00% | F14: 2 | G14: 100.00% | H14: 1,534 | I14: 31.74% | J14: s. o. | K14: 7 | L14: 346.57% | M14: 0 | N14: s. o.
B15: Sous-total | C15: 56,285 | D15: 1,861 | E15: 40.00% | F15: 1,743 | G15: 0.65% | H15: 157,695 | I15: 47.50% | J15: s. o. | K15: 499 | L15: 28.57% | M15: 4 | N15: 8
A16: Expositions liées à des créances hypothécaires au logement Expositions non assurées | B16: 0,00 à ˂ 0,15 | C16: 38,597 | D16: 21,897 | E16: 66.48% | F16: 52,182 | G16: 0.08% | H16: 563,796 | I16: 12.19% | J16: s. o. | K16: 1,315 | L16: 2.52% | M16: 5 | N16: s. o.
B17: 0,15 à ˂ 0,25 | C17: 32,079 | D17: 10,315 | E17: 69.89% | F17: 38,940 | G17: 0.21% | H17: 294,343 | I17: 13.33% | J17: s. o. | K17: 2,587 | L17: 6.64% | M17: 11 | N17: s. o.
B18: 0,25 à ˂ 0,50 | C18: 11,949 | D18: 79 | E18: 40.05% | F18: 11,981 | G18: 0.34% | H18: 1,319 | I18: 17.09% | J18: s. o. | K18: 1,561 | L18: 13.03% | M18: 7 | N18: s. o.
B19: 0,50 à ˂ 0,75 | C19: 21,280 | D19: 5,117 | E19: 65.99% | F19: 24,518 | G19: 0.55% | H19: 189,426 | I19: 14.34% | J19: s. o. | K19: 3,027 | L19: 12.35% | M19: 19 | N19: s. o.
B20: 0,75 à ˂ 2,50 | C20: 20,372 | D20: 3,057 | E20: 62.90% | F20: 22,070 | G20: 1.25% | H20: 135,989 | I20: 16.12% | J20: s. o. | K20: 5,236 | L20: 23.73% | M20: 45 | N20: s. o.
B21: 2,50 à ˂ 10,00 | C21: 3,752 | D21: 361 | E21: 59.46% | F21: 3,902 | G21: 4.10% | H21: 27,402 | I21: 15.49% | J21: s. o. | K21: 1,620 | L21: 41.51% | M21: 25 | N21: s. o.
B22: 10,00 à ˂ 100,00 | C22: 769 | D22: 46 | E22: 49.58% | F22: 787 | G22: 21.81% | H22: 4,380 | I22: 23.89% | J22: s. o. | K22: 894 | L22: 113.51% | M22: 43 | N22: s. o.
B23: 100,00 (défaut) | C23: 406 | D23: 32 | E23: 7.58% | F23: 406 | G23: 100.00% | H23: 7,000 | I23: 15.25% | J23: s. o. | K23: 497 | L23: 122.57% | M23: 24 | N23: s. o.
B24: Sous-total | C24: 129,204 | D24: 40,904 | E24: 66.83% | F24: 154,786 | G24: 0.85% | H24: 1,223,655 | I24: 13.91% | J24: s. o. | K24: 16,737 | L24: 10.81% | M24: 179 | N24: 73
A25: Autres expositions sur la clientèle de détail (ERCDE) | B25: 0,00 à ˂ 0,15 | C25: 2,608 | D25: 23,844 | E25: 47.47% | F25: 13,926 | G25: 0.08% | H25: 2,095,668 | I25: 82.47% | J25: s. o. | K25: 552 | L25: 3.97% | M25: 9 | N25: s. o.
B26: 0,15 à ˂ 0,25 | C26: 501 | D26: 4,418 | E26: 43.49% | F26: 2,422 | G26: 0.18% | H26: 575,772 | I26: 85.21% | J26: s. o. | K26: 205 | L26: 8.50% | M26: 4 | N26: s. o.
B27: 0,25 à ˂ 0,50 | C27: 1,038 | D27: 2,823 | E27: 47.18% | F27: 2,370 | G27: 0.33% | H27: 364,405 | I27: 81.84% | J27: s. o. | K27: 307 | L27: 12.96% | M27: 6 | N27: s. o.
B28: 0,50 à ˂ 0,75 | C28: 1,055 | D28: 1,476 | E28: 35.66% | F28: 1,582 | G28: 0.61% | H28: 211,851 | I28: 83.35% | J28: s. o. | K28: 342 | L28: 21.61% | M28: 8 | N28: s. o.
B29: 0,75 à ˂ 2,50 | C29: 1,053 | D29: 1,096 | E29: 32.90% | F29: 1,413 | G29: 1.09% | H29: 219,440 | I29: 85.33% | J29: s. o. | K29: 488 | L29: 34.50% | M29: 13 | N29: s. o.
B30: 2,50 à ˂ 10,00 | C30: 2,154 | D30: 977 | E30: 28.39% | F30: 2,432 | G30: 3.40% | H30: 346,151 | I30: 78.76% | J30: s. o. | K30: 1,763 | L30: 72.50% | M30: 65 | N30: s. o.
B31: 10,00 à ˂ 100,00 | C31: 678 | D31: 105 | E31: 27.93% | F31: 708 | G31: 19.48% | H31: 78,255 | I31: 63.55% | J31: s. o. | K31: 1,164 | L31: 164.49% | M31: 87 | N31: s. o.
B32: 100,00 (défaut) | C32: 118 | D32: 5 | E32: 9.04% | F32: 117 | G32: 100.00% | H32: 75,376 | I32: 76.62% | J32: s. o. | K32: 244 | L32: 207.28% | M32: 77 | N32: s. o.
B33: Sous-total | C33: 9,205 | D33: 34,744 | E33: 45.37% | F33: 24,970 | G33: 1.55% | H33: 3,966,918 | I33: 81.97% | J33: s. o. | K33: 5,065 | L33: 20.29% | M33: 269 | N33: 303
A34: PME assimilées aux autres expositions sur la clientèle de détail | B34: 0,00 à ˂ 0,15 | C34: 644 | D34: 3,024 | E34: 47.54% | F34: 1,947 | G34: 0.08% | H34: 28,382 | I34: 66.56% | J34: s. o. | K34: 282 | L34: 14.50% | M34: 1 | N34: s. o.
B35: 0,15 à ˂ 0,25 | C35: 628 | D35: 1,266 | E35: 48.19% | F35: 1,108 | G35: 0.19% | H35: 15,973 | I35: 64.84% | J35: s. o. | K35: 281 | L35: 25.38% | M35: 1 | N35: s. o.
B36: 0,25 à ˂ 0,50 | C36: 1,296 | D36: 1,733 | E36: 51.81% | F36: 1,927 | G36: 0.35% | H36: 36,913 | I36: 69.86% | J36: s. o. | K36: 778 | L36: 40.35% | M36: 5 | N36: s. o.
B37: 0,50 à ˂ 0,75 | C37: 773 | D37: 908 | E37: 43.72% | F37: 1,027 | G37: 0.59% | H37: 27,243 | I37: 70.35% | J37: s. o. | K37: 567 | L37: 55.15% | M37: 4 | N37: s. o.
B38: 0,75 à ˂ 2,50 | C38: 2,300 | D38: 1,188 | E38: 50.56% | F38: 2,554 | G38: 1.25% | H38: 78,836 | I38: 61.30% | J38: s. o. | K38: 1,725 | L38: 67.55% | M38: 20 | N38: s. o.
B39: 2,50 à ˂ 10,00 | C39: 1,412 | D39: 403 | E39: 48.28% | F39: 1,456 | G39: 4.21% | H39: 19,303 | I39: 67.30% | J39: s. o. | K39: 1,408 | L39: 96.70% | M39: 41 | N39: s. o.
B40: 10,00 à ˂ 100,00 | C40: 376 | D40: 60 | E40: 22.75% | F40: 332 | G40: 22.97% | H40: 4,764 | I40: 60.59% | J40: s. o. | K40: 450 | L40: 135.69% | M40: 46 | N40: s. o.
B41: 100,00 (défaut) | C41: 297 | D41: 38 | E41: 6.67% | F41: 235 | G41: 100.00% | H41: 6,966 | I41: 52.91% | J41: s. o. | K41: 689 | L41: 293.37% | M41: 70 | N41: s. o.
B42: Sous-total | C42: 7,726 | D42: 8,620 | E42: 48.22% | F42: 10,586 | G42: 3.97% | H42: 218,380 | I42: 65.69% | J42: s. o. | K42: 6,180 | L42: 58.38% | M42: 188 | N42: 194
A43: Autres expositions sur la clientèle de détail (hors ERCDE), à l'exception des PME | B43: 0,00 à ˂ 0,15 | C43: 1,351 | D43: 649 | E43: 73.90% | F43: 1,761 | G43: 0.10% | H43: 68,946 | I43: 63.28% | J43: s. o. | K43: 285 | L43: 16.18% | M43: 1 | N43: s. o.
B44: 0,15 à ˂ 0,25 | C44: 933 | D44: 22 | E44: 60.28% | F44: 821 | G44: 0.20% | H44: 72,486 | I44: 84.02% | J44: s. o. | K44: 283 | L44: 34.44% | M44: 1 | N44: s. o.
B45: 0,25 à ˂ 0,50 | C45: 1,338 | D45: 152 | E45: 65.06% | F45: 963 | G45: 0.33% | H45: 75,060 | I45: 47.31% | J45: s. o. | K45: 264 | L45: 27.40% | M45: 2 | N45: s. o.
B46: 0,50 à ˂ 0,75 | C46: 1,177 | D46: 73 | E46: 60.24% | F46: 1,216 | G46: 0.57% | H46: 38,992 | I46: 38.71% | J46: s. o. | K46: 365 | L46: 30.02% | M46: 3 | N46: s. o.
B47: 0,75 à ˂ 2,50 | C47: 3,368 | D47: 32 | E47: 63.27% | F47: 3,122 | G47: 1.52% | H47: 155,357 | I47: 40.06% | J47: s. o. | K47: 1,443 | L47: 46.22% | M47: 19 | N47: s. o.
B48: 2,50 à ˂ 10,00 | C48: 4,237 | D48: 10 | E48: 57.51% | F48: 3,958 | G48: 3.07% | H48: 198,472 | I48: 40.46% | J48: s. o. | K48: 2,219 | L48: 56.08% | M48: 49 | N48: s. o.
B49: 10,00 à ˂ 100,00 | C49: 378 | D49: 1 | E49: 61.63% | F49: 293 | G49: 24.67% | H49: 16,446 | I49: 43.81% | J49: s. o. | K49: 310 | L49: 105.81% | M49: 32 | N49: s. o.
B50: 100,00 (défaut) | C50: 109 | D50: 0 | E50: 0 | F50: 74 | G50: 100.00% | H50: 18,596 | I50: 49.85% | J50: s. o. | K50: 228 | L50: 312.38% | M50: 18 | N50: s. o.
B51: Sous-total | C51: 12,891 | D51: 939 | E51: 70.51% | F51: 12,208 | G51: 2.69% | H51: 644,355 | I51: 47.08% | J51: s. o. | K51: 5,397 | L51: 44.21% | M51: 125 | N51: 76
A52: Total de la clientèle de détail - AIRB | C52: 215,311 | D52: 87,068 | E52: 56.23% | F52: 204,293 | G52: 1.20% | H52: 6,211,003 | I52: 27.18% | J52: s. o. | K52: 33,878 | L52: 16.58% | M52: 765 | N52: 654
A54: Au 30 juin 2025 | B54: =SUM(C59:N104) -> 20,202,410.70
C56: a | D56: b | E56: c | F56: d | G56: e | H56: f | I56: g | J56: h | K56: i | L56: j | M56: k | N56: l
A58: (en millions de dollars) | B58: Fourchette de PD (%) | C58: Expositions au bilan brutes initiales | D58: Expositions hors bilan avant prise en compte des FCEC | E58: FCEC moyen | F58: ECD après prise en compte des techniques ARC et des FCEC | G58: PD moyenne | H58: Nombre de débiteurs | I58: PCD moyenne | J58: Échéance moyenne(1) | K58: APR | L58: Proportion des APR | M58: Perte attendue(2) | N58: Provisions(3)
A59: Expositions liées à des créances hypothécaires au logement Expositions assurées | B59: 0,00 à ˂ 0,15 | C59: 6,461 | D59: 33 | E59: 40.00% | F59: 882 | G59: 0.08% | H59: 43,335 | I59: 41.34% | J59: s. o. | K59: 74 | L59: 8.51% | M59: 0 | N59: s. o.
B60: 0,15 à ˂ 0,25 | C60: 7,802 | D60: 23 | E60: 40.00% | F60: 372 | G60: 0.18% | H60: 40,788 | I60: 78.44% | J60: s. o. | K60: 112 | L60: 29.99% | M60: 1 | N60: s. o.
B61: 0,25 à ˂ 0,50 | C61: 5,668 | D61: 25 | E61: 40.00% | F61: 0 | G61: 0.48% | H61: 145 | I61: 21.95% | J61: s. o. | K61: 0 | L61: 16.57% | M61: 0 | N61: s. o.
B62: 0,50 à ˂ 0,75 | C62: 11,991 | D62: 133 | E62: 40.00% | F62: 139 | G62: 0.63% | H62: 30,068 | I62: 42.53% | J62: s. o. | K62: 56 | L62: 40.29% | M62: 0 | N62: s. o.
B63: 0,75 à ˂ 2,50 | C63: 18,241 | D63: 1,735 | E63: 40.00% | F63: 220 | G63: 1.56% | H63: 34,372 | I63: 43.03% | J63: s. o. | K63: 163 | L63: 74.04% | M63: 1 | N63: s. o.
B64: 2,50 à ˂ 10,00 | C64: 3,021 | D64: 57 | E64: 40.00% | F64: 57 | G64: 4.44% | H64: 9,856 | I64: 42.10% | J64: s. o. | K64: 75 | L64: 130.21% | M64: 1 | N64: s. o.
B65: 10,00 à ˂ 100,00 | C65: 721 | D65: 3 | E65: 40.00% | F65: 5 | G65: 24.41% | H65: 908 | I65: 48.16% | J65: s. o. | K65: 14 | L65: 278.78% | M65: 1 | N65: s. o.
B66: 100,00 (défaut) | C66: 422 | D66: 6 | E66: 40.00% | F66: 2 | G66: 100.00% | H66: 1,576 | I66: 34.42% | J66: s. o. | K66: 8 | L66: 358.67% | M66: 0 | N66: s. o.
B67: Sous-total | C67: 54,327 | D67: 2,015 | E67: 40.00% | F67: 1,677 | G67: 0.70% | H67: 161,048 | I67: 49.92% | J67: s. o. | K67: 502 | L67: 29.93% | M67: 4 | N67: 7
A68: Expositions liées à des créances hypothécaires au logement Expositions non assurées | B68: 0,00 à ˂ 0,15 | C68: 39,227 | D68: 21,977 | E68: 66.16% | F68: 52,886 | G68: 0.08% | H68: 581,500 | I68: 12.35% | J68: s. o. | K68: 1,347 | L68: 2.55% | M68: 6 | N68: s. o.
B69: 0,15 à ˂ 0,25 | C69: 31,541 | D69: 10,089 | E69: 70.06% | F69: 38,236 | G69: 0.21% | H69: 292,330 | I69: 13.55% | J69: s. o. | K69: 2,566 | L69: 6.71% | M69: 11 | N69: s. o.
B70: 0,25 à ˂ 0,50 | C70: 11,652 | D70: 76 | E70: 40.02% | F70: 11,683 | G70: 0.34% | H70: 1,236 | I70: 17.17% | J70: s. o. | K70: 1,524 | L70: 13.05% | M70: 7 | N70: s. o.
B71: 0,50 à ˂ 0,75 | C71: 20,730 | D71: 4,971 | E71: 66.09% | F71: 23,873 | G71: 0.55% | H71: 184,981 | I71: 14.66% | J71: s. o. | K71: 3,016 | L71: 12.63% | M71: 19 | N71: s. o.
B72: 0,75 à ˂ 2,50 | C72: 19,621 | D72: 2,914 | E72: 62.99% | F72: 21,231 | G72: 1.24% | H72: 130,905 | I72: 16.32% | J72: s. o. | K72: 5,082 | L72: 23.93% | M72: 43 | N72: s. o.
B73: 2,50 à ˂ 10,00 | C73: 3,959 | D73: 356 | E73: 57.20% | F73: 4,104 | G73: 4.11% | H73: 27,949 | I73: 16.11% | J73: s. o. | K73: 1,779 | L73: 43.35% | M73: 27 | N73: s. o.
B74: 10,00 à ˂ 100,00 | C74: 740 | D74: 49 | E74: 51.28% | F74: 760 | G74: 22.12% | H74: 4,231 | I74: 26.84% | J74: s. o. | K74: 954 | L74: 125.49% | M74: 48 | N74: s. o.
B75: 100,00 (défaut) | C75: 411 | D75: 29 | E75: 7.63% | F75: 411 | G75: 100.00% | H75: 7,092 | I75: 15.71% | J75: s. o. | K75: 532 | L75: 129.52% | M75: 23 | N75: s. o.
B76: Sous-total | C76: 127,881 | D76: 40,461 | E76: 66.72% | F76: 153,184 | G76: 0.85% | H76: 1,230,224 | I76: 14.11% | J76: s. o. | K76: 16,800 | L76: 10.97% | M76: 184 | N76: 72
A77: Autres expositions sur la clientèle de détail (ERCDE) | B77: 0,00 à ˂ 0,15 | C77: 2,718 | D77: 23,972 | E77: 47.34% | F77: 14,066 | G77: 0.08% | H77: 2,114,323 | I77: 82.47% | J77: s. o. | K77: 558 | L77: 3.97% | M77: 8 | N77: s. o.
B78: 0,15 à ˂ 0,25 | C78: 524 | D78: 4,324 | E78: 43.41% | F78: 2,401 | G78: 0.18% | H78: 565,318 | I78: 85.26% | J78: s. o. | K78: 203 | L78: 8.49% | M78: 4 | N78: s. o.
B79: 0,25 à ˂ 0,50 | C79: 1,056 | D79: 2,768 | E79: 47.22% | F79: 2,363 | G79: 0.32% | H79: 362,146 | I79: 81.98% | J79: s. o. | K79: 307 | L79: 12.97% | M79: 6 | N79: s. o.
B80: 0,50 à ˂ 0,75 | C80: 1,080 | D80: 1,455 | E80: 35.53% | F80: 1,597 | G80: 0.61% | H80: 213,324 | I80: 83.56% | J80: s. o. | K80: 345 | L80: 21.59% | M80: 8 | N80: s. o.
B81: 0,75 à ˂ 2,50 | C81: 1,077 | D81: 1,083 | E81: 32.91% | F81: 1,434 | G81: 1.08% | H81: 218,860 | I81: 85.45% | J81: s. o. | K81: 495 | L81: 34.49% | M81: 13 | N81: s. o.
B82: 2,50 à ˂ 10,00 | C82: 2,125 | D82: 953 | E82: 28.56% | F82: 2,397 | G82: 3.39% | H82: 334,700 | I82: 78.74% | J82: s. o. | K82: 1,734 | L82: 72.32% | M82: 64 | N82: s. o.
B83: 10,00 à ˂ 100,00 | C83: 633 | D83: 100 | E83: 27.90% | F83: 661 | G83: 19.50% | H83: 73,489 | I83: 63.54% | J83: s. o. | K83: 1,088 | L83: 164.55% | M83: 82 | N83: s. o.
B84: 100,00 (défaut) | C84: 119 | D84: 6 | E84: 9.40% | F84: 119 | G84: 100.00% | H84: 76,299 | I84: 76.62% | J84: s. o. | K84: 208 | L84: 173.89% | M84: 81 | N84: s. o.
B85: Sous-total | C85: 9,332 | D85: 34,661 | E85: 45.32% | F85: 25,038 | G85: 1.51% | H85: 3,958,459 | I85: 82.05% | J85: s. o. | K85: 4,938 | L85: 19.72% | M85: 266 | N85: 307
A86: PME assimilées aux autres expositions sur la clientèle de détail | B86: 0,00 à ˂ 0,15 | C86: 628 | D86: 2,936 | E86: 47.53% | F86: 1,893 | G86: 0.08% | H86: 27,872 | I86: 66.24% | J86: s. o. | K86: 274 | L86: 14.45% | M86: 1 | N86: s. o.
B87: 0,15 à ˂ 0,25 | C87: 669 | D87: 1,282 | E87: 48.50% | F87: 1,137 | G87: 0.19% | H87: 16,227 | I87: 64.84% | J87: s. o. | K87: 289 | L87: 25.38% | M87: 1 | N87: s. o.
B88: 0,25 à ˂ 0,50 | C88: 1,269 | D88: 1,718 | E88: 52.04% | F88: 1,907 | G88: 0.36% | H88: 36,847 | I88: 70.18% | J88: s. o. | K88: 774 | L88: 40.59% | M88: 5 | N88: s. o.
B89: 0,50 à ˂ 0,75 | C89: 791 | D89: 896 | E89: 44.12% | F89: 1,032 | G89: 0.59% | H89: 27,042 | I89: 70.08% | J89: s. o. | K89: 567 | L89: 54.95% | M89: 4 | N89: s. o.
B90: 0,75 à ˂ 2,50 | C90: 2,311 | D90: 1,196 | E90: 50.50% | F90: 2,556 | G90: 1.25% | H90: 78,988 | I90: 61.29% | J90: s. o. | K90: 1,725 | L90: 67.51% | M90: 20 | N90: s. o.
B91: 2,50 à ˂ 10,00 | C91: 1,405 | D91: 391 | E91: 48.81% | F91: 1,449 | G91: 4.24% | H91: 19,277 | I91: 67.28% | J91: s. o. | K91: 1,401 | L91: 96.73% | M91: 41 | N91: s. o.
B92: 10,00 à ˂ 100,00 | C92: 378 | D92: 60 | E92: 22.36% | F92: 341 | G92: 23.28% | H92: 4,929 | I92: 60.81% | J92: s. o. | K92: 466 | L92: 136.75% | M92: 48 | N92: s. o.
B93: 100,00 (défaut) | C93: 287 | D93: 37 | E93: 6.72% | F93: 225 | G93: 100.00% | H93: 6,873 | I93: 53.64% | J93: s. o. | K93: 657 | L93: 291.97% | M93: 69 | N93: s. o.
B94: Sous-total | C94: 7,738 | D94: 8,516 | E94: 48.38% | F94: 10,540 | G94: 3.93% | H94: 218,055 | I94: 65.67% | J94: s. o. | K94: 6,153 | L94: 58.37% | M94: 189 | N94: 201
A95: Autres expositions sur la clientèle de détail (hors ERCDE), à l'exception des PME | B95: 0,00 à ˂ 0,15 | C95: 1,348 | D95: 656 | E95: 74.39% | F95: 1,758 | G95: 0.10% | H95: 66,343 | I95: 63.11% | J95: s. o. | K95: 285 | L95: 16.13% | M95: 1 | N95: s. o.
B96: 0,15 à ˂ 0,25 | C96: 919 | D96: 25 | E96: 61.23% | F96: 806 | G96: 0.20% | H96: 66,949 | I96: 84.70% | J96: s. o. | K96: 280 | L96: 34.73% | M96: 1 | N96: s. o.
B97: 0,25 à ˂ 0,50 | C97: 1,365 | D97: 137 | E97: 65.67% | F97: 963 | G97: 0.33% | H97: 71,249 | I97: 46.37% | J97: s. o. | K97: 256 | L97: 26.64% | M97: 2 | N97: s. o.
B98: 0,50 à ˂ 0,75 | C98: 1,187 | D98: 68 | E98: 60.58% | F98: 1,225 | G98: 0.57% | H98: 41,448 | I98: 38.94% | J98: s. o. | K98: 369 | L98: 30.16% | M98: 3 | N98: s. o.
B99: 0,75 à ˂ 2,50 | C99: 3,355 | D99: 37 | E99: 62.22% | F99: 3,106 | G99: 1.52% | H99: 153,762 | I99: 39.92% | J99: s. o. | K99: 1,429 | L99: 46.03% | M99: 19 | N99: s. o.
B100: 2,50 à ˂ 10,00 | C100: 4,176 | D100: 10 | E100: 53.17% | F100: 3,888 | G100: 3.07% | H100: 195,991 | I100: 40.49% | J100: s. o. | K100: 2,181 | L100: 56.11% | M100: 48 | N100: s. o.
B101: 10,00 à ˂ 100,00 | C101: 354 | D101: 1 | E101: 58.26% | F101: 270 | G101: 24.65% | H101: 15,662 | I101: 42.90% | J101: s. o. | K101: 280 | L101: 103.63% | M101: 29 | N101: s. o.
B102: 100,00 (défaut) | C102: 105 | D102: 0 | E102: 0 | F102: 69 | G102: 100.00% | H102: 18,849 | I102: 49.01% | J102: s. o. | K102: 193 | L102: 280.17% | M102: 18 | N102: s. o.
B103: Sous-total | C103: 12,809 | D103: 934 | E103: 71.01% | F103: 12,085 | G103: 2.61% | H103: 630,253 | I103: 47.00% | J103: s. o. | K103: 5,273 | L103: 43.64% | M103: 121 | N103: 76
A104: Total de la clientèle de détail - AIRB | C104: 212,087 | D104: 86,587 | E104: 56.14% | F104: 202,524 | G104: 1.20% | H104: 6,198,039 | I104: 27.45% | J104: s. o. | K104: 33,666 | L104: 16.62% | M104: 764 | N104: 663
A107: Au 31 mars 2025 | B107: =SUM(C112:N157) -> 20,144,759.73
C109: a | D109: b | E109: c | F109: d | G109: e | H109: f | I109: g | J109: h | K109: i | L109: j | M109: k | N109: l
A111: (en millions de dollars) | B111: Fourchette de PD (%) | C111: Expositions au bilan brutes initiales | D111: Expositions hors bilan avant prise en compte des FCEC | E111: FCEC moyen | F111: ECD après prise en compte des techniques ARC et des FCEC | G111: PD moyenne | H111: Nombre de débiteurs | I111: PCD moyenne | J111: Échéance moyenne(1) | K111: APR | L111: Proportion des APR | M111: Perte attendue(2) | N111: Provisions(3)
A112: Expositions liées à des créances hypothécaires au logement Expositions assurées | B112: 0,00 à ˂ 0,15 | C112: 6,823 | D112: 37 | E112: 40.00% | F112: 666 | G112: 0.08% | H112: 43,790 | I112: 48.27% | J112: s. o. | K112: 66 | L112: 9.93% | M112: 1 | N112: s. o.
B113: 0,15 à ˂ 0,25 | C113: 7,621 | D113: 23 | E113: 40.00% | F113: 358 | G113: 0.18% | H113: 41,442 | I113: 77.74% | J113: s. o. | K113: 108 | L113: 30.00% | M113: 1 | N113: s. o.
B114: 0,25 à ˂ 0,50 | C114: 5,144 | D114: 12 | E114: 40.00% | F114: 0 | G114: 0.48% | H114: 145 | I114: 21.95% | J114: s. o. | K114: 0 | L114: 16.57% | M114: 0 | N114: s. o.
B115: 0,50 à ˂ 0,75 | C115: 10,908 | D115: 176 | E115: 40.00% | F115: 109 | G115: 0.62% | H115: 29,802 | I115: 41.27% | J115: s. o. | K115: 43 | L115: 39.49% | M115: 0 | N115: s. o.
B116: 0,75 à ˂ 2,50 | C116: 16,741 | D116: 1,660 | E116: 40.00% | F116: 176 | G116: 1.58% | H116: 33,843 | I116: 42.23% | J116: s. o. | K116: 130 | L116: 74.05% | M116: 1 | N116: s. o.
B117: 2,50 à ˂ 10,00 | C117: 2,957 | D117: 68 | E117: 40.00% | F117: 58 | G117: 4.60% | H117: 10,336 | I117: 40.50% | J117: s. o. | K117: 76 | L117: 130.27% | M117: 1 | N117: s. o.
B118: 10,00 à ˂ 100,00 | C118: 666 | D118: 3 | E118: 40.00% | F118: 5 | G118: 24.70% | H118: 1,691 | I118: 37.63% | J118: s. o. | K118: 11 | L118: 215.94% | M118: 0 | N118: s. o.
B119: 100,00 (défaut) | C119: 457 | D119: 14 | E119: 40.00% | F119: 3 | G119: 100.00% | H119: 558 | I119: 29.87% | J119: s. o. | K119: 10 | L119: 324.90% | M119: 0 | N119: s. o.
B120: Sous-total | C120: 51,317 | D120: 1,993 | E120: 40.00% | F120: 1,375 | G120: 0.84% | H120: 161,607 | I120: 54.21% | J120: s. o. | K120: 444 | L120: 32.27% | M120: 4 | N120: 7
A121: Expositions liées à des créances hypothécaires au logement Expositions non assurées | B121: 0,00 à ˂ 0,15 | C121: 38,095 | D121: 21,691 | E121: 66.22% | F121: 51,793 | G121: 0.08% | H121: 576,970 | I121: 12.43% | J121: s. o. | K121: 1,328 | L121: 2.56% | M121: 5 | N121: s. o.
B122: 0,15 à ˂ 0,25 | C122: 30,603 | D122: 9,853 | E122: 69.97% | F122: 37,139 | G122: 0.21% | H122: 288,666 | I122: 13.67% | J122: s. o. | K122: 2,502 | L122: 6.74% | M122: 11 | N122: s. o.
B123: 0,25 à ˂ 0,50 | C123: 10,988 | D123: 62 | E123: 40.52% | F123: 11,012 | G123: 0.34% | H123: 246 | I123: 17.18% | J123: s. o. | K123: 1,447 | L123: 13.14% | M123: 7 | N123: s. o.
B124: 0,50 à ˂ 0,75 | C124: 19,794 | D124: 4,833 | E124: 66.32% | F124: 22,887 | G124: 0.55% | H124: 182,033 | I124: 14.74% | J124: s. o. | K124: 2,909 | L124: 12.71% | M124: 19 | N124: s. o.
B125: 0,75 à ˂ 2,50 | C125: 19,393 | D125: 2,886 | E125: 62.48% | F125: 21,017 | G125: 1.25% | H125: 133,830 | I125: 16.42% | J125: s. o. | K125: 5,083 | L125: 24.19% | M125: 43 | N125: s. o.
B126: 2,50 à ˂ 10,00 | C126: 3,936 | D126: 361 | E126: 58.24% | F126: 4,087 | G126: 4.15% | H126: 29,452 | I126: 16.14% | J126: s. o. | K126: 1,777 | L126: 43.48% | M126: 27 | N126: s. o.
B127: 10,00 à ˂ 100,00 | C127: 811 | D127: 56 | E127: 51.72% | F127: 835 | G127: 22.12% | H127: 6,953 | I127: 26.26% | J127: s. o. | K127: 1,032 | L127: 123.63% | M127: 52 | N127: s. o.
B128: 100,00 (défaut) | C128: 420 | D128: 29 | E128: 7.67% | F128: 419 | G128: 100.00% | H128: 3,949 | I128: 15.83% | J128: s. o. | K128: 541 | L128: 129.03% | M128: 24 | N128: s. o.
B129: Sous-total | C129: 124,040 | D129: 39,771 | E129: 66.72% | F129: 149,189 | G129: 0.88% | H129: 1,222,099 | I129: 14.19% | J129: s. o. | K129: 16,619 | L129: 11.14% | M129: 188 | N129: 71
A130: Autres expositions sur la clientèle de détail (ERCDE) | B130: 0,00 à ˂ 0,15 | C130: 2,467 | D130: 23,661 | E130: 48.06% | F130: 13,839 | G130: 0.08% | H130: 2,064,505 | I130: 82.42% | J130: s. o. | K130: 549 | L130: 3.97% | M130: 9 | N130: s. o.
B131: 0,15 à ˂ 0,25 | C131: 480 | D131: 4,339 | E131: 43.60% | F131: 2,373 | G131: 0.18% | H131: 559,989 | I131: 85.29% | J131: s. o. | K131: 202 | L131: 8.50% | M131: 4 | N131: s. o.
B132: 0,25 à ˂ 0,50 | C132: 1,034 | D132: 2,850 | E132: 47.08% | F132: 2,376 | G132: 0.33% | H132: 367,980 | I132: 82.01% | J132: s. o. | K132: 310 | L132: 13.04% | M132: 6 | N132: s. o.
B133: 0,50 à ˂ 0,75 | C133: 1,063 | D133: 1,510 | E133: 35.63% | F133: 1,601 | G133: 0.61% | H133: 215,432 | I133: 83.45% | J133: s. o. | K133: 346 | L133: 21.60% | M133: 8 | N133: s. o.
B134: 0,75 à ˂ 2,50 | C134: 1,088 | D134: 1,165 | E134: 32.81% | F134: 1,470 | G134: 1.09% | H134: 227,158 | I134: 85.43% | J134: s. o. | K134: 507 | L134: 34.51% | M134: 14 | N134: s. o.
B135: 2,50 à ˂ 10,00 | C135: 2,280 | D135: 1,063 | E135: 28.22% | F135: 2,580 | G135: 3.39% | H135: 359,861 | I135: 78.77% | J135: s. o. | K135: 1,870 | L135: 72.49% | M135: 69 | N135: s. o.
B136: 10,00 à ˂ 100,00 | C136: 731 | D136: 118 | E136: 27.60% | F136: 763 | G136: 19.50% | H136: 83,087 | I136: 63.53% | J136: s. o. | K136: 1,256 | L136: 164.52% | M136: 94 | N136: s. o.
B137: 100,00 (défaut) | C137: 128 | D137: 7 | E137: 9.33% | F137: 128 | G137: 100.00% | H137: 80,304 | I137: 76.61% | J137: s. o. | K137: 275 | L137: 214.18% | M137: 82 | N137: s. o.
B138: Sous-total | C138: 9,271 | D138: 34,713 | E138: 45.68% | F138: 25,130 | G138: 1.65% | H138: 3,958,316 | I138: 81.91% | J138: s. o. | K138: 5,315 | L138: 21.15% | M138: 286 | N138: 321
A139: PME assimilées aux autres expositions sur la clientèle de détail | B139: 0,00 à ˂ 0,15 | C139: 574 | D139: 2,932 | E139: 47.50% | F139: 1,846 | G139: 0.08% | H139: 37,390 | I139: 66.65% | J139: s. o. | K139: 269 | L139: 14.56% | M139: 1 | N139: s. o.
B140: 0,15 à ˂ 0,25 | C140: 639 | D140: 1,269 | E140: 48.12% | F140: 1,110 | G140: 0.19% | H140: 22,007 | I140: 64.90% | J140: s. o. | K140: 282 | L140: 25.40% | M140: 1 | N140: s. o.
B141: 0,25 à ˂ 0,50 | C141: 1,286 | D141: 1,701 | E141: 52.05% | F141: 1,892 | G141: 0.35% | H141: 44,740 | I141: 69.42% | J141: s. o. | K141: 759 | L141: 40.11% | M141: 5 | N141: s. o.
B142: 0,50 à ˂ 0,75 | C142: 773 | D142: 888 | E142: 43.97% | F142: 999 | G142: 0.59% | H142: 31,336 | I142: 70.32% | J142: s. o. | K142: 551 | L142: 55.14% | M142: 4 | N142: s. o.
B143: 0,75 à ˂ 2,50 | C143: 2,311 | D143: 1,206 | E143: 50.79% | F143: 2,558 | G143: 1.26% | H143: 42,997 | I143: 61.33% | J143: s. o. | K143: 1,733 | L143: 67.76% | M143: 20 | N143: s. o.
B144: 2,50 à ˂ 10,00 | C144: 1,408 | D144: 405 | E144: 48.64% | F144: 1,448 | G144: 4.24% | H144: 25,547 | I144: 67.82% | J144: s. o. | K144: 1,412 | L144: 97.50% | M144: 41 | N144: s. o.
B145: 10,00 à ˂ 100,00 | C145: 410 | D145: 62 | E145: 23.20% | F145: 365 | G145: 23.19% | H145: 6,366 | I145: 59.90% | J145: s. o. | K145: 489 | L145: 134.13% | M145: 50 | N145: s. o.
B146: 100,00 (défaut) | C146: 269 | D146: 32 | E146: 6.95% | F146: 215 | G146: 100.00% | H146: 6,893 | I146: 54.07% | J146: s. o. | K146: 653 | L146: 304.08% | M146: 65 | N146: s. o.
B147: Sous-total | C147: 7,670 | D147: 8,495 | E147: 48.34% | F147: 10,433 | G147: 3.92% | H147: 217,276 | I147: 65.68% | J147: s. o. | K147: 6,148 | L147: 58.93% | M147: 187 | N147: 193
A148: Autres expositions sur la clientèle de détail (hors ERCDE), à l'exception des PME | B148: 0,00 à ˂ 0,15 | C148: 1,270 | D148: 634 | E148: 74.05% | F148: 1,664 | G148: 0.10% | H148: 63,064 | I148: 62.69% | J148: s. o. | K148: 266 | L148: 16.01% | M148: 1 | N148: s. o.
B149: 0,15 à ˂ 0,25 | C149: 914 | D149: 29 | E149: 61.48% | F149: 805 | G149: 0.21% | H149: 66,470 | I149: 84.44% | J149: s. o. | K149: 279 | L149: 34.62% | M149: 1 | N149: s. o.
B150: 0,25 à ˂ 0,50 | C150: 1,369 | D150: 144 | E150: 66.54% | F150: 940 | G150: 0.32% | H150: 72,622 | I150: 44.93% | J150: s. o. | K150: 240 | L150: 25.48% | M150: 1 | N150: s. o.
B151: 0,50 à ˂ 0,75 | C151: 1,186 | D151: 66 | E151: 59.21% | F151: 1,220 | G151: 0.57% | H151: 41,725 | I151: 38.92% | J151: s. o. | K151: 368 | L151: 30.17% | M151: 3 | N151: s. o.
B152: 0,75 à ˂ 2,50 | C152: 3,335 | D152: 35 | E152: 66.05% | F152: 3,069 | G152: 1.52% | H152: 155,661 | I152: 39.82% | J152: s. o. | K152: 1,412 | L152: 46.01% | M152: 19 | N152: s. o.
B153: 2,50 à ˂ 10,00 | C153: 4,080 | D153: 10 | E153: 59.68% | F153: 3,792 | G153: 3.04% | H153: 195,625 | I153: 40.44% | J153: s. o. | K153: 2,123 | L153: 55.99% | M153: 47 | N153: s. o.
B154: 10,00 à ˂ 100,00 | C154: 375 | D154: 1 | E154: 63.29% | F154: 282 | G154: 24.72% | H154: 17,556 | I154: 43.64% | J154: s. o. | K154: 297 | L154: 105.49% | M154: 31 | N154: s. o.
B155: 100,00 (défaut) | C155: 116 | D155: 1 | E155: 20.51% | F155: 70 | G155: 100.00% | H155: 19,119 | I155: 48.44% | J155: s. o. | K155: 208 | L155: 296.18% | M155: 17 | N155: s. o.
B156: Sous-total | C156: 12,645 | D156: 920 | E156: 70.91% | F156: 11,842 | G156: 2.66% | H156: 631,842 | I156: 46.72% | J156: s. o. | K156: 5,193 | L156: 43.85% | M156: 120 | N156: 74
A157: Total de la clientèle de détail - AIRB | C157: 204,943 | D157: 85,892 | E157: 56.20% | F157: 197,969 | G157: 1.25% | H157: 6,191,140 | I157: 27.73% | J157: s. o. | K157: 33,719 | L157: 17.03% | M157: 785 | N157: 666
A160: Au 31 décembre 2024 | B160: =SUM(C165:N210) -> 20108491.0737
C162: a | D162: b | E162: c | F162: d | G162: e | H162: f | I162: g | J162: h | K162: i | L162: j | M162: k | N162: l
A164: (en millions de dollars) | B164: Fourchette de PD (%) | C164: Expositions au bilan brutes initiales | D164: Expositions hors bilan avant prise en compte des FCEC | E164: FCEC moyen | F164: ECD après prise en compte des techniques ARC et des FCEC | G164: PD moyenne | H164: Nombre de débiteurs | I164: PCD moyenne | J164: Échéance moyenne(1) | K164: APR | L164: Proportion des APR | M164: Perte attendue(2) | N164: Provisions(3)
A165: Expositions liées à des créances hypothécaires au logement Expositions assurées | B165: 0,00 à ˂ 0,15 | C165: 6,865 | D165: 32 | E165: 40.00% | F165: 764 | G165: 0.08% | H165: 44,521 | I165: 46.04% | J165: s. o. | K165: 72 | L165: 9.45% | M165: 0 | N165: s. o.
B166: 0,15 à ˂ 0,25 | C166: 7,726 | D166: 19 | E166: 40.00% | F166: 357 | G166: 0.19% | H166: 42,630 | I166: 77.70% | J166: s. o. | K166: 108 | L166: 30.25% | M166: 1 | N166: s. o.
B167: 0,25 à ˂ 0,50 | C167: 4,653 | D167: 9 | E167: 40.00% | F167: 0 | G167: 0.47% | H167: 145 | I167: 29.46% | J167: s. o. | K167: 0 | L167: 21.86% | M167: 0 | N167: s. o.
B168: 0,50 à ˂ 0,75 | C168: 10,425 | D168: 174 | E168: 40.00% | F168: 103 | G168: 0.62% | H168: 29,769 | I168: 40.72% | J168: s. o. | K168: 40 | L168: 38.63% | M168: 0 | N168: s. o.
B169: 0,75 à ˂ 2,50 | C169: 15,865 | D169: 1,380 | E169: 40.00% | F169: 173 | G169: 1.52% | H169: 32,847 | I169: 42.98% | J169: s. o. | K169: 128 | L169: 74.09% | M169: 1 | N169: s. o.
B170: 2,50 à ˂ 10,00 | C170: 2,796 | D170: 42 | E170: 40.00% | F170: 48 | G170: 4.50% | H170: 9,645 | I170: 41.54% | J170: s. o. | K170: 63 | L170: 130.89% | M170: 1 | N170: s. o.
B171: 10,00 à ˂ 100,00 | C171: 505 | D171: 3 | E171: 40.00% | F171: 4 | G171: 26.14% | H171: 951 | I171: 39.73% | J171: s. o. | K171: 11 | L171: 243.43% | M171: 0 | N171: s. o.
B172: 100,00 (défaut) | C172: 332 | D172: 7 | E172: 40.00% | F172: 4 | G172: 100.00% | H172: 1,716 | I172: 39.16% | J172: s. o. | K172: 16 | L172: 435.83% | M172: 0 | N172: s. o.
B173: Sous-total | C173: 49,167 | D173: 1,666 | E173: 40.00% | F173: 1,453 | G173: 0.80% | H173: 162,224 | I173: 52.90% | J173: s. o. | K173: 438 | L173: 30.13% | M173: 3 | N173: 7
A174: Expositions liées à des créances hypothécaires au logement Expositions non assurées | B174: 0,00 à ˂ 0,15 | C174: 38,121 | D174: 21,241 | E174: 65.73% | F174: 51,319 | G174: 0.08% | H174: 576,834 | I174: 12.51% | J174: s. o. | K174: 1,322 | L174: 2.58% | M174: 5 | N174: s. o.
B175: 0,15 à ˂ 0,25 | C175: 30,565 | D175: 9,646 | E175: 69.22% | F175: 36,884 | G175: 0.21% | H175: 290,864 | I175: 13.81% | J175: s. o. | K175: 2,519 | L175: 6.83% | M175: 11 | N175: s. o.
B176: 0,25 à ˂ 0,50 | C176: 10,791 | D176: 61 | E176: 40.35% | F176: 10,815 | G176: 0.34% | H176: 120 | I176: 17.26% | J176: s. o. | K176: 1,433 | L176: 13.25% | M176: 6 | N176: s. o.
B177: 0,50 à ˂ 0,75 | C177: 19,229 | D177: 4,643 | E177: 65.89% | F177: 22,184 | G177: 0.54% | H177: 179,578 | I177: 14.90% | J177: s. o. | K177: 2,853 | L177: 12.86% | M177: 18 | N177: s. o.
B178: 0,75 à ˂ 2,50 | C178: 18,948 | D178: 2,695 | E178: 62.76% | F178: 20,463 | G178: 1.24% | H178: 129,090 | I178: 16.69% | J178: s. o. | K178: 5,017 | L178: 24.52% | M178: 43 | N178: s. o.
B179: 2,50 à ˂ 10,00 | C179: 3,673 | D179: 347 | E179: 58.82% | F179: 3,828 | G179: 4.18% | H179: 28,220 | I179: 16.13% | J179: s. o. | K179: 1,693 | L179: 44.22% | M179: 26 | N179: s. o.
B180: 10,00 à ˂ 100,00 | C180: 781 | D180: 55 | E180: 51.30% | F180: 805 | G180: 21.65% | H180: 4,984 | I180: 24.50% | J180: s. o. | K180: 934 | L180: 116.02% | M180: 45 | N180: s. o.
B181: 100,00 (défaut) | C181: 386 | D181: 28 | E181: 7.78% | F181: 385 | G181: 100.00% | H181: 7,270 | I181: 15.96% | J181: s. o. | K181: 499 | L181: 129.80% | M181: 22 | N181: s. o.
B182: Sous-total | C182: 122,494 | D182: 38,716 | E182: 66.25% | F182: 146,683 | G182: 0.85% | H182: 1,216,960 | I182: 14.30% | J182: s. o. | K182: 16,270 | L182: 11.09% | M182: 176 | N182: 69
A183: Autres expositions sur la clientèle de détail (ERCDE) | B183: 0,00 à ˂ 0,15 | C183: 2,896 | D183: 24,350 | E183: 46.74% | F183: 14,277 | G183: 0.08% | H183: 2,146,277 | I183: 82.28% | J183: s. o. | K183: 581 | L183: 4.07% | M183: 9 | N183: s. o.
B184: 0,15 à ˂ 0,25 | C184: 618 | D184: 4,212 | E184: 42.72% | F184: 2,417 | G184: 0.20% | H184: 564,388 | I184: 85.19% | J184: s. o. | K184: 221 | L184: 9.13% | M184: 4 | N184: s. o.
B185: 0,25 à ˂ 0,50 | C185: 669 | D185: 1,934 | E185: 55.44% | F185: 1,741 | G185: 0.34% | H185: 257,279 | I185: 79.61% | J185: s. o. | K185: 229 | L185: 13.13% | M185: 5 | N185: s. o.
B186: 0,50 à ˂ 0,75 | C186: 1,103 | D186: 1,490 | E186: 34.93% | F186: 1,624 | G186: 0.59% | H186: 217,327 | I186: 83.23% | J186: s. o. | K186: 339 | L186: 20.87% | M186: 8 | N186: s. o.
B187: 0,75 à ˂ 2,50 | C187: 1,292 | D187: 1,421 | E187: 32.61% | F187: 1,756 | G187: 1.24% | H187: 290,260 | I187: 84.46% | J187: s. o. | K187: 651 | L187: 37.08% | M187: 18 | N187: s. o.
B188: 2,50 à ˂ 10,00 | C188: 2,130 | D188: 882 | E188: 26.36% | F188: 2,363 | G188: 3.34% | H188: 313,546 | I188: 78.44% | J188: s. o. | K188: 1,684 | L188: 71.32% | M188: 62 | N188: s. o.
B189: 10,00 à ˂ 100,00 | C189: 733 | D189: 129 | E189: 28.15% | F189: 770 | G189: 18.71% | H189: 84,907 | I189: 63.32% | J189: s. o. | K189: 1,241 | L189: 161.23% | M189: 91 | N189: s. o.
B190: 100,00 (défaut) | C190: 120 | D190: 7 | E190: 9.03% | F190: 121 | G190: 100.00% | H190: 80,363 | I190: 78.97% | J190: s. o. | K190: 275 | L190: 227.69% | M190: 75 | N190: s. o.
B191: Sous-total | C191: 9,561 | D191: 34,425 | E191: 45.05% | F191: 25,069 | G191: 1.58% | H191: 3,954,347 | I191: 81.63% | J191: s. o. | K191: 5,221 | L191: 20.83% | M191: 272 | N191: 299
A192: PME assimilées aux autres expositions sur la clientèle de détail | B192: 0,00 à ˂ 0,15 | C192: 569 | D192: 2,929 | E192: 47.12% | F192: 1,834 | G192: 0.08% | H192: 37,518 | I192: 67.05% | J192: s. o. | K192: 265 | L192: 14.45% | M192: 1 | N192: s. o.
B193: 0,15 à ˂ 0,25 | C193: 606 | D193: 1,318 | E193: 47.98% | F193: 1,099 | G193: 0.18% | H193: 22,351 | I193: 64.56% | J193: s. o. | K193: 274 | L193: 24.93% | M193: 1 | N193: s. o.
B194: 0,25 à ˂ 0,50 | C194: 1,277 | D194: 1,734 | E194: 52.07% | F194: 1,904 | G194: 0.35% | H194: 45,690 | I194: 69.34% | J194: s. o. | K194: 753 | L194: 39.57% | M194: 5 | N194: s. o.
B195: 0,50 à ˂ 0,75 | C195: 756 | D195: 882 | E195: 44.32% | F195: 983 | G195: 0.57% | H195: 31,795 | I195: 70.34% | J195: s. o. | K195: 536 | L195: 54.52% | M195: 4 | N195: s. o.
B196: 0,75 à ˂ 2,50 | C196: 2,663 | D196: 1,270 | E196: 49.64% | F196: 2,840 | G196: 1.37% | H196: 44,850 | I196: 58.58% | J196: s. o. | K196: 1,858 | L196: 65.45% | M196: 23 | N196: s. o.
B197: 2,50 à ˂ 10,00 | C197: 1,019 | D197: 341 | E197: 49.78% | F197: 1,092 | G197: 4.60% | H197: 22,792 | I197: 73.68% | J197: s. o. | K197: 1,163 | L197: 106.49% | M197: 35 | N197: s. o.
B198: 10,00 à ˂ 100,00 | C198: 387 | D198: 62 | E198: 22.39% | F198: 348 | G198: 22.63% | H198: 6,258 | I198: 58.29% | J198: s. o. | K198: 453 | L198: 130.16% | M198: 46 | N198: s. o.
B199: 100,00 (défaut) | C199: 247 | D199: 32 | E199: 7.14% | F199: 194 | G199: 100.00% | H199: 6,679 | I199: 53.40% | J199: s. o. | K199: 667 | L199: 343.08% | M199: 50 | N199: s. o.
B200: Sous-total | C200: 7,524 | D200: 8,568 | E200: 48.14% | F200: 10,294 | G200: 3.67% | H200: 217,933 | I200: 65.34% | J200: s. o. | K200: 5,969 | L200: 57.99% | M200: 165 | N200: 156
A201: Autres expositions sur la clientèle de détail (hors ERCDE), à l'exception des PME | B201: 0,00 à ˂ 0,15 | C201: 1,279 | D201: 637 | E201: 73.48% | F201: 1,675 | G201: 0.10% | H201: 65,687 | I201: 63.24% | J201: s. o. | K201: 268 | L201: 16.03% | M201: 1 | N201: s. o.
B202: 0,15 à ˂ 0,25 | C202: 888 | D202: 20 | E202: 62.32% | F202: 781 | G202: 0.20% | H202: 67,493 | I202: 85.25% | J202: s. o. | K202: 269 | L202: 34.43% | M202: 1 | N202: s. o.
B203: 0,25 à ˂ 0,50 | C203: 1,342 | D203: 137 | E203: 65.47% | F203: 926 | G203: 0.32% | H203: 73,544 | I203: 44.04% | J203: s. o. | K203: 229 | L203: 24.67% | M203: 1 | N203: s. o.
B204: 0,50 à ˂ 0,75 | C204: 1,229 | D204: 71 | E204: 58.68% | F204: 1,266 | G204: 0.56% | H204: 43,088 | I204: 38.81% | J204: s. o. | K204: 377 | L204: 29.78% | M204: 3 | N204: s. o.
B205: 0,75 à ˂ 2,50 | C205: 6,087 | D205: 31 | E205: 62.35% | F205: 5,843 | G205: 1.95% | H205: 284,102 | I205: 39.52% | J205: s. o. | K205: 2,867 | L205: 49.06% | M205: 46 | N205: s. o.
B206: 2,50 à ˂ 10,00 | C206: 1,302 | D206: 11 | E206: 56.34% | F206: 1,043 | G206: 4.28% | H206: 65,368 | I206: 42.30% | J206: s. o. | K206: 638 | L206: 61.19% | M206: 19 | N206: s. o.
B207: 10,00 à ˂ 100,00 | C207: 372 | D207: 1 | E207: 56.98% | F207: 280 | G207: 24.03% | H207: 17,554 | I207: 43.05% | J207: s. o. | K207: 289 | L207: 103.00% | M207: 29 | N207: s. o.
B208: 100,00 (défaut) | C208: 113 | D208: 1 | E208: 22.65% | F208: 67 | G208: 100.00% | H208: 19,289 | I208: 48.18% | J208: s. o. | K208: 227 | L208: 338.39% | M208: 14 | N208: s. o.
B209: Sous-total | C209: 12,612 | D209: 909 | E209: 70.21% | F209: 11,881 | G209: 2.58% | H209: 636,125 | I209: 46.52% | J209: s. o. | K209: 5,164 | L209: 43.46% | M209: 114 | N209: 67
A210: Total de la clientèle de détail - AIRB | C210: 201,358 | D210: 84,284 | E210: 55.58% | F210: 195,380 | G210: 1.20% | H210: 6,187,589 | I210: 27.88% | J210: s. o. | K210: 33,062 | L210: 16.92% | M210: 730 | N210: 598
A213: Au 30 septembre 2024 | B213: =SUM(C218:N263) -> 20412898.5254
C215: a | D215: b | E215: c | F215: d | G215: e | H215: f | I215: g | J215: h | K215: i | L215: j | M215: k | N215: l
A217: (en millions de dollars) | B217: Fourchette de PD (%) | C217: Expositions au bilan brutes initiales | D217: Expositions hors bilan avant prise en compte des FCEC | E217: FCEC moyen | F217: ECD après prise en compte des techniques ARC et des FCEC | G217: PD moyenne | H217: Nombre de débiteurs | I217: PCD moyenne | J217: Échéance moyenne(1) | K217: APR | L217: Proportion des APR | M217: Perte attendue(2) | N217: Provisions(3)
... 49 more rows

Sheet CR6 - FIRB - non détail
A1: Tableau CR6 – FIRB – Expositions au risque de crédit par portefeuille et par fourchette de probabilité de défaut (PD)
A2: Au 30 septembre 2025
A4: =SUM(C6:N34) -> 216162.7266 | C4: a | D4: b | E4: c | F4: d | G4: e | H4: f | I4: g | J4: h | K4: i | L4: j | M4: k | N4: l
A6: (en millions de dollars) | B6: Fourchette de PD (%) | C6: Expositions au bilan brutes initiales | D6: Expositions hors bilan avant prise en compte des FCEC | E6: FCEC moyen | F6: ECD après prise en compte des techniques ARC et des FCEC | G6: PD moyenne | H6: Nombre de débiteurs | I6: PCD moyenne | J6: Échéance moyenne(1) | K6: APR | L6: Proportion des APR | M6: Perte attendue(2) | N6: Provisions(3)
A7: Expositions liées à des emprunteurs souverains | B7: 0,00 à ˂ 0,15 | C7: 0 | D7: 0 | E7: 0 | F7: 0 | G7: 0 | H7: 0 | I7: 0 | J7: 0 | K7: 0 | L7: 0 | M7: 0 | N7: s. o.
B8: 0,15 à ˂ 0,25 | C8: 0 | D8: 0 | E8: 0 | F8: 0 | G8: 0 | H8: 0 | I8: 0 | J8: 0 | K8: 0 | L8: 0 | M8: 0 | N8: s. o.
B9: 0,25 à ˂ 0,50 | C9: 0 | D9: 0 | E9: 0 | F9: 0 | G9: 0 | H9: 0 | I9: 0 | J9: 0 | K9: 0 | L9: 0 | M9: 0 | N9: s. o.
B10: 0,50 à ˂ 0,75 | C10: 0 | D10: 0 | E10: 0 | F10: 0 | G10: 0 | H10: 0 | I10: 0 | J10: 0 | K10: 0 | L10: 0 | M10: 0 | N10: s. o.
B11: 0,75 à ˂ 2,50 | C11: 0 | D11: 0 | E11: 0 | F11: 0 | G11: 0 | H11: 0 | I11: 0 | J11: 0 | K11: 0 | L11: 0 | M11: 0 | N11: s. o.
B12: 2,50 à ˂ 10,00 | C12: 0 | D12: 0 | E12: 0 | F12: 0 | G12: 0 | H12: 0 | I12: 0 | J12: 0 | K12: 0 | L12: 0 | M12: 0 | N12: s. o.
B13: 10,00 à ˂ 100,00 | C13: 0 | D13: 0 | E13: 0 | F13: 0 | G13: 0 | H13: 0 | I13: 0 | J13: 0 | K13: 0 | L13: 0 | M13: 0 | N13: s. o.
B14: 100,00 (défaut) | C14: 0 | D14: 0 | E14: 0 | F14: 0 | G14: 0 | H14: 0 | I14: 0 | J14: 0 | K14: 0 | L14: 0 | M14: 0 | N14: s. o.
B15: Sous-total | C15: 0 | D15: 0 | E15: 0 | F15: 0 | G15: 0 | H15: 0 | I15: 0 | J15: 0 | K15: 0 | L15: 0 | M15: 0 | N15: 0
A16: Expositions liées à des institutions financières | B16: 0,00 à ˂ 0,15 | C16: 3,091 | D16: 2,417 | E16: 41.60% | F16: 4,178 | G16: 0.07% | H16: 22 | I16: 45.00% | J16: 1.4 | K16: 903 | L16: 21.59% | M16: 1 | N16: s. o.
B17: 0,15 à ˂ 0,25 | C17: 516 | D17: 592 | E17: 40.00% | F17: 767 | G17: 0.19% | H17: 5 | I17: 45.00% | J17: 1.1 | K17: 233 | L17: 30.43% | M17: 1 | N17: s. o.
B18: 0,25 à ˂ 0,50 | C18: 6 | D18: 0 | E18: 0 | F18: 6 | G18: 0.42% | H18: 1 | I18: 45.00% | J18: 1.0 | K18: 3 | L18: 47.48% | M18: 0 | N18: s. o.
B19: 0,50 à ˂ 0,75 | C19: 0 | D19: 0 | E19: 0 | F19: 0 | G19: 0 | H19: 0 | I19: 0 | J19: 0 | K19: 0 | L19: 0 | M19: 0 | N19: s. o.
B20: 0,75 à ˂ 2,50 | C20: 0 | D20: 0 | E20: 0 | F20: 0 | G20: 0 | H20: 0 | I20: 0 | J20: 0 | K20: 0 | L20: 0 | M20: 0 | N20: s. o.
B21: 2,50 à ˂ 10,00 | C21: 0 | D21: 0 | E21: 0 | F21: 0 | G21: 0 | H21: 0 | I21: 0 | J21: 0 | K21: 0 | L21: 0 | M21: 0 | N21: s. o.
B22: 10,00 à ˂ 100,00 | C22: 0 | D22: 0 | E22: 0 | F22: 0 | G22: 0 | H22: 0 | I22: 0 | J22: 0 | K22: 0 | L22: 0 | M22: 0 | N22: s. o.
B23: 100,00 (défaut) | C23: 0 | D23: 0 | E23: 0 | F23: 0 | G23: 0 | H23: 0 | I23: 0 | J23: 0 | K23: 0 | L23: 0 | M23: 0 | N23: s. o.
B24: Sous-total | C24: 3,613 | D24: 3,009 | E24: 41.28% | F24: 4,951 | G24: 0.09% | H24: 28 | I24: 45.00% | J24: 1.4 | K24: 1,139 | L24: 23.00% | M24: 2 | N24: 0
A25: Expositions liées à des entreprises | B25: 0,00 à ˂ 0,15 | C25: 2,872 | D25: 3,117 | E25: 42.27% | F25: 4,189 | G25: 0.11% | H25: 26 | I25: 40.00% | J25: 2.2 | K25: 1,069 | L25: 25.51% | M25: 2 | N25: s. o.
B26: 0,15 à ˂ 0,25 | C26: 1,089 | D26: 1,534 | E26: 38.72% | F26: 1,679 | G26: 0.23% | H26: 19 | I26: 40.00% | J26: 1.9 | K26: 603 | L26: 35.89% | M26: 2 | N26: s. o.
B27: 0,25 à ˂ 0,50 | C27: 4,182 | D27: 4,555 | E27: 37.26% | F27: 5,879 | G27: 0.31% | H27: 38 | I27: 40.00% | J27: 2.1 | K27: 2,654 | L27: 45.15% | M27: 7 | N27: s. o.
B28: 0,50 à ˂ 0,75 | C28: 722 | D28: 772 | E28: 39.37% | F28: 1,026 | G28: 0.62% | H28: 13 | I28: 40.00% | J28: 2.4 | K28: 686 | L28: 66.81% | M28: 3 | N28: s. o.
B29: 0,75 à ˂ 2,50 | C29: 3,486 | D29: 2,909 | E29: 37.74% | F29: 4,580 | G29: 1.63% | H29: 55 | I29: 40.00% | J29: 2.2 | K29: 4,144 | L29: 90.48% | M29: 30 | N29: s. o.
B30: 2,50 à ˂ 10,00 | C30: 1,700 | D30: 679 | E30: 36.43% | F30: 1,943 | G30: 4.92% | H30: 35 | I30: 40.00% | J30: 1.5 | K30: 2,355 | L30: 121.21% | M30: 38 | N30: s. o.
B31: 10,00 à ˂ 100,00 | C31: 6 | D31: 0 | E31: 0 | F31: 7 | G31: 27.36% | H31: 1 | I31: 40.00% | J31: 2.0 | K31: 14 | L31: 216.59% | M31: 1 | N31: s. o.
B32: 100,00 (défaut) | C32: 70 | D32: 80 | E32: 39.81% | F32: 100 | G32: 100.00% | H32: 4 | I32: 40.00% | J32: 1.4 | K32: 199 | L32: 198.12% | M32: 54 | N32: s. o.
B33: Sous-total | C33: 14,127 | D33: 13,646 | E33: 38.77% | F33: 19,403 | G33: 1.58% | H33: 191 | I33: 40.00% | J33: 2.1 | K33: 11,724 | L33: 60.42% | M33: 137 | N33: 103
A34: Total des clientèles non détail - FIRB | C34: 17,740 | D34: 16,655 | E34: 39.20% | F34: 24,354 | G34: 1.28% | H34: 219 | I34: 40.91% | J34: 1.9 | K34: 12,863 | L34: 52.81% | M34: 139 | N34: 103
A37: Au 30 juin 2025 | B37: =SUM(C42:N69) -> $207,995.01
C39: a | D39: b | E39: c | F39: d | G39: e | H39: f | I39: g | J39: h | K39: i | L39: j | M39: k | N39: l
A41: (en millions de dollars) | B41: Fourchette de PD (%) | C41: Expositions au bilan brutes initiales | D41: Expositions hors bilan avant prise en compte des FCEC | E41: FCEC moyen | F41: ECD après prise en compte des techniques ARC et des FCEC | G41: PD moyenne | H41: Nombre de débiteurs | I41: PCD moyenne | J41: Échéance moyenne(1) | K41: APR | L41: Proportion des APR | M41: Perte attendue(2) | N41: Provisions(3)
A42: Expositions liées à des emprunteurs souverains | B42: 0,00 à ˂ 0,15 | C42: 0 | D42: 0 | E42: 0 | F42: 0 | G42: 0 | H42: 0 | I42: 0 | J42: 0 | K42: 0 | L42: 0 | M42: 0 | N42: s. o.
B43: 0,15 à ˂ 0,25 | C43: 0 | D43: 0 | E43: 0 | F43: 0 | G43: 0 | H43: 0 | I43: 0 | J43: 0 | K43: 0 | L43: 0 | M43: 0 | N43: s. o.
B44: 0,25 à ˂ 0,50 | C44: 0 | D44: 0 | E44: 0 | F44: 0 | G44: 0 | H44: 0 | I44: 0 | J44: 0 | K44: 0 | L44: 0 | M44: 0 | N44: s. o.
B45: 0,50 à ˂ 0,75 | C45: 0 | D45: 0 | E45: 0 | F45: 0 | G45: 0 | H45: 0 | I45: 0 | J45: 0 | K45: 0 | L45: 0 | M45: 0 | N45: s. o.
B46: 0,75 à ˂ 2,50 | C46: 0 | D46: 0 | E46: 0 | F46: 0 | G46: 0 | H46: 0 | I46: 0 | J46: 0 | K46: 0 | L46: 0 | M46: 0 | N46: s. o.
B47: 2,50 à ˂ 10,00 | C47: 0 | D47: 0 | E47: 0 | F47: 0 | G47: 0 | H47: 0 | I47: 0 | J47: 0 | K47: 0 | L47: 0 | M47: 0 | N47: s. o.
B48: 10,00 à ˂ 100,00 | C48: 0 | D48: 0 | E48: 0 | F48: 0 | G48: 0 | H48: 0 | I48: 0 | J48: 0 | K48: 0 | L48: 0 | M48: 0 | N48: s. o.
B49: 100,00 (défaut) | C49: 0 | D49: 0 | E49: 0 | F49: 0 | G49: 0 | H49: 0 | I49: 0 | J49: 0 | K49: 0 | L49: 0 | M49: 0 | N49: s. o.
B50: Sous-total | C50: 0 | D50: 0 | E50: 0 | F50: 0 | G50: 0 | H50: 0 | I50: 0 | J50: 0 | K50: 0 | L50: 0 | M50: 0 | N50: 0
A51: Expositions liées à des institutions financières | B51: 0,00 à ˂ 0,15 | C51: 3,338 | D51: 2,554 | E51: 41.50% | F51: 4,472 | G51: 0.07% | H51: 22 | I51: 45.00% | J51: 1.5 | K51: 983 | L51: 21.99% | M51: 1 | N51: s. o.
B52: 0,15 à ˂ 0,25 | C52: 514 | D52: 657 | E52: 37.72% | F52: 762 | G52: 0.19% | H52: 6 | I52: 45.00% | J52: 1.2 | K52: 238 | L52: 31.14% | M52: 1 | N52: s. o.
B53: 0,25 à ˂ 0,50 | C53: 7 | D53: 0 | E53: 0 | F53: 7 | G53: 0.42% | H53: 1 | I53: 45.00% | J53: 1.0 | K53: 3 | L53: 47.48% | M53: 0 | N53: s. o.
B54: 0,50 à ˂ 0,75 | C54: 0 | D54: 0 | E54: 0 | F54: 0 | G54: 0 | H54: 0 | I54: 0 | J54: 0 | K54: 0 | L54: 0 | M54: 0 | N54: s. o.
B55: 0,75 à ˂ 2,50 | C55: 0 | D55: 0 | E55: 0 | F55: 0 | G55: 0 | H55: 0 | I55: 0 | J55: 0 | K55: 0 | L55: 0 | M55: 0 | N55: s. o.
B56: 2,50 à ˂ 10,00 | C56: 0 | D56: 0 | E56: 0 | F56: 0 | G56: 0 | H56: 0 | I56: 0 | J56: 0 | K56: 0 | L56: 0 | M56: 0 | N56: s. o.
B57: 10,00 à ˂ 100,00 | C57: 0 | D57: 0 | E57: 0 | F57: 0 | G57: 0 | H57: 0 | I57: 0 | J57: 0 | K57: 0 | L57: 0 | M57: 0 | N57: s. o.
B58: 100,00 (défaut) | C58: 0 | D58: 0 | E58: 0 | F58: 0 | G58: 0 | H58: 0 | I58: 0 | J58: 0 | K58: 0 | L58: 0 | M58: 0 | N58: s. o.
B59: Sous-total | C59: 3,859 | D59: 3,211 | E59: 40.70% | F59: 5,241 | G59: 0.09% | H59: 29 | I59: 45.00% | J59: 1.4 | K59: 1,224 | L59: 23.35% | M59: 2 | N59: 0
A60: Expositions liées à des entreprises | B60: 0,00 à ˂ 0,15 | C60: 2,322 | D60: 3,136 | E60: 42.25% | F60: 3,647 | G60: 0.11% | H60: 26 | I60: 40.00% | J60: 2.3 | K60: 940 | L60: 25.79% | M60: 2 | N60: s. o.
B61: 0,15 à ˂ 0,25 | C61: 1,034 | D61: 1,386 | E61: 38.35% | F61: 1,562 | G61: 0.23% | H61: 19 | I61: 40.00% | J61: 1.7 | K61: 544 | L61: 34.84% | M61: 1 | N61: s. o.
B62: 0,25 à ˂ 0,50 | C62: 3,808 | D62: 4,560 | E62: 37.31% | F62: 5,509 | G62: 0.32% | H62: 34 | I62: 40.00% | J62: 2.0 | K62: 2,476 | L62: 44.94% | M62: 6 | N62: s. o.
B63: 0,50 à ˂ 0,75 | C63: 976 | D63: 619 | E63: 39.50% | F63: 1,221 | G63: 0.62% | H63: 15 | I63: 40.00% | J63: 2.4 | K63: 811 | L63: 66.41% | M63: 3 | N63: s. o.
B64: 0,75 à ˂ 2,50 | C64: 3,075 | D64: 2,707 | E64: 37.19% | F64: 4,078 | G64: 1.61% | H64: 54 | I64: 40.00% | J64: 2.2 | K64: 3,697 | L64: 90.67% | M64: 26 | N64: s. o.
B65: 2,50 à ˂ 10,00 | C65: 1,727 | D65: 673 | E65: 37.53% | F65: 1,974 | G65: 4.89% | H65: 37 | I65: 40.00% | J65: 1.6 | K65: 2,409 | L65: 122.00% | M65: 39 | N65: s. o.
B66: 10,00 à ˂ 100,00 | C66: 6 | D66: 0 | E66: 0 | F66: 6 | G66: 27.36% | H66: 1 | I66: 40.00% | J66: 2.3 | K66: 14 | L66: 218.85% | M66: 1 | N66: s. o.
B67: 100,00 (défaut) | C67: 74 | D67: 73 | E67: 39.77% | F67: 103 | G67: 100.00% | H67: 2 | I67: 40.00% | J67: 1.2 | K67: 196 | L67: 190.19% | M67: 53 | N67: s. o.
B68: Sous-total | C68: 13,022 | D68: 13,154 | E68: 38.70% | F68: 18,100 | G68: 1.66% | H68: 188 | I68: 40.00% | J68: 2.1 | K68: 11,087 | L68: 61.25% | M68: 131 | N68: 102
A69: Total des clientèles non détail - FIRB | C69: 16,881 | D69: 16,365 | E69: 39.08% | F69: 23,341 | G69: 1.31% | H69: 217 | I69: 41.02% | J69: 1.9 | K69: 12,311 | L69: 52.74% | M69: 133 | N69: 102
A72: Au 31 mars 2025 | B72: =SUM(C77:N104) -> 194056.4119
C74: a | D74: b | E74: c | F74: d | G74: e | H74: f | I74: g | J74: h | K74: i | L74: j | M74: k | N74: l
A76: (en millions de dollars) | B76: Fourchette de PD (%) | C76: Expositions au bilan brutes initiales | D76: Expositions hors bilan avant prise en compte des FCEC | E76: FCEC moyen | F76: ECD après prise en compte des techniques ARC et des FCEC | G76: PD moyenne | H76: Nombre de débiteurs | I76: PCD moyenne | J76: Échéance moyenne(1) | K76: APR | L76: Proportion des APR | M76: Perte attendue(2) | N76: Provisions(3)
A77: Expositions liées à des emprunteurs souverains | B77: 0,00 à ˂ 0,15 | C77: 0 | D77: 0 | E77: 0 | F77: 0 | G77: 0 | H77: 0 | I77: 0 | J77: 0 | K77: 0 | L77: 0 | M77: 0 | N77: s. o.
B78: 0,15 à ˂ 0,25 | C78: 0 | D78: 0 | E78: 0 | F78: 0 | G78: 0 | H78: 0 | I78: 0 | J78: 0 | K78: 0 | L78: 0 | M78: 0 | N78: s. o.
B79: 0,25 à ˂ 0,50 | C79: 0 | D79: 0 | E79: 0 | F79: 0 | G79: 0 | H79: 0 | I79: 0 | J79: 0 | K79: 0 | L79: 0 | M79: 0 | N79: s. o.
B80: 0,50 à ˂ 0,75 | C80: 0 | D80: 0 | E80: 0 | F80: 0 | G80: 0 | H80: 0 | I80: 0 | J80: 0 | K80: 0 | L80: 0 | M80: 0 | N80: s. o.
B81: 0,75 à ˂ 2,50 | C81: 0 | D81: 0 | E81: 0 | F81: 0 | G81: 0 | H81: 0 | I81: 0 | J81: 0 | K81: 0 | L81: 0 | M81: 0 | N81: s. o.
B82: 2,50 à ˂ 10,00 | C82: 0 | D82: 0 | E82: 0 | F82: 0 | G82: 0 | H82: 0 | I82: 0 | J82: 0 | K82: 0 | L82: 0 | M82: 0 | N82: s. o.
B83: 10,00 à ˂ 100,00 | C83: 0 | D83: 0 | E83: 0 | F83: 0 | G83: 0 | H83: 0 | I83: 0 | J83: 0 | K83: 0 | L83: 0 | M83: 0 | N83: s. o.
B84: 100,00 (défaut) | C84: 0 | D84: 0 | E84: 0 | F84: 0 | G84: 0 | H84: 0 | I84: 0 | J84: 0 | K84: 0 | L84: 0 | M84: 0 | N84: s. o.
B85: Sous-total | C85: 0 | D85: 0 | E85: 0 | F85: 0 | G85: 0 | H85: 0 | I85: 0 | J85: 0 | K85: 0 | L85: 0 | M85: 0 | N85: 0
A86: Expositions liées à des institutions financières | B86: 0,00 à ˂ 0,15 | C86: 3,401 | D86: 2,441 | E86: 41.65% | F86: 4,465 | G86: 0.07% | H86: 21 | I86: 45.00% | J86: 1.5 | K86: 994 | L86: 22.27% | M86: 1 | N86: s. o.
B87: 0,15 à ˂ 0,25 | C87: 454 | D87: 772 | E87: 38.06% | F87: 748 | G87: 0.19% | H87: 7 | I87: 45.00% | J87: 1.3 | K87: 239 | L87: 32.01% | M87: 1 | N87: s. o.
B88: 0,25 à ˂ 0,50 | C88: 5 | D88: 0 | E88: 0 | F88: 5 | G88: 0.42% | H88: 1 | I88: 45.00% | J88: 1.0 | K88: 3 | L88: 47.48% | M88: 0 | N88: s. o.
B89: 0,50 à ˂ 0,75 | C89: 0 | D89: 0 | E89: 0 | F89: 0 | G89: 0 | H89: 0 | I89: 0 | J89: 0 | K89: 0 | L89: 0 | M89: 0 | N89: s. o.
B90: 0,75 à ˂ 2,50 | C90: 0 | D90: 0 | E90: 0 | F90: 0 | G90: 0 | H90: 0 | I90: 0 | J90: 0 | K90: 0 | L90: 0 | M90: 0 | N90: s. o.
B91: 2,50 à ˂ 10,00 | C91: 0 | D91: 0 | E91: 0 | F91: 0 | G91: 0 | H91: 0 | I91: 0 | J91: 0 | K91: 0 | L91: 0 | M91: 0 | N91: s. o.
B92: 10,00 à ˂ 100,00 | C92: 0 | D92: 0 | E92: 0 | F92: 0 | G92: 0 | H92: 0 | I92: 0 | J92: 0 | K92: 0 | L92: 0 | M92: 0 | N92: s. o.
B93: 100,00 (défaut) | C93: 0 | D93: 0 | E93: 0 | F93: 0 | G93: 0 | H93: 0 | I93: 0 | J93: 0 | K93: 0 | L93: 0 | M93: 0 | N93: s. o.
B94: Sous-total | C94: 3,860 | D94: 3,213 | E94: 40.76% | F94: 5,218 | G94: 0.09% | H94: 29 | I94: 45.00% | J94: 1.5 | K94: 1,236 | L94: 23.69% | M94: 2 | N94: 0
A95: Expositions liées à des entreprises | B95: 0,00 à ˂ 0,15 | C95: 1,875 | D95: 2,732 | E95: 42.07% | F95: 3,020 | G95: 0.12% | H95: 21 | I95: 40.00% | J95: 2.4 | K95: 825 | L95: 27.31% | M95: 2 | N95: s. o.
B96: 0,15 à ˂ 0,25 | C96: 791 | D96: 1,531 | E96: 39.83% | F96: 1,400 | G96: 0.23% | H96: 19 | I96: 40.00% | J96: 1.8 | K96: 499 | L96: 35.63% | M96: 1 | N96: s. o.
B97: 0,25 à ˂ 0,50 | C97: 3,037 | D97: 4,588 | E97: 37.71% | F97: 4,767 | G97: 0.32% | H97: 29 | I97: 40.00% | J97: 2.1 | K97: 2,199 | L97: 46.13% | M97: 6 | N97: s. o.
B98: 0,50 à ˂ 0,75 | C98: 892 | D98: 752 | E98: 39.90% | F98: 1,192 | G98: 0.62% | H98: 18 | I98: 40.00% | J98: 2.0 | K98: 736 | L98: 61.74% | M98: 3 | N98: s. o.
B99: 0,75 à ˂ 2,50 | C99: 2,771 | D99: 2,258 | E99: 38.41% | F99: 3,634 | G99: 1.57% | H99: 55 | I99: 40.00% | J99: 2.0 | K99: 3,156 | L99: 86.83% | M99: 23 | N99: s. o.
B100: 2,50 à ˂ 10,00 | C100: 1,959 | D100: 630 | E100: 36.02% | F100: 2,181 | G100: 4.92% | H100: 39 | I100: 40.00% | J100: 1.5 | K100: 2,640 | L100: 121.01% | M100: 43 | N100: s. o.
B101: 10,00 à ˂ 100,00 | C101: 3 | D101: 0 | E101: 0 | F101: 3 | G101: 27.36% | H101: 1 | I101: 40.00% | J101: 1.0 | K101: 5 | L101: 169.03% | M101: 0 | N101: s. o.
B102: 100,00 (défaut) | C102: 130 | D102: 23 | E102: 42.14% | F102: 140 | G102: 100.00% | H102: 3 | I102: 40.00% | J102: 1.1 | K102: 355 | L102: 254.53% | M102: 54 | N102: s. o.
B103: Sous-total | C103: 11,458 | D103: 12,514 | E103: 39.10% | F103: 16,337 | G103: 2.05% | H103: 185 | I103: 40.00% | J103: 2.0 | K103: 10,415 | L103: 63.75% | M103: 132 | N103: 107
A104: Total des clientèles non détail - FIRB | C104: 15,318 | D104: 15,727 | E104: 39.44% | F104: 21,555 | G104: 1.58% | H104: 214 | I104: 41.10% | J104: 1.9 | K104: 11,651 | L104: 54.05% | M104: 134 | N104: 107
A107: Au 31 décembre 2024 | B107: =SUM(C112:N139) -> 166,554.89
C109: a | D109: b | E109: c | F109: d | G109: e | H109: f | I109: g | J109: h | K109: i | L109: j | M109: k | N109: l
A111: (en millions de dollars) | B111: Fourchette de PD (%) | C111: Expositions au bilan brutes initiales | D111: Expositions hors bilan avant prise en compte des FCEC | E111: FCEC moyen | F111: ECD après prise en compte des techniques ARC et des FCEC | G111: PD moyenne | H111: Nombre de débiteurs | I111: PCD moyenne | J111: Échéance moyenne(1) | K111: APR | L111: Proportion des APR | M111: Perte attendue(2) | N111: Provisions(3)
A112: Expositions liées à des emprunteurs souverains | B112: 0,00 à ˂ 0,15 | C112: 0 | D112: 0 | E112: 0 | F112: 0 | G112: 0 | H112: 0 | I112: 0 | J112: 0 | K112: 0 | L112: 0 | M112: 0 | N112: s. o.
B113: 0,15 à ˂ 0,25 | C113: 0 | D113: 0 | E113: 0 | F113: 0 | G113: 0 | H113: 0 | I113: 0 | J113: 0 | K113: 0 | L113: 0 | M113: 0 | N113: s. o.
B114: 0,25 à ˂ 0,50 | C114: 0 | D114: 0 | E114: 0 | F114: 0 | G114: 0 | H114: 0 | I114: 0 | J114: 0 | K114: 0 | L114: 0 | M114: 0 | N114: s. o.
B115: 0,50 à ˂ 0,75 | C115: 0 | D115: 0 | E115: 0 | F115: 0 | G115: 0 | H115: 0 | I115: 0 | J115: 0 | K115: 0 | L115: 0 | M115: 0 | N115: s. o.
B116: 0,75 à ˂ 2,50 | C116: 0 | D116: 0 | E116: 0 | F116: 0 | G116: 0 | H116: 0 | I116: 0 | J116: 0 | K116: 0 | L116: 0 | M116: 0 | N116: s. o.
B117: 2,50 à ˂ 10,00 | C117: 0 | D117: 0 | E117: 0 | F117: 0 | G117: 0 | H117: 0 | I117: 0 | J117: 0 | K117: 0 | L117: 0 | M117: 0 | N117: s. o.
B118: 10,00 à ˂ 100,00 | C118: 0 | D118: 0 | E118: 0 | F118: 0 | G118: 0 | H118: 0 | I118: 0 | J118: 0 | K118: 0 | L118: 0 | M118: 0 | N118: s. o.
B119: 100,00 (défaut) | C119: 0 | D119: 0 | E119: 0 | F119: 0 | G119: 0 | H119: 0 | I119: 0 | J119: 0 | K119: 0 | L119: 0 | M119: 0 | N119: s. o.
B120: Sous-total | C120: 0 | D120: 0 | E120: 0 | F120: 0 | G120: 0 | H120: 0 | I120: 0 | J120: 0 | K120: 0 | L120: 0 | M120: 0 | N120: 0
A121: Expositions liées à des institutions financières | B121: 0,00 à ˂ 0,15 | C121: 3,938 | D121: 2,422 | E121: 41.74% | F121: 4,995 | G121: 0.07% | H121: 24 | I121: 45.00% | J121: 1.6 | K121: 1,098 | L121: 21.97% | M121: 1 | N121: s. o.
B122: 0,15 à ˂ 0,25 | C122: 434 | D122: 793 | E122: 38.13% | F122: 736 | G122: 0.19% | H122: 5 | I122: 45.00% | J122: 1.4 | K122: 242 | L122: 32.92% | M122: 1 | N122: s. o.
B123: 0,25 à ˂ 0,50 | C123: 0 | D123: 0 | E123: 0 | F123: 0 | G123: 0 | H123: 0 | I123: 0 | J123: 0 | K123: 0 | L123: 0 | M123: 0 | N123: s. o.
B124: 0,50 à ˂ 0,75 | C124: 0 | D124: 0 | E124: 0 | F124: 0 | G124: 0 | H124: 0 | I124: 0 | J124: 0 | K124: 0 | L124: 0 | M124: 0 | N124: s. o.
B125: 0,75 à ˂ 2,50 | C125: 0 | D125: 0 | E125: 0 | F125: 0 | G125: 0 | H125: 0 | I125: 0 | J125: 0 | K125: 0 | L125: 0 | M125: 0 | N125: s. o.
B126: 2,50 à ˂ 10,00 | C126: 0 | D126: 0 | E126: 0 | F126: 0 | G126: 0 | H126: 0 | I126: 0 | J126: 0 | K126: 0 | L126: 0 | M126: 0 | N126: s. o.
B127: 10,00 à ˂ 100,00 | C127: 0 | D127: 0 | E127: 0 | F127: 0 | G127: 0 | H127: 0 | I127: 0 | J127: 0 | K127: 0 | L127: 0 | M127: 0 | N127: s. o.
B128: 100,00 (défaut) | C128: 0 | D128: 0 | E128: 0 | F128: 0 | G128: 0 | H128: 0 | I128: 0 | J128: 0 | K128: 0 | L128: 0 | M128: 0 | N128: s. o.
B129: Sous-total | C129: 4,372 | D129: 3,215 | E129: 40.83% | F129: 5,731 | G129: 0.08% | H129: 29 | I129: 45.00% | J129: 1.6 | K129: 1,340 | L129: 23.38% | M129: 2 | N129: 1
A130: Expositions liées à des entreprises | B130: 0,00 à ˂ 0,15 | C130: 511 | D130: 2,336 | E130: 41.48% | F130: 1,476 | G130: 0.11% | H130: 24 | I130: 40.00% | J130: 2.7 | K130: 420 | L130: 28.49% | M130: 1 | N130: s. o.
B131: 0,15 à ˂ 0,25 | C131: 792 | D131: 1,473 | E131: 39.89% | F131: 1,379 | G131: 0.23% | H131: 18 | I131: 40.00% | J131: 1.9 | K131: 502 | L131: 36.39% | M131: 1 | N131: s. o.
B132: 0,25 à ˂ 0,50 | C132: 1,094 | D132: 3,919 | E132: 37.41% | F132: 2,560 | G132: 0.35% | H132: 29 | I132: 40.00% | J132: 2.2 | K132: 1,265 | L132: 49.40% | M132: 4 | N132: s. o.
B133: 0,50 à ˂ 0,75 | C133: 801 | D133: 900 | E133: 39.62% | F133: 1,157 | G133: 0.62% | H133: 18 | I133: 40.00% | J133: 2.1 | K133: 734 | L133: 63.40% | M133: 3 | N133: s. o.
B134: 0,75 à ˂ 2,50 | C134: 2,610 | D134: 2,082 | E134: 38.33% | F134: 3,404 | G134: 1.60% | H134: 49 | I134: 40.00% | J134: 2.0 | K134: 2,993 | L134: 87.91% | M134: 22 | N134: s. o.
B135: 2,50 à ˂ 10,00 | C135: 1,923 | D135: 642 | E135: 34.66% | F135: 2,142 | G135: 4.90% | H135: 40 | I135: 40.00% | J135: 1.4 | K135: 2,579 | L135: 120.44% | M135: 42 | N135: s. o.
B136: 10,00 à ˂ 100,00 | C136: 3 | D136: 0 | E136: 0 | F136: 3 | G136: 27.53% | H136: 1 | I136: 40.00% | J136: 1.0 | K136: 5 | L136: 169.20% | M136: 0 | N136: s. o.
B137: 100,00 (défaut) | C137: 153 | D137: 50 | E137: 39.85% | F137: 173 | G137: 100.00% | H137: 3 | I137: 40.00% | J137: 1.0 | K137: 339 | L137: 195.62% | M137: 67 | N137: s. o.
B138: Sous-total | C138: 7,887 | D138: 11,402 | E138: 38.77% | F138: 12,294 | G138: 2.88% | H138: 182 | I138: 40.00% | J138: 2.0 | K138: 8,837 | L138: 71.88% | M138: 140 | N138: 108
A139: Total des clientèles non détail - FIRB | C139: 12,259 | D139: 14,617 | E139: 39.21% | F139: 18,025 | G139: 2.00% | H139: 211 | I139: 41.46% | J139: 1.9 | K139: 10,177 | L139: 56.46% | M139: 142 | N139: 109
A144: Au 30 septembre 2024 | B144: =SUM(C149:N176) -> 161,939.16
C146: a | D146: b | E146: c | F146: d | G146: e | H146: f | I146: g | J146: h | K146: i | L146: j | M146: k | N146: l
A148: (en millions de dollars) | B148: Fourchette de PD (%) | C148: Expositions au bilan brutes initiales | D148: Expositions hors bilan avant prise en compte des FCEC | E148: FCEC moyen | F148: ECD après prise en compte des techniques ARC et des FCEC | G148: PD moyenne | H148: Nombre de débiteurs | I148: PCD moyenne | J148: Échéance moyenne(1) | K148: APR | L148: Proportion des APR | M148: Perte attendue(2) | N148: Provisions(3)
A149: Expositions liées à des emprunteurs souverains | B149: 0,00 à ˂ 0,15 | C149: 0 | D149: 0 | E149: 0 | F149: 0 | G149: 0 | H149: 0 | I149: 0 | J149: 0 | K149: 0 | L149: 0 | M149: 0 | N149: s. o.
B150: 0,15 à ˂ 0,25 | C150: 0 | D150: 0 | E150: 0 | F150: 0 | G150: 0 | H150: 0 | I150: 0 | J150: 0 | K150: 0 | L150: 0 | M150: 0 | N150: s. o.
B151: 0,25 à ˂ 0,50 | C151: 0 | D151: 0 | E151: 0 | F151: 0 | G151: 0 | H151: 0 | I151: 0 | J151: 0 | K151: 0 | L151: 0 | M151: 0 | N151: s. o.
B152: 0,50 à ˂ 0,75 | C152: 0 | D152: 0 | E152: 0 | F152: 0 | G152: 0 | H152: 0 | I152: 0 | J152: 0 | K152: 0 | L152: 0 | M152: 0 | N152: s. o.
B153: 0,75 à ˂ 2,50 | C153: 0 | D153: 0 | E153: 0 | F153: 0 | G153: 0 | H153: 0 | I153: 0 | J153: 0 | K153: 0 | L153: 0 | M153: 0 | N153: s. o.
B154: 2,50 à ˂ 10,00 | C154: 0 | D154: 0 | E154: 0 | F154: 0 | G154: 0 | H154: 0 | I154: 0 | J154: 0 | K154: 0 | L154: 0 | M154: 0 | N154: s. o.
B155: 10,00 à ˂ 100,00 | C155: 0 | D155: 0 | E155: 0 | F155: 0 | G155: 0 | H155: 0 | I155: 0 | J155: 0 | K155: 0 | L155: 0 | M155: 0 | N155: s. o.
B156: 100,00 (défaut) | C156: 0 | D156: 0 | E156: 0 | F156: 0 | G156: 0 | H156: 0 | I156: 0 | J156: 0 | K156: 0 | L156: 0 | M156: 0 | N156: s. o.
B157: Sous-total | C157: 0 | D157: 0 | E157: 0 | F157: 0 | G157: 0 | H157: 0 | I157: 0 | J157: 0 | K157: 0 | L157: 0 | M157: 0 | N157: 0
A158: Expositions liées à des institutions financières | B158: 0,00 à ˂ 0,15 | C158: 3,434 | D158: 2,550 | E158: 41.76% | F158: 4,562 | G158: 0.07% | H158: 24 | I158: 45.00% | J158: 1.8 | K158: 1,060 | L158: 23.23% | M158: 1 | N158: s. o.
B159: 0,15 à ˂ 0,25 | C159: 479 | D159: 673 | E159: 37.80% | F159: 733 | G159: 0.19% | H159: 5 | I159: 45.00% | J159: 1.6 | K159: 251 | L159: 34.25% | M159: 1 | N159: s. o.
B160: 0,25 à ˂ 0,50 | C160: 0 | D160: 0 | E160: 0 | F160: 0 | G160: 0 | H160: 0 | I160: 0 | J160: 0 | K160: 0 | L160: 0 | M160: 0 | N160: s. o.
B161: 0,50 à ˂ 0,75 | C161: 0 | D161: 0 | E161: 0 | F161: 0 | G161: 0 | H161: 0 | I161: 0 | J161: 0 | K161: 0 | L161: 0 | M161: 0 | N161: s. o.
B162: 0,75 à ˂ 2,50 | C162: 0 | D162: 0 | E162: 0 | F162: 0 | G162: 0 | H162: 0 | I162: 0 | J162: 0 | K162: 0 | L162: 0 | M162: 0 | N162: s. o.
B163: 2,50 à ˂ 10,00 | C163: 0 | D163: 0 | E163: 0 | F163: 0 | G163: 0 | H163: 0 | I163: 0 | J163: 0 | K163: 0 | L163: 0 | M163: 0 | N163: s. o.
B164: 10,00 à ˂ 100,00 | C164: 22 | D164: 0 | E164: 10.00% | F164: 22 | G164: 17.34% | H164: 1 | I164: 45.00% | J164: 1.0 | K164: 46 | L164: 214.68% | M164: 2 | N164: s. o.
B165: 100,00 (défaut) | C165: 0 | D165: 0 | E165: 0 | F165: 0 | G165: 0 | H165: 0 | I165: 0 | J165: 0 | K165: 0 | L165: 0 | M165: 0 | N165: s. o.
B166: Sous-total | C166: 3,935 | D166: 3,223 | E166: 40.91% | F166: 5,317 | G166: 0.16% | H166: 30 | I166: 45.00% | J166: 1.8 | K166: 1,357 | L166: 25.53% | M166: 4 | N166: 0
A167: Expositions liées à des entreprises | B167: 0,00 à ˂ 0,15 | C167: 510 | D167: 2,242 | E167: 42.36% | F167: 1,454 | G167: 0.11% | H167: 23 | I167: 40.00% | J167: 2.6 | K167: 410 | L167: 28.19% | M167: 1 | N167: s. o.
B168: 0,15 à ˂ 0,25 | C168: 874 | D168: 1,584 | E168: 39.76% | F168: 1,504 | G168: 0.23% | H168: 20 | I168: 40.00% | J168: 2.0 | K168: 558 | L168: 37.12% | M168: 1 | N168: s. o.
B169: 0,25 à ˂ 0,50 | C169: 1,608 | D169: 2,693 | E169: 36.33% | F169: 2,588 | G169: 0.34% | H169: 28 | I169: 40.00% | J169: 1.9 | K169: 1,170 | L169: 45.23% | M169: 4 | N169: s. o.
B170: 0,50 à ˂ 0,75 | C170: 936 | D170: 917 | E170: 45.37% | F170: 1,352 | G170: 0.62% | H170: 19 | I170: 40.00% | J170: 2.0 | K170: 853 | L170: 63.07% | M170: 3 | N170: s. o.
B171: 0,75 à ˂ 2,50 | C171: 2,408 | D171: 1,763 | E171: 41.50% | F171: 3,138 | G171: 1.59% | H171: 48 | I171: 40.00% | J171: 2.1 | K171: 2,772 | L171: 88.30% | M171: 20 | N171: s. o.
B172: 2,50 à ˂ 10,00 | C172: 1,927 | D172: 670 | E172: 34.43% | F172: 2,153 | G172: 4.78% | H172: 44 | I172: 40.00% | J172: 1.6 | K172: 2,601 | L172: 120.79% | M172: 41 | N172: s. o.
B173: 10,00 à ˂ 100,00 | C173: 4 | D173: 116 | E173: 39.92% | F173: 50 | G173: 27.17% | H173: 1 | I173: 40.00% | J173: 2.8 | K173: 90 | L173: 181.05% | M173: 5 | N173: s. o.
B174: 100,00 (défaut) | C174: 150 | D174: 41 | E174: 41.89% | F174: 168 | G174: 100.00% | H174: 3 | I174: 40.00% | J174: 1.0 | K174: 448 | L174: 267.22% | M174: 33 | N174: s. o.
B175: Sous-total | C175: 8,417 | D175: 10,026 | E175: 39.90% | F175: 12,407 | G175: 2.87% | H175: 186 | I175: 40.00% | J175: 2.0 | K175: 8,902 | L175: 71.75% | M175: 108 | N175: 76
A176: Total des clientèles non détail - FIRB | C176: 12,352 | D176: 13,249 | E176: 40.14% | F176: 17,724 | G176: 2.07% | H176: 216 | I176: 41.48% | J176: 1.9 | K176: 10,259 | L176: 57.88% | M176: 112 | N176: 76
A178: (1) Ce paramètre doit être renseigné uniquement lorsqu'il est utilisé pour le calcul des APR.
A179: (2) La perte attendue est évaluée conformément aux exigences de la ligne directrice de l’AMF.
A180: (3) Les provisions sont évaluées conformément aux exigences de la ligne directrice de l’AMF.

Sheet CR8
A1: Tableau CR8 – États des flux d'actifs pondérés en fonction des risques (APR) pour les expositions au risque de crédit selon l'approche IRB
A3: =SUM(D7:H15) -> 760,060.00 | C3: =SUM(D7:H15) -> 760060 | D3: a | E3: a | F3: a | G3: a | H3: a
D5: Valeurs des APR
B6: (en millions de dollars) | D6: Au 30 septembre 2025 | E6: Au 30 juin 2025 | F6: Au 31 mars 2025 | G6: Au 31 décembre 2024 | H6: Au 30 septembre 2024
A7: 1 | B7: APR à la fin de la période précédente | D7: 77,758 | E7: 76,350 | F7: 73,988 | G7: 73,920 | H7: 75,126
A8: 2 | B8: Montant des actifs(1) | D8: 616 | E8: 1,760 | F8: 1,624 | G8: 1,583 | H8: 955
A9: 3 | B9: Qualité des actifs(2) | D9: (374) | E9: (1,207) | F9: 211 | G9: (1,125) | H9: 77
A10: 4 | B10: Mise à jour des modèles(3) | D10: 119 | E10: 338 | F10: 641 | G10: 0 | H10: 0
A11: 5 | B11: Méthodologie et politique(4) | D11: (289) | E11: 83 | F11: (105) | G11: (824) | H11: (2,164)
A12: 6 | B12: Acquisitions et cessions(5) | D12: 0 | E12: 0 | F12: 0 | G12: 0 | H12: 0
A13: 7 | B13: Mouvements de devises(6) | D13: 184 | E13: 434 | F13: (9) | G13: 434 | H13: (74)
A14: 8 | B14: Autres | D14: 0 | E14: 0 | F14: 0 | G14: 0 | H14: 0
A15: 9 | B15: APR à la fin de la période considérée | D15: 78,014 | E15: 77,758 | F15: 76,350 | G15: 73,988 | H15: 73,920
B17: (1) | C17: Concerne la hausse ou la baisse des expositions sous-jacentes.
B18: (2) | C18: Concerne la variation des facteurs d'atténuation du risque et de la qualité des portefeuilles.
B19: (3) | C19: Concerne l'évolution des modèles et des paramètres de risque.
B20: (4) | C20: Concernent les changements réglementaires et l'évolution des méthodes de calcul du capital réglementaire.
B21: (5) | C21: Concernent l'évolution de la taille du portefeuille découlant des acquisitions et cessions d'entités.
B22: (6) | C22: Concernent les fluctuations de marché comme les mouvements de devises.

Sheet ECD par actif et régions
A1: Expositions en cas de défaut par classes d'actif, par régions et par échéances résiduelles
A2: =SUM(C6:P38) -> 17341596
C3: Au 30 septembre 2025 | J3: Au 30 juin 2025
C4: Catégories d'expositions(1) | J4: Catégories d'expositions(1)
A5: (en millions de dollars) | C5: Expositions utilisées | D5: Expositions inutilisées | E5: Transactions assimilables à des pensions | F5: Dérivés de gré à gré | G5: Expositions hors bilan | H5: Total | I5: Expositions nettes(2) | J5: Expositions utilisées | K5: Expositions inutilisées | L5: Transactions assimilables à des pensions | M5: Dérivés de gré à gré | N5: Expositions hors bilan | O5: Total | P5: Expositions nettes(2)
A6: Approche standard
A7: Emprunteurs souverains | C7: 4,549 | D7: 0 | E7: 0 | F7: 0 | G7: 0 | H7: 4,549 | I7: 6,786 | J7: 5,484 | K7: 0 | L7: 0 | M7: 0 | N7: 0 | O7: 5,484 | P7: 7,564
A8: Organismes publics hors administration centrale | C8: 7,559 | D8: 1,648 | E8: 0 | F8: 0 | G8: 59 | H8: 9,266 | I8: 9,335 | J8: 7,417 | K8: 1,586 | L8: 0 | M8: 0 | N8: 57 | O8: 9,060 | P8: 9,143
A9: Institutions financières | C9: 2,114 | D9: 56 | E9: 0 | F9: 14 | G9: 25 | H9: 2,209 | I9: 2,993 | J9: 1,799 | K9: 57 | L9: 205 | M9: 3 | N9: 25 | O9: 2,089 | P9: 2,643
A10: Entreprises | C10: 8,013 | D10: 2,902 | E10: 4,645 | F10: 1 | G10: 1,969 | H10: 17,530 | I10: 12,804 | J10: 7,447 | K10: 2,659 | L10: 4,106 | M10: 1 | N10: 1,916 | O10: 16,129 | P10: 11,974
A11: PME assimilées aux autres expositions sur la clientèle de détail | C11: 256 | D11: 87 | E11: 0 | F11: 0 | G11: 8 | H11: 351 | I11: 331 | J11: 240 | K11: 86 | L11: 0 | M11: 0 | N11: 8 | O11: 334 | P11: 314
A12: Immobilier | C12: 7,726 | D12: 526 | E12: 0 | F12: 0 | G12: 0 | H12: 8,252 | I12: 5,758 | J12: 7,587 | K12: 473 | L12: 0 | M12: 0 | N12: 0 | O12: 8,060 | P12: 5,711
A13: Expositions renouvelables sur la clientèle de détail | C13: 1,104 | D13: 461 | E13: 0 | F13: 0 | G13: 0 | H13: 1,565 | I13: 1,565 | J13: 1,096 | K13: 459 | L13: 0 | M13: 0 | N13: 0 | O13: 1,555 | P13: 1,555
A14: Autres expositions sur la clientèle de détail (à l'exception des PME) | C14: 397 | D14: 563 | E14: 0 | F14: 0 | G14: 5 | H14: 965 | I14: 868 | J14: 405 | K14: 546 | L14: 0 | M14: 0 | N14: 5 | O14: 956 | P14: 844
A15: Titrisation | C15: 143 | D15: 0 | E15: 0 | F15: 0 | G15: 0 | H15: 143 | I15: 143 | J15: 141 | K15: 0 | L15: 0 | M15: 0 | N15: 0 | O15: 141 | P15: 141
A16: Actions | C16: 687 | D16: 92 | E16: 0 | F16: 0 | G16: 0 | H16: 779 | I16: 779 | J16: 716 | K16: 95 | L16: 0 | M16: 0 | N16: 0 | O16: 811 | P16: 811
A17: Portefeuille de négociation | C17: 0 | D17: 0 | E17: 22,554 | F17: 432 | G17: 0 | H17: 22,986 | I17: 790 | J17: 0 | K17: 0 | L17: 23,303 | M17: 375 | N17: 0 | O17: 23,678 | P17: 815
A18: Approche des notations internes
A19: Emprunteurs souverains | C19: 44,676 | D19: 1,365 | E19: 2,666 | F19: 0 | G19: 1,763 | H19: 50,470 | I19: 114,911 | J19: 44,279 | K19: 1,347 | L19: 12 | M19: 0 | N19: 1,519 | O19: 47,157 | P19: 111,952
A20: Organismes publics hors administration centrale | C20: 0 | D20: 0 | E20: 0 | F20: 0 | G20: 0 | H20: 0 | I20: 0 | J20: 0 | K20: 0 | L20: 0 | M20: 0 | N20: 0 | O20: 0 | P20: 0
A21: Institutions financières | C21: 3,612 | D21: 1,094 | E21: 10 | F21: 6,820 | G21: 245 | H21: 11,781 | I21: 11,776 | J21: 3,859 | K21: 1,175 | L21: 8 | M21: 6,165 | N21: 207 | O21: 11,414 | P21: 11,410
A22: Entreprises | C22: 41,344 | D22: 9,024 | E22: 0 | F22: 1 | G22: 1,072 | H22: 51,441 | I22: 46,208 | J22: 40,132 | K22: 8,668 | L22: 0 | M22: 2 | N22: 1,050 | O22: 49,852 | P22: 44,873
A23: PME assimilées aux autres expositions sur la clientèle de détail | C23: 7,726 | D23: 4,058 | E23: 0 | F23: 1 | G23: 89 | H23: 11,874 | I23: 10,587 | J23: 7,738 | K23: 4,020 | L23: 0 | M23: 1 | N23: 92 | O23: 11,851 | P23: 10,541
A24: Immobilier | C24: 218,161 | D24: 30,032 | E24: 0 | F24: 0 | G24: 0 | H24: 248,193 | I24: 188,510 | J24: 214,441 | K24: 29,911 | L24: 0 | M24: 0 | N24: 0 | O24: 244,352 | P24: 186,661
A25: Expositions renouvelables sur la clientèle de détail | C25: 6,840 | D25: 8,108 | E25: 0 | F25: 0 | G25: 0 | H25: 14,948 | I25: 14,948 | J25: 6,878 | K25: 8,152 | L25: 0 | M25: 0 | N25: 0 | O25: 15,030 | P25: 15,030
A26: Autres expositions sur la clientèle de détail | C26: 15,257 | D26: 8,315 | E26: 0 | F26: 0 | G26: 5 | H26: 23,577 | I26: 22,229 | J26: 15,262 | K26: 8,213 | L26: 0 | M26: 0 | N26: 5 | O26: 23,480 | P26: 22,094
A27: Portefeuille de négociation | C27: 0 | D27: 0 | E27: 17,942 | F27: 1,432 | G27: 0 | H27: 19,374 | I27: 1,827 | J27: 0 | K27: 0 | L27: 22,360 | M27: 1,392 | N27: 0 | O27: 23,752 | P27: 2,166
A28: Total | C28: 370,164 | D28: 68,331 | E28: 47,817 | F28: 8,701 | G28: 5,240 | H28: 500,253 | I28: 453,148 | J28: 364,921 | K28: 67,447 | L28: 49,994 | M28: 7,939 | N28: 4,884 | O28: 495,185 | P28: 446,242
A29: Par régions
B30: Canada | C30: 362,625 | D30: 67,179 | E30: 43,132 | F30: 3,182 | G30: 4,479 | H30: 480,597 | I30: 438,175 | J30: 358,412 | K30: 66,144 | L30: 43,457 | M30: 2,985 | N30: 4,115 | O30: 475,113 | P30: 432,668
B31: États-Unis | C31: 6,789 | D31: 1,111 | E31: 2,791 | F31: 767 | G31: 386 | H31: 11,844 | I31: 9,039 | J31: 5,635 | K31: 1,254 | L31: 3,442 | M31: 687 | N31: 414 | O31: 11,432 | P31: 7,988
B32: Autres pays | C32: 750 | D32: 41 | E32: 1,894 | F32: 4,752 | G32: 375 | H32: 7,812 | I32: 5,934 | J32: 874 | K32: 49 | L32: 3,095 | M32: 4,267 | N32: 355 | O32: 8,640 | P32: 5,586
A33: Total | C33: 370,164 | D33: 68,331 | E33: 47,817 | F33: 8,701 | G33: 5,240 | H33: 500,253 | I33: 453,148 | J33: 364,921 | K33: 67,447 | L33: 49,994 | M33: 7,939 | N33: 4,884 | O33: 495,185 | P33: 446,242
A34: Par échéance(3)
B35: Jusqu'à 1 an | C35: 130,622 | D35: 55,286 | E35: 47,767 | F35: 1,933 | G35: 2,129 | H35: 237,737 | I35: 190,737 | J35: 126,745 | K35: 54,953 | L35: 49,897 | M35: 1,833 | N35: 1,750 | O35: 235,178 | P35: 186,391
B36: De 1 à 5 ans | C36: 193,928 | D36: 12,371 | E36: 38 | F36: 6,138 | G36: 2,752 | H36: 215,227 | I36: 215,147 | J36: 193,013 | K36: 11,735 | L36: 80 | M36: 5,542 | N36: 2,456 | O36: 212,826 | P36: 212,701
B37: Plus de 5 ans | C37: 45,614 | D37: 674 | E37: 12 | F37: 630 | G37: 359 | H37: 47,289 | I37: 47,264 | J37: 45,163 | K37: 759 | L37: 17 | M37: 564 | N37: 678 | O37: 47,181 | P37: 47,150
A38: Total | C38: 370,164 | D38: 68,331 | E38: 47,817 | F38: 8,701 | G38: 5,240 | H38: 500,253 | I38: 453,148 | J38: 364,921 | K38: 67,447 | L38: 49,994 | M38: 7,939 | N38: 4,884 | O38: 495,185 | P38: 446,242
B40: =SUM(C44:P75) -> 16337682 | C40: Au 31 mars 2025 | J40: Au 31 décembre 2024
C41: Catégories d'expositions(1) | J41: Catégories d'expositions(1)
A42: (en millions de dollars) | C42: Expositions utilisées | D42: Expositions inutilisées | E42: Transactions assimilables à des pensions | F42: Dérivés de gré à gré | G42: Expositions hors bilan | H42: Total | I42: Expositions nettes(2) | J42: Expositions utilisées | K42: Expositions inutilisées | L42: Transactions assimilables à des pensions | M42: Dérivés de gré à gré | N42: Expositions hors bilan | O42: Total | P42: Expositions nettes(2)
A43: Approche standard
A44: Emprunteurs souverains | C44: 4,892 | D44: 0 | E44: 0 | F44: 0 | G44: 0 | H44: 4,892 | I44: 6,700 | J44: 4,458 | K44: 0 | L44: 0 | M44: 0 | N44: 0 | O44: 4,458 | P44: 6,119
A45: Organismes publics hors administration centrale | C45: 7,730 | D45: 1,524 | E45: 0 | F45: 0 | G45: 56 | H45: 9,310 | I45: 9,395 | J45: 7,225 | K45: 1,635 | L45: 0 | M45: 0 | N45: 42 | O45: 8,902 | P45: 8,989
A46: Institutions financières | C46: 1,928 | D46: 52 | E46: 0 | F46: 7 | G46: 31 | H46: 2,018 | I46: 2,720 | J46: 1,751 | K46: 53 | L46: 0 | M46: 28 | N46: 21 | O46: 1,853 | P46: 2,520
A47: Entreprises | C47: 8,141 | D47: 3,061 | E47: 4,092 | F47: 0 | G47: 2,213 | H47: 17,507 | I47: 13,514 | J47: 10,381 | K47: 3,842 | L47: 4,799 | M47: 22 | N47: 2,057 | O47: 21,101 | P47: 16,253
A48: PME assimilées aux autres expositions sur la clientèle de détail | C48: 237 | D48: 89 | E48: 0 | F48: 0 | G48: 8 | H48: 334 | I48: 317 | J48: 224 | K48: 89 | L48: 0 | M48: 0 | N48: 7 | O48: 320 | P48: 304
A49: Immobilier | C49: 7,308 | D49: 484 | E49: 0 | F49: 0 | G49: 0 | H49: 7,792 | I49: 5,725 | J49: 7,036 | K49: 441 | L49: 0 | M49: 0 | N49: 0 | O49: 7,477 | P49: 5,551
A50: Expositions renouvelables sur la clientèle de détail | C50: 1,062 | D50: 459 | E50: 0 | F50: 0 | G50: 0 | H50: 1,521 | I50: 1,521 | J50: 1,064 | K50: 431 | L50: 0 | M50: 0 | N50: 0 | O50: 1,495 | P50: 1,495
A51: Autres expositions sur la clientèle de détail (à l'exception des PME) | C51: 414 | D51: 550 | E51: 0 | F51: 0 | G51: 4 | H51: 968 | I51: 853 | J51: 442 | K51: 557 | L51: 0 | M51: 0 | N51: 5 | O51: 1,004 | P51: 877
A52: Titrisation | C52: 48 | D52: 0 | E52: 0 | F52: 0 | G52: 0 | H52: 48 | I52: 48 | J52: 48 | K52: 0 | L52: 0 | M52: 0 | N52: 0 | O52: 48 | P52: 48
A53: Actions | C53: 718 | D53: 91 | E53: 0 | F53: 0 | G53: 0 | H53: 809 | I53: 809 | J53: 689 | K53: 142 | L53: 0 | M53: 0 | N53: 0 | O53: 831 | P53: 831
A54: Portefeuille de négociation | C54: 0 | D54: 0 | E54: 25,066 | F54: 498 | G54: 0 | H54: 25,564 | I54: 1,330 | J54: 0 | K54: 0 | L54: 22,072 | M54: 581 | N54: 0 | O54: 22,653 | P54: 1,096
A55: Approche des notations internes
A56: Emprunteurs souverains | C56: 43,002 | D56: 1,411 | E56: 23 | F56: 1 | G56: 66 | H56: 44,503 | I56: 106,006 | J56: 39,513 | K56: 1,434 | L56: 5 | M56: 0 | N56: 76 | O56: 41,028 | P56: 99,911
A57: Organismes publics hors administration centrale | C57: 0 | D57: 0 | E57: 0 | F57: 0 | G57: 0 | H57: 0 | I57: 0 | J57: 0 | K57: 0 | L57: 0 | M57: 0 | N57: 0 | O57: 0 | P57: 0
A58: Institutions financières | C58: 3,860 | D58: 1,193 | E58: 67 | F58: 5,801 | G58: 165 | H58: 11,086 | I58: 11,063 | J58: 4,372 | K58: 1,212 | L58: 65 | M58: 5,315 | N58: 147 | O58: 11,111 | P58: 11,075
A59: Entreprises | C59: 37,971 | D59: 8,544 | E59: 0 | F59: 1 | G59: 1,008 | H59: 47,524 | I59: 42,676 | J59: 34,216 | K59: 8,160 | L59: 0 | M59: 0 | N59: 631 | O59: 43,007 | P59: 38,203
A60: PME assimilées aux autres expositions sur la clientèle de détail | C60: 7,671 | D60: 4,012 | E60: 0 | F60: 1 | G60: 87 | H60: 11,771 | I60: 10,434 | J60: 7,524 | K60: 4,028 | L60: 0 | M60: 1 | N60: 89 | O60: 11,642 | P60: 10,294
A61: Immobilier | C61: 206,173 | D61: 29,515 | E61: 0 | F61: 0 | G61: 0 | H61: 235,688 | I61: 181,294 | J61: 201,350 | K61: 28,565 | L61: 0 | M61: 0 | N61: 0 | O61: 229,915 | P61: 178,077
A62: Expositions renouvelables sur la clientèle de détail | C62: 6,990 | D62: 8,162 | E62: 0 | F62: 0 | G62: 0 | H62: 15,152 | I62: 15,152 | J62: 7,181 | K62: 8,055 | L62: 0 | M62: 0 | N62: 0 | O62: 15,236 | P62: 15,236
A63: Autres expositions sur la clientèle de détail | C63: 14,926 | D63: 8,343 | E63: 0 | F63: 0 | G63: 5 | H63: 23,274 | I63: 21,820 | J63: 14,992 | K63: 8,084 | L63: 0 | M63: 0 | N63: 6 | O63: 23,082 | P63: 21,714
A64: Portefeuille de négociation | C64: 0 | D64: 0 | E64: 13,043 | F64: 1,530 | G64: 0 | H64: 14,573 | I64: 1,795 | J64: 0 | K64: 0 | L64: 14,279 | M64: 1,084 | N64: 0 | O64: 15,363 | P64: 1,462
A65: Total | C65: 353,071 | D65: 67,490 | E65: 42,291 | F65: 7,839 | G65: 3,643 | H65: 474,334 | I65: 433,172 | J65: 342,466 | K65: 66,728 | L65: 41,220 | M65: 7,031 | N65: 3,081 | O65: 460,526 | P65: 420,055
A66: Par régions
B67: Canada | C67: 346,560 | D67: 65,952 | E67: 37,430 | F67: 3,275 | G67: 2,860 | H67: 456,077 | I67: 419,742 | J67: 336,581 | K67: 65,084 | L67: 37,129 | M67: 2,619 | N67: 2,155 | O67: 443,568 | P67: 407,263
B68: États-Unis | C68: 5,603 | D68: 1,507 | E68: 4,332 | F68: 681 | G68: 511 | H68: 12,634 | I68: 8,261 | J68: 5,009 | K68: 1,568 | L68: 3,360 | M68: 584 | N68: 704 | O68: 11,225 | P68: 7,749
B69: Autres pays | C69: 908 | D69: 31 | E69: 529 | F69: 3,883 | G69: 272 | H69: 5,623 | I69: 5,169 | J69: 876 | K69: 76 | L69: 731 | M69: 3,828 | N69: 222 | O69: 5,733 | P69: 5,043
A70: Total | C70: 353,071 | D70: 67,490 | E70: 42,291 | F70: 7,839 | G70: 3,643 | H70: 474,334 | I70: 433,172 | J70: 342,466 | K70: 66,728 | L70: 41,220 | M70: 7,031 | N70: 3,081 | O70: 460,526 | P70: 420,055
A71: Par échéance(3)
B72: Jusqu'à 1 an | C72: 118,948 | D72: 54,268 | E72: 42,124 | F72: 2,204 | G72: 1,821 | H72: 219,365 | I72: 178,495 | J72: 115,476 | K72: 52,963 | L72: 41,074 | M72: 2,087 | N72: 2,498 | O72: 214,098 | P72: 173,875
B73: De 1 à 5 ans | C73: 189,252 | D73: 12,387 | E73: 0 | F73: 5,056 | G73: 1,300 | H73: 207,995 | I73: 207,923 | J73: 184,419 | K73: 12,865 | L73: 100 | M73: 4,523 | N73: 566 | O73: 202,473 | P73: 202,286
B74: Plus de 5 ans | C74: 44,871 | D74: 835 | E74: 167 | F74: 579 | G74: 522 | H74: 46,974 | I74: 46,754 | J74: 42,571 | K74: 900 | L74: 46 | M74: 421 | N74: 17 | O74: 43,955 | P74: 43,894
A75: Total | C75: 353,071 | D75: 67,490 | E75: 42,291 | F75: 7,839 | G75: 3,643 | H75: 474,334 | I75: 433,172 | J75: 342,466 | K75: 66,728 | L75: 41,220 | M75: 7,031 | N75: 3,081 | O75: 460,526 | P75: 420,055
B77: =SUM(C80:I112) -> 5,268,072.00 | C77: Au 30 septembre 2024
C78: Catégories d'expositions(1)
A79: (en millions de dollars) | C79: Expositions utilisées | D79: Expositions inutilisées | E79: Transactions assimilables à des pensions | F79: Dérivés de gré à gré | G79: Expositions hors bilan | H79: Total | I79: Expositions nettes(2)
A80: Approche standard
A81: Emprunteurs souverains | C81: 6,599 | D81: 0 | E81: 0 | F81: 0 | G81: 0 | H81: 6,599 | I81: 7,879
A82: Organismes publics hors administration centrale | C82: 6,918 | D82: 1,702 | E82: 0 | F82: 0 | G82: 58 | H82: 8,678 | I82: 8,764
A83: Institutions financières | C83: 1,778 | D83: 10 | E83: 0 | F83: 6 | G83: 20 | H83: 1,814 | I83: 2,459
A84: Entreprises | C84: 10,335 | D84: 3,635 | E84: 4,922 | F84: 18 | G84: 2,608 | H84: 21,518 | I84: 16,519
A85: PME assimilées aux autres expositions sur la clientèle de détail | C85: 220 | D85: 80 | E85: 0 | F85: 0 | G85: 6 | H85: 306 | I85: 292
A86: Immobilier | C86: 6,584 | D86: 219 | E86: 0 | F86: 0 | G86: 0 | H86: 6,803 | I86: 5,257
A87: Expositions renouvelables sur la clientèle de détail | C87: 91 | D87: 17 | E87: 0 | F87: 0 | G87: 0 | H87: 108 | I87: 108
A88: Autres expositions sur la clientèle de détail (à l'exception des PME) | C88: 1,157 | D88: 774 | E88: 0 | F88: 0 | G88: 4 | H88: 1,935 | I88: 1,792
A89: Titrisation | C89: 25 | D89: 0 | E89: 0 | F89: 0 | G89: 0 | H89: 25 | I89: 25
A90: Actions | C90: 673 | D90: 148 | E90: 0 | F90: 0 | G90: 0 | H90: 821 | I90: 821
A91: Portefeuille de négociation | C91: 0 | D91: 0 | E91: 23,805 | F91: 517 | G91: 0 | H91: 24,322 | I91: 1,025
A92: Approche des notations internes
A93: Emprunteurs souverains | C93: 35,691 | D93: 1,342 | E93: 0 | F93: 0 | G93: 54 | H93: 37,087 | I93: 93,035
A94: Organismes publics hors administration centrale | C94: 0 | D94: 0 | E94: 0 | F94: 0 | G94: 0 | H94: 0 | I94: 0
A95: Institutions financières | C95: 3,935 | D95: 1,203 | E95: 70 | F95: 5,768 | G95: 180 | H95: 11,156 | I95: 11,126
A96: Entreprises | C96: 33,616 | D96: 7,166 | E96: 0 | F96: 0 | G96: 978 | H96: 41,760 | I96: 37,170
A97: PME assimilées aux autres expositions sur la clientèle de détail | C97: 7,708 | D97: 3,932 | E97: 0 | F97: 1 | G97: 90 | H97: 11,731 | I97: 10,395
A98: Immobilier | C98: 196,334 | D98: 27,881 | E98: 0 | F98: 0 | G98: 0 | H98: 224,215 | I98: 175,061
A99: Expositions renouvelables sur la clientèle de détail | C99: 7,212 | D99: 8,068 | E99: 0 | F99: 0 | G99: 0 | H99: 15,280 | I99: 15,280
A100: Autres expositions sur la clientèle de détail | C100: 14,821 | D100: 8,008 | E100: 0 | F100: 0 | G100: 8 | H100: 22,837 | I100: 21,514
A101: Portefeuille de négociation | C101: 0 | D101: 0 | E101: 15,801 | F101: 798 | G101: 0 | H101: 16,599 | I101: 1,308
A102: Total | C102: 333,697 | D102: 64,185 | E102: 44,598 | F102: 7,108 | G102: 4,006 | H102: 453,594 | I102: 409,830
A103: Par régions
B104: Canada | C104: 328,234 | D104: 62,802 | E104: 37,493 | F104: 2,502 | G104: 2,735 | H104: 433,766 | I104: 397,157
B105: États-Unis | C105: 4,571 | D105: 1,354 | E105: 6,034 | F105: 618 | G105: 888 | H105: 13,465 | I105: 7,308
B106: Autres pays | C106: 892 | D106: 29 | E106: 1,071 | F106: 3,988 | G106: 383 | H106: 6,363 | I106: 5,365
A107: Total | C107: 333,697 | D107: 64,185 | E107: 44,598 | F107: 7,108 | G107: 4,006 | H107: 453,594 | I107: 409,830
A108: Par échéance(3)
B109: Jusqu'à 1 an | C109: s. o. | D109: s. o. | E109: s. o. | F109: s. o. | G109: s. o. | H109: s. o. | I109: s. o.
B110: De 1 à 5 ans | C110: s. o. | D110: s. o. | E110: s. o. | F110: s. o. | G110: s. o. | H110: s. o. | I110: s. o.
B111: Plus de 5 ans | C111: s. o. | D111: s. o. | E111: s. o. | F111: s. o. | G111: s. o. | H111: s. o. | I111: s. o.
A112: Total | C112: s. o. | D112: s. o. | E112: s. o. | F112: s. o. | G112: s. o. | H112: s. o. | I112: s. o.
A114: (1) | B114: La définition des catégories d'expositions liées aux exigences de capital réglementaire diffère de celle de la classification comptable.
A115: (2) | B115: Après l'utilisation de techniques d'atténuation du risque de crédit (ARC), y compris des sûretés, des garanties et des dérivés de crédit.
A116: (3) | B116: Le calcul des expositions en cas de défaut par échéance reflète la portée des travaux actuels.

Sheet ECD par sect. dactivité
A1: Expositions en cas de défaut aux entreprises, emprunteurs souverains et institutions financières par secteurs d'activité
B3: =SUM(C6:P57) -> 3566080 | C3: Au 30 septembre 2025 | J3: Au 30 juin 2025
C4: Catégories d'expositions(1) | J4: Catégories d'expositions(1)
A5: (en millions de dollars) | C5: Expositions utilisées | D5: Expositions inutilisées | E5: Transactions assimilables à des pensions | F5: Dérivés de gré à gré | G5: Expositions hors bilan | H5: Total | I5: Expositions nettes(2) | J5: Expositions utilisées | K5: Expositions inutilisées | L5: Transactions assimilables à des pensions | M5: Dérivés de gré à gré | N5: Expositions hors bilan | O5: Total | P5: Expositions nettes(2)
A6: Secteurs d'activité
A7: Agriculture | C7: 11,117 | D7: 648 | E7: 0 | F7: 0 | G7: 44 | H7: 11,809 | I7: 13,069 | J7: 10,868 | K7: 676 | L7: 0 | M7: 0 | N7: 20 | O7: 11,564 | P7: 12,854
A8: Mines | C8: 230 | D8: 340 | E8: 0 | F8: 0 | G8: 65 | H8: 635 | I8: 636 | J8: 268 | K8: 311 | L8: 0 | M8: 0 | N8: 63 | O8: 642 | P8: 644
A9: Pétrole et gaz | C9: 282 | D9: 454 | E9: 0 | F9: 0 | G9: 102 | H9: 838 | I9: 836 | J9: 268 | K9: 372 | L9: 0 | M9: 0 | N9: 46 | O9: 686 | P9: 685
A10: Services publics | C10: 4,207 | D10: 1,340 | E10: 0 | F10: 0 | G10: 247 | H10: 5,794 | I10: 5,794 | J10: 3,743 | K10: 1,398 | L10: 0 | M10: 0 | N10: 280 | O10: 5,421 | P10: 5,421
A11: Construction | C11: 3,423 | D11: 1,079 | E11: 0 | F11: 0 | G11: 310 | H11: 4,812 | I11: 5,012 | J11: 3,569 | K11: 935 | L11: 0 | M11: 0 | N11: 327 | O11: 4,831 | P11: 5,045
A12: Fabrication | C12: 5,207 | D12: 1,439 | E12: 0 | F12: 0 | G12: 152 | H12: 6,798 | I12: 6,904 | J12: 5,145 | K12: 1,419 | L12: 0 | M12: 0 | N12: 149 | O12: 6,713 | P12: 6,825
A13: Commerce de gros | C13: 2,445 | D13: 492 | E13: 0 | F13: 0 | G13: 77 | H13: 3,014 | I13: 3,051 | J13: 2,330 | K13: 459 | L13: 0 | M13: 0 | N13: 80 | O13: 2,869 | P13: 2,906
A14: Commerce de détail | C14: 3,713 | D14: 795 | E14: 0 | F14: 1 | G14: 22 | H14: 4,531 | I14: 4,582 | J14: 3,499 | K14: 774 | L14: 0 | M14: 2 | N14: 14 | O14: 4,289 | P14: 4,337
A15: Transport | C15: 1,620 | D15: 498 | E15: 0 | F15: 1 | G15: 69 | H15: 2,188 | I15: 2,200 | J15: 1,662 | K15: 493 | L15: 0 | M15: 1 | N15: 55 | O15: 2,211 | P15: 2,224
A16: Industrie de l'information | C16: 568 | D16: 531 | E16: 0 | F16: 0 | G16: 11 | H16: 1,110 | I16: 1,123 | J16: 494 | K16: 609 | L16: 0 | M16: 0 | N16: 15 | O16: 1,118 | P16: 1,138
A17: Finance et assurances | C17: 12,962 | D17: 2,397 | E17: 4,163 | F17: 6,834 | G17: 3,253 | H17: 29,609 | I17: 25,505 | J17: 12,692 | K17: 2,477 | L17: 868 | M17: 6,168 | N17: 2,877 | O17: 25,082 | P17: 24,164
A18: Immobilier | C18: 6,099 | D18: 1,695 | E18: 0 | F18: 0 | G18: 105 | H18: 7,899 | I18: 36,533 | J18: 5,742 | K18: 1,463 | L18: 0 | M18: 0 | N18: 91 | O18: 7,296 | P18: 33,523
A19: Services professionnels | C19: 1,333 | D19: 513 | E19: 0 | F19: 0 | G19: 81 | H19: 1,927 | I19: 1,944 | J19: 1,431 | K19: 461 | L19: 0 | M19: 0 | N19: 81 | O19: 1,973 | P19: 1,989
A20: Gestion de sociétés | C20: 1,183 | D20: 306 | E20: 0 | F20: 0 | G20: 31 | H20: 1,520 | I20: 1,523 | J20: 1,266 | K20: 210 | L20: 0 | M20: 0 | N20: 31 | O20: 1,507 | P20: 1,516
A21: Services administratifs | C21: 924 | D21: 193 | E21: 0 | F21: 0 | G21: 19 | H21: 1,136 | I21: 1,150 | J21: 814 | K21: 210 | L21: 0 | M21: 0 | N21: 20 | O21: 1,044 | P21: 1,056
A22: Enseignement | C22: 141 | D22: 32 | E22: 0 | F22: 0 | G22: 1 | H22: 174 | I22: 177 | J22: 133 | K22: 29 | L22: 0 | M22: 0 | N22: 1 | O22: 163 | P22: 166
A23: Soins de santé | C23: 1,015 | D23: 123 | E23: 0 | F23: 0 | G23: 3 | H23: 1,141 | I23: 3,062 | J23: 850 | K23: 131 | L23: 0 | M23: 0 | N23: 3 | O23: 984 | P23: 2,857
